{"text_format":"3","workbook":"xlsx","n_sheets":1,"sheets":["Eligible journals-OA publishing"],"not_rendered":{"images":1,"defined_names":1},"read":"whole","date_system":"1900"}

{"sheet":"Eligible journals-OA publishing","index":0,"n_rows":2077,"n_cols":11,"rows_kept":2077}
[]
[]
[]
["Open access agreement for xxx"]
["Updated 19 January 2026"]
["S/N","Journal ID","Journal Title","eISSN","Journal Imprint","Main Discipline","Subject Area","Publishing Model","OA License","URL"]
[null,"41431E","European Journal of Human Genetics","1476-5438","Springer Nature","Biomedicine","Biomedical and Life Sciences","Hybrid","CC BY","https://www.nature.com/ejhg/"]
[null,"41386E","Neuropsychopharmacology","1740-634X","Springer Nature","Medicine & Public Health","Medicine","Hybrid","CC BY","https://www.nature.com/npp/"]
[null,"41415E","British Dental Journal","1476-5373","Springer Nature","Dentistry","Medicine","Hybrid","CC BY","https://www.nature.com/bdj/"]
[null,"41372E","Journal of Perinatology","1476-5543","Springer Nature","Medicine & Public Health","Medicine","Hybrid","CC BY","https://www.nature.com/jp/"]
[null,"41391E","Prostate Cancer and Prostatic Diseases","1476-5608","Springer Nature","Biomedicine","Biomedical and Life Sciences","Hybrid","CC BY","https://www.nature.com/pcan/"]
[null,"41430E","European Journal of Clinical Nutrition","1476-5640","Springer Nature","Medicine & Public Health","Medicine","Hybrid","CC BY","https://www.nature.com/ejcn/"]
[null,"41417E","Cancer Gene Therapy","1476-5500","Springer Nature","Biomedicine","Biomedical and Life Sciences","Hybrid","CC BY","https://www.nature.com/cgt/"]
[null,"41366E","International Journal of Obesity","1476-5497","Springer Nature","Medicine & Public Health","Medicine","Hybrid","CC BY","https://www.nature.com/ijo/"]
[null,"41429E","The Journal of Antibiotics","1881-1469","Springer Nature","Life Sciences","Biomedical and Life Sciences","Hybrid","CC BY","https://www.nature.com/ja/"]
[null,"41375E","Leukemia","1476-5551","Springer Nature","Medicine & Public Health","Medicine","Hybrid","CC BY","https://www.nature.com/leu/"]
[null,"41435E","Genes & Immunity","1476-5470","Springer Nature","Biomedicine","Biomedical and Life Sciences","Hybrid","CC BY","https://www.nature.com/gene/"]
[null,"10038E","Journal of Human Genetics","1435-232X","Springer Nature","Biomedicine","Biomedical and Life Sciences","Hybrid","CC BY","https://www.nature.com/jhg/"]
[null,"41370E","Journal of Exposure Science & Environmental Epidemiology","1559-064X","Springer Nature","Medicine & Public Health","Medicine","Hybrid","CC BY","https://www.nature.com/jes/"]
[null,"41371E","Journal of Human Hypertension","1476-5527","Springer Nature","Medicine & Public Health","Medicine","Hybrid","CC BY","https://www.nature.com/jhh/"]
[null,"41380E","Molecular Psychiatry","1476-5578","Springer Nature","Medicine & Public Health","Medicine","Hybrid","CC BY","https://www.nature.com/mp/"]
[null,"41388E","Oncogene","1476-5594","Springer Nature","Medicine & Public Health","Medicine","Hybrid","CC BY","https://www.nature.com/onc/"]
[null,"41390E","Pediatric Research","1530-0447","Springer Nature","Medicine & Public Health","Medicine","Hybrid","CC BY","https://www.nature.com/pr/"]
[null,"41393E","Spinal Cord","1476-5624","Springer Nature","Biomedicine","Biomedical and Life Sciences","Hybrid","CC BY","https://www.nature.com/sc/"]
[null,"41397E","The Pharmacogenomics Journal","1473-1150","Springer Nature","Biomedicine","Biomedical and Life Sciences","Hybrid","CC BY","https://www.nature.com/tpj/"]
[null,"41401E","Acta Pharmacologica Sinica","1745-7254","Springer Nature","Biomedicine","Biomedical and Life Sciences","Hybrid","CC BY","https://www.nature.com/aps/"]
[null,"41409E","Bone Marrow Transplantation","1476-5365","Springer Nature","Medicine & Public Health","Medicine","Hybrid","CC BY","https://www.nature.com/bmt/"]
[null,"41416E","British Journal of Cancer","1532-1827","Springer Nature","Biomedicine","Biomedical and Life Sciences","Hybrid","CC BY","https://www.nature.com/bjc/"]
[null,"41418E","Cell Death & Differentiation","1476-5403","Springer Nature","Life Sciences","Biomedical and Life Sciences","Hybrid","CC BY","https://www.nature.com/cdd/"]
[null,"41422E","Cell Research","1748-7838","Springer Nature","Life Sciences","Biomedical and Life Sciences","Hybrid","CC BY","https://www.nature.com/cr/"]
[null,"41423E","Cellular & Molecular Immunology","2042-0226","Springer Nature","Biomedicine","Biomedical and Life Sciences","Hybrid","CC BY","https://www.nature.com/cmi/"]
[null,"41428E","Polymer Journal","1349-0540","Springer Nature","Chemistry","Chemistry and Materials Science","Hybrid","CC BY","https://www.nature.com/pj/"]
[null,"41432E","Evidence-Based Dentistry","1476-5446","Springer Nature","Dentistry","Medicine","Hybrid","CC BY","https://www.nature.com/ebd/"]
[null,"41433E","Eye","1476-5454","Springer Nature","Medicine & Public Health","Medicine","Hybrid","CC BY","https://www.nature.com/eye/"]
[null,"41434E","Gene Therapy","1476-5462","Springer Nature","Biomedicine","Biomedical and Life Sciences","Hybrid","CC BY","https://www.nature.com/gt/"]
[null,"41437E","Heredity","1365-2540","Springer Nature","Biomedicine","Biomedical and Life Sciences","Hybrid","CC BY","https://www.nature.com/hdy/"]
[null,"41440E","Hypertension Research","1348-4214","Springer Nature","Medicine & Public Health","Medicine","Hybrid","CC BY","https://www.nature.com/hr/"]
[null,"41443E","International Journal of Impotence Research","1476-5489","Springer Nature","Medicine & Public Health","Medicine","Hybrid","CC BY","https://www.nature.com/ijir/"]
[null,"41684E","Lab Animal","1548-4475","Springer Nature","Life Sciences","Biomedical and Life Sciences","Hybrid","CC BY","https://www.nature.com/laban/"]
[null,"41394E","Spinal Cord Series and Cases","2058-6124","Springer Nature","Biomedicine","Biomedical and Life Sciences","Hybrid","CC BY","https://www.nature.com/scsandc/"]
[null,40257,"American Journal of Clinical Dermatology","1179-1888","Adis","Medicine & Public Health","Medicine","Hybrid","CC BY-NC",{"$f":"K41&B41","v":"https://link.springer.com/journal/40257"},"https://link.springer.com/journal/"]
[null,40261,"Clinical Drug Investigation","1179-1918","Adis","Medicine & Public Health","Medicine","Hybrid","CC BY-NC","https://link.springer.com/journal/40261","https://link.springer.com/journal/"]
[null,40267,"Drugs & Therapy Perspectives","1179-1977","Adis","Pharmacy","Medicine","Fully Open Access","CC BY-NC","https://link.springer.com/journal/40267","https://link.springer.com/journal/"]
[null,40292,"High Blood Pressure & Cardiovascular Prevention","1179-1985","Adis","Medicine & Public Health","Medicine","Hybrid","CC BY-NC","https://link.springer.com/journal/40292","https://link.springer.com/journal/"]
[null,40290,"Pharmaceutical Medicine","1179-1993","Adis","Biomedicine","Biomedical and Life Sciences","Hybrid","CC BY-NC","https://link.springer.com/journal/40290","https://link.springer.com/journal/"]
[null,40259,"BioDrugs","1179-190X","Adis","Biomedicine","Biomedical and Life Sciences","Hybrid","CC BY-NC","https://link.springer.com/journal/40259","https://link.springer.com/journal/"]
[null,40263,"CNS Drugs","1179-1934","Adis","Medicine & Public Health","Medicine","Hybrid","CC BY-NC","https://link.springer.com/journal/40263","https://link.springer.com/journal/"]
[null,11523,"Targeted Oncology","1776-260X","Adis","Medicine & Public Health","Medicine","Hybrid","CC BY-NC","https://link.springer.com/journal/11523","https://link.springer.com/journal/"]
[null,40266,"Drugs & Aging","1179-1969","Adis","Medicine & Public Health","Medicine","Hybrid","CC BY-NC","https://link.springer.com/journal/40266","https://link.springer.com/journal/"]
[null,40262,"Clinical Pharmacokinetics","1179-1926","Adis","Medicine & Public Health","Medicine","Hybrid","CC BY-NC","https://link.springer.com/journal/40262","https://link.springer.com/journal/"]
[null,40258,"Applied Health Economics and Health Policy","1179-1896","Adis","Medicine & Public Health","Medicine","Hybrid","CC BY-NC","https://link.springer.com/journal/40258","https://link.springer.com/journal/"]
[null,40265,"Drugs","1179-1950","Adis","Medicine & Public Health","Medicine","Hybrid","CC BY-NC","https://link.springer.com/journal/40265","https://link.springer.com/journal/"]
[null,12325,"Advances in Therapy","1865-8652","Adis","Medicine & Public Health","Medicine","Hybrid","CC BY-NC","https://link.springer.com/journal/12325","https://link.springer.com/journal/"]
[null,40256,"American Journal of Cardiovascular Drugs","1179-187X","Adis","Medicine & Public Health","Medicine","Hybrid","CC BY-NC","https://link.springer.com/journal/40256","https://link.springer.com/journal/"]
[null,40264,"Drug Safety","1179-1942","Adis","Medicine & Public Health","Medicine","Hybrid","CC BY-NC","https://link.springer.com/journal/40264","https://link.springer.com/journal/"]
[null,13318,"European Journal of Drug Metabolism and Pharmacokinetics","2107-0180","Adis","Biomedicine","Biomedical and Life Sciences","Hybrid","CC BY-NC","https://link.springer.com/journal/13318","https://link.springer.com/journal/"]
[null,40291,"Molecular Diagnosis & Therapy","1179-2000","Adis","Biomedicine","Biomedical and Life Sciences","Hybrid","CC BY-NC","https://link.springer.com/journal/40291","https://link.springer.com/journal/"]
[null,40271,"The Patient - Patient-Centered Outcomes Research","1178-1661","Adis","Medicine & Public Health","Medicine","Hybrid","CC BY-NC","https://link.springer.com/journal/40271","https://link.springer.com/journal/"]
[null,40272,"Pediatric Drugs","1179-2019","Adis","Medicine & Public Health","Medicine","Hybrid","CC BY-NC","https://link.springer.com/journal/40272","https://link.springer.com/journal/"]
[null,40273,"PharmacoEconomics","1179-2027","Adis","Medicine & Public Health","Medicine","Hybrid","CC BY-NC","https://link.springer.com/journal/40273","https://link.springer.com/journal/"]
[null,41290,"American Journal of Cultural Sociology","2049-7121","Palgrave Macmillan","Social Sciences","Social Sciences","Hybrid","CC BY","https://link.springer.com/journal/41290","https://link.springer.com/journal/"]
[null,41270,"Journal of Marketing Analytics","2050-3326","Palgrave Macmillan","Business and Management","Business and Management","Hybrid","CC BY","https://link.springer.com/journal/41270","https://link.springer.com/journal/"]
[null,41267,"Journal of International Business Studies","1478-6990","Palgrave Macmillan","Business and Management","Business and Management","Hybrid","CC BY","https://link.springer.com/journal/41267","https://link.springer.com/journal/"]
[null,41271,"Journal of Public Health Policy","1745-655X","Palgrave Macmillan","Social Sciences","Social Sciences","Hybrid","CC BY","https://link.springer.com/journal/41271","https://link.springer.com/journal/"]
[null,41293,"British Politics","1746-9198","Palgrave Macmillan","Political Science and International Relations","Political Science and International Studies","Hybrid","CC BY","https://link.springer.com/journal/41293","https://link.springer.com/journal/"]
[null,41296,"Contemporary Political Theory","1476-9336","Palgrave Macmillan","Political Science and International Relations","Political Science and International Studies","Hybrid","CC BY","https://link.springer.com/journal/41296","https://link.springer.com/journal/"]
[null,41269,"Acta Politica","1741-1416","Palgrave Macmillan","Political Science and International Relations","Political Science and International Studies","Hybrid","CC BY","https://link.springer.com/journal/41269","https://link.springer.com/journal/"]
[null,41268,"Journal of International Relations and Development","1581-1980","Palgrave Macmillan","Political Science and International Relations","Political Science and International Studies","Hybrid","CC BY","https://link.springer.com/journal/41268","https://link.springer.com/journal/"]
[null,41272,"Journal of Revenue and Pricing Management","1477-657X","Palgrave Macmillan","Business and Management","Business and Management","Hybrid","CC BY","https://link.springer.com/journal/41272","https://link.springer.com/journal/"]
[null,41299,"Corporate Reputation Review","1479-1889","Palgrave Macmillan","Business and Management","Business and Management","Hybrid","CC BY","https://link.springer.com/journal/41299","https://link.springer.com/journal/"]
[null,41289,"URBAN DESIGN International","1468-4519","Palgrave Macmillan","Architecture / Design","Architecture and Design","Hybrid","CC BY","https://link.springer.com/journal/41289","https://link.springer.com/journal/"]
[null,41276,"Latino Studies","1476-3443","Palgrave Macmillan","Cultural and Media Studies","Literature, Cultural and Media Studies","Hybrid","CC BY","https://link.springer.com/journal/41276","https://link.springer.com/journal/"]
[null,41288,"The Geneva Papers on Risk and Insurance - Issues and Practice","1468-0440","Palgrave Macmillan","Finance","Economics and Finance","Hybrid","CC BY","https://link.springer.com/journal/41288","https://link.springer.com/journal/"]
[null,11369,"Business Economics","1554-432X","Palgrave Macmillan","Economics","Economics and Finance","Hybrid","CC BY","https://link.springer.com/journal/11369","https://link.springer.com/journal/"]
[null,41294,"Comparative Economic Studies","1478-3320","Palgrave Macmillan","Economics","Economics and Finance","Hybrid","CC BY","https://link.springer.com/journal/41294","https://link.springer.com/journal/"]
[null,41291,"Asian Business & Management","1476-9328","Palgrave Macmillan","Business and Management","Business and Management","Hybrid","CC BY","https://link.springer.com/journal/41291","https://link.springer.com/journal/"]
[null,41292,"BioSocieties","1745-8560","Palgrave Macmillan","Social Sciences","Social Sciences","Hybrid","CC BY","https://link.springer.com/journal/41292","https://link.springer.com/journal/"]
[null,42214,"Journal of International Business Policy","2522-0705","Palgrave Macmillan","Business and Management","Business and Management","Hybrid","CC BY","https://link.springer.com/journal/42214","https://link.springer.com/journal/"]
[null,41295,"Comparative European Politics","1740-388X","Palgrave Macmillan","Political Science and International Relations","Political Science and International Studies","Hybrid","CC BY","https://link.springer.com/journal/41295","https://link.springer.com/journal/"]
[null,41284,"Security Journal","1743-4645","Palgrave Macmillan","Social Sciences","Social Sciences","Hybrid","CC BY","https://link.springer.com/journal/41284","https://link.springer.com/journal/"]
[null,10713,"The Geneva Risk and Insurance Review","1554-9658","Palgrave Macmillan","Finance","Economics and Finance","Hybrid","CC BY","https://link.springer.com/journal/10713","https://link.springer.com/journal/"]
[null,41287,"The European Journal of Development Research","1743-9728","Palgrave Macmillan","Social Sciences","Social Sciences","Hybrid","CC BY","https://link.springer.com/journal/41287","https://link.springer.com/journal/"]
[null,41285,"Social Theory & Health","1477-822X","Palgrave Macmillan","Social Sciences","Social Sciences","Hybrid","CC BY","https://link.springer.com/journal/41285","https://link.springer.com/journal/"]
[null,41283,"Risk Management","1743-4637","Palgrave Macmillan","Finance","Economics and Finance","Hybrid","CC BY","https://link.springer.com/journal/41283","https://link.springer.com/journal/"]
[null,41253,"French Politics","1476-3427","Palgrave Macmillan","Political Science and International Relations","Political Science and International Studies","Hybrid","CC BY","https://link.springer.com/journal/41253","https://link.springer.com/journal/"]
[null,41307,"Higher Education Policy","1740-3863","Palgrave Macmillan","Education","Education","Hybrid","CC BY","https://link.springer.com/journal/41307","https://link.springer.com/journal/"]
[null,41280,"postmedieval","2040-5979","Palgrave Macmillan","Literature","Literature, Cultural and Media Studies","Hybrid","CC BY","https://link.springer.com/journal/41280","https://link.springer.com/journal/"]
[null,41310,"International Journal of Disclosure and Governance","1746-6539","Palgrave Macmillan","Business and Management","Business and Management","Hybrid","CC BY","https://link.springer.com/journal/41310","https://link.springer.com/journal/"]
[null,41260,"Journal of Asset Management","1479-179X","Palgrave Macmillan","Finance","Economics and Finance","Hybrid","CC BY","https://link.springer.com/journal/41260","https://link.springer.com/journal/"]
[null,41261,"Journal of Banking Regulation","1750-2071","Palgrave Macmillan","Finance","Economics and Finance","Hybrid","CC BY","https://link.springer.com/journal/41261","https://link.springer.com/journal/"]
[null,41282,"Psychoanalysis, Culture & Society","1543-3390","Palgrave Macmillan","Medicine & Public Health","Medicine","Hybrid","CC BY","https://link.springer.com/journal/41282","https://link.springer.com/journal/"]
[null,41300,"Crime Prevention and Community Safety","1743-4629","Palgrave Macmillan","Social Sciences","Social Sciences","Hybrid","CC BY","https://link.springer.com/journal/41300","https://link.springer.com/journal/"]
[null,42738,"Journal of Transatlantic Studies","1754-1018","Palgrave Macmillan","Political Science and International Relations","Political Science and International Studies","Hybrid","CC BY","https://link.springer.com/journal/42738","https://link.springer.com/journal/"]
[null,41286,"Subjectivity","1755-635X","Palgrave Macmillan","Social Sciences","Social Sciences","Hybrid","CC BY","https://link.springer.com/journal/41286","https://link.springer.com/journal/"]
[null,41302,"Eastern Economic Journal","1939-4632","Palgrave Macmillan","Economics","Economics and Finance","Hybrid","CC BY","https://link.springer.com/journal/41302","https://link.springer.com/journal/"]
[null,41264,"Journal of Financial Services Marketing","1479-1846","Palgrave Macmillan","Finance","Economics and Finance","Hybrid","CC BY","https://link.springer.com/journal/41264","https://link.springer.com/journal/"]
[null,41309,"Interest Groups & Advocacy","2047-7422","Palgrave Macmillan","Political Science and International Relations","Political Science and International Studies","Hybrid","CC BY","https://link.springer.com/journal/41309","https://link.springer.com/journal/"]
[null,41254,"Place Branding and Public Diplomacy","1751-8059","Palgrave Macmillan","Business and Management","Business and Management","Hybrid","CC BY","https://link.springer.com/journal/41254","https://link.springer.com/journal/"]
[null,41278,"Maritime Economics & Logistics","1479-294X","Palgrave Macmillan","Business and Management","Business and Management","Hybrid","CC BY","https://link.springer.com/journal/41278","https://link.springer.com/journal/"]
[null,41262,"Journal of Brand Management","1479-1803","Palgrave Macmillan","Business and Management","Business and Management","Hybrid","CC BY","https://link.springer.com/journal/41262","https://link.springer.com/journal/"]
[null,42984,"Digital War","2662-1983","Palgrave Macmillan","Cultural and Media Studies","Literature, Cultural and Media Studies","Hybrid","CC BY","https://link.springer.com/journal/42984","https://link.springer.com/journal/"]
[null,41311,"International Politics","1740-3898","Palgrave Macmillan","Political Science and International Relations","Political Science and International Studies","Hybrid","CC BY","https://link.springer.com/journal/41311","https://link.springer.com/journal/"]
[null,40803,"Hague Journal on the Rule of Law","1876-4053","Springer","Law","Law and Criminology","Hybrid","CC BY","https://link.springer.com/journal/40803","https://link.springer.com/journal/"]
[null,12105,"Head and Neck Pathology","1936-0568","Springer","Medicine & Public Health","Medicine","Hybrid","CC BY","https://link.springer.com/journal/12105","https://link.springer.com/journal/"]
[null,10728,"Health Care Analysis","1573-3394","Springer","Medicine & Public Health","Medicine","Hybrid","CC BY",{"$f":"K105&B105","v":"https://link.springer.com/journal/10728"},"https://link.springer.com/journal/"]
[null,10729,"Health Care Management Science","1572-9389","Springer","Business and Management","Business and Management","Hybrid","CC BY","https://link.springer.com/journal/10729","https://link.springer.com/journal/"]
[null,13755,"Health Information Science and Systems","2047-2501","Springer","Computer Science","Computer Science","Hybrid","CC BY","https://link.springer.com/journal/13755","https://link.springer.com/journal/"]
[null,10742,"Health Services and Outcomes Research Methodology","1572-9400","Springer","Medicine & Public Health","Medicine","Hybrid","CC BY","https://link.springer.com/journal/10742","https://link.springer.com/journal/"]
[null,12553,"Health and Technology","2190-7196","Springer","Engineering","Engineering","Hybrid","CC BY","https://link.springer.com/journal/12553","https://link.springer.com/journal/"]
[null,10741,"Heart Failure Reviews","1573-7322","Springer","Medicine & Public Health","Medicine","Hybrid","CC BY","https://link.springer.com/journal/10741","https://link.springer.com/journal/"]
[null,380,"Heart and Vessels","1615-2573","Springer","Medicine & Public Health","Medicine","Hybrid","CC BY","https://link.springer.com/journal/380","https://link.springer.com/journal/"]
[null,231,"Heat and Mass Transfer","1432-1181","Springer","Engineering","Engineering","Hybrid","CC BY","https://link.springer.com/journal/231","https://link.springer.com/journal/"]
[null,12072,"Hepatology International","1936-0541","Springer","Medicine & Public Health","Medicine","Hybrid","CC BY","https://link.springer.com/journal/12072","https://link.springer.com/journal/"]
[null,10029,"Hernia","1248-9204","Springer","Medicine & Public Health","Medicine","Hybrid","CC BY","https://link.springer.com/journal/10029","https://link.springer.com/journal/"]
[null,44210,"High Entropy Alloys & Materials","2731-5827","Springer","Materials Science","Chemistry and Materials Science","Hybrid","CC BY","https://link.springer.com/journal/44210","https://link.springer.com/journal/"]
[null,11085,"High Temperature Corrosion of Materials","2731-8400","Springer","Materials Science","Chemistry and Materials Science","Hybrid","CC BY","https://link.springer.com/journal/11085","https://link.springer.com/journal/"]
[null,10734,"Higher Education","1573-174X","Springer","Education","Education","Hybrid","CC BY","https://link.springer.com/journal/10734","https://link.springer.com/journal/"]
[null,41636,"Historical Archaeology","2328-1103","Springer","Social Sciences","Social Sciences","Hybrid","CC BY","https://link.springer.com/journal/41636","https://link.springer.com/journal/"]
[null,40656,"History and Philosophy of the Life Sciences","1742-6316","Springer","Philosophy","Education","Hybrid","CC BY","https://link.springer.com/journal/40656","https://link.springer.com/journal/"]
[null,41412,"Homo Oeconomicus","2366-6161","Springer","Economics","Economics and Finance","Hybrid","CC BY","https://link.springer.com/journal/41412","https://link.springer.com/journal/"]
[null,42000,"Hormones","2520-8721","Springer","Medicine & Public Health","Medicine","Hybrid","CC BY","https://link.springer.com/journal/42000","https://link.springer.com/journal/"]
[null,13580,"Horticulture, Environment, and Biotechnology","2211-3460","Springer","Life Sciences","Biomedical and Life Sciences","Hybrid","CC BY","https://link.springer.com/journal/13580","https://link.springer.com/journal/"]
[null,42087,"Human Arenas","2522-5804","Springer","Psychology","Behavioral Science and Psychology","Hybrid","CC BY","https://link.springer.com/journal/42087","https://link.springer.com/journal/"]
[null,13577,"Human Cell","1749-0774","Springer","Life Sciences","Biomedical and Life Sciences","Hybrid","CC BY","https://link.springer.com/journal/13577","https://link.springer.com/journal/"]
[null,10745,"Human Ecology","1572-9915","Springer","Social Sciences","Social Sciences","Hybrid","CC BY","https://link.springer.com/journal/10745","https://link.springer.com/journal/"]
[null,439,"Human Genetics","1432-1203","Springer","Biomedicine","Biomedical and Life Sciences","Hybrid","CC BY","https://link.springer.com/journal/439","https://link.springer.com/journal/"]
[null,12110,"Human Nature","1936-4776","Springer","Social Sciences","Social Sciences","Hybrid","CC BY","https://link.springer.com/journal/12110","https://link.springer.com/journal/"]
[null,12142,"Human Rights Review","1874-6306","Springer","Philosophy","Education","Hybrid","CC BY","https://link.springer.com/journal/12142","https://link.springer.com/journal/"]
[null,10746,"Human Studies","1572-851X","Springer","Philosophy","Education","Hybrid","CC BY","https://link.springer.com/journal/10746","https://link.springer.com/journal/"]
[null,42454,"Human-Intelligent Systems Integration","2524-4884","Springer","Engineering","Engineering","Hybrid","CC BY","https://link.springer.com/journal/42454","https://link.springer.com/journal/"]
[null,41463,"Humanistic Management Journal","2366-6048","Springer","Philosophy","Education","Hybrid","CC BY","https://link.springer.com/journal/41463","https://link.springer.com/journal/"]
[null,10743,"Husserl Studies","1572-8501","Springer","Philosophy","Education","Hybrid","CC BY","https://link.springer.com/journal/10743","https://link.springer.com/journal/"]
[null,10750,"Hydrobiologia","1573-5117","Springer","Life Sciences","Biomedical and Life Sciences","Hybrid","CC BY","https://link.springer.com/journal/10750","https://link.springer.com/journal/"]
[null,10040,"Hydrogeology Journal","1435-0157","Springer","Earth Sciences","Earth and Environmental Science","Hybrid","CC BY","https://link.springer.com/journal/10040","https://link.springer.com/journal/"]
[null,40319,"IIC - International Review of Intellectual Property and Competition Law","2195-0237","Springer","Law","Law and Criminology","Hybrid","CC BY","https://link.springer.com/journal/40319","https://link.springer.com/journal/"]
[null,41683,"ISSS Journal of Micro and Smart Systems","2509-7997","Springer","Engineering","Engineering","Hybrid","CC BY","https://link.springer.com/journal/41683","https://link.springer.com/journal/"]
[null,10228,"Ichthyological Research","1616-3915","Springer","Life Sciences","Biomedical and Life Sciences","Hybrid","CC BY","https://link.springer.com/journal/10228","https://link.springer.com/journal/"]
[null,40203,"In Silico Pharmacology","2193-9616","Springer","Biomedicine","Biomedical and Life Sciences","Hybrid","CC BY","https://link.springer.com/journal/40203","https://link.springer.com/journal/"]
[null,44164,"In vitro models","2731-3441","Springer","Biomedicine","Biomedical and Life Sciences","Hybrid","CC BY","https://link.springer.com/journal/44164","https://link.springer.com/journal/"]
[null,41775,"Indian Economic Review","2520-1778","Springer","Economics","Economics and Finance","Hybrid","CC BY","https://link.springer.com/journal/41775","https://link.springer.com/journal/"]
[null,40098,"Indian Geotechnical Journal","2277-3347","Springer","Engineering","Engineering","Hybrid","CC BY","https://link.springer.com/journal/40098","https://link.springer.com/journal/"]
[null,12291,"Indian Journal of Clinical Biochemistry","0974-0422","Springer","Life Sciences","Biomedical and Life Sciences","Hybrid","CC BY","https://link.springer.com/journal/12291","https://link.springer.com/journal/"]
[null,12664,"Indian Journal of Gastroenterology","0975-0711","Springer","Medicine & Public Health","Medicine","Hybrid","CC BY","https://link.springer.com/journal/12664","https://link.springer.com/journal/"]
[null,40944,"Indian Journal of Gynecologic Oncology","2363-8400","Springer","Medicine & Public Health","Medicine","Hybrid","CC BY","https://link.springer.com/journal/40944","https://link.springer.com/journal/"]
[null,12288,"Indian Journal of Hematology and Blood Transfusion","0974-0449","Springer","Medicine & Public Health","Medicine","Hybrid","CC BY","https://link.springer.com/journal/12288","https://link.springer.com/journal/"]
[null,41027,"The Indian Journal of Labour Economics","0019-5308","Springer","Economics","Economics and Finance","Hybrid","CC BY","https://link.springer.com/journal/41027","https://link.springer.com/journal/"]
[null,12088,"Indian Journal of Microbiology","0973-7715","Springer","Life Sciences","Biomedical and Life Sciences","Hybrid","CC BY","https://link.springer.com/journal/12088","https://link.springer.com/journal/"]
[null,43465,"Indian Journal of Orthopaedics","1998-3727","Springer","Medicine & Public Health","Medicine","Hybrid","CC BY","https://link.springer.com/journal/43465","https://link.springer.com/journal/"]
[null,12070,"Indian Journal of Otolaryngology and Head & Neck Surgery","0973-7707","Springer","Medicine & Public Health","Medicine","Hybrid","CC BY","https://link.springer.com/journal/12070","https://link.springer.com/journal/"]
[null,12098,"Indian Journal of Pediatrics","0973-7693","Springer","Medicine & Public Health","Medicine","Hybrid","CC BY","https://link.springer.com/journal/12098","https://link.springer.com/journal/"]
[null,12648,"Indian Journal of Physics","0974-9845","Springer","Physics","Physics and Astronomy","Hybrid","CC BY","https://link.springer.com/journal/12648","https://link.springer.com/journal/"]
[null,12262,"Indian Journal of Surgery","0973-9793","Springer","Medicine & Public Health","Medicine","Hybrid","CC BY","https://link.springer.com/journal/12262","https://link.springer.com/journal/"]
[null,13193,"Indian Journal of Surgical Oncology","0976-6952","Springer","Medicine & Public Health","Medicine","Hybrid","CC BY","https://link.springer.com/journal/13193","https://link.springer.com/journal/"]
[null,12055,"Indian Journal of Thoracic and Cardiovascular Surgery","0973-7723","Springer","Medicine & Public Health","Medicine","Hybrid","CC BY","https://link.springer.com/journal/12055","https://link.springer.com/journal/"]
[null,13312,"Indian Pediatrics","0974-7559","Springer","Medicine & Public Health","Medicine","Hybrid","CC BY","https://link.springer.com/journal/13312","https://link.springer.com/journal/"]
[null,42360,"Indian Phytopathology","2248-9800","Springer","Life Sciences","Biomedical and Life Sciences","Hybrid","CC BY","https://link.springer.com/journal/42360","https://link.springer.com/journal/"]
[null,43493,"The Journal of East Asian Philosophy","2730-5414","Springer","Philosophy","Education","Hybrid","CC BY","https://link.springer.com/journal/43493","https://link.springer.com/journal/"]
[null,10888,"The Journal of Economic Inequality","1573-8701","Springer","Economics","Economics and Finance","Hybrid","CC BY","https://link.springer.com/journal/10888","https://link.springer.com/journal/"]
[null,10892,"The Journal of Ethics","1572-8609","Springer","Philosophy","Education","Hybrid","CC BY","https://link.springer.com/journal/10892","https://link.springer.com/journal/"]
[null,12220,"The Journal of Geometric Analysis","1559-002X","Springer","Mathematics","Mathematics and Statistics","Hybrid","CC BY","https://link.springer.com/journal/12220","https://link.springer.com/journal/"]
[null,232,"The Journal of Membrane Biology","1432-1424","Springer","Life Sciences","Biomedical and Life Sciences","Hybrid","CC BY","https://link.springer.com/journal/232","https://link.springer.com/journal/"]
[null,13224,"The Journal of Obstetrics and Gynecology of India","0975-6434","Springer","Medicine & Public Health","Medicine","Hybrid","CC BY","https://link.springer.com/journal/13224","https://link.springer.com/journal/"]
[null,11146,"The Journal of Real Estate Finance and Economics","1573-045X","Springer","Economics","Economics and Finance","Hybrid","CC BY","https://link.springer.com/journal/11146","https://link.springer.com/journal/"]
[null,11227,"The Journal of Supercomputing","1573-0484","Springer","Computer Science","Computer Science","Hybrid","CC BY","https://link.springer.com/journal/11227","https://link.springer.com/journal/"]
[null,10961,"The Journal of Technology Transfer","1573-7047","Springer","Business and Management","Business and Management","Hybrid","CC BY","https://link.springer.com/journal/10961","https://link.springer.com/journal/"]
[null,10790,"The Journal of Value Inquiry","1573-0492","Springer","Philosophy","Education","Hybrid","CC BY","https://link.springer.com/journal/10790","https://link.springer.com/journal/"]
[null,10805,"Journal of Academic Ethics","1572-8544","Springer","Education","Education","Hybrid","CC BY","https://link.springer.com/journal/10805","https://link.springer.com/journal/"]
[null,11747,"Journal of the Academy of Marketing Science","1552-7824","Springer","Business and Management","Business and Management","Hybrid","CC BY","https://link.springer.com/journal/11747","https://link.springer.com/journal/"]
[null,11726,"Journal of Acupuncture and Tuina Science","1993-0399","Springer","Medicine & Public Health","Medicine","Hybrid","CC BY",{"$f":"K169&B169","v":"https://link.springer.com/journal/11726"},"https://link.springer.com/journal/"]
[null,10804,"Journal of Adult Development","1573-3440","Springer","Psychology","Behavioral Science and Psychology","Hybrid","CC BY","https://link.springer.com/journal/10804","https://link.springer.com/journal/"]
[null,12111,"Journal of African American Studies","1936-4741","Springer","Social Sciences","Social Sciences","Hybrid","CC BY","https://link.springer.com/journal/12111","https://link.springer.com/journal/"]
[null,13253,"Journal of Agricultural, Biological and Environmental Statistics","1537-2693","Springer","Statistics","Mathematics and Statistics","Hybrid","CC BY","https://link.springer.com/journal/13253","https://link.springer.com/journal/"]
[null,10806,"Journal of Agricultural and Environmental Ethics","1573-322X","Springer","Philosophy","Education","Hybrid","CC BY","https://link.springer.com/journal/10806","https://link.springer.com/journal/"]
[null,10801,"Journal of Algebraic Combinatorics","1572-9192","Springer","Mathematics","Mathematics and Statistics","Hybrid","CC BY","https://link.springer.com/journal/10801","https://link.springer.com/journal/"]
[null,12652,"Journal of Ambient Intelligence and Humanized Computing","1868-5145","Springer","Engineering","Engineering","Hybrid","CC BY","https://link.springer.com/journal/12652","https://link.springer.com/journal/"]
[null,11854,"Journal d'Analyse Mathématique","1565-8538","Hebrew University Magnes Press","Mathematics","Mathematics and Statistics","Hybrid","CC BY","https://link.springer.com/journal/11854","https://link.springer.com/journal/"]
[null,41664,"Journal of Analysis and Testing","2509-4696","Springer","Chemistry","Chemistry and Materials Science","Hybrid","CC BY","https://link.springer.com/journal/41664","https://link.springer.com/journal/"]
[null,540,"Journal of Anesthesia","1438-8359","Springer","Medicine & Public Health","Medicine","Hybrid","CC BY","https://link.springer.com/journal/540","https://link.springer.com/journal/"]
[null,41468,"Journal of Applied and Computational Topology","2367-1734","Springer","Mathematics","Mathematics and Statistics","Hybrid","CC BY","https://link.springer.com/journal/41468","https://link.springer.com/journal/"]
[null,10800,"Journal of Applied Electrochemistry","1572-8838","Springer","Chemistry","Chemistry and Materials Science","Hybrid","CC BY","https://link.springer.com/journal/10800","https://link.springer.com/journal/"]
[null,13353,"Journal of Applied Genetics","2190-3883","Springer","Life Sciences","Biomedical and Life Sciences","Hybrid","CC BY","https://link.springer.com/journal/13353","https://link.springer.com/journal/"]
[null,12190,"Journal of Applied Mathematics and Computing","1865-2085","Springer","Mathematics","Mathematics and Statistics","Hybrid","CC BY","https://link.springer.com/journal/12190","https://link.springer.com/journal/"]
[null,15010,"Infection","1439-0973","Springer","Medicine & Public Health","Medicine","Hybrid","CC BY","https://link.springer.com/journal/15010","https://link.springer.com/journal/"]
[null,10787,"Inflammopharmacology","1568-5608","Springer","Biomedicine","Biomedical and Life Sciences","Hybrid","CC BY","https://link.springer.com/journal/10787","https://link.springer.com/journal/"]
[null,287,"Informatik Spektrum","1432-122X","Springer","Computer Science","Computer Science","Hybrid","CC BY","https://link.springer.com/journal/287","https://link.springer.com/journal/"]
[null,41884,"Information Geometry","2511-249X","Springer","Mathematics","Mathematics and Statistics","Hybrid","CC BY","https://link.springer.com/journal/41884","https://link.springer.com/journal/"]
[null,10257,"Information Systems and e-Business Management","1617-9854","Springer","Business and Management","Business and Management","Hybrid","CC BY","https://link.springer.com/journal/10257","https://link.springer.com/journal/"]
[null,10796,"Information Systems Frontiers","1572-9419","Springer","Business and Management","Business and Management","Hybrid","CC BY","https://link.springer.com/journal/10796","https://link.springer.com/journal/"]
[null,10799,"Information Technology and Management","1573-7667","Springer","Business and Management","Business and Management","Hybrid","CC BY","https://link.springer.com/journal/10799","https://link.springer.com/journal/"]
[null,191,"Journal of Evolutionary Economics","1432-1386","Springer","Economics","Economics and Finance","Hybrid","CC BY","https://link.springer.com/journal/191","https://link.springer.com/journal/"]
[null,11292,"Journal of Experimental Criminology","1572-8315","Springer","Criminology and Criminal Justice","Law and Criminology","Hybrid","CC BY","https://link.springer.com/journal/11292","https://link.springer.com/journal/"]
[null,11668,"Journal of Failure Analysis and Prevention","1864-1245","Springer","Materials Science","Chemistry and Materials Science","Hybrid","CC BY","https://link.springer.com/journal/11668","https://link.springer.com/journal/"]
[null,10834,"Journal of Family and Economic Issues","1573-3475","Springer","Social Sciences","Social Sciences","Hybrid","CC BY","https://link.springer.com/journal/10834","https://link.springer.com/journal/"]
[null,10896,"Journal of Family Violence","1573-2851","Springer","Medicine & Public Health","Medicine","Hybrid","CC BY","https://link.springer.com/journal/10896","https://link.springer.com/journal/"]
[null,10693,"Journal of Financial Services Research","1573-0735","Springer","Finance","Economics and Finance","Hybrid","CC BY","https://link.springer.com/journal/10693","https://link.springer.com/journal/"]
[null,11784,"Journal of Fixed Point Theory and Applications","1661-7746","Springer","Mathematics","Mathematics and Statistics","Hybrid","CC BY","https://link.springer.com/journal/11784","https://link.springer.com/journal/"]
[null,41981,"Journal of Flow Chemistry","2063-0212","Akadémiai Kiadó, co-published with Springer","Chemistry","Chemistry and Materials Science","Hybrid","CC BY","https://link.springer.com/journal/41981","https://link.springer.com/journal/"]
[null,11694,"Journal of Food Measurement and Characterization","2193-4134","Springer","Chemistry","Chemistry and Materials Science","Hybrid","CC BY","https://link.springer.com/journal/11694","https://link.springer.com/journal/"]
[null,13197,"Journal of Food Science and Technology","0975-8402","Springer","Chemistry","Chemistry and Materials Science","Hybrid","CC BY","https://link.springer.com/journal/13197","https://link.springer.com/journal/"]
[null,11676,"Journal of Forestry Research","1993-0607","Northeast Forestry University, co-published with Springer","Life Sciences","Biomedical and Life Sciences","Hybrid","CC BY","https://link.springer.com/journal/11676","https://link.springer.com/journal/"]
[null,41686,"Journal of Formative Design in Learning","2509-8039","Springer","Education","Education","Hybrid","CC BY","https://link.springer.com/journal/41686","https://link.springer.com/journal/"]
[null,41,"Journal of Fourier Analysis and Applications","1531-5851","Springer","Mathematics","Mathematics and Statistics","Hybrid","CC BY","https://link.springer.com/journal/41","https://link.springer.com/journal/"]
[null,10894,"Journal of Fusion Energy","1572-9591","Springer","Physics","Physics and Astronomy","Hybrid","CC BY","https://link.springer.com/journal/10894","https://link.springer.com/journal/"]
[null,10899,"Journal of Gambling Studies","1573-3602","Springer","Medicine & Public Health","Medicine","Hybrid","CC BY","https://link.springer.com/journal/10899","https://link.springer.com/journal/"]
[null,535,"Journal of Gastroenterology","1435-5922","Springer","Medicine & Public Health","Medicine","Hybrid","CC BY","https://link.springer.com/journal/535","https://link.springer.com/journal/"]
[null,12029,"Journal of Gastrointestinal Cancer","1941-6636","Springer","Medicine & Public Health","Medicine","Hybrid","CC BY","https://link.springer.com/journal/12029","https://link.springer.com/journal/"]
[null,11606,"Journal of General Internal Medicine","1525-1497","Springer","Medicine & Public Health","Medicine","Hybrid","CC BY","https://link.springer.com/journal/11606","https://link.springer.com/journal/"]
[null,10838,"Journal for General Philosophy of Science","1572-8587","Springer","Philosophy","Education","Hybrid","CC BY","https://link.springer.com/journal/10838","https://link.springer.com/journal/"]
[null,10327,"Journal of General Plant Pathology","1610-739X","Springer","Life Sciences","Biomedical and Life Sciences","Hybrid","CC BY","https://link.springer.com/journal/10327","https://link.springer.com/journal/"]
[null,190,"Journal of Geodesy","1432-1394","Springer","Earth Sciences","Earth and Environmental Science","Hybrid","CC BY","https://link.springer.com/journal/190","https://link.springer.com/journal/"]
[null,11442,"Journal of Geographical Sciences","1861-9568","Science Press, co-published with Springer","Geography","Earth and Environmental Science","Hybrid","CC BY","https://link.springer.com/journal/11442","https://link.springer.com/journal/"]
[null,10109,"Journal of Geographical Systems","1435-5949","Springer","Economics","Economics and Finance","Hybrid","CC BY","https://link.springer.com/journal/10109","https://link.springer.com/journal/"]
[null,22,"Journal of Geometry","1420-8997","Springer","Mathematics","Mathematics and Statistics","Hybrid","CC BY","https://link.springer.com/journal/22","https://link.springer.com/journal/"]
[null,41651,"Journal of Geovisualization and Spatial Analysis","2509-8829","Springer","Geography","Earth and Environmental Science","Hybrid","CC BY","https://link.springer.com/journal/41651","https://link.springer.com/journal/"]
[null,40497,"Journal of Global Entrepreneurship Research","2251-7316","Springer","Business and Management","Business and Management","Hybrid","CC BY","https://link.springer.com/journal/40497","https://link.springer.com/journal/"]
[null,10898,"Journal of Global Optimization","1573-2916","Springer","Mathematics","Mathematics and Statistics","Hybrid","CC BY","https://link.springer.com/journal/10898","https://link.springer.com/journal/"]
[null,10723,"Journal of Grid Computing","1572-9184","Springer","Computer Science","Computer Science","Hybrid","CC BY","https://link.springer.com/journal/10723","https://link.springer.com/journal/"]
[null,10902,"Journal of Happiness Studies","1573-7780","Springer","Social Sciences","Social Sciences","Hybrid","CC BY","https://link.springer.com/journal/10902","https://link.springer.com/journal/"]
[null,12572,"International Journal of Advances in Engineering Sciences and Applied Mathematics","0975-5616","Springer","Engineering","Engineering","Hybrid","CC BY","https://link.springer.com/journal/12572","https://link.springer.com/journal/"]
[null,42405,"International Journal of Aeronautical and Space Sciences","2093-2480","The Korean Society for Aeronautical & Space Sciences, co-published with Springer","Engineering","Engineering","Hybrid","CC BY","https://link.springer.com/journal/42405","https://link.springer.com/journal/"]
[null,40593,"International Journal of Artificial Intelligence in Education","1560-4306","Springer","Computer Science","Computer Science","Hybrid","CC BY","https://link.springer.com/journal/40593","https://link.springer.com/journal/"]
[null,12239,"International Journal of Automotive Technology","1976-3832","The Korean Society of Automotive Engineers, co-published with Springer","Engineering","Engineering","Hybrid","CC BY","https://link.springer.com/journal/12239","https://link.springer.com/journal/"]
[null,12529,"International Journal of Behavioral Medicine","1532-7558","Springer","Medicine & Public Health","Medicine","Hybrid","CC BY","https://link.springer.com/journal/12529","https://link.springer.com/journal/"]
[null,484,"International Journal of Biometeorology","1432-1254","Springer","Environment","Earth and Environmental Science","Hybrid","CC BY","https://link.springer.com/journal/484","https://link.springer.com/journal/"]
[null,42380,"International Journal of Bullying Prevention","2523-3661","Springer","Psychology","Behavioral Science and Psychology","Hybrid","CC BY","https://link.springer.com/journal/42380","https://link.springer.com/journal/"]
[null,10554,"The International Journal of Cardiovascular Imaging","1875-8312","Springer","Medicine & Public Health","Medicine","Hybrid","CC BY","https://link.springer.com/journal/10554","https://link.springer.com/journal/"]
[null,42448,"International Journal on Child Maltreatment: Research, Policy and Practice","2524-5244","Springer","Social Sciences","Social Sciences","Hybrid","CC BY","https://link.springer.com/journal/42448","https://link.springer.com/journal/"]
[null,40999,"International Journal of Civil Engineering","2383-3874","Springer","Engineering","Engineering","Hybrid","CC BY","https://link.springer.com/journal/40999","https://link.springer.com/journal/"]
[null,10147,"International Journal of Clinical Oncology","1437-7772","Springer","Medicine & Public Health","Medicine","Hybrid","CC BY","https://link.springer.com/journal/10147","https://link.springer.com/journal/"]
[null,42413,"International Journal of Community Well-Being","2524-5309","Springer","Social Sciences","Social Sciences","Hybrid","CC BY","https://link.springer.com/journal/42413","https://link.springer.com/journal/"]
[null,11548,"International Journal of Computer Assisted Radiology and Surgery","1861-6429","Springer","Medicine & Public Health","Medicine","Hybrid","CC BY","https://link.springer.com/journal/11548","https://link.springer.com/journal/"]
[null,11263,"International Journal of Computer Vision","1573-1405","Springer","Computer Science","Computer Science","Hybrid","CC BY","https://link.springer.com/journal/11263","https://link.springer.com/journal/"]
[null,11412,"International Journal of Computer-Supported Collaborative Learning","1556-1615","Springer","Education","Education","Hybrid","CC BY",{"$f":"K233&B233","v":"https://link.springer.com/journal/11412"},"https://link.springer.com/journal/"]
[null,41060,"International Journal of Data Science and Analytics","2364-4168","Springer","Computer Science","Computer Science","Hybrid","CC BY","https://link.springer.com/journal/41060","https://link.springer.com/journal/"]
[null,13410,"International Journal of Diabetes in Developing Countries","1998-3832","Springer","Medicine & Public Health","Medicine","Hybrid","CC BY","https://link.springer.com/journal/13410","https://link.springer.com/journal/"]
[null,42803,"International Journal of Digital Humanities","2524-7840","Springer","Statistics","Mathematics and Statistics","Hybrid","CC BY","https://link.springer.com/journal/42803","https://link.springer.com/journal/"]
[null,799,"International Journal on Digital Libraries","1432-1300","Springer","Computer Science","Computer Science","Hybrid","CC BY","https://link.springer.com/journal/799","https://link.springer.com/journal/"]
[null,10032,"International Journal on Document Analysis and Recognition (IJDAR)","1433-2825","Springer","Computer Science","Computer Science","Hybrid","CC BY","https://link.springer.com/journal/10032","https://link.springer.com/journal/"]
[null,40435,"International Journal of Dynamics and Control","2195-2698","Springer","Engineering","Engineering","Hybrid","CC BY","https://link.springer.com/journal/40435","https://link.springer.com/journal/"]
[null,13158,"International Journal of Early Childhood","1878-4658","Springer","Education","Education","Hybrid","CC BY","https://link.springer.com/journal/13158","https://link.springer.com/journal/"]
[null,531,"International Journal of Earth Sciences","1437-3262","Springer","Earth Sciences","Earth and Environmental Science","Hybrid","CC BY","https://link.springer.com/journal/531","https://link.springer.com/journal/"]
[null,42495,"International Journal of Economic Policy Studies","1881-4387","Springer","Economics","Economics and Finance","Hybrid","CC BY","https://link.springer.com/journal/42495","https://link.springer.com/journal/"]
[null,10775,"International Journal for Educational and Vocational Guidance","1573-1782","Springer","Education","Education","Hybrid","CC BY","https://link.springer.com/journal/10775","https://link.springer.com/journal/"]
[null,42108,"International Journal of Energy and Water Resources","2522-0101","Springer","Environment","Earth and Environmental Science","Hybrid","CC BY","https://link.springer.com/journal/42108","https://link.springer.com/journal/"]
[null,41742,"International Journal of Environmental Research","2008-2304","Springer","Environment","Earth and Environmental Science","Hybrid","CC BY","https://link.springer.com/journal/41742","https://link.springer.com/journal/"]
[null,13762,"International Journal of Environmental Science and Technology","1735-2630","Springer","Environment","Earth and Environmental Science","Hybrid","CC BY","https://link.springer.com/journal/13762","https://link.springer.com/journal/"]
[null,40889,"International Journal of Ethics Education","2364-0006","Springer","Philosophy","Education","Hybrid","CC BY","https://link.springer.com/journal/40889","https://link.springer.com/journal/"]
[null,10704,"International Journal of Fracture","1573-2673","Springer","Engineering","Engineering","Hybrid","CC BY","https://link.springer.com/journal/10704","https://link.springer.com/journal/"]
[null,40815,"International Journal of Fuzzy Systems","2199-3211","Springer","Engineering","Engineering","Hybrid","CC BY","https://link.springer.com/journal/40815","https://link.springer.com/journal/"]
[null,182,"International Journal of Game Theory","1432-1270","Springer","Economics","Economics and Finance","Hybrid","CC BY","https://link.springer.com/journal/182","https://link.springer.com/journal/"]
[null,40891,"International Journal of Geosynthetics and Ground Engineering","2199-9279","Springer","Engineering","Engineering","Hybrid","CC BY","https://link.springer.com/journal/40891","https://link.springer.com/journal/"]
[null,42943,"International Journal of Global Business and Competitiveness","0976-1888","Springer","Business and Management","Business and Management","Hybrid","CC BY","https://link.springer.com/journal/42943","https://link.springer.com/journal/"]
[null,10754,"International Journal of Health Economics and Management","2199-9031","Springer","Medicine & Public Health","Medicine","Hybrid","CC BY","https://link.springer.com/journal/10754","https://link.springer.com/journal/"]
[null,12185,"International Journal of Hematology","1865-3774","Springer","Medicine & Public Health","Medicine","Hybrid","CC BY","https://link.springer.com/journal/12185","https://link.springer.com/journal/"]
[null,11407,"International Journal of Hindu Studies","1574-9282","Springer","Religious Studies","Religion and Philosophy","Hybrid","CC BY","https://link.springer.com/journal/11407","https://link.springer.com/journal/"]
[null,10761,"International Journal of Historical Archaeology","1573-7748","Springer","Social Sciences","Social Sciences","Hybrid","CC BY","https://link.springer.com/journal/10761","https://link.springer.com/journal/"]
[null,41870,"International Journal of Information Technology","2511-2112","Springer","Computer Science","Computer Science","Hybrid","CC BY","https://link.springer.com/journal/41870","https://link.springer.com/journal/"]
[null,41315,"International Journal of Intelligent Robotics and Applications","2366-598X","Springer","Engineering","Engineering","Hybrid","CC BY","https://link.springer.com/journal/41315","https://link.springer.com/journal/"]
[null,13177,"International Journal of Intelligent Transportation Systems Research","1868-8659","Springer","Engineering","Engineering","Hybrid","CC BY","https://link.springer.com/journal/13177","https://link.springer.com/journal/"]
[null,12008,"International Journal on Interactive Design and Manufacturing (IJIDeM)","1955-2505","Springer","Engineering","Engineering","Hybrid","CC BY","https://link.springer.com/journal/12008","https://link.springer.com/journal/"]
[null,41603,"International Journal of Latin American Religions","2509-9965","Springer","Social Sciences","Social Sciences","Hybrid","CC BY","https://link.springer.com/journal/41603","https://link.springer.com/journal/"]
[null,11367,"The International Journal of Life Cycle Assessment","1614-7502","Springer","Environment","Earth and Environmental Science","Hybrid","CC BY","https://link.springer.com/journal/11367","https://link.springer.com/journal/"]
[null,13042,"International Journal of Machine Learning and Cybernetics","1868-808X","Springer","Engineering","Engineering","Hybrid","CC BY","https://link.springer.com/journal/13042","https://link.springer.com/journal/"]
[null,12289,"International Journal of Material Forming","1960-6214","Springer","Engineering","Engineering","Hybrid","CC BY","https://link.springer.com/journal/12289","https://link.springer.com/journal/"]
[null,10999,"International Journal of Mechanics and Materials in Design","1573-8841","Springer","Engineering","Engineering","Hybrid","CC BY","https://link.springer.com/journal/10999","https://link.springer.com/journal/"]
[null,11469,"International Journal of Mental Health and Addiction","1557-1882","Springer","Medicine & Public Health","Medicine","Hybrid","CC BY","https://link.springer.com/journal/11469","https://link.springer.com/journal/"]
[null,40962,"International Journal of Metalcasting","2163-3193","Springer","Materials Science","Chemistry and Materials Science","Hybrid","CC BY","https://link.springer.com/journal/40962","https://link.springer.com/journal/"]
[null,12613,"International Journal of Minerals, Metallurgy and Materials","1869-103X","Springer","Materials Science","Chemistry and Materials Science","Hybrid","CC BY","https://link.springer.com/journal/12613","https://link.springer.com/journal/"]
[null,13735,"International Journal of Multimedia Information Retrieval","2192-662X","Springer","Computer Science","Computer Science","Hybrid","CC BY","https://link.springer.com/journal/13735","https://link.springer.com/journal/"]
[null,10766,"International Journal of Parallel Programming","1573-7640","Springer","Computer Science","Computer Science","Hybrid","CC BY","https://link.springer.com/journal/10766","https://link.springer.com/journal/"]
[null,42947,"International Journal of Pavement Research and Technology","1997-1400","Springer","Engineering","Engineering","Hybrid","CC BY","https://link.springer.com/journal/42947","https://link.springer.com/journal/"]
[null,10989,"International Journal of Peptide Research and Therapeutics","1573-3904","Springer","Life Sciences","Biomedical and Life Sciences","Hybrid","CC BY","https://link.springer.com/journal/10989","https://link.springer.com/journal/"]
[null,11153,"International Journal for Philosophy of Religion","1572-8684","Springer","Philosophy","Education","Hybrid","CC BY","https://link.springer.com/journal/11153","https://link.springer.com/journal/"]
[null,42106,"International Journal of Plant Production","1735-8043","Springer","Life Sciences","Biomedical and Life Sciences","Hybrid","CC BY","https://link.springer.com/journal/42106","https://link.springer.com/journal/"]
[null,10767,"International Journal of Politics, Culture, and Society","1573-3416","Springer","Social Sciences","Social Sciences","Hybrid","CC BY","https://link.springer.com/journal/10767","https://link.springer.com/journal/"]
[null,12541,"International Journal of Precision Engineering and Manufacturing","2005-4602","Korean Society for Precision Engineering, co-published with Springer","Engineering","Engineering","Hybrid","CC BY","https://link.springer.com/journal/12541","https://link.springer.com/journal/"]
[null,40684,"International Journal of Precision Engineering and Manufacturing-Green Technology","2198-0810","Korean Society for Precision Engineering, co-published with Springer","Engineering","Engineering","Hybrid","CC BY","https://link.springer.com/journal/40684","https://link.springer.com/journal/"]
[null,10764,"International Journal of Primatology","1573-8604","Springer","Life Sciences","Biomedical and Life Sciences","Hybrid","CC BY","https://link.springer.com/journal/10764","https://link.springer.com/journal/"]
[null,40753,"International Journal of Research in Undergraduate Mathematics Education","2198-9753","Springer","Education","Education","Hybrid","CC BY","https://link.springer.com/journal/40753","https://link.springer.com/journal/"]
[null,10763,"International Journal of Science and Mathematics Education","1573-1774","Springer","Education","Education","Hybrid","CC BY","https://link.springer.com/journal/10763","https://link.springer.com/journal/"]
[null,12369,"International Journal of Social Robotics","1875-4805","Springer","Engineering","Engineering","Hybrid","CC BY","https://link.springer.com/journal/12369","https://link.springer.com/journal/"]
[null,10009,"International Journal on Software Tools for Technology Transfer","1433-2787","Springer","Computer Science","Computer Science","Hybrid","CC BY","https://link.springer.com/journal/10009","https://link.springer.com/journal/"]
[null,10772,"International Journal of Speech Technology","1572-8110","Springer","Engineering","Engineering","Hybrid","CC BY","https://link.springer.com/journal/10772","https://link.springer.com/journal/"]
[null,11789,"Clinical Research in Cardiology Supplements","1861-0714","Springer","Medicine & Public Health","Medicine","Hybrid","CC BY","https://link.springer.com/journal/11789","https://link.springer.com/journal/"]
[null,13209,"SERIEs","1869-4195","Springer","Economics","Economics and Finance","Hybrid","CC BY","https://link.springer.com/journal/13209","https://link.springer.com/journal/"]
[null,40065,"Arabian Journal of Mathematics","2193-5351","Springer","Mathematics","Mathematics and Statistics","Hybrid","CC BY","https://link.springer.com/journal/40065","https://link.springer.com/journal/"]
[null,13205,"3 Biotech","2190-5738","Springer","Chemistry","Chemistry and Materials Science","Hybrid","CC BY","https://link.springer.com/journal/13205","https://link.springer.com/journal/"]
[null,10288,"4OR","1614-2411","Springer","Business and Management","Business and Management","Hybrid","CC BY","https://link.springer.com/journal/10288","https://link.springer.com/journal/"]
[null,12248,"The AAPS Journal","1550-7416","Springer","Biomedicine","Biomedical and Life Sciences","Hybrid","CC BY","https://link.springer.com/journal/12248","https://link.springer.com/journal/"]
[null,12249,"AAPS PharmSciTech","1530-9932","Springer","Biomedicine","Biomedical and Life Sciences","Hybrid","CC BY","https://link.springer.com/journal/12249","https://link.springer.com/journal/"]
[null,43681,"AI and Ethics","2730-5961","Springer","Computer Science","Computer Science","Hybrid","CC BY","https://link.springer.com/journal/43681","https://link.springer.com/journal/"]
[null,146,"AI & SOCIETY","1435-5655","Springer","Computer Science","Computer Science","Hybrid","CC BY","https://link.springer.com/journal/146","https://link.springer.com/journal/"]
[null,10461,"AIDS and Behavior","1573-3254","Springer","Medicine & Public Health","Medicine","Hybrid","CC BY","https://link.springer.com/journal/10461","https://link.springer.com/journal/"]
[null,13162,"AMS Review","1869-8182","Springer","Business and Management","Business and Management","Hybrid","CC BY","https://link.springer.com/journal/13162","https://link.springer.com/journal/"]
[null,11565,"ANNALI DELL'UNIVERSITA' DI FERRARA","1827-1510","Springer","Mathematics","Mathematics and Statistics","Hybrid","CC BY","https://link.springer.com/journal/11565","https://link.springer.com/journal/"]
[null,10182,"AStA Advances in Statistical Analysis","1863-818X","Springer","Statistics","Mathematics and Statistics","Hybrid","CC BY","https://link.springer.com/journal/10182","https://link.springer.com/journal/"]
[null,11943,"AStA Wirtschafts- und Sozialstatistisches Archiv","1863-8163","Springer","Statistics","Mathematics and Statistics","Hybrid","CC BY",{"$f":"K297&B297","v":"https://link.springer.com/journal/11943"},"https://link.springer.com/journal/"]
[null,261,"Abdominal Radiology","2366-0058","Springer","Medicine & Public Health","Medicine","Hybrid","CC BY","https://link.springer.com/journal/261","https://link.springer.com/journal/"]
[null,12188,"Abhandlungen aus dem Mathematischen Seminar der Universität Hamburg","1865-8784","Springer","Mathematics","Mathematics and Statistics","Hybrid","CC BY","https://link.springer.com/journal/12188","https://link.springer.com/journal/"]
[null,40596,"Academic Psychiatry","1545-7230","Springer","Medicine & Public Health","Medicine","Hybrid","CC BY","https://link.springer.com/journal/40596","https://link.springer.com/journal/"]
[null,769,"Accreditation and Quality Assurance","1432-0517","Springer","Chemistry","Chemistry and Materials Science","Hybrid","CC BY","https://link.springer.com/journal/769","https://link.springer.com/journal/"]
[null,40857,"Acoustics Australia","1839-2571","Springer","Engineering","Engineering","Hybrid","CC BY","https://link.springer.com/journal/40857","https://link.springer.com/journal/"]
[null,12136,"Acta Analytica","1874-6349","Springer","Philosophy","Education","Hybrid","CC BY","https://link.springer.com/journal/12136","https://link.springer.com/journal/"]
[null,10440,"Acta Applicandae Mathematicae","1572-9036","Springer","Mathematics","Mathematics and Statistics","Hybrid","CC BY","https://link.springer.com/journal/10440","https://link.springer.com/journal/"]
[null,10441,"Acta Biotheoretica","1572-8358","Springer","Philosophy","Education","Hybrid","CC BY","https://link.springer.com/journal/10441","https://link.springer.com/journal/"]
[null,592,"Acta Diabetologica","1432-5233","Springer","Medicine & Public Health","Medicine","Hybrid","CC BY","https://link.springer.com/journal/592","https://link.springer.com/journal/"]
[null,11631,"Acta Geochimica","2365-7499","Science Press, co-published with Springer","Earth Sciences","Earth and Environmental Science","Hybrid","CC BY","https://link.springer.com/journal/11631","https://link.springer.com/journal/"]
[null,40328,"Acta Geodaetica et Geophysica","2213-5820","Akadémiai Kiadó, co-published with Springer","Earth Sciences","Earth and Environmental Science","Hybrid","CC BY","https://link.springer.com/journal/40328","https://link.springer.com/journal/"]
[null,11600,"Acta Geophysica","1895-7455","Springer","Earth Sciences","Earth and Environmental Science","Hybrid","CC BY","https://link.springer.com/journal/11600","https://link.springer.com/journal/"]
[null,11440,"Acta Geotechnica","1861-1133","Springer","Engineering","Engineering","Hybrid","CC BY","https://link.springer.com/journal/11440","https://link.springer.com/journal/"]
[null,236,"Acta Informatica","1432-0525","Springer","Computer Science","Computer Science","Hybrid","CC BY","https://link.springer.com/journal/236","https://link.springer.com/journal/"]
[null,10474,"Acta Mathematica Hungarica","1588-2632","Akadémiai Kiadó, co-published with Springer","Mathematics","Mathematics and Statistics","Hybrid","CC BY","https://link.springer.com/journal/10474","https://link.springer.com/journal/"]
[null,10473,"Acta Mathematica Scientia","1572-9087","Springer","Mathematics","Mathematics and Statistics","Hybrid","CC BY","https://link.springer.com/journal/10473","https://link.springer.com/journal/"]
[null,10114,"Acta Mathematica Sinica, English Series","1439-7617","Springer","Mathematics","Mathematics and Statistics","Hybrid","CC BY","https://link.springer.com/journal/10114","https://link.springer.com/journal/"]
[null,40306,"Acta Mathematica Vietnamica","2315-4144","Springer","Mathematics","Mathematics and Statistics","Hybrid","CC BY","https://link.springer.com/journal/40306","https://link.springer.com/journal/"]
[null,10255,"Acta Mathematicae Applicatae Sinica, English Series","1618-3932","Springer","Mathematics","Mathematics and Statistics","Hybrid","CC BY","https://link.springer.com/journal/10255","https://link.springer.com/journal/"]
[null,707,"Acta Mechanica","1619-6937","Springer","Engineering","Engineering","Hybrid","CC BY","https://link.springer.com/journal/707","https://link.springer.com/journal/"]
[null,10409,"Acta Mechanica Sinica","1614-3116","The Chinese Society of Theoretical and Applied Mechanics; Institute of Mechanics, Chinese Academy of Sciences, co-published with Springer","Engineering","Engineering","Hybrid","CC BY","https://link.springer.com/journal/10409","https://link.springer.com/journal/"]
[null,10338,"Acta Mechanica Solida Sinica","1860-2134","Springer","Engineering","Engineering","Hybrid","CC BY","https://link.springer.com/journal/10338","https://link.springer.com/journal/"]
[null,13760,"Acta Neurologica Belgica","2240-2993","Springer","Biomedicine","Biomedical and Life Sciences","Hybrid","CC BY","https://link.springer.com/journal/13760","https://link.springer.com/journal/"]
[null,401,"Acta Neuropathologica","1432-0533","Springer","Medicine & Public Health","Medicine","Hybrid","CC BY","https://link.springer.com/journal/401","https://link.springer.com/journal/"]
[null,13131,"Acta Oceanologica Sinica","1869-1099","The Chinese Society of Oceanography, co-published with Springer","Earth Sciences","Earth and Environmental Science","Hybrid","CC BY","https://link.springer.com/journal/13131","https://link.springer.com/journal/"]
[null,11686,"Acta Parasitologica","1896-1851","Springer","Biomedicine","Biomedical and Life Sciences","Hybrid","CC BY","https://link.springer.com/journal/11686","https://link.springer.com/journal/"]
[null,11738,"Acta Physiologiae Plantarum","1861-1664","Springer","Life Sciences","Biomedical and Life Sciences","Hybrid","CC BY","https://link.springer.com/journal/11738","https://link.springer.com/journal/"]
[null,44146,"Acta Scientiarum Mathematicarum","2064-8316","Springer","Mathematics","Mathematics and Statistics","Hybrid","CC BY","https://link.springer.com/journal/44146","https://link.springer.com/journal/"]
[null,10488,"Administration and Policy in Mental Health and Mental Health Services Research","1573-3289","Springer","Medicine & Public Health","Medicine","Hybrid","CC BY","https://link.springer.com/journal/10488","https://link.springer.com/journal/"]
[null,42461,"Mining, Metallurgy & Exploration","2524-3470","Springer","Engineering","Engineering","Hybrid","CC BY","https://link.springer.com/journal/42461","https://link.springer.com/journal/"]
[null,11027,"Mitigation and Adaptation Strategies for Global Change","1573-1596","Springer","Earth Sciences","Earth and Environmental Science","Hybrid","CC BY","https://link.springer.com/journal/11027","https://link.springer.com/journal/"]
[null,11036,"Mobile Networks and Applications","1572-8153","Springer","Engineering","Engineering","Hybrid","CC BY","https://link.springer.com/journal/11036","https://link.springer.com/journal/"]
[null,12134,"Journal of International Migration and Integration","1874-6365","Springer","Social Sciences","Social Sciences","Hybrid","CC BY","https://link.springer.com/journal/12134","https://link.springer.com/journal/"]
[null,10840,"Journal of Interventional Cardiac Electrophysiology","1572-8595","Springer","Medicine & Public Health","Medicine","Hybrid","CC BY","https://link.springer.com/journal/10840","https://link.springer.com/journal/"]
[null,13738,"Journal of the Iranian Chemical Society","1735-2428","Springer","Chemistry","Chemistry and Materials Science","Hybrid","CC BY","https://link.springer.com/journal/13738","https://link.springer.com/journal/"]
[null,42243,"Journal of Iron and Steel Research International","2210-3988","Springer","Engineering","Engineering","Hybrid","CC BY","https://link.springer.com/journal/42243","https://link.springer.com/journal/"]
[null,13132,"Journal of the Knowledge Economy","1868-7873","Springer","Economics","Economics and Finance","Hybrid","CC BY","https://link.springer.com/journal/13132","https://link.springer.com/journal/"]
[null,43207,"Journal of the Korean Ceramic Society","2234-0491","Springer","Materials Science","Chemistry and Materials Science","Hybrid","CC BY","https://link.springer.com/journal/43207","https://link.springer.com/journal/"]
[null,40042,"Journal of the Korean Physical Society","1976-8524","The Korean Physical Society, co-published with Springer","Physics","Physics and Astronomy","Hybrid","CC BY","https://link.springer.com/journal/40042","https://link.springer.com/journal/"]
[null,42952,"Journal of the Korean Statistical Society","2005-2863","Springer","Statistics","Mathematics and Statistics","Hybrid","CC BY","https://link.springer.com/journal/42952","https://link.springer.com/journal/"]
[null,12122,"Journal of Labor Research","1936-4768","Springer","Social Sciences","Social Sciences","Hybrid","CC BY","https://link.springer.com/journal/12122","https://link.springer.com/journal/"]
[null,10849,"Journal of Logic, Language and Information","1572-9583","Springer","Philosophy","Education","Hybrid","CC BY","https://link.springer.com/journal/10849","https://link.springer.com/journal/"]
[null,10909,"Journal of Low Temperature Physics","1573-7357","Springer","Physics","Physics and Astronomy","Hybrid","CC BY","https://link.springer.com/journal/10909","https://link.springer.com/journal/"]
[null,10914,"Journal of Mammalian Evolution","1573-7055","Springer","Life Sciences","Biomedical and Life Sciences","Hybrid","CC BY","https://link.springer.com/journal/10914","https://link.springer.com/journal/"]
[null,10997,"Journal of Management and Governance","1572-963X","Springer","Business and Management","Business and Management","Hybrid","CC BY","https://link.springer.com/journal/10997","https://link.springer.com/journal/"]
[null,187,"Journal of Management Control","2191-477X","Springer","Business and Management","Business and Management","Hybrid","CC BY","https://link.springer.com/journal/187","https://link.springer.com/journal/"]
[null,11804,"Journal of Marine Science and Application","1993-5048","Harbin Engineering University, co-published with Springer","Engineering","Engineering","Hybrid","CC BY","https://link.springer.com/journal/11804","https://link.springer.com/journal/"]
[null,773,"Journal of Marine Science and Technology","1437-8213","Springer","Engineering","Engineering","Hybrid","CC BY","https://link.springer.com/journal/773","https://link.springer.com/journal/"]
[null,11457,"Journal of Maritime Archaeology","1557-2293","Springer","Social Sciences","Social Sciences","Hybrid","CC BY","https://link.springer.com/journal/11457","https://link.springer.com/journal/"]
[null,10163,"Journal of Material Cycles and Waste Management","1611-8227","Springer","Engineering","Engineering","Hybrid","CC BY","https://link.springer.com/journal/10163","https://link.springer.com/journal/"]
[null,11665,"Journal of Materials Engineering and Performance","1544-1024","Springer","Materials Science","Chemistry and Materials Science","Hybrid","CC BY","https://link.springer.com/journal/11665","https://link.springer.com/journal/"]
[null,43578,"Journal of Materials Research","2044-5326","Springer","Materials Science","Chemistry and Materials Science","Hybrid","CC BY","https://link.springer.com/journal/43578","https://link.springer.com/journal/"]
[null,285,"Journal of Mathematical Biology","1432-1416","Springer","Mathematics","Mathematics and Statistics","Hybrid","CC BY","https://link.springer.com/journal/285","https://link.springer.com/journal/"]
[null,10910,"Journal of Mathematical Chemistry","1572-8897","Springer","Chemistry","Chemistry and Materials Science","Hybrid","CC BY","https://link.springer.com/journal/10910","https://link.springer.com/journal/"]
[null,21,"Journal of Mathematical Fluid Mechanics","1422-6952","Springer","Physics","Physics and Astronomy","Hybrid","CC BY","https://link.springer.com/journal/21","https://link.springer.com/journal/"]
[null,10851,"Journal of Mathematical Imaging and Vision","1573-7683","Springer","Computer Science","Computer Science","Hybrid","CC BY","https://link.springer.com/journal/10851","https://link.springer.com/journal/"]
[null,10958,"Journal of Mathematical Sciences","1573-8795","Springer","Mathematics","Mathematics and Statistics","Hybrid","CC BY","https://link.springer.com/journal/10958","https://link.springer.com/journal/"]
[null,10857,"Journal of Mathematics Teacher Education","1573-1820","Springer","Education","Education","Hybrid","CC BY","https://link.springer.com/journal/10857","https://link.springer.com/journal/"]
[null,13138,"Journal für Mathematik-Didaktik","1869-2699","Springer","Education","Education","Hybrid","CC BY","https://link.springer.com/journal/13138","https://link.springer.com/journal/"]
[null,12663,"Journal of Maxillofacial and Oral Surgery","0974-942X","Springer","Medicine & Public Health","Medicine","Hybrid","CC BY","https://link.springer.com/journal/12663","https://link.springer.com/journal/"]
[null,40846,"Journal of Medical and Biological Engineering","2199-4757","Springer","Biomedicine","Biomedical and Life Sciences","Hybrid","CC BY","https://link.springer.com/journal/40846","https://link.springer.com/journal/"]
[null,10912,"Journal of Medical Humanities","1573-3645","Springer","Cultural and Media Studies","Literature, Cultural and Media Studies","Hybrid","CC BY","https://link.springer.com/journal/10912","https://link.springer.com/journal/"]
[null,10916,"Journal of Medical Systems","1573-689X","Springer","Medicine & Public Health","Medicine","Hybrid","CC BY","https://link.springer.com/journal/10916","https://link.springer.com/journal/"]
[null,13181,"Journal of Medical Toxicology","1937-6995","Springer","Biomedicine","Biomedical and Life Sciences","Hybrid","CC BY",{"$f":"K361&B361","v":"https://link.springer.com/journal/13181"},"https://link.springer.com/journal/"]
[null,11334,"Innovations in Systems and Software Engineering","1614-5054","Springer","Computer Science","Computer Science","Hybrid","CC BY","https://link.springer.com/journal/11334","https://link.springer.com/journal/"]
[null,10755,"Innovative Higher Education","1573-1758","Springer","Education","Education","Hybrid","CC BY","https://link.springer.com/journal/10755","https://link.springer.com/journal/"]
[null,41062,"Innovative Infrastructure Solutions","2364-4184","Springer","Earth Sciences","Earth and Environmental Science","Hybrid","CC BY","https://link.springer.com/journal/41062","https://link.springer.com/journal/"]
[null,40,"Insectes Sociaux","1420-9098","Springer","Life Sciences","Biomedical and Life Sciences","Hybrid","CC BY","https://link.springer.com/journal/40","https://link.springer.com/journal/"]
[null,11251,"Instructional Science","1573-1952","Springer","Education","Education","Hybrid","CC BY","https://link.springer.com/journal/11251","https://link.springer.com/journal/"]
[null,20,"Integral Equations and Operator Theory","1420-8989","Springer","Mathematics","Mathematics and Statistics","Hybrid","CC BY","https://link.springer.com/journal/20","https://link.springer.com/journal/"]
[null,40192,"Integrating Materials and Manufacturing Innovation","2193-9772","Springer","Materials Science","Chemistry and Materials Science","Hybrid","CC BY","https://link.springer.com/journal/40192","https://link.springer.com/journal/"]
[null,12124,"Integrative Psychological and Behavioral Science","1936-3567","Springer","Psychology","Behavioral Science and Psychology","Hybrid","CC BY","https://link.springer.com/journal/12124","https://link.springer.com/journal/"]
[null,11370,"Intelligent Service Robotics","1861-2784","Springer","Engineering","Engineering","Hybrid","CC BY","https://link.springer.com/journal/11370","https://link.springer.com/journal/"]
[null,134,"Intensive Care Medicine","1432-1238","Springer","Medicine & Public Health","Medicine","Hybrid","CC BY-NC","https://link.springer.com/journal/134","https://link.springer.com/journal/"]
[null,10751,"Interactions","3005-0731","Springer","Physics","Physics and Astronomy","Hybrid","CC BY","https://link.springer.com/journal/10751","https://link.springer.com/journal/"]
[null,10780,"Interchange","1573-1790","Springer","Education","Education","Hybrid","CC BY","https://link.springer.com/journal/10780","https://link.springer.com/journal/"]
[null,12539,"Interdisciplinary Sciences: Computational Life Sciences","1867-1462","Springer","Life Sciences","Biomedical and Life Sciences","Hybrid","CC BY","https://link.springer.com/journal/12539","https://link.springer.com/journal/"]
[null,11739,"Internal and Emergency Medicine","1970-9366","Springer","Medicine & Public Health","Medicine","Hybrid","CC BY","https://link.springer.com/journal/11739","https://link.springer.com/journal/"]
[null,10778,"International Applied Mechanics","1573-8582","Springer","Engineering","Engineering","Hybrid","CC BY","https://link.springer.com/journal/10778","https://link.springer.com/journal/"]
[null,420,"International Archives of Occupational and Environmental Health","1432-1246","Springer","Environment","Earth and Environmental Science","Hybrid","CC BY","https://link.springer.com/journal/420","https://link.springer.com/journal/"]
[null,13691,"International Cancer Conference Journal","2192-3183","Springer","Medicine & Public Health","Medicine","Hybrid","CC BY","https://link.springer.com/journal/13691","https://link.springer.com/journal/"]
[null,40636,"International Communication of Chinese Culture","2197-4241","Springer","Social Sciences","Social Sciences","Hybrid","CC BY","https://link.springer.com/journal/40636","https://link.springer.com/journal/"]
[null,43576,"International Criminology","2662-9976","Springer","Criminology and Criminal Justice","Law and Criminology","Hybrid","CC BY","https://link.springer.com/journal/43576","https://link.springer.com/journal/"]
[null,43439,"International Cybersecurity Law Review","2662-9739","Springer","Computer Science","Computer Science","Hybrid","CC BY","https://link.springer.com/journal/43439","https://link.springer.com/journal/"]
[null,10368,"International Economics and Economic Policy","1612-4812","Springer","Economics","Economics and Finance","Hybrid","CC BY","https://link.springer.com/journal/10368","https://link.springer.com/journal/"]
[null,11365,"International Entrepreneurship and Management Journal","1555-1938","Springer","Business and Management","Business and Management","Hybrid","CC BY","https://link.springer.com/journal/11365","https://link.springer.com/journal/"]
[null,10784,"International Environmental Agreements: Politics, Law and Economics","1573-1553","Springer","Environment","Earth and Environmental Science","Hybrid","CC BY","https://link.springer.com/journal/10784","https://link.springer.com/journal/"]
[null,10447,"International Journal for the Advancement of Counselling","1573-3246","Springer","Psychology","Behavioral Science and Psychology","Hybrid","CC BY","https://link.springer.com/journal/10447","https://link.springer.com/journal/"]
[null,12138,"International Journal of the Classical Tradition","1874-6292","Springer","Cultural and Media Studies","Literature, Cultural and Media Studies","Hybrid","CC BY","https://link.springer.com/journal/12138","https://link.springer.com/journal/"]
[null,11196,"International Journal for the Semiotics of Law - Revue internationale de Sémiotique juridique","1572-8722","Springer","Law","Law and Criminology","Hybrid","CC BY","https://link.springer.com/journal/11196","https://link.springer.com/journal/"]
[null,41978,"International Journal of the Sociology of Leisure","2520-8691","Springer","Social Sciences","Social Sciences","Hybrid","CC BY","https://link.springer.com/journal/41978","https://link.springer.com/journal/"]
[null,170,"The International Journal of Advanced Manufacturing Technology","1433-3015","Springer","Engineering","Engineering","Hybrid","CC BY","https://link.springer.com/journal/170","https://link.springer.com/journal/"]
[null,11265,"Journal of Signal Processing Systems","1939-8115","Springer","Engineering","Engineering","Hybrid","CC BY","https://link.springer.com/journal/11265","https://link.springer.com/journal/"]
[null,40847,"Journal of Social and Economic Development","2199-6873","Springer","Economics","Economics and Finance","Hybrid","CC BY","https://link.springer.com/journal/40847","https://link.springer.com/journal/"]
[null,42729,"Journal of Soil Science and Plant Nutrition","0718-9516","Springer","Life Sciences","Biomedical and Life Sciences","Hybrid","CC BY","https://link.springer.com/journal/42729","https://link.springer.com/journal/"]
[null,11368,"Journal of Soils and Sediments","1614-7480","Springer","Environment","Earth and Environmental Science","Hybrid","CC BY","https://link.springer.com/journal/11368","https://link.springer.com/journal/"]
[null,10008,"Journal of Solid State Electrochemistry","1433-0768","Springer","Chemistry","Chemistry and Materials Science","Hybrid","CC BY","https://link.springer.com/journal/10008","https://link.springer.com/journal/"]
[null,10953,"Journal of Solution Chemistry","1572-8927","Springer","Chemistry","Chemistry and Materials Science","Hybrid","CC BY","https://link.springer.com/journal/10953","https://link.springer.com/journal/"]
[null,10955,"Journal of Statistical Physics","1572-9613","Springer","Physics","Physics and Astronomy","Hybrid","CC BY","https://link.springer.com/journal/10955","https://link.springer.com/journal/"]
[null,42519,"Journal of Statistical Theory and Practice","1559-8616","Springer","Statistics","Mathematics and Statistics","Hybrid","CC BY","https://link.springer.com/journal/42519","https://link.springer.com/journal/"]
[null,10948,"Journal of Superconductivity and Novel Magnetism","1557-1947","Springer","Physics","Physics and Astronomy","Hybrid","CC BY","https://link.springer.com/journal/10948","https://link.springer.com/journal/"]
[null,40831,"Journal of Sustainable Metallurgy","2199-3831","Springer","Materials Science","Chemistry and Materials Science","Hybrid","CC BY","https://link.springer.com/journal/40831","https://link.springer.com/journal/"]
[null,11424,"Journal of Systems Science and Complexity","1559-7067","Springer","Mathematics","Mathematics and Statistics","Hybrid","CC BY","https://link.springer.com/journal/11424","https://link.springer.com/journal/"]
[null,11518,"Journal of Systems Science and Systems Engineering","1861-9576","Springer","Engineering","Engineering","Hybrid","CC BY","https://link.springer.com/journal/11518","https://link.springer.com/journal/"]
[null,41347,"Journal of Technology in Behavioral Science","2366-5963","Springer","Psychology","Behavioral Science and Psychology","Hybrid","CC BY","https://link.springer.com/journal/41347","https://link.springer.com/journal/"]
[null,10959,"Journal of Theoretical Probability","1572-9230","Springer","Mathematics","Mathematics and Statistics","Hybrid","CC BY","https://link.springer.com/journal/10959","https://link.springer.com/journal/"]
[null,10973,"Journal of Thermal Analysis and Calorimetry","1588-2926","Akadémiai Kiadó, co-published with Springer","Chemistry","Chemistry and Materials Science","Hybrid","CC BY","https://link.springer.com/journal/10973","https://link.springer.com/journal/"]
[null,11630,"Journal of Thermal Science","1993-033X","Springer","Physics","Physics and Astronomy","Hybrid","CC BY","https://link.springer.com/journal/11630","https://link.springer.com/journal/"]
[null,11666,"Journal of Thermal Spray Technology","1544-1016","Springer","Materials Science","Chemistry and Materials Science","Hybrid","CC BY","https://link.springer.com/journal/11666","https://link.springer.com/journal/"]
[null,11239,"Journal of Thrombosis and Thrombolysis","1573-742X","Springer","Medicine & Public Health","Medicine","Hybrid","CC BY","https://link.springer.com/journal/11239","https://link.springer.com/journal/"]
[null,12198,"Journal of Transportation Security","1938-775X","Springer","Business and Management","Business and Management","Hybrid","CC BY","https://link.springer.com/journal/12198","https://link.springer.com/journal/"]
[null,40477,"Journal of Ultrasound","1876-7931","Springer","Medicine & Public Health","Medicine","Hybrid","CC BY","https://link.springer.com/journal/40477","https://link.springer.com/journal/"]
[null,11524,"Journal of Urban Health","1468-2869","Springer","Medicine & Public Health","Medicine","Hybrid","CC BY","https://link.springer.com/journal/11524","https://link.springer.com/journal/"]
[null,42417,"Journal of Vibration Engineering & Technologies","2523-3939","Springer","Engineering","Engineering","Hybrid","CC BY","https://link.springer.com/journal/42417","https://link.springer.com/journal/"]
[null,12650,"Journal of Visualization","1875-8975","Springer","Engineering","Engineering","Hybrid","CC BY","https://link.springer.com/journal/12650","https://link.springer.com/journal/"]
[null,11595,"Journal of Wuhan University of Technology-Mater. Sci. Ed.","1993-0437","Springer","Materials Science","Chemistry and Materials Science","Hybrid","CC BY","https://link.springer.com/journal/11595","https://link.springer.com/journal/"]
[null,10964,"Journal of Youth and Adolescence","1573-6601","Springer","Psychology","Behavioral Science and Psychology","Hybrid","CC BY","https://link.springer.com/journal/10964","https://link.springer.com/journal/"]
[null,41635,"Journal of Hardware and Systems Security","2509-3436","Springer","Engineering","Engineering","Hybrid","CC BY","https://link.springer.com/journal/41635","https://link.springer.com/journal/"]
[null,42843,"Journal of Health Service Psychology","2662-2653","Springer","Medicine & Public Health","Medicine","Hybrid","CC BY","https://link.springer.com/journal/42843","https://link.springer.com/journal/"]
[null,41666,"Journal of Healthcare Informatics Research","2509-498X","Springer","Computer Science","Computer Science","Hybrid","CC BY","https://link.springer.com/journal/41666","https://link.springer.com/journal/"]
[null,12308,"Journal of Hematopathology","1865-5785","Springer","Medicine & Public Health","Medicine","Hybrid","CC BY","https://link.springer.com/journal/12308","https://link.springer.com/journal/"]
[null,10732,"Journal of Heuristics","1572-9397","Springer","Mathematics","Mathematics and Statistics","Hybrid","CC BY","https://link.springer.com/journal/10732","https://link.springer.com/journal/"]
[null,10739,"Journal of the History of Biology","1573-0387","Springer","History","History","Hybrid","CC BY","https://link.springer.com/journal/10739","https://link.springer.com/journal/"]
[null,40062,"Journal of Homotopy and Related Structures","1512-2891","Springer","Mathematics","Mathematics and Statistics","Hybrid","CC BY","https://link.springer.com/journal/40062","https://link.springer.com/journal/"]
[null,10901,"Journal of Housing and the Built Environment","1573-7772","Springer","Social Sciences","Social Sciences","Hybrid","CC BY","https://link.springer.com/journal/10901","https://link.springer.com/journal/"]
[null,41134,"Journal of Human Rights and Social Work","2365-1792","Springer","Social Sciences","Social Sciences","Hybrid","CC BY","https://link.springer.com/journal/41134","https://link.springer.com/journal/"]
[null,42241,"Journal of Hydrodynamics","1878-0342","Springer","Engineering","Engineering","Hybrid","CC BY","https://link.springer.com/journal/42241","https://link.springer.com/journal/"]
[null,41513,"Journal of Iberian Geology","1886-7995","Springer","Earth Sciences","Earth and Environmental Science","Hybrid","CC BY",{"$f":"K425&B425","v":"https://link.springer.com/journal/41513"},"https://link.springer.com/journal/"]
[null,10278,"Journal of Imaging Informatics in Medicine","2948-2933","Springer","Medicine & Public Health","Medicine","Hybrid","CC BY","https://link.springer.com/journal/10278","https://link.springer.com/journal/"]
[null,10903,"Journal of Immigrant and Minority Health","1557-1920","Springer","Medicine & Public Health","Medicine","Hybrid","CC BY","https://link.springer.com/journal/10903","https://link.springer.com/journal/"]
[null,10847,"Journal of Inclusion Phenomena and Macrocyclic Chemistry","1573-1111","Springer","Chemistry","Chemistry and Materials Science","Hybrid","CC BY","https://link.springer.com/journal/10847","https://link.springer.com/journal/"]
[null,13196,"Journal of the Indian Academy of Wood Science","0976-8432","Springer","Life Sciences","Biomedical and Life Sciences","Hybrid","CC BY","https://link.springer.com/journal/13196","https://link.springer.com/journal/"]
[null,40961,"Journal of Indian Council of Philosophical Research","2363-9962","Springer","Philosophy","Education","Hybrid","CC BY","https://link.springer.com/journal/40961","https://link.springer.com/journal/"]
[null,41745,"Journal of the Indian Institute of Science","0019-4964","Springer","Materials Science","Chemistry and Materials Science","Hybrid","CC BY","https://link.springer.com/journal/41745","https://link.springer.com/journal/"]
[null,10781,"Journal of Indian Philosophy","1573-0395","Springer","Philosophy","Education","Hybrid","CC BY","https://link.springer.com/journal/10781","https://link.springer.com/journal/"]
[null,41096,"Journal of the Indian Society for Probability and Statistics","2364-9569","Springer","Statistics","Mathematics and Statistics","Hybrid","CC BY","https://link.springer.com/journal/41096","https://link.springer.com/journal/"]
[null,12524,"Journal of the Indian Society of Remote Sensing","0974-3006","Springer","Earth Sciences","Earth and Environmental Science","Hybrid","CC BY","https://link.springer.com/journal/12524","https://link.springer.com/journal/"]
[null,40812,"Journal of Industrial and Business Economics","1972-4977","Springer","Economics","Economics and Finance","Hybrid","CC BY","https://link.springer.com/journal/40812","https://link.springer.com/journal/"]
[null,10842,"Journal of Industry, Competition and Trade","1573-7012","Springer","Economics","Economics and Finance","Hybrid","CC BY","https://link.springer.com/journal/10842","https://link.springer.com/journal/"]
[null,10762,"Journal of Infrared, Millimeter, and Terahertz Waves","1866-6906","Springer","Engineering","Engineering","Hybrid","CC BY","https://link.springer.com/journal/10762","https://link.springer.com/journal/"]
[null,10904,"Journal of Inorganic and Organometallic Polymers and Materials","1574-1451","Springer","Chemistry","Chemistry and Materials Science","Hybrid","CC BY","https://link.springer.com/journal/10904","https://link.springer.com/journal/"]
[null,10905,"Journal of Insect Behavior","1572-8889","Springer","Life Sciences","Biomedical and Life Sciences","Hybrid","CC BY","https://link.springer.com/journal/10905","https://link.springer.com/journal/"]
[null,10841,"Journal of Insect Conservation","1572-9753","Springer","Life Sciences","Biomedical and Life Sciences","Hybrid","CC BY","https://link.springer.com/journal/10841","https://link.springer.com/journal/"]
[null,40030,"Journal of The Institution of Engineers (India): Series A","2250-2157","Springer","Engineering","Engineering","Hybrid","CC BY","https://link.springer.com/journal/40030","https://link.springer.com/journal/"]
[null,40031,"Journal of The Institution of Engineers (India): Series B","2250-2114","Springer","Engineering","Engineering","Hybrid","CC BY","https://link.springer.com/journal/40031","https://link.springer.com/journal/"]
[null,40032,"Journal of The Institution of Engineers (India): Series C","2250-0553","Springer","Engineering","Engineering","Hybrid","CC BY","https://link.springer.com/journal/40032","https://link.springer.com/journal/"]
[null,40033,"Journal of The Institution of Engineers (India): Series D","2250-2130","Springer","Engineering","Engineering","Hybrid","CC BY","https://link.springer.com/journal/40033","https://link.springer.com/journal/"]
[null,40034,"Journal of The Institution of Engineers (India): Series E","2250-2491","Springer","Engineering","Engineering","Hybrid","CC BY","https://link.springer.com/journal/40034","https://link.springer.com/journal/"]
[null,10844,"Journal of Intelligent Information Systems","1573-7675","Springer","Computer Science","Computer Science","Hybrid","CC BY","https://link.springer.com/journal/10844","https://link.springer.com/journal/"]
[null,10845,"Journal of Intelligent Manufacturing","1572-8145","Springer","Business and Management","Business and Management","Hybrid","CC BY","https://link.springer.com/journal/10845","https://link.springer.com/journal/"]
[null,10843,"Journal of International Entrepreneurship","1573-7349","Springer","Business and Management","Business and Management","Hybrid","CC BY","https://link.springer.com/journal/10843","https://link.springer.com/journal/"]
[null,10811,"Journal of Applied Phycology","1573-5176","Springer","Life Sciences","Biomedical and Life Sciences","Hybrid","CC BY","https://link.springer.com/journal/10811","https://link.springer.com/journal/"]
[null,43151,"Journal of Applied Youth Studies","2204-9207","Springer","Social Sciences","Social Sciences","Hybrid","CC BY","https://link.springer.com/journal/43151","https://link.springer.com/journal/"]
[null,40894,"Adolescent Research Review","2363-8354","Springer","Psychology","Behavioral Science and Psychology","Hybrid","CC BY","https://link.springer.com/journal/40894","https://link.springer.com/journal/"]
[null,10450,"Adsorption","1572-8757","Springer","Chemistry","Chemistry and Materials Science","Hybrid","CC BY","https://link.springer.com/journal/10450","https://link.springer.com/journal/"]
[null,42765,"Advanced Fiber Materials","2524-793X","Springer","Materials Science","Chemistry and Materials Science","Hybrid","CC BY","https://link.springer.com/journal/42765","https://link.springer.com/journal/"]
[null,6,"Advances in Applied Clifford Algebras","1661-4909","Springer","Physics","Physics and Astronomy","Hybrid","CC BY","https://link.springer.com/journal/6","https://link.springer.com/journal/"]
[null,42423,"Advances in Astronautics","3059-2976","Springer","Engineering","Engineering","Hybrid","CC BY","https://link.springer.com/journal/42423","https://link.springer.com/journal/"]
[null,376,"Advances in Atmospheric Sciences","1861-9533","Science Press, co-published with Springer","Earth Sciences","Earth and Environmental Science","Hybrid","CC BY","https://link.springer.com/journal/376","https://link.springer.com/journal/"]
[null,43674,"Advances in Computational Intelligence","2730-7808","Springer","Engineering","Engineering","Hybrid","CC BY","https://link.springer.com/journal/43674","https://link.springer.com/journal/"]
[null,10444,"Advances in Computational Mathematics","1572-9044","Springer","Mathematics","Mathematics and Statistics","Hybrid","CC BY","https://link.springer.com/journal/10444","https://link.springer.com/journal/"]
[null,11634,"Advances in Data Analysis and Classification","1862-5355","Springer","Statistics","Mathematics and Statistics","Hybrid","CC BY","https://link.springer.com/journal/11634","https://link.springer.com/journal/"]
[null,10459,"Advances in Health Sciences Education","1573-1677","Springer","Education","Education","Hybrid","CC BY","https://link.springer.com/journal/10459","https://link.springer.com/journal/"]
[null,40436,"Advances in Manufacturing","2195-3597","Shanghai University, co-published with Springer","Engineering","Engineering","Hybrid","CC BY","https://link.springer.com/journal/40436","https://link.springer.com/journal/"]
[null,41252,"Advances in Neurodevelopmental Disorders","2366-7540","Springer","Psychology","Behavioral Science and Psychology","Hybrid","CC BY","https://link.springer.com/journal/41252","https://link.springer.com/journal/"]
[null,43036,"Advances in Operator Theory","2538-225X","Springer","Mathematics","Mathematics and Statistics","Hybrid","CC BY","https://link.springer.com/journal/43036","https://link.springer.com/journal/"]
[null,13596,"Advances in Traditional Medicine","2662-4060","Springer","Biomedicine","Biomedical and Life Sciences","Hybrid","CC BY","https://link.springer.com/journal/13596","https://link.springer.com/journal/"]
[null,42844,"Adversity and Resilience Science","2662-2416","Springer","Psychology","Behavioral Science and Psychology","Hybrid","CC BY","https://link.springer.com/journal/42844","https://link.springer.com/journal/"]
[null,10,"Aequationes mathematicae","1420-8903","Springer","Mathematics","Mathematics and Statistics","Hybrid","CC BY","https://link.springer.com/journal/10","https://link.springer.com/journal/"]
[null,10453,"Aerobiologia","1573-3025","Springer","Environment","Earth and Environmental Science","Hybrid","CC BY","https://link.springer.com/journal/10453","https://link.springer.com/journal/"]
[null,41810,"Aerosol Science and Engineering","2510-3768","Springer","Earth Sciences","Earth and Environmental Science","Hybrid","CC BY","https://link.springer.com/journal/41810","https://link.springer.com/journal/"]
[null,42401,"Aerospace Systems","2523-3955","Springer","Engineering","Engineering","Hybrid","CC BY","https://link.springer.com/journal/42401","https://link.springer.com/journal/"]
[null,42496,"Aerotecnica Missili & Spazio","2524-6968","Springer","Engineering","Engineering","Hybrid","CC BY","https://link.springer.com/journal/42496","https://link.springer.com/journal/"]
[null,266,"Aesthetic Plastic Surgery","1432-5241","Springer","Medicine & Public Health","Medicine","Hybrid","CC BY","https://link.springer.com/journal/266","https://link.springer.com/journal/"]
[null,42761,"Affective Science","2662-205X","Springer","Psychology","Behavioral Science and Psychology","Hybrid","CC BY","https://link.springer.com/journal/42761","https://link.springer.com/journal/"]
[null,10437,"African Archaeological Review","1572-9842","Springer","Social Sciences","Social Sciences","Hybrid","CC BY","https://link.springer.com/journal/10437","https://link.springer.com/journal/"]
[null,13370,"Afrika Matematika","2190-7668","Springer","Mathematics","Mathematics and Statistics","Hybrid","CC BY","https://link.springer.com/journal/13370","https://link.springer.com/journal/"]
[null,12126,"Ageing International","1936-606X","Springer","Social Sciences","Social Sciences","Hybrid","CC BY","https://link.springer.com/journal/12126","https://link.springer.com/journal/"]
[null,40003,"Agricultural Research","2249-7218","Springer","Life Sciences","Biomedical and Life Sciences","Hybrid","CC BY","https://link.springer.com/journal/40003","https://link.springer.com/journal/"]
[null,10460,"Agriculture and Human Values","1572-8366","Springer","Philosophy","Education","Hybrid","CC BY","https://link.springer.com/journal/10460","https://link.springer.com/journal/"]
[null,10457,"Agroforestry Systems","1572-9680","Springer","Life Sciences","Biomedical and Life Sciences","Hybrid","CC BY","https://link.springer.com/journal/10457","https://link.springer.com/journal/"]
[null,13593,"Agronomy for Sustainable Development","1773-0155","Springer","Life Sciences","Biomedical and Life Sciences","Hybrid","CC BY","https://link.springer.com/journal/13593","https://link.springer.com/journal/"]
[null,11869,"Air Quality, Atmosphere & Health","1873-9326","Springer","Environment","Earth and Environmental Science","Hybrid","CC BY","https://link.springer.com/journal/11869","https://link.springer.com/journal/"]
[null,10469,"Algebra and Logic","1573-8302","Springer","Mathematics","Mathematics and Statistics","Hybrid","CC BY","https://link.springer.com/journal/10469","https://link.springer.com/journal/"]
[null,12,"Algebra universalis","1420-8911","Springer","Mathematics","Mathematics and Statistics","Hybrid","CC BY","https://link.springer.com/journal/12","https://link.springer.com/journal/"]
[null,10468,"Algebras and Representation Theory","1572-9079","Springer","Mathematics","Mathematics and Statistics","Hybrid","CC BY","https://link.springer.com/journal/10468","https://link.springer.com/journal/"]
[null,453,"Algorithmica","1432-0541","Springer","Computer Science","Computer Science","Hybrid","CC BY","https://link.springer.com/journal/453","https://link.springer.com/journal/"]
[null,35,"Alpine Botany","1664-221X","Springer","Life Sciences","Biomedical and Life Sciences","Hybrid","CC BY","https://link.springer.com/journal/35","https://link.springer.com/journal/"]
[null,13280,"Ambio","1654-7209","Springer","Environment","Earth and Environmental Science","Hybrid","CC BY","https://link.springer.com/journal/13280","https://link.springer.com/journal/"]
[null,12103,"American Journal of Criminal Justice","1936-1351","Springer","Criminology and Criminal Justice","Law and Criminology","Hybrid","CC BY","https://link.springer.com/journal/12103","https://link.springer.com/journal/"]
[null,10465,"American Journal of Dance Therapy","1573-3262","Springer","Psychology","Behavioral Science and Psychology","Hybrid","CC BY","https://link.springer.com/journal/10465","https://link.springer.com/journal/"]
[null,12230,"American Journal of Potato Research","1874-9380","Springer","Life Sciences","Biomedical and Life Sciences","Hybrid","CC BY",{"$f":"K489&B489","v":"https://link.springer.com/journal/12230"},"https://link.springer.com/journal/"]
[null,12108,"The American Sociologist","1936-4784","Springer","Social Sciences","Social Sciences","Hybrid","CC BY","https://link.springer.com/journal/12108","https://link.springer.com/journal/"]
[null,10470,"Analog Integrated Circuits and Signal Processing","1573-1979","Springer","Engineering","Engineering","Hybrid","CC BY","https://link.springer.com/journal/10470","https://link.springer.com/journal/"]
[null,40616,"The Analysis of Verbal Behavior","2196-8926","Springer","Psychology","Behavioral Science and Psychology","Hybrid","CC BY","https://link.springer.com/journal/40616","https://link.springer.com/journal/"]
[null,10476,"Analysis Mathematica","1588-273X","Akadémiai Kiadó, co-published with Springer","Mathematics","Mathematics and Statistics","Hybrid","CC BY","https://link.springer.com/journal/10476","https://link.springer.com/journal/"]
[null,13324,"Analysis and Mathematical Physics","1664-235X","Springer","Mathematics","Mathematics and Statistics","Hybrid","CC BY","https://link.springer.com/journal/13324","https://link.springer.com/journal/"]
[null,216,"Analytical and Bioanalytical Chemistry","1618-2650","Springer","Chemistry","Chemistry and Materials Science","Hybrid","CC BY","https://link.springer.com/journal/216","https://link.springer.com/journal/"]
[null,44211,"Analytical Sciences","1348-2246","Springer","Chemistry","Chemistry and Materials Science","Hybrid","CC BY","https://link.springer.com/journal/44211","https://link.springer.com/journal/"]
[null,12565,"Anatomical Science International","1447-073X","Springer","Medicine & Public Health","Medicine","Hybrid","CC BY","https://link.springer.com/journal/12565","https://link.springer.com/journal/"]
[null,23,"Annales Henri Poincaré","1424-0661","Birkhäuser","Physics","Physics and Astronomy","Hybrid","CC BY","https://link.springer.com/journal/23","https://link.springer.com/journal/"]
[null,40316,"Annales mathématiques du Québec","2195-4763","Springer","Mathematics","Mathematics and Statistics","Hybrid","CC BY","https://link.springer.com/journal/40316","https://link.springer.com/journal/"]
[null,10231,"Annali di Matematica Pura ed Applicata (1923 -)","1618-1891","Springer","Mathematics","Mathematics and Statistics","Hybrid","CC BY","https://link.springer.com/journal/10231","https://link.springer.com/journal/"]
[null,168,"The Annals of Regional Science","1432-0592","Springer","Economics","Economics and Finance","Hybrid","CC BY","https://link.springer.com/journal/168","https://link.springer.com/journal/"]
[null,10439,"Annals of Biomedical Engineering","1573-9686","Springer","Biomedicine","Biomedical and Life Sciences","Hybrid","CC BY","https://link.springer.com/journal/10439","https://link.springer.com/journal/"]
[null,26,"Annals of Combinatorics","0219-3094","Springer","Mathematics","Mathematics and Statistics","Hybrid","CC BY","https://link.springer.com/journal/26","https://link.springer.com/journal/"]
[null,40745,"Annals of Data Science","2198-5812","Springer","Business and Management","Business and Management","Hybrid","CC BY","https://link.springer.com/journal/40745","https://link.springer.com/journal/"]
[null,11881,"Annals of Dyslexia","1934-7243","Springer","Linguistics","Social Sciences","Hybrid","CC BY","https://link.springer.com/journal/11881","https://link.springer.com/journal/"]
[null,10436,"Annals of Finance","1614-2454","Springer","Finance","Economics and Finance","Hybrid","CC BY","https://link.springer.com/journal/10436","https://link.springer.com/journal/"]
[null,43034,"Annals of Functional Analysis","2008-8752","Springer","Mathematics","Mathematics and Statistics","Hybrid","CC BY","https://link.springer.com/journal/43034","https://link.springer.com/journal/"]
[null,10455,"Annals of Global Analysis and Geometry","1572-9060","Springer","Mathematics","Mathematics and Statistics","Hybrid","CC BY","https://link.springer.com/journal/10455","https://link.springer.com/journal/"]
[null,10472,"Annals of Mathematics and Artificial Intelligence","1573-7470","Springer","Computer Science","Computer Science","Hybrid","CC BY","https://link.springer.com/journal/10472","https://link.springer.com/journal/"]
[null,12149,"Annals of Nuclear Medicine","1864-6433","Springer","Medicine & Public Health","Medicine","Hybrid","CC BY","https://link.springer.com/journal/12149","https://link.springer.com/journal/"]
[null,10479,"Annals of Operations Research","1572-9338","Springer","Business and Management","Business and Management","Hybrid","CC BY","https://link.springer.com/journal/10479","https://link.springer.com/journal/"]
[null,40818,"Annals of PDE","2199-2576","Springer","Physics","Physics and Astronomy","Hybrid","CC BY","https://link.springer.com/journal/40818","https://link.springer.com/journal/"]
[null,10434,"Annals of Surgical Oncology","1534-4681","Springer","Medicine & Public Health","Medicine","Hybrid","CC BY","https://link.springer.com/journal/10434","https://link.springer.com/journal/"]
[null,12243,"Annals of Telecommunications","1958-9395","Springer","Engineering","Engineering","Hybrid","CC BY","https://link.springer.com/journal/12243","https://link.springer.com/journal/"]
[null,44177,"Anthropocene Science","2731-3980","Springer","Environment","Earth and Environmental Science","Hybrid","CC BY","https://link.springer.com/journal/44177","https://link.springer.com/journal/"]
[null,10482,"Antonie van Leeuwenhoek","1572-9699","Springer","Life Sciences","Biomedical and Life Sciences","Hybrid","CC BY","https://link.springer.com/journal/10482","https://link.springer.com/journal/"]
[null,13592,"Apidologie","1297-9678","Springer","Life Sciences","Biomedical and Life Sciences","Hybrid","CC BY","https://link.springer.com/journal/13592","https://link.springer.com/journal/"]
[null,10495,"Apoptosis","1573-675X","Springer","Biomedicine","Biomedical and Life Sciences","Hybrid","CC BY","https://link.springer.com/journal/10495","https://link.springer.com/journal/"]
[null,200,"Applicable Algebra in Engineering, Communication and Computing","1432-0622","Springer","Computer Science","Computer Science","Hybrid","CC BY","https://link.springer.com/journal/200","https://link.springer.com/journal/"]
[null,10492,"Applications of Mathematics","1572-9109","Springer","Mathematics","Mathematics and Statistics","Hybrid","CC BY","https://link.springer.com/journal/10492","https://link.springer.com/journal/"]
[null,12010,"Applied Biochemistry and Biotechnology","1559-0291","Springer","Chemistry","Chemistry and Materials Science","Hybrid","CC BY","https://link.springer.com/journal/12010","https://link.springer.com/journal/"]
[null,10485,"Applied Categorical Structures","1572-9095","Springer","Mathematics","Mathematics and Statistics","Hybrid","CC BY","https://link.springer.com/journal/10485","https://link.springer.com/journal/"]
[null,10443,"Applied Composite Materials","1573-4897","Springer","Materials Science","Chemistry and Materials Science","Hybrid","CC BY","https://link.springer.com/journal/10443","https://link.springer.com/journal/"]
[null,13355,"Applied Entomology and Zoology","1347-605X","Springer","Life Sciences","Biomedical and Life Sciences","Hybrid","CC BY","https://link.springer.com/journal/13355","https://link.springer.com/journal/"]
[null,10341,"Applied Fruit Science","2948-2631","Springer","Life Sciences","Biomedical and Life Sciences","Hybrid","CC BY","https://link.springer.com/journal/10341","https://link.springer.com/journal/"]
[null,12518,"Applied Geomatics","1866-928X","Springer","Geography","Earth and Environmental Science","Hybrid","CC BY","https://link.springer.com/journal/12518","https://link.springer.com/journal/"]
[null,11770,"Applied Geophysics","1993-0658","Chinese Geophysical Society, co-published with Springer","Earth Sciences","Earth and Environmental Science","Hybrid","CC BY","https://link.springer.com/journal/11770","https://link.springer.com/journal/"]
[null,10489,"Applied Intelligence","1573-7497","Springer","Computer Science","Computer Science","Hybrid","CC BY","https://link.springer.com/journal/10489","https://link.springer.com/journal/"]
[null,723,"Applied Magnetic Resonance","1613-7507","Springer","Physics","Physics and Astronomy","Hybrid","CC BY","https://link.springer.com/journal/723","https://link.springer.com/journal/"]
[null,10483,"Applied Mathematics and Mechanics","1573-2754","Springer","Mathematics","Mathematics and Statistics","Hybrid","CC BY","https://link.springer.com/journal/10483","https://link.springer.com/journal/"]
[null,245,"Applied Mathematics & Optimization","1432-0606","Springer","Mathematics","Mathematics and Statistics","Hybrid","CC BY","https://link.springer.com/journal/245","https://link.springer.com/journal/"]
[null,11766,"Applied Mathematics-A Journal of Chinese Universities","1993-0445","Springer","Mathematics","Mathematics and Statistics","Hybrid","CC BY","https://link.springer.com/journal/11766","https://link.springer.com/journal/"]
[null,13204,"Applied Nanoscience","2190-5517","Springer","Materials Science","Chemistry and Materials Science","Hybrid","CC BY","https://link.springer.com/journal/13204","https://link.springer.com/journal/"]
[null,10484,"Applied Psychophysiology and Biofeedback","1573-3270","Springer","Psychology","Behavioral Science and Psychology","Hybrid","CC BY","https://link.springer.com/journal/10484","https://link.springer.com/journal/"]
[null,11482,"Applied Research in Quality of Life","1871-2576","Springer","Social Sciences","Social Sciences","Hybrid","CC BY","https://link.springer.com/journal/11482","https://link.springer.com/journal/"]
[null,12061,"Applied Spatial Analysis and Policy","1874-4621","Springer","Social Sciences","Social Sciences","Hybrid","CC BY","https://link.springer.com/journal/12061","https://link.springer.com/journal/"]
[null,10499,"Aquaculture International","1573-143X","Springer","Life Sciences","Biomedical and Life Sciences","Hybrid","CC BY","https://link.springer.com/journal/10499","https://link.springer.com/journal/"]
[null,10452,"Aquatic Ecology","1573-5125","Springer","Life Sciences","Biomedical and Life Sciences","Hybrid","CC BY","https://link.springer.com/journal/10452","https://link.springer.com/journal/"]
[null,10498,"Aquatic Geochemistry","1573-1421","Springer","Earth Sciences","Earth and Environmental Science","Hybrid","CC BY","https://link.springer.com/journal/10498","https://link.springer.com/journal/"]
[null,27,"Aquatic Sciences","1420-9055","Springer","Life Sciences","Biomedical and Life Sciences","Hybrid","CC BY","https://link.springer.com/journal/27","https://link.springer.com/journal/"]
[null,12517,"Arabian Journal of Geosciences","1866-7538","Springer","Earth Sciences","Earth and Environmental Science","Hybrid","CC BY","https://link.springer.com/journal/12517","https://link.springer.com/journal/"]
[null,13369,"Arabian Journal for Science and Engineering","2191-4281","Springer","Engineering","Engineering","Hybrid","CC BY","https://link.springer.com/journal/13369","https://link.springer.com/journal/"]
[null,12520,"Archaeological and Anthropological Sciences","1866-9565","Springer","Earth Sciences","Earth and Environmental Science","Hybrid","CC BY","https://link.springer.com/journal/12520","https://link.springer.com/journal/"]
[null,11759,"Archaeologies","1935-3987","Springer","Social Sciences","Social Sciences","Hybrid","CC BY","https://link.springer.com/journal/11759","https://link.springer.com/journal/"]
[null,44150,"Architecture, Structures and Construction","2730-9894","Springer","Engineering","Engineering","Hybrid","CC BY","https://link.springer.com/journal/44150","https://link.springer.com/journal/"]
[null,13,"Archiv der Mathematik","1420-8938","Springer","Mathematics","Mathematics and Statistics","Hybrid","CC BY","https://link.springer.com/journal/13","https://link.springer.com/journal/"]
[null,10502,"Archival Science","1573-7500","Springer","Cultural and Media Studies","Literature, Cultural and Media Studies","Hybrid","CC BY","https://link.springer.com/journal/10502","https://link.springer.com/journal/"]
[null,419,"Archive of Applied Mechanics","1432-0681","Springer","Engineering","Engineering","Hybrid","CC BY","https://link.springer.com/journal/419","https://link.springer.com/journal/"]
[null,407,"Archive for History of Exact Sciences","1432-0657","Springer","Mathematics","Mathematics and Statistics","Hybrid","CC BY","https://link.springer.com/journal/407","https://link.springer.com/journal/"]
[null,153,"Archive for Mathematical Logic","1432-0665","Springer","Mathematics","Mathematics and Statistics","Hybrid","CC BY","https://link.springer.com/journal/153","https://link.springer.com/journal/"]
[null,205,"Archive for Rational Mechanics and Analysis","1432-0673","Springer","Physics","Physics and Astronomy","Hybrid","CC BY","https://link.springer.com/journal/205","https://link.springer.com/journal/"]
[null,43452,"Archives of Civil and Mechanical Engineering","2083-3318","Springer","Engineering","Engineering","Hybrid","CC BY","https://link.springer.com/journal/43452","https://link.springer.com/journal/"]
[null,11831,"Archives of Computational Methods in Engineering","1886-1784","Springer","Engineering","Engineering","Hybrid","CC BY",{"$f":"K553&B553","v":"https://link.springer.com/journal/11831"},"https://link.springer.com/journal/"]
[null,403,"Archives of Dermatological Research","1432-069X","Springer","Medicine & Public Health","Medicine","Hybrid","CC BY","https://link.springer.com/journal/403","https://link.springer.com/journal/"]
[null,244,"Archives of Environmental Contamination and Toxicology","1432-0703","Springer","Environment","Earth and Environmental Science","Hybrid","CC BY","https://link.springer.com/journal/244","https://link.springer.com/journal/"]
[null,203,"Archives of Microbiology","1432-072X","Springer","Life Sciences","Biomedical and Life Sciences","Hybrid","CC BY","https://link.springer.com/journal/203","https://link.springer.com/journal/"]
[null,11657,"Archives of Osteoporosis","1862-3514","Springer","Medicine & Public Health","Medicine","Hybrid","CC BY","https://link.springer.com/journal/11657","https://link.springer.com/journal/"]
[null,12272,"Archives of Pharmacal Research","1976-3786","Pharmaceutical Society of Korea, co-published with Springer","Pharmacy","Medicine","Hybrid","CC BY","https://link.springer.com/journal/12272","https://link.springer.com/journal/"]
[null,10508,"Archives of Sexual Behavior","1573-2800","Springer","Psychology","Behavioral Science and Psychology","Hybrid","CC BY","https://link.springer.com/journal/10508","https://link.springer.com/journal/"]
[null,204,"Archives of Toxicology","1432-0738","Springer","Biomedicine","Biomedical and Life Sciences","Hybrid","CC BY","https://link.springer.com/journal/204","https://link.springer.com/journal/"]
[null,705,"Archives of Virology","1432-8798","Springer","Biomedicine","Biomedical and Life Sciences","Hybrid","CC BY","https://link.springer.com/journal/705","https://link.springer.com/journal/"]
[null,737,"Archives of Women's Mental Health","1435-1102","Springer","Medicine & Public Health","Medicine","Hybrid","CC BY","https://link.springer.com/journal/737","https://link.springer.com/journal/"]
[null,10503,"Argumentation","1572-8374","Springer","Philosophy","Education","Hybrid","CC BY","https://link.springer.com/journal/10503","https://link.springer.com/journal/"]
[null,11829,"Arthropod-Plant Interactions","1872-8847","Springer","Life Sciences","Biomedical and Life Sciences","Hybrid","CC BY","https://link.springer.com/journal/11829","https://link.springer.com/journal/"]
[null,10506,"Artificial Intelligence and Law","1572-8382","Springer","Computer Science","Computer Science","Hybrid","CC BY","https://link.springer.com/journal/10506","https://link.springer.com/journal/"]
[null,10015,"Artificial Life and Robotics","1614-7456","Springer","Computer Science","Computer Science","Hybrid","CC BY","https://link.springer.com/journal/10015","https://link.springer.com/journal/"]
[null,10308,"Asia Europe Journal","1612-1031","Springer","Social Sciences","Social Sciences","Hybrid","CC BY","https://link.springer.com/journal/10308","https://link.springer.com/journal/"]
[null,12564,"Asia Pacific Education Review","1876-407X","Springer","Education","Education","Hybrid","CC BY","https://link.springer.com/journal/12564","https://link.springer.com/journal/"]
[null,10490,"Asia Pacific Journal of Management","1572-9958","Springer","Business and Management","Business and Management","Hybrid","CC BY","https://link.springer.com/journal/10490","https://link.springer.com/journal/"]
[null,40299,"The Asia-Pacific Education Researcher","2243-7908","Springer","Education","Education","Hybrid","CC BY","https://link.springer.com/journal/40299","https://link.springer.com/journal/"]
[null,10690,"Asia-Pacific Financial Markets","1573-6946","Springer","Finance","Economics and Finance","Hybrid","CC BY","https://link.springer.com/journal/10690","https://link.springer.com/journal/"]
[null,13143,"Asia-Pacific Journal of Atmospheric Sciences","1976-7951","Korean Meteorological Society, co-published with Springer","Earth Sciences","Earth and Environmental Science","Hybrid","CC BY","https://link.springer.com/journal/13143","https://link.springer.com/journal/"]
[null,41685,"Asia-Pacific Journal of Regional Science","2509-7954","Springer","Economics","Economics and Finance","Hybrid","CC BY","https://link.springer.com/journal/41685","https://link.springer.com/journal/"]
[null,41826,"Asian Archaeology","2520-8101","Springer","Social Sciences","Social Sciences","Hybrid","CC BY","https://link.springer.com/journal/41826","https://link.springer.com/journal/"]
[null,41649,"Asian Bioethics Review","1793-9453","Springer","Philosophy","Education","Hybrid","CC BY","https://link.springer.com/journal/41649","https://link.springer.com/journal/"]
[null,13520,"Asian Journal of Business Ethics","2210-6731","Springer","Philosophy","Education","Hybrid","CC BY","https://link.springer.com/journal/13520","https://link.springer.com/journal/"]
[null,42107,"Asian Journal of Civil Engineering","2522-011X","Springer","Engineering","Engineering","Hybrid","CC BY","https://link.springer.com/journal/42107","https://link.springer.com/journal/"]
[null,11417,"Asian Journal of Criminology","1871-014X","Springer","Criminology and Criminal Justice","Law and Criminology","Hybrid","CC BY","https://link.springer.com/journal/11417","https://link.springer.com/journal/"]
[null,44204,"Asian Journal of Philosophy","2731-4642","Springer","Philosophy","Education","Hybrid","CC BY","https://link.springer.com/journal/44204","https://link.springer.com/journal/"]
[null,42064,"Astrodynamics","2522-0098","Tsinghua University Press, co-published with Springer","Engineering","Engineering","Hybrid","CC BY","https://link.springer.com/journal/42064","https://link.springer.com/journal/"]
[null,159,"The Astronomy and Astrophysics Review","1432-0754","Springer","Physics","Physics and Astronomy","Hybrid","CC BY","https://link.springer.com/journal/159","https://link.springer.com/journal/"]
[null,10509,"Astrophysics and Space Science","1572-946X","Springer","Physics","Physics and Astronomy","Hybrid","CC BY","https://link.springer.com/journal/10509","https://link.springer.com/journal/"]
[null,11293,"Atlantic Economic Journal","1573-9678","Springer","Economics","Economics and Finance","Hybrid","CC BY","https://link.springer.com/journal/11293","https://link.springer.com/journal/"]
[null,13414,"Attention, Perception, & Psychophysics","1943-393X","Springer","Psychology","Behavioral Science and Psychology","Hybrid","CC BY","https://link.springer.com/journal/13414","https://link.springer.com/journal/"]
[null,41133,"Augmented Human Research","2365-4325","Springer","Engineering","Engineering","Hybrid","CC BY","https://link.springer.com/journal/41133","https://link.springer.com/journal/"]
[null,13384,"The Australian Educational Researcher","2210-5328","Springer","Education","Education","Hybrid","CC BY","https://link.springer.com/journal/13384","https://link.springer.com/journal/"]
[null,44020,"The Australian Journal of Language and Literacy","1839-4728","Springer","Education","Education","Hybrid","CC BY","https://link.springer.com/journal/44020","https://link.springer.com/journal/"]
[null,10515,"Automated Software Engineering","1573-7535","Springer","Computer Science","Computer Science","Hybrid","CC BY","https://link.springer.com/journal/10515","https://link.springer.com/journal/"]
[null,42154,"Automotive Innovation","2522-8765","Springer","Engineering","Engineering","Hybrid","CC BY","https://link.springer.com/journal/42154","https://link.springer.com/journal/"]
[null,10458,"Autonomous Agents and Multi-Agent Systems","1573-7454","Springer","Computer Science","Computer Science","Hybrid","CC BY","https://link.springer.com/journal/10458","https://link.springer.com/journal/"]
[null,10514,"Autonomous Robots","1573-7527","Springer","Engineering","Engineering","Hybrid","CC BY","https://link.springer.com/journal/10514","https://link.springer.com/journal/"]
[null,501,"BHM Berg- und Hüttenmännische Monatshefte","1613-7531","Springer","Earth Sciences","Earth and Environmental Science","Hybrid","CC BY","https://link.springer.com/journal/501","https://link.springer.com/journal/"]
[null,12268,"BIOspektrum","1868-6249","Springer","Life Sciences","Biomedical and Life Sciences","Hybrid","CC BY","https://link.springer.com/journal/12268","https://link.springer.com/journal/"]
[null,10543,"BIT Numerical Mathematics","1572-9125","Springer","Mathematics","Mathematics and Statistics","Hybrid","CC BY","https://link.springer.com/journal/10543","https://link.springer.com/journal/"]
[null,43037,"Banach Journal of Mathematical Analysis","1735-8787","Springer","Mathematics","Mathematics and Statistics","Hybrid","CC BY","https://link.springer.com/journal/43037","https://link.springer.com/journal/"]
[null,395,"Basic Research in Cardiology","1435-1803","Springer","Medicine & Public Health","Medicine","Hybrid","CC BY","https://link.springer.com/journal/395","https://link.springer.com/journal/"]
[null,40617,"Behavior Analysis in Practice","2196-8934","Springer","Psychology","Behavioral Science and Psychology","Hybrid","CC BY","https://link.springer.com/journal/40617","https://link.springer.com/journal/"]
[null,10519,"Behavior Genetics","1573-3297","Springer","Psychology","Behavioral Science and Psychology","Hybrid","CC BY","https://link.springer.com/journal/10519","https://link.springer.com/journal/"]
[null,13428,"Behavior Research Methods","1554-3528","Springer","Psychology","Behavioral Science and Psychology","Hybrid","CC BY","https://link.springer.com/journal/13428","https://link.springer.com/journal/"]
[null,42822,"Behavior and Social Issues","2376-6786","Springer","Psychology","Behavioral Science and Psychology","Hybrid","CC BY","https://link.springer.com/journal/42822","https://link.springer.com/journal/"]
[null,265,"Behavioral Ecology and Sociobiology","1432-0762","Springer","Life Sciences","Biomedical and Life Sciences","Hybrid","CC BY","https://link.springer.com/journal/265","https://link.springer.com/journal/"]
[null,41237,"Behaviormetrika","1349-6964","Springer","Statistics","Mathematics and Statistics","Hybrid","CC BY","https://link.springer.com/journal/41237","https://link.springer.com/journal/"]
[null,13366,"Beiträge zur Algebra und Geometrie / Contributions to Algebra and Geometry","2191-0383","Springer","Mathematics","Mathematics and Statistics","Hybrid","CC BY","https://link.springer.com/journal/13366","https://link.springer.com/journal/"]
[null,11609,"Berliner Journal für Soziologie","1862-2593","Springer","Social Sciences","Social Sciences","Hybrid","CC BY","https://link.springer.com/journal/11609","https://link.springer.com/journal/"]
[null,42242,"Bio-Design and Manufacturing","2522-8552","Zhejiang University Press, co-published with Springer","Engineering","Engineering","Hybrid","CC BY","https://link.springer.com/journal/42242","https://link.springer.com/journal/"]
[null,13206,"BioChip Journal","2092-7843","The Korean BioChip Society (KBCS), co-published with Springer","Chemistry","Chemistry and Materials Science","Hybrid","CC BY","https://link.springer.com/journal/13206","https://link.springer.com/journal/"]
[null,10526,"BioControl","1573-8248","Springer","Life Sciences","Biomedical and Life Sciences","Hybrid","CC BY","https://link.springer.com/journal/10526","https://link.springer.com/journal/"]
[null,12155,"BioEnergy Research","1939-1242","Springer","Life Sciences","Biomedical and Life Sciences","Hybrid","CC BY","https://link.springer.com/journal/12155","https://link.springer.com/journal/"]
[null,10534,"BioMetals","1572-8773","Springer","Life Sciences","Biomedical and Life Sciences","Hybrid","CC BY","https://link.springer.com/journal/10534","https://link.springer.com/journal/"]
[null,12668,"BioNanoScience","2191-1649","Springer","Engineering","Engineering","Hybrid","CC BY","https://link.springer.com/journal/12668","https://link.springer.com/journal/"]
[null,10528,"Biochemical Genetics","1573-4927","Springer","Biomedicine","Biomedical and Life Sciences","Hybrid","CC BY","https://link.springer.com/journal/10528","https://link.springer.com/journal/"]
[null,10532,"Biodegradation","1572-9729","Springer","Life Sciences","Biomedical and Life Sciences","Hybrid","CC BY","https://link.springer.com/journal/10532","https://link.springer.com/journal/"]
[null,10531,"Biodiversity and Conservation","1572-9710","Springer","Life Sciences","Biomedical and Life Sciences","Hybrid","CC BY","https://link.springer.com/journal/10531","https://link.springer.com/journal/"]
[null,10522,"Biogerontology","1573-6768","Springer","Life Sciences","Biomedical and Life Sciences","Hybrid","CC BY","https://link.springer.com/journal/10522","https://link.springer.com/journal/"]
[null,11756,"Biologia","1336-9563","Springer","Life Sciences","Biomedical and Life Sciences","Hybrid","CC BY","https://link.springer.com/journal/11756","https://link.springer.com/journal/"]
[null,42977,"Biologia Futura","2676-8607","Akadémiai Kiadó, co-published with Springer","Life Sciences","Biomedical and Life Sciences","Hybrid","CC BY","https://link.springer.com/journal/42977","https://link.springer.com/journal/"]
[null,422,"Biological Cybernetics","1432-0770","Springer","Biomedicine","Biomedical and Life Sciences","Hybrid","CC BY",{"$f":"K617&B617","v":"https://link.springer.com/journal/422"},"https://link.springer.com/journal/"]
[null,10530,"Biological Invasions","1573-1464","Springer","Life Sciences","Biomedical and Life Sciences","Hybrid","CC BY","https://link.springer.com/journal/10530","https://link.springer.com/journal/"]
[null,13752,"Biological Theory","1555-5550","Springer","Philosophy","Education","Hybrid","CC BY","https://link.springer.com/journal/13752","https://link.springer.com/journal/"]
[null,12011,"Biological Trace Element Research","1559-0720","Springer","Life Sciences","Biomedical and Life Sciences","Hybrid","CC BY","https://link.springer.com/journal/12011","https://link.springer.com/journal/"]
[null,374,"Biology and Fertility of Soils","1432-0789","Springer","Life Sciences","Biomedical and Life Sciences","Hybrid","CC BY","https://link.springer.com/journal/374","https://link.springer.com/journal/"]
[null,10539,"Biology & Philosophy","1572-8404","Springer","Philosophy","Education","Hybrid","CC BY","https://link.springer.com/journal/10539","https://link.springer.com/journal/"]
[null,13399,"Biomass Conversion and Biorefinery","2190-6823","Springer","Energy","Energy","Hybrid","CC BY","https://link.springer.com/journal/13399","https://link.springer.com/journal/"]
[null,10237,"Biomechanics and Modeling in Mechanobiology","1617-7940","Springer","Engineering","Engineering","Hybrid","CC BY","https://link.springer.com/journal/10237","https://link.springer.com/journal/"]
[null,43683,"Biomedical Engineering Education","2730-5945","Springer","Biomedicine","Biomedical and Life Sciences","Hybrid","CC BY","https://link.springer.com/journal/43683","https://link.springer.com/journal/"]
[null,13534,"Biomedical Engineering Letters","2093-985X","The Korean Society of Medical and Biological Engineering, co-published with Springer","Engineering","Engineering","Hybrid","CC BY","https://link.springer.com/journal/13534","https://link.springer.com/journal/"]
[null,44174,"Biomedical Materials & Devices","2731-4820","Springer","Materials Science","Chemistry and Materials Science","Hybrid","CC BY","https://link.springer.com/journal/44174","https://link.springer.com/journal/"]
[null,10544,"Biomedical Microdevices","1572-8781","Springer","Engineering","Engineering","Hybrid","CC BY","https://link.springer.com/journal/10544","https://link.springer.com/journal/"]
[null,12104,"Biomolecular NMR Assignments","1874-270X","Springer","Physics","Physics and Astronomy","Hybrid","CC BY","https://link.springer.com/journal/12104","https://link.springer.com/journal/"]
[null,12551,"Biophysical Reviews","1867-2469","Springer","Life Sciences","Biomedical and Life Sciences","Hybrid","CC BY","https://link.springer.com/journal/12551","https://link.springer.com/journal/"]
[null,449,"Bioprocess and Biosystems Engineering","1615-7605","Springer","Chemistry","Chemistry and Materials Science","Hybrid","CC BY","https://link.springer.com/journal/449","https://link.springer.com/journal/"]
[null,12304,"Biosemiotics","1875-1350","Springer","Life Sciences","Biomedical and Life Sciences","Hybrid","CC BY","https://link.springer.com/journal/12304","https://link.springer.com/journal/"]
[null,12257,"Biotechnology and Bioprocess Engineering","1976-3816","The Korean Society for Biotechnology and Bioengineering, co-published with Springer","Chemistry","Chemistry and Materials Science","Hybrid","CC BY","https://link.springer.com/journal/12257","https://link.springer.com/journal/"]
[null,10529,"Biotechnology Letters","1573-6776","Springer","Life Sciences","Biomedical and Life Sciences","Hybrid","CC BY","https://link.springer.com/journal/10529","https://link.springer.com/journal/"]
[null,40590,"Boletín de la Sociedad Matemática Mexicana","2296-4495","Springer","Mathematics","Mathematics and Statistics","Hybrid","CC BY","https://link.springer.com/journal/40590","https://link.springer.com/journal/"]
[null,40574,"Bollettino dell'Unione Matematica Italiana","2198-2759","Springer","Mathematics","Mathematics and Statistics","Hybrid","CC BY","https://link.springer.com/journal/40574","https://link.springer.com/journal/"]
[null,12229,"The Botanical Review","1874-9372","Springer","Life Sciences","Biomedical and Life Sciences","Hybrid","CC BY","https://link.springer.com/journal/12229","https://link.springer.com/journal/"]
[null,10546,"Boundary-Layer Meteorology","1573-1472","Springer","Earth Sciences","Earth and Environmental Science","Hybrid","CC BY","https://link.springer.com/journal/10546","https://link.springer.com/journal/"]
[null,11682,"Brain Imaging and Behavior","1931-7565","Springer","Biomedicine","Biomedical and Life Sciences","Hybrid","CC BY","https://link.springer.com/journal/11682","https://link.springer.com/journal/"]
[null,429,"Brain Structure and Function","1863-2661","Springer","Biomedicine","Biomedical and Life Sciences","Hybrid","CC BY","https://link.springer.com/journal/429","https://link.springer.com/journal/"]
[null,10548,"Brain Topography","1573-6792","Springer","Biomedicine","Biomedical and Life Sciences","Hybrid","CC BY","https://link.springer.com/journal/10548","https://link.springer.com/journal/"]
[null,10014,"Brain Tumor Pathology","1861-387X","Springer","Medicine & Public Health","Medicine","Hybrid","CC BY","https://link.springer.com/journal/10014","https://link.springer.com/journal/"]
[null,40415,"Brazilian Journal of Botany","1806-9959","Springer","Life Sciences","Biomedical and Life Sciences","Hybrid","CC BY","https://link.springer.com/journal/40415","https://link.springer.com/journal/"]
[null,42770,"Brazilian Journal of Microbiology","1678-4405","Springer","Life Sciences","Biomedical and Life Sciences","Hybrid","CC BY","https://link.springer.com/journal/42770","https://link.springer.com/journal/"]
[null,13538,"Brazilian Journal of Physics","1678-4448","Springer","Physics","Physics and Astronomy","Hybrid","CC BY","https://link.springer.com/journal/13538","https://link.springer.com/journal/"]
[null,12282,"Breast Cancer","1880-4233","Springer","Medicine & Public Health","Medicine","Hybrid","CC BY","https://link.springer.com/journal/12282","https://link.springer.com/journal/"]
[null,10549,"Breast Cancer Research and Treatment","1573-7217","Springer","Medicine & Public Health","Medicine","Hybrid","CC BY","https://link.springer.com/journal/10549","https://link.springer.com/journal/"]
[null,12228,"Brittonia","1938-436X","Springer","Life Sciences","Biomedical and Life Sciences","Hybrid","CC BY","https://link.springer.com/journal/12228","https://link.springer.com/journal/"]
[null,12273,"Building Simulation","1996-8744","Tsinghua University Press, co-published with Springer","Engineering","Engineering","Hybrid","CC BY","https://link.springer.com/journal/12273","https://link.springer.com/journal/"]
[null,42865,"Bulletin of Atmospheric Science and Technology","2662-1509","Springer","Earth Sciences","Earth and Environmental Science","Hybrid","CC BY","https://link.springer.com/journal/42865","https://link.springer.com/journal/"]
[null,574,"Bulletin of the Brazilian Mathematical Society, New Series","1678-7714","Springer","Mathematics","Mathematics and Statistics","Hybrid","CC BY","https://link.springer.com/journal/574","https://link.springer.com/journal/"]
[null,10518,"Bulletin of Earthquake Engineering","1573-1456","Springer","Earth Sciences","Earth and Environmental Science","Hybrid","CC BY","https://link.springer.com/journal/10518","https://link.springer.com/journal/"]
[null,10064,"Bulletin of Engineering Geology and the Environment","1435-9537","Springer","Earth Sciences","Earth and Environmental Science","Hybrid","CC BY","https://link.springer.com/journal/10064","https://link.springer.com/journal/"]
[null,128,"Bulletin of Environmental Contamination and Toxicology","1432-0800","Springer","Environment","Earth and Environmental Science","Hybrid","CC BY","https://link.springer.com/journal/128","https://link.springer.com/journal/"]
[null,41980,"Bulletin of the Iranian Mathematical Society","1735-8515","Springer","Mathematics","Mathematics and Statistics","Hybrid","CC BY","https://link.springer.com/journal/41980","https://link.springer.com/journal/"]
[null,40840,"Bulletin of the Malaysian Mathematical Sciences Society","2180-4206","Springer","Mathematics","Mathematics and Statistics","Hybrid","CC BY","https://link.springer.com/journal/40840","https://link.springer.com/journal/"]
[null,11538,"Bulletin of Mathematical Biology","1522-9602","Springer","Mathematics","Mathematics and Statistics","Hybrid","CC BY","https://link.springer.com/journal/11538","https://link.springer.com/journal/"]
[null,445,"Bulletin of Volcanology","1432-0819","Springer","Earth Sciences","Earth and Environmental Science","Hybrid","CC BY","https://link.springer.com/journal/445","https://link.springer.com/journal/"]
[null,103,"Bundesgesundheitsblatt - Gesundheitsforschung - Gesundheitsschutz","1437-1588","Springer","Medicine & Public Health","Medicine","Hybrid","CC BY","https://link.springer.com/journal/103","https://link.springer.com/journal/"]
[null,12599,"Business & Information Systems Engineering","1867-0202","Springer","Business and Management","Business and Management","Hybrid","CC BY","https://link.springer.com/journal/12599","https://link.springer.com/journal/"]
[null,42514,"CCF Transactions on High Performance Computing","2524-4930","Springer","Computer Science","Computer Science","Hybrid","CC BY","https://link.springer.com/journal/42514","https://link.springer.com/journal/"]
[null,42486,"CCF Transactions on Pervasive Computing and Interaction","2524-5228","Springer","Computer Science","Computer Science","Hybrid","CC BY","https://link.springer.com/journal/42486","https://link.springer.com/journal/"]
[null,13272,"CEAS Aeronautical Journal","1869-5590","Springer","Engineering","Engineering","Hybrid","CC BY","https://link.springer.com/journal/13272","https://link.springer.com/journal/"]
[null,12567,"CEAS Space Journal","1868-2510","Springer","Engineering","Engineering","Hybrid","CC BY","https://link.springer.com/journal/12567","https://link.springer.com/journal/"]
[null,13730,"CEN Case Reports","2192-4449","Springer","Medicine & Public Health","Medicine","Hybrid","CC BY","https://link.springer.com/journal/13730","https://link.springer.com/journal/"]
[null,40012,"CSI Transactions on ICT","2277-9086","Springer","Computer Science","Computer Science","Hybrid","CC BY","https://link.springer.com/journal/40012","https://link.springer.com/journal/"]
[null,223,"Calcified Tissue International","1432-0827","Springer","Life Sciences","Biomedical and Life Sciences","Hybrid","CC BY","https://link.springer.com/journal/223","https://link.springer.com/journal/"]
[null,10092,"Calcolo","1126-5434","Springer","Mathematics","Mathematics and Statistics","Hybrid","CC BY","https://link.springer.com/journal/10092","https://link.springer.com/journal/"]
[null,526,"Calculus of Variations and Partial Differential Equations","1432-0835","Springer","Mathematics","Mathematics and Statistics","Hybrid","CC BY","https://link.springer.com/journal/526","https://link.springer.com/journal/"]
[null,12630,"Canadian Journal of Anesthesia/Journal canadien d'anesthésie","1496-8975","Springer","Medicine & Public Health","Medicine","Hybrid","CC BY-NC","https://link.springer.com/journal/12630","https://link.springer.com/journal/"]
[null,43678,"Canadian Journal of Emergency Medicine","1481-8043","Springer","Medicine & Public Health","Medicine","Hybrid","CC BY","https://link.springer.com/journal/43678","https://link.springer.com/journal/"]
[null,41997,"Canadian Journal of Public Health","1920-7476","Springer","Medicine & Public Health","Medicine","Hybrid","CC BY","https://link.springer.com/journal/41997","https://link.springer.com/journal/"]
[null,42330,"Canadian Journal of Science, Mathematics and Technology Education","1942-4051","Springer","Education","Education","Hybrid","CC BY","https://link.springer.com/journal/42330","https://link.springer.com/journal/"]
[null,42650,"Canadian Studies in Population","1927-629X","Springer","Social Sciences","Social Sciences","Hybrid","CC BY","https://link.springer.com/journal/42650","https://link.springer.com/journal/"]
[null,10552,"Cancer Causes & Control","1573-7225","Springer","Biomedicine","Biomedical and Life Sciences","Hybrid","CC BY","https://link.springer.com/journal/10552","https://link.springer.com/journal/"]
[null,280,"Cancer Chemotherapy and Pharmacology","1432-0843","Springer","Medicine & Public Health","Medicine","Hybrid","CC BY","https://link.springer.com/journal/280","https://link.springer.com/journal/"]
[null,42823,"Carbon Letters","2233-4998","Springer","Materials Science","Chemistry and Materials Science","Hybrid","CC BY","https://link.springer.com/journal/42823","https://link.springer.com/journal/"]
[null,13146,"Carbonates and Evaporites","1878-5212","Springer","Earth Sciences","Earth and Environmental Science","Hybrid","CC BY","https://link.springer.com/journal/13146","https://link.springer.com/journal/"]
[null,10557,"Cardiovascular Drugs and Therapy","1573-7241","Springer","Medicine & Public Health","Medicine","Hybrid","CC BY","https://link.springer.com/journal/10557","https://link.springer.com/journal/"]
[null,13239,"Cardiovascular Engineering and Technology","1869-4098","Springer","Biomedicine","Biomedical and Life Sciences","Hybrid","CC BY","https://link.springer.com/journal/13239","https://link.springer.com/journal/"]
[null,12928,"Cardiovascular Intervention and Therapeutics","1868-4297","Springer","Medicine & Public Health","Medicine","Hybrid","CC BY",{"$f":"K681&B681","v":"https://link.springer.com/journal/12928"},"https://link.springer.com/journal/"]
[null,12012,"Cardiovascular Toxicology","1559-0259","Springer","Biomedicine","Biomedical and Life Sciences","Hybrid","CC BY","https://link.springer.com/journal/12012","https://link.springer.com/journal/"]
[null,10562,"Catalysis Letters","1572-879X","Springer","Chemistry","Chemistry and Materials Science","Hybrid","CC BY","https://link.springer.com/journal/10562","https://link.springer.com/journal/"]
[null,10563,"Catalysis Surveys from Asia","1574-9266","Springer","Chemistry","Chemistry and Materials Science","Hybrid","CC BY","https://link.springer.com/journal/10563","https://link.springer.com/journal/"]
[null,10569,"Celestial Mechanics and Dynamical Astronomy","1572-9478","Springer","Physics","Physics and Astronomy","Hybrid","CC BY","https://link.springer.com/journal/10569","https://link.springer.com/journal/"]
[null,12013,"Cell Biochemistry and Biophysics","1559-0283","Springer","Life Sciences","Biomedical and Life Sciences","Hybrid","CC BY","https://link.springer.com/journal/12013","https://link.springer.com/journal/"]
[null,441,"Cell and Tissue Research","1432-0878","Springer","Biomedicine","Biomedical and Life Sciences","Hybrid","CC BY","https://link.springer.com/journal/441","https://link.springer.com/journal/"]
[null,12195,"Cellular and Molecular Bioengineering","1865-5033","Springer","Engineering","Engineering","Hybrid","CC BY","https://link.springer.com/journal/12195","https://link.springer.com/journal/"]
[null,10570,"Cellulose","1572-882X","Springer","Chemistry","Chemistry and Materials Science","Hybrid","CC BY","https://link.springer.com/journal/10570","https://link.springer.com/journal/"]
[null,10100,"Central European Journal of Operations Research","1613-9178","Springer","Business and Management","Business and Management","Hybrid","CC BY","https://link.springer.com/journal/10100","https://link.springer.com/journal/"]
[null,42976,"Cereal Research Communications","1788-9170","Akadémiai Kiadó, co-published with Springer","Life Sciences","Biomedical and Life Sciences","Hybrid","CC BY","https://link.springer.com/journal/42976","https://link.springer.com/journal/"]
[null,12311,"The Cerebellum","1473-4230","Springer","Biomedicine","Biomedical and Life Sciences","Hybrid","CC BY","https://link.springer.com/journal/12311","https://link.springer.com/journal/"]
[null,40828,"ChemTexts","2199-3793","Springer","Chemistry","Chemistry and Materials Science","Hybrid","CC BY","https://link.springer.com/journal/40828","https://link.springer.com/journal/"]
[null,11696,"Chemical Papers","2585-7290","Springer","Chemistry","Chemistry and Materials Science","Hybrid","CC BY","https://link.springer.com/journal/11696","https://link.springer.com/journal/"]
[null,40242,"Chemical Research in Chinese Universities","2210-3171","Springer","Chemistry","Chemistry and Materials Science","Hybrid","CC BY","https://link.springer.com/journal/40242","https://link.springer.com/journal/"]
[null,42250,"Chemistry Africa","2522-5766","Springer","Chemistry","Chemistry and Materials Science","Hybrid","CC BY","https://link.springer.com/journal/42250","https://link.springer.com/journal/"]
[null,10560,"Child and Adolescent Social Work Journal","1573-2797","Springer","Psychology","Behavioral Science and Psychology","Hybrid","CC BY","https://link.springer.com/journal/10560","https://link.springer.com/journal/"]
[null,12187,"Child Indicators Research","1874-8988","Springer","Social Sciences","Social Sciences","Hybrid","CC BY","https://link.springer.com/journal/12187","https://link.springer.com/journal/"]
[null,10578,"Child Psychiatry & Human Development","1573-3327","Springer","Psychology","Behavioral Science and Psychology","Hybrid","CC BY","https://link.springer.com/journal/10578","https://link.springer.com/journal/"]
[null,10566,"Child & Youth Care Forum","1573-3319","Springer","Psychology","Behavioral Science and Psychology","Hybrid","CC BY","https://link.springer.com/journal/10566","https://link.springer.com/journal/"]
[null,10583,"Children's Literature in Education","1573-1693","Springer","Linguistics","Social Sciences","Hybrid","CC BY","https://link.springer.com/journal/10583","https://link.springer.com/journal/"]
[null,41230,"China Foundry","2365-9459","Springer","Engineering","Engineering","Hybrid","CC BY","https://link.springer.com/journal/41230","https://link.springer.com/journal/"]
[null,42533,"China International Strategy Review","2524-5635","Springer","Political Science and International Relations","Political Science and International Studies","Hybrid","CC BY","https://link.springer.com/journal/42533","https://link.springer.com/journal/"]
[null,13344,"China Ocean Engineering","2191-8945","Chinese Ocean Engineering Society, co-published with Springer","Engineering","Engineering","Hybrid","CC BY","https://link.springer.com/journal/13344","https://link.springer.com/journal/"]
[null,42379,"China Population and Development Studies","2523-8965","Springer","Social Sciences","Social Sciences","Hybrid","CC BY","https://link.springer.com/journal/42379","https://link.springer.com/journal/"]
[null,12689,"China-EU Law Journal","1868-5161","Springer","Law","Law and Criminology","Hybrid","CC BY","https://link.springer.com/journal/12689","https://link.springer.com/journal/"]
[null,11401,"Chinese Annals of Mathematics, Series B","1860-6261","Springer","Mathematics","Mathematics and Statistics","Hybrid","CC BY","https://link.springer.com/journal/11401","https://link.springer.com/journal/"]
[null,11769,"Chinese Geographical Science","1993-064X","Science Press, co-published with Springer","Geography","Earth and Environmental Science","Hybrid","CC BY","https://link.springer.com/journal/11769","https://link.springer.com/journal/"]
[null,42058,"Chinese Journal of Academic Radiology","2520-8993","Springer","Medicine & Public Health","Medicine","Hybrid","CC BY","https://link.springer.com/journal/42058","https://link.springer.com/journal/"]
[null,11655,"Chinese Journal of Integrative Medicine","1993-0402","Springer","Medicine & Public Health","Medicine","Hybrid","CC BY","https://link.springer.com/journal/11655","https://link.springer.com/journal/"]
[null,10118,"Chinese Journal of Polymer Science","1439-6203","Springer","Chemistry","Chemistry and Materials Science","Hybrid","CC BY","https://link.springer.com/journal/10118","https://link.springer.com/journal/"]
[null,41111,"Chinese Political Science Review","2365-4252","Springer","Political Science and International Relations","Political Science and International Studies","Hybrid","CC BY","https://link.springer.com/journal/41111","https://link.springer.com/journal/"]
[null,10337,"Chromatographia","1612-1112","Springer","Chemistry","Chemistry and Materials Science","Hybrid","CC BY","https://link.springer.com/journal/10337","https://link.springer.com/journal/"]
[null,10577,"Chromosome Research","1573-6849","Springer","Life Sciences","Biomedical and Life Sciences","Hybrid","CC BY","https://link.springer.com/journal/10577","https://link.springer.com/journal/"]
[null,34,"Circuits, Systems, and Signal Processing","1531-5878","Springer","Engineering","Engineering","Hybrid","CC BY","https://link.springer.com/journal/34","https://link.springer.com/journal/"]
[null,43615,"Circular Economy and Sustainability","2730-5988","Springer","Environment","Earth and Environmental Science","Hybrid","CC BY","https://link.springer.com/journal/43615","https://link.springer.com/journal/"]
[null,10098,"Clean Technologies and Environmental Policy","1618-9558","Springer","Environment","Earth and Environmental Science","Hybrid","CC BY","https://link.springer.com/journal/10098","https://link.springer.com/journal/"]
[null,382,"Climate Dynamics","1432-0894","Springer","Earth Sciences","Earth and Environmental Science","Hybrid","CC BY","https://link.springer.com/journal/382","https://link.springer.com/journal/"]
[null,10584,"Climatic Change","1573-1480","Springer","Earth Sciences","Earth and Environmental Science","Hybrid","CC BY","https://link.springer.com/journal/10584","https://link.springer.com/journal/"]
[null,10286,"Clinical Autonomic Research","1619-1560","Springer","Medicine & Public Health","Medicine","Hybrid","CC BY","https://link.springer.com/journal/10286","https://link.springer.com/journal/"]
[null,10567,"Clinical Child and Family Psychology Review","1573-2827","Springer","Psychology","Behavioral Science and Psychology","Hybrid","CC BY","https://link.springer.com/journal/10567","https://link.springer.com/journal/"]
[null,10157,"Clinical and Experimental Nephrology","1437-7799","Springer","Medicine & Public Health","Medicine","Hybrid","CC BY","https://link.springer.com/journal/10157","https://link.springer.com/journal/"]
[null,12328,"Clinical Journal of Gastroenterology","1865-7265","Springer","Medicine & Public Health","Medicine","Hybrid","CC BY","https://link.springer.com/journal/12328","https://link.springer.com/journal/"]
[null,62,"Clinical Neuroradiology","1869-1447","Springer","Medicine & Public Health","Medicine","Hybrid","CC BY","https://link.springer.com/journal/62","https://link.springer.com/journal/"]
[null,784,"Clinical Oral Investigations","1436-3771","Springer","Dentistry","Medicine","Hybrid","CC BY","https://link.springer.com/journal/784","https://link.springer.com/journal/"]
[null,12016,"Clinical Reviews in Allergy & Immunology","1559-0267","Springer","Medicine & Public Health","Medicine","Hybrid","CC BY","https://link.springer.com/journal/12016","https://link.springer.com/journal/"]
[null,10067,"Clinical Rheumatology","1434-9949","Springer","Medicine & Public Health","Medicine","Hybrid","CC BY","https://link.springer.com/journal/10067","https://link.springer.com/journal/"]
[null,10615,"Clinical Social Work Journal","1573-3343","Springer","Psychology","Behavioral Science and Psychology","Hybrid","CC BY","https://link.springer.com/journal/10615","https://link.springer.com/journal/"]
[null,40336,"Clinical and Translational Imaging","2281-7565","Springer","Medicine & Public Health","Medicine","Hybrid","CC BY","https://link.springer.com/journal/40336","https://link.springer.com/journal/"]
[null,12018,"Clinical & Translational Metabolism","2948-2445","Springer","Medicine & Public Health","Medicine","Hybrid","CC BY","https://link.springer.com/journal/12018","https://link.springer.com/journal/"]
[null,12094,"Clinical and Translational Oncology","1699-3055","Springer","Medicine & Public Health","Medicine","Hybrid","CC BY","https://link.springer.com/journal/12094","https://link.springer.com/journal/"]
[null,11698,"Cliometrica","1863-2513","Springer","Economics","Economics and Finance","Hybrid","CC BY","https://link.springer.com/journal/11698","https://link.springer.com/journal/"]
[null,10586,"Cluster Computing","1573-7543","Springer","Computer Science","Computer Science","Hybrid","CC BY","https://link.springer.com/journal/10586","https://link.springer.com/journal/"]
[null,10111,"Cognition, Technology & Work","1435-5566","Springer","Computer Science","Computer Science","Hybrid","CC BY","https://link.springer.com/journal/10111","https://link.springer.com/journal/"]
[null,13415,"Cognitive, Affective, & Behavioral Neuroscience","1531-135X","Springer","Psychology","Behavioral Science and Psychology","Hybrid","CC BY","https://link.springer.com/journal/13415","https://link.springer.com/journal/"]
[null,11571,"Cognitive Neurodynamics","1871-4099","Springer","Biomedicine","Biomedical and Life Sciences","Hybrid","CC BY","https://link.springer.com/journal/11571","https://link.springer.com/journal/"]
[null,10339,"Cognitive Processing","1612-4790","Springer","Biomedicine","Biomedical and Life Sciences","Hybrid","CC BY","https://link.springer.com/journal/10339","https://link.springer.com/journal/"]
[null,10608,"Cognitive Therapy and Research","1573-2819","Springer","Medicine & Public Health","Medicine","Hybrid","CC BY","https://link.springer.com/journal/10608","https://link.springer.com/journal/"]
[null,13348,"Collectanea Mathematica","2038-4815","Springer","Mathematics","Mathematics and Statistics","Hybrid","CC BY","https://link.springer.com/journal/13348","https://link.springer.com/journal/"]
[null,396,"Colloid and Polymer Science","1435-1536","Springer","Chemistry","Chemistry and Materials Science","Hybrid","CC BY","https://link.springer.com/journal/396","https://link.springer.com/journal/"]
[null,493,"Combinatorica","1439-6912","Springer","Mathematics","Mathematics and Statistics","Hybrid","CC BY","https://link.springer.com/journal/493","https://link.springer.com/journal/"]
[null,42967,"Communications on Applied Mathematics and Computation","2661-8893","Springer","Mathematics","Mathematics and Statistics","Hybrid","CC BY","https://link.springer.com/journal/42967","https://link.springer.com/journal/"]
[null,220,"Communications in Mathematical Physics","1432-0916","Springer","Physics","Physics and Astronomy","Hybrid","CC BY","https://link.springer.com/journal/220","https://link.springer.com/journal/"]
[null,40304,"Communications in Mathematics and Statistics","2194-671X","Springer","Mathematics","Mathematics and Statistics","Hybrid","CC BY","https://link.springer.com/journal/40304","https://link.springer.com/journal/"]
[null,42974,"Community Ecology","1588-2756","Akadémiai Kiadó, co-published with Springer","Life Sciences","Biomedical and Life Sciences","Hybrid","CC BY",{"$f":"K745&B745","v":"https://link.springer.com/journal/42974"},"https://link.springer.com/journal/"]
[null,10597,"Community Mental Health Journal","1573-2789","Springer","Medicine & Public Health","Medicine","Hybrid","CC BY","https://link.springer.com/journal/10597","https://link.springer.com/journal/"]
[null,580,"Comparative Clinical Pathology","1618-565X","Springer","Medicine & Public Health","Medicine","Hybrid","CC BY","https://link.springer.com/journal/580","https://link.springer.com/journal/"]
[null,11785,"Complex Analysis and Operator Theory","1661-8262","Springer","Mathematics","Mathematics and Statistics","Hybrid","CC BY","https://link.springer.com/journal/11785","https://link.springer.com/journal/"]
[null,40627,"Complex Analysis and its Synergies","2197-120X","Springer","Mathematics","Mathematics and Statistics","Hybrid","CC BY","https://link.springer.com/journal/40627","https://link.springer.com/journal/"]
[null,40314,"Computational and Applied Mathematics","1807-0302","Springer","Mathematics","Mathematics and Statistics","Hybrid","CC BY","https://link.springer.com/journal/40314","https://link.springer.com/journal/"]
[null,42113,"Computational Brain & Behavior","2522-087X","Springer","Psychology","Behavioral Science and Psychology","Hybrid","CC BY","https://link.springer.com/journal/42113","https://link.springer.com/journal/"]
[null,10614,"Computational Economics","1572-9974","Springer","Economics","Economics and Finance","Hybrid","CC BY","https://link.springer.com/journal/10614","https://link.springer.com/journal/"]
[null,10596,"Computational Geosciences","1573-1499","Springer","Earth Sciences","Earth and Environmental Science","Hybrid","CC BY","https://link.springer.com/journal/10596","https://link.springer.com/journal/"]
[null,10287,"Computational Management Science","1619-6988","Springer","Business and Management","Business and Management","Hybrid","CC BY","https://link.springer.com/journal/10287","https://link.springer.com/journal/"]
[null,10588,"Computational and Mathematical Organization Theory","1572-9346","Springer","Business and Management","Business and Management","Hybrid","CC BY","https://link.springer.com/journal/10588","https://link.springer.com/journal/"]
[null,10598,"Computational Mathematics and Modeling","1573-837X","Springer","Mathematics","Mathematics and Statistics","Hybrid","CC BY","https://link.springer.com/journal/10598","https://link.springer.com/journal/"]
[null,466,"Computational Mechanics","1432-0924","Springer","Engineering","Engineering","Hybrid","CC BY","https://link.springer.com/journal/466","https://link.springer.com/journal/"]
[null,40315,"Computational Methods and Function Theory","2195-3724","Springer","Mathematics","Mathematics and Statistics","Hybrid","CC BY","https://link.springer.com/journal/40315","https://link.springer.com/journal/"]
[null,10589,"Computational Optimization and Applications","1573-2894","Springer","Mathematics","Mathematics and Statistics","Hybrid","CC BY","https://link.springer.com/journal/10589","https://link.springer.com/journal/"]
[null,10606,"Computer Supported Cooperative Work (CSCW)","1573-7551","Springer","Computer Science","Computer Science","Hybrid","CC BY","https://link.springer.com/journal/10606","https://link.springer.com/journal/"]
[null,607,"Computing","1436-5057","Springer","Computer Science","Computer Science","Hybrid","CC BY","https://link.springer.com/journal/607","https://link.springer.com/journal/"]
[null,10592,"Conservation Genetics","1572-9737","Springer","Life Sciences","Biomedical and Life Sciences","Hybrid","CC BY","https://link.springer.com/journal/10592","https://link.springer.com/journal/"]
[null,12686,"Conservation Genetics Resources","1877-7260","Springer","Life Sciences","Biomedical and Life Sciences","Hybrid","CC BY","https://link.springer.com/journal/12686","https://link.springer.com/journal/"]
[null,10602,"Constitutional Political Economy","1572-9966","Springer","Political Science and International Relations","Political Science and International Studies","Hybrid","CC BY","https://link.springer.com/journal/10602","https://link.springer.com/journal/"]
[null,10601,"Constraints","1572-9354","Springer","Computer Science","Computer Science","Hybrid","CC BY","https://link.springer.com/journal/10601","https://link.springer.com/journal/"]
[null,41693,"Construction Robotics","2509-8780","Springer","Engineering","Engineering","Hybrid","CC BY","https://link.springer.com/journal/41693","https://link.springer.com/journal/"]
[null,365,"Constructive Approximation","1432-0940","Springer","Mathematics","Mathematics and Statistics","Hybrid","CC BY","https://link.springer.com/journal/365","https://link.springer.com/journal/"]
[null,10591,"Contemporary Family Therapy","1573-3335","Springer","Psychology","Behavioral Science and Psychology","Hybrid","CC BY","https://link.springer.com/journal/10591","https://link.springer.com/journal/"]
[null,11562,"Contemporary Islam","1872-0226","Springer","Social Sciences","Social Sciences","Hybrid","CC BY","https://link.springer.com/journal/11562","https://link.springer.com/journal/"]
[null,12397,"Contemporary Jewry","1876-5165","Springer","Social Sciences","Social Sciences","Hybrid","CC BY","https://link.springer.com/journal/12397","https://link.springer.com/journal/"]
[null,40688,"Contemporary School Psychology","2161-1505","Springer","Psychology","Behavioral Science and Psychology","Hybrid","CC BY","https://link.springer.com/journal/40688","https://link.springer.com/journal/"]
[null,11007,"Continental Philosophy Review","1573-1103","Springer","Philosophy","Education","Hybrid","CC BY","https://link.springer.com/journal/11007","https://link.springer.com/journal/"]
[null,161,"Continuum Mechanics and Thermodynamics","1432-0959","Springer","Physics","Physics and Astronomy","Hybrid","CC BY","https://link.springer.com/journal/161","https://link.springer.com/journal/"]
[null,410,"Contributions to Mineralogy and Petrology","1432-0967","Springer","Earth Sciences","Earth and Environmental Science","Hybrid","CC BY","https://link.springer.com/journal/410","https://link.springer.com/journal/"]
[null,11768,"Control Theory and Technology","2198-0942","Springer","Engineering","Engineering","Hybrid","CC BY","https://link.springer.com/journal/11768","https://link.springer.com/journal/"]
[null,338,"Coral Reefs","1432-0975","Springer","Life Sciences","Biomedical and Life Sciences","Hybrid","CC BY","https://link.springer.com/journal/338","https://link.springer.com/journal/"]
[null,41701,"Corpus Pragmatics","2509-9515","Springer","Linguistics","Social Sciences","Hybrid","CC BY","https://link.springer.com/journal/41701","https://link.springer.com/journal/"]
[null,10611,"Crime, Law and Social Change","1573-0751","Springer","Criminology and Criminal Justice","Law and Criminology","Hybrid","CC BY","https://link.springer.com/journal/10611","https://link.springer.com/journal/"]
[null,11572,"Criminal Law and Philosophy","1871-9805","Springer","Law","Law and Criminology","Hybrid","CC BY","https://link.springer.com/journal/11572","https://link.springer.com/journal/"]
[null,10609,"Criminal Law Forum","1572-9850","Springer","Law","Law and Criminology","Hybrid","CC BY","https://link.springer.com/journal/10609","https://link.springer.com/journal/"]
[null,10612,"Critical Criminology","1572-9877","Springer","Criminology and Criminal Justice","Law and Criminology","Hybrid","CC BY","https://link.springer.com/journal/10612","https://link.springer.com/journal/"]
[null,12095,"Cryptography and Communications","1936-2455","Springer","Computer Science","Computer Science","Hybrid","CC BY","https://link.springer.com/journal/12095","https://link.springer.com/journal/"]
[null,11422,"Cultural Studies of Science Education","1871-1510","Springer","Education","Education","Hybrid","CC BY","https://link.springer.com/journal/11422","https://link.springer.com/journal/"]
[null,11013,"Culture, Medicine, and Psychiatry","1573-076X","Springer","Social Sciences","Social Sciences","Hybrid","CC BY","https://link.springer.com/journal/11013","https://link.springer.com/journal/"]
[null,40429,"Current Addiction Reports","2196-2952","Springer","Medicine & Public Health","Medicine","Hybrid","CC BY","https://link.springer.com/journal/40429","https://link.springer.com/journal/"]
[null,11882,"Current Allergy and Asthma Reports","1534-6315","Springer","Medicine & Public Health","Medicine","Hybrid","CC BY","https://link.springer.com/journal/11882","https://link.springer.com/journal/"]
[null,40140,"Current Anesthesiology Reports","2167-6275","Springer","Medicine & Public Health","Medicine","Hybrid","CC BY","https://link.springer.com/journal/40140","https://link.springer.com/journal/"]
[null,11883,"Current Atherosclerosis Reports","1534-6242","Springer","Medicine & Public Health","Medicine","Hybrid","CC BY","https://link.springer.com/journal/11883","https://link.springer.com/journal/"]
[null,40473,"Current Behavioral Neuroscience Reports","2196-2979","Springer","Medicine & Public Health","Medicine","Hybrid","CC BY","https://link.springer.com/journal/40473","https://link.springer.com/journal/"]
[null,11884,"Current Bladder Dysfunction Reports","1931-7220","Springer","Medicine & Public Health","Medicine","Hybrid","CC BY","https://link.springer.com/journal/11884","https://link.springer.com/journal/"]
[null,12609,"Current Breast Cancer Reports","1943-4596","Springer","Medicine & Public Health","Medicine","Hybrid","CC BY","https://link.springer.com/journal/12609","https://link.springer.com/journal/"]
[null,11886,"Current Cardiology Reports","1534-3170","Springer","Medicine & Public Health","Medicine","Hybrid","CC BY","https://link.springer.com/journal/11886","https://link.springer.com/journal/"]
[null,12410,"Current Cardiovascular Imaging Reports","1941-9074","Springer","Medicine & Public Health","Medicine","Hybrid","CC BY","https://link.springer.com/journal/12410","https://link.springer.com/journal/"]
[null,12170,"Current Cardiovascular Risk Reports","1932-9563","Springer","Medicine & Public Health","Medicine","Hybrid","CC BY","https://link.springer.com/journal/12170","https://link.springer.com/journal/"]
[null,40641,"Current Climate Change Reports","2198-6061","Springer","Environment","Earth and Environmental Science","Hybrid","CC BY","https://link.springer.com/journal/40641","https://link.springer.com/journal/"]
[null,40588,"Current Clinical Microbiology Reports","2196-5471","Springer","Biomedicine","Biomedical and Life Sciences","Hybrid","CC BY","https://link.springer.com/journal/40588","https://link.springer.com/journal/"]
[null,13671,"Current Dermatology Reports","2162-4933","Springer","Medicine & Public Health","Medicine","Hybrid","CC BY","https://link.springer.com/journal/13671","https://link.springer.com/journal/"]
[null,40474,"Current Developmental Disorders Reports","2196-2987","Springer","Medicine & Public Health","Medicine","Hybrid","CC BY","https://link.springer.com/journal/40474","https://link.springer.com/journal/"]
[null,11892,"Current Diabetes Reports","1539-0829","Springer","Medicine & Public Health","Medicine","Hybrid","CC BY","https://link.springer.com/journal/11892","https://link.springer.com/journal/"]
[null,40138,"Current Emergency and Hospital Medicine Reports","2167-4884","Springer","Medicine & Public Health","Medicine","Hybrid","CC BY","https://link.springer.com/journal/40138","https://link.springer.com/journal/"]
[null,40572,"Current Environmental Health Reports","2196-5412","Springer","Biomedicine","Biomedical and Life Sciences","Hybrid","CC BY","https://link.springer.com/journal/40572","https://link.springer.com/journal/"]
[null,40471,"Current Epidemiology Reports","2196-2995","Springer","Medicine & Public Health","Medicine","Hybrid","CC BY","https://link.springer.com/journal/40471","https://link.springer.com/journal/"]
[null,43555,"Current Food Science and Technology Reports","2662-8473","Springer","Biomedicine","Biomedical and Life Sciences","Hybrid","CC BY","https://link.springer.com/journal/43555","https://link.springer.com/journal/"]
[null,40725,"Current Forestry Reports","2198-6436","Springer","Environment","Earth and Environmental Science","Hybrid","CC BY","https://link.springer.com/journal/40725","https://link.springer.com/journal/"]
[null,12281,"Current Fungal Infection Reports","1936-377X","Springer","Medicine & Public Health","Medicine","Hybrid","CC BY","https://link.springer.com/journal/12281","https://link.springer.com/journal/"]
[null,11894,"Current Gastroenterology Reports","1534-312X","Springer","Medicine & Public Health","Medicine","Hybrid","CC BY","https://link.springer.com/journal/11894","https://link.springer.com/journal/"]
[null,40142,"Current Genetic Medicine Reports","2167-4876","Springer","Medicine & Public Health","Medicine","Hybrid","CC BY","https://link.springer.com/journal/40142","https://link.springer.com/journal/"]
[null,13670,"Current Geriatrics Reports","2196-7865","Springer","Medicine & Public Health","Medicine","Hybrid","CC BY","https://link.springer.com/journal/13670","https://link.springer.com/journal/"]
[null,11904,"Current HIV/AIDS Reports","1548-3576","Springer","Medicine & Public Health","Medicine","Hybrid","CC BY",{"$f":"K809&B809","v":"https://link.springer.com/journal/11904"},"https://link.springer.com/journal/"]
[null,11897,"Current Heart Failure Reports","1546-9549","Springer","Medicine & Public Health","Medicine","Hybrid","CC BY","https://link.springer.com/journal/11897","https://link.springer.com/journal/"]
[null,11899,"Current Hematologic Malignancy Reports","1558-822X","Springer","Medicine & Public Health","Medicine","Hybrid","CC BY","https://link.springer.com/journal/11899","https://link.springer.com/journal/"]
[null,11901,"Current Hepatology Reports","2195-9595","Springer","Medicine & Public Health","Medicine","Hybrid","CC BY","https://link.springer.com/journal/11901","https://link.springer.com/journal/"]
[null,11906,"Current Hypertension Reports","1534-3111","Springer","Medicine & Public Health","Medicine","Hybrid","CC BY","https://link.springer.com/journal/11906","https://link.springer.com/journal/"]
[null,11908,"Current Infectious Disease Reports","1534-3146","Springer","Medicine & Public Health","Medicine","Hybrid","CC BY","https://link.springer.com/journal/11908","https://link.springer.com/journal/"]
[null,40823,"Current Landscape Ecology Reports","2364-494X","Springer","Life Sciences","Biomedical and Life Sciences","Hybrid","CC BY","https://link.springer.com/journal/40823","https://link.springer.com/journal/"]
[null,11596,"Current Medical Science","2523-899X","Huazhong University of Science and Technology, co-published with Springer","Medicine & Public Health","Medicine","Hybrid","CC BY","https://link.springer.com/journal/11596","https://link.springer.com/journal/"]
[null,284,"Current Microbiology","1432-0991","Springer","Life Sciences","Biomedical and Life Sciences","Hybrid","CC BY","https://link.springer.com/journal/284","https://link.springer.com/journal/"]
[null,11910,"Current Neurology and Neuroscience Reports","1534-6293","Springer","Medicine & Public Health","Medicine","Hybrid","CC BY","https://link.springer.com/journal/11910","https://link.springer.com/journal/"]
[null,13668,"Current Nutrition Reports","2161-3311","Springer","Medicine & Public Health","Medicine","Hybrid","CC BY","https://link.springer.com/journal/13668","https://link.springer.com/journal/"]
[null,13679,"Current Obesity Reports","2162-4968","Springer","Medicine & Public Health","Medicine","Hybrid","CC BY","https://link.springer.com/journal/13679","https://link.springer.com/journal/"]
[null,13669,"Current Obstetrics and Gynecology Reports","2161-3303","Springer","Medicine & Public Health","Medicine","Hybrid","CC BY","https://link.springer.com/journal/13669","https://link.springer.com/journal/"]
[null,11912,"Current Oncology Reports","1534-6269","Springer","Medicine & Public Health","Medicine","Hybrid","CC BY","https://link.springer.com/journal/11912","https://link.springer.com/journal/"]
[null,40135,"Current Ophthalmology Reports","2167-4868","Springer","Medicine & Public Health","Medicine","Hybrid","CC BY","https://link.springer.com/journal/40135","https://link.springer.com/journal/"]
[null,40496,"Current Oral Health Reports","2196-3002","Springer","Medicine & Public Health","Medicine","Hybrid","CC BY","https://link.springer.com/journal/40496","https://link.springer.com/journal/"]
[null,11914,"Current Osteoporosis Reports","1544-2241","Springer","Medicine & Public Health","Medicine","Hybrid","CC BY","https://link.springer.com/journal/11914","https://link.springer.com/journal/"]
[null,40136,"Current Otorhinolaryngology Reports","2167-583X","Springer","Medicine & Public Health","Medicine","Hybrid","CC BY","https://link.springer.com/journal/40136","https://link.springer.com/journal/"]
[null,11916,"Current Pain and Headache Reports","1534-3081","Springer","Medicine & Public Health","Medicine","Hybrid","CC BY","https://link.springer.com/journal/11916","https://link.springer.com/journal/"]
[null,40124,"Current Pediatrics Reports","2167-4841","Springer","Medicine & Public Health","Medicine","Hybrid","CC BY","https://link.springer.com/journal/40124","https://link.springer.com/journal/"]
[null,40495,"Current Pharmacology Reports","2198-641X","Springer","Biomedicine","Biomedical and Life Sciences","Hybrid","CC BY","https://link.springer.com/journal/40495","https://link.springer.com/journal/"]
[null,40141,"Current Physical Medicine and Rehabilitation Reports","2167-4833","Springer","Medicine & Public Health","Medicine","Hybrid","CC BY","https://link.springer.com/journal/40141","https://link.springer.com/journal/"]
[null,40726,"Current Pollution Reports","2198-6592","Springer","Environment","Earth and Environmental Science","Hybrid","CC BY","https://link.springer.com/journal/40726","https://link.springer.com/journal/"]
[null,11920,"Current Psychiatry Reports","1535-1645","Springer","Medicine & Public Health","Medicine","Hybrid","CC BY","https://link.springer.com/journal/11920","https://link.springer.com/journal/"]
[null,12144,"Current Psychology","1936-4733","Springer","Psychology","Behavioral Science and Psychology","Hybrid","CC BY","https://link.springer.com/journal/12144","https://link.springer.com/journal/"]
[null,13665,"Current Pulmonology Reports","2199-2428","Springer","Medicine & Public Health","Medicine","Hybrid","CC BY","https://link.springer.com/journal/13665","https://link.springer.com/journal/"]
[null,40134,"Current Radiology Reports","2167-4825","Springer","Medicine & Public Health","Medicine","Hybrid","CC BY","https://link.springer.com/journal/40134","https://link.springer.com/journal/"]
[null,12178,"Current Reviews in Musculoskeletal Medicine","1935-9748","Springer","Medicine & Public Health","Medicine","Hybrid","CC BY","https://link.springer.com/journal/12178","https://link.springer.com/journal/"]
[null,11926,"Current Rheumatology Reports","1534-6307","Springer","Medicine & Public Health","Medicine","Hybrid","CC BY","https://link.springer.com/journal/11926","https://link.springer.com/journal/"]
[null,11930,"Current Sexual Health Reports","1548-3592","Springer","Medicine & Public Health","Medicine","Hybrid","CC BY","https://link.springer.com/journal/11930","https://link.springer.com/journal/"]
[null,40675,"Current Sleep Medicine Reports","2198-6401","Springer","Medicine & Public Health","Medicine","Hybrid","CC BY","https://link.springer.com/journal/40675","https://link.springer.com/journal/"]
[null,40778,"Current Stem Cell Reports","2198-7866","Springer","Life Sciences","Biomedical and Life Sciences","Hybrid","CC BY","https://link.springer.com/journal/40778","https://link.springer.com/journal/"]
[null,40137,"Current Surgery Reports","2167-4817","Springer","Medicine & Public Health","Medicine","Hybrid","CC BY","https://link.springer.com/journal/40137","https://link.springer.com/journal/"]
[null,40518,"Current Sustainable/Renewable Energy Reports","2196-3010","Springer","Energy","Energy","Hybrid","CC BY","https://link.springer.com/journal/40518","https://link.springer.com/journal/"]
[null,43152,"Current Tissue Microenvironment Reports","2662-4079","Springer","Life Sciences","Biomedical and Life Sciences","Hybrid","CC BY","https://link.springer.com/journal/43152","https://link.springer.com/journal/"]
[null,40472,"Current Transplantation Reports","2196-3029","Springer","Medicine & Public Health","Medicine","Hybrid","CC BY","https://link.springer.com/journal/40472","https://link.springer.com/journal/"]
[null,40719,"Current Trauma Reports","2198-6096","Springer","Medicine & Public Health","Medicine","Hybrid","CC BY","https://link.springer.com/journal/40719","https://link.springer.com/journal/"]
[null,40521,"Current Treatment Options in Allergy","2196-3053","Springer","Medicine & Public Health","Medicine","Hybrid","CC BY","https://link.springer.com/journal/40521","https://link.springer.com/journal/"]
[null,11936,"Current Treatment Options in Cardiovascular Medicine","1534-3189","Springer","Medicine & Public Health","Medicine","Hybrid","CC BY","https://link.springer.com/journal/11936","https://link.springer.com/journal/"]
[null,11938,"Current Treatment Options in Gastroenterology","1534-309X","Springer","Medicine & Public Health","Medicine","Hybrid","CC BY","https://link.springer.com/journal/11938","https://link.springer.com/journal/"]
[null,11940,"Current Treatment Options in Neurology","1534-3138","Springer","Medicine & Public Health","Medicine","Hybrid","CC BY","https://link.springer.com/journal/11940","https://link.springer.com/journal/"]
[null,11864,"Current Treatment Options in Oncology","1534-6277","Springer","Medicine & Public Health","Medicine","Hybrid","CC BY","https://link.springer.com/journal/11864","https://link.springer.com/journal/"]
[null,40746,"Current Treatment Options in Pediatrics","2198-6088","Springer","Medicine & Public Health","Medicine","Hybrid","CC BY","https://link.springer.com/journal/40746","https://link.springer.com/journal/"]
[null,40501,"Current Treatment Options in Psychiatry","2196-3061","Springer","Medicine & Public Health","Medicine","Hybrid","CC BY","https://link.springer.com/journal/40501","https://link.springer.com/journal/"]
[null,40475,"Current Tropical Medicine Reports","2196-3045","Springer","Medicine & Public Health","Medicine","Hybrid","CC BY","https://link.springer.com/journal/40475","https://link.springer.com/journal/"]
[null,11934,"Current Urology Reports","1534-6285","Springer","Medicine & Public Health","Medicine","Hybrid","CC BY","https://link.springer.com/journal/11934","https://link.springer.com/journal/"]
[null,40547,"Customer Needs and Solutions","2196-2928","Springer","Business and Management","Business and Management","Hybrid","CC BY","https://link.springer.com/journal/40547","https://link.springer.com/journal/"]
[null,10559,"Cybernetics and Systems Analysis","1573-8337","Springer","Mathematics","Mathematics and Statistics","Hybrid","CC BY","https://link.springer.com/journal/10559","https://link.springer.com/journal/"]
[null,10616,"Cytotechnology","1573-0778","Springer","Chemistry","Chemistry and Materials Science","Hybrid","CC BY","https://link.springer.com/journal/10616","https://link.springer.com/journal/"]
[null,10587,"Czechoslovak Mathematical Journal","1572-9141","Springer","Mathematics","Mathematics and Statistics","Hybrid","CC BY","https://link.springer.com/journal/10587","https://link.springer.com/journal/"]
[null,40199,"DARU Journal of Pharmaceutical Sciences","2008-2231","Springer","Biomedicine","Biomedical and Life Sciences","Hybrid","CC BY","https://link.springer.com/journal/40199","https://link.springer.com/journal/"]
[null,40622,"DECISION","2197-1722","Springer","Business and Management","Business and Management","Hybrid","CC BY","https://link.springer.com/journal/40622","https://link.springer.com/journal/"]
[null,11712,"Dao","1569-7274","Springer","Philosophy","Education","Hybrid","CC BY","https://link.springer.com/journal/11712","https://link.springer.com/journal/"]
[null,10618,"Data Mining and Knowledge Discovery","1573-756X","Springer","Computer Science","Computer Science","Hybrid","CC BY","https://link.springer.com/journal/10618","https://link.springer.com/journal/"]
[null,42421,"Data Science for Transportation","2948-1368","Springer","Engineering","Engineering","Hybrid","CC BY","https://link.springer.com/journal/42421","https://link.springer.com/journal/"]
[null,13222,"Datenbank-Spektrum","1610-1995","Springer","Computer Science","Computer Science","Hybrid","CC BY","https://link.springer.com/journal/13222","https://link.springer.com/journal/"]
[null,10645,"De Economist","1572-9982","Springer","Economics","Economics and Finance","Hybrid","CC BY","https://link.springer.com/journal/10645","https://link.springer.com/journal/"]
[null,10203,"Decisions in Economics and Finance","1129-6569","Springer","Economics","Economics and Finance","Hybrid","CC BY","https://link.springer.com/journal/10203","https://link.springer.com/journal/"]
[null,10617,"Design Automation for Embedded Systems","1572-8080","Springer","Engineering","Engineering","Hybrid","CC BY","https://link.springer.com/journal/10617","https://link.springer.com/journal/"]
[null,10623,"Designs, Codes and Cryptography","1573-7586","Springer","Computer Science","Computer Science","Hybrid","CC BY","https://link.springer.com/journal/10623","https://link.springer.com/journal/"]
[null,41245,"Deutsche Vierteljahrsschrift für Literaturwissenschaft und Geistesgeschichte","2365-9521","Springer","Literature","Literature, Cultural and Media Studies","Hybrid","CC BY","https://link.springer.com/journal/41245","https://link.springer.com/journal/"]
[null,125,"Diabetologia","1432-0428","Springer","Medicine & Public Health","Medicine","Hybrid","CC BY","https://link.springer.com/journal/125","https://link.springer.com/journal/"]
[null,10624,"Dialectical Anthropology","1573-0786","Springer","Social Sciences","Social Sciences","Hybrid","CC BY","https://link.springer.com/journal/10624","https://link.springer.com/journal/"]
[null,12591,"Differential Equations and Dynamical Systems","0974-6870","Springer","Mathematics","Mathematics and Statistics","Hybrid","CC BY","https://link.springer.com/journal/12591","https://link.springer.com/journal/"]
[null,10620,"Digestive Diseases and Sciences","1573-2568","Springer","Medicine & Public Health","Medicine","Hybrid","CC BY",{"$f":"K873&B873","v":"https://link.springer.com/journal/10620"},"https://link.springer.com/journal/"]
[null,40751,"Digital Experiences in Mathematics Education","2199-3254","Springer","Education","Education","Hybrid","CC BY","https://link.springer.com/journal/40751","https://link.springer.com/journal/"]
[null,42521,"Digital Finance","2524-6186","Springer","Finance","Economics and Finance","Hybrid","CC BY","https://link.springer.com/journal/42521","https://link.springer.com/journal/"]
[null,44206,"Digital Society","2731-4669","Springer","Computer Science","Computer Science","Hybrid","CC BY","https://link.springer.com/journal/44206","https://link.springer.com/journal/"]
[null,454,"Discrete & Computational Geometry","1432-0444","Springer","Mathematics","Mathematics and Statistics","Hybrid","CC BY","https://link.springer.com/journal/454","https://link.springer.com/journal/"]
[null,10626,"Discrete Event Dynamic Systems","1573-7594","Springer","Mathematics","Mathematics and Statistics","Hybrid","CC BY","https://link.springer.com/journal/10626","https://link.springer.com/journal/"]
[null,446,"Distributed Computing","1432-0452","Springer","Computer Science","Computer Science","Hybrid","CC BY","https://link.springer.com/journal/446","https://link.springer.com/journal/"]
[null,10619,"Distributed and Parallel Databases","1573-7578","Springer","Computer Science","Computer Science","Hybrid","CC BY","https://link.springer.com/journal/10619","https://link.springer.com/journal/"]
[null,10633,"Documenta Ophthalmologica","1573-2622","Springer","Medicine & Public Health","Medicine","Hybrid","CC BY","https://link.springer.com/journal/10633","https://link.springer.com/journal/"]
[null,13346,"Drug Delivery and Translational Research","2190-3948","Springer","Biomedicine","Biomedical and Life Sciences","Hybrid","CC BY","https://link.springer.com/journal/13346","https://link.springer.com/journal/"]
[null,13235,"Dynamic Games and Applications","2153-0793","Springer","Mathematics","Mathematics and Statistics","Hybrid","CC BY","https://link.springer.com/journal/13235","https://link.springer.com/journal/"]
[null,455,"Dysphagia","1432-0460","Springer","Medicine & Public Health","Medicine","Hybrid","CC BY","https://link.springer.com/journal/455","https://link.springer.com/journal/"]
[null,13167,"EPMA Journal","1878-5085","Springer","Biomedicine","Biomedical and Life Sciences","Hybrid","CC BY","https://link.springer.com/journal/13167","https://link.springer.com/journal/"]
[null,12027,"ERA Forum","1863-9038","Springer","Law","Law and Criminology","Hybrid","CC BY","https://link.springer.com/journal/12027","https://link.springer.com/journal/"]
[null,10643,"Early Childhood Education Journal","1573-1707","Springer","Education","Education","Hybrid","CC BY","https://link.springer.com/journal/10643","https://link.springer.com/journal/"]
[null,12145,"Earth Science Informatics","1865-0481","Springer","Earth Sciences","Earth and Environmental Science","Hybrid","CC BY","https://link.springer.com/journal/12145","https://link.springer.com/journal/"]
[null,41748,"Earth Systems and Environment","2509-9434","Springer","Earth Sciences","Earth and Environmental Science","Hybrid","CC BY","https://link.springer.com/journal/41748","https://link.springer.com/journal/"]
[null,11803,"Earthquake Engineering and Engineering Vibration","1993-503X","Institute of Engineering Mechanics, China Earthquake Administration, co-published with Springer","Earth Sciences","Earth and Environmental Science","Hybrid","CC BY","https://link.springer.com/journal/11803","https://link.springer.com/journal/"]
[null,12140,"East Asia","1874-6284","Springer","Political Science and International Relations","Political Science and International Studies","Hybrid","CC BY","https://link.springer.com/journal/12140","https://link.springer.com/journal/"]
[null,10393,"EcoHealth","1612-9210","Springer","Medicine & Public Health","Medicine","Hybrid","CC BY","https://link.springer.com/journal/10393","https://link.springer.com/journal/"]
[null,40888,"Economia Politica","1973-820X","Springer","Economics","Economics and Finance","Hybrid","CC BY","https://link.springer.com/journal/40888","https://link.springer.com/journal/"]
[null,10644,"Economic Change and Restructuring","1574-0277","Springer","Economics","Economics and Finance","Hybrid","CC BY","https://link.springer.com/journal/10644","https://link.springer.com/journal/"]
[null,199,"Economic Theory","1432-0479","Springer","Economics","Economics and Finance","Hybrid","CC BY","https://link.springer.com/journal/199","https://link.springer.com/journal/"]
[null,40505,"Economic Theory Bulletin","2196-1093","Springer","Economics","Economics and Finance","Hybrid","CC BY","https://link.springer.com/journal/40505","https://link.springer.com/journal/"]
[null,41885,"Economics of Disasters and Climate Change","2511-1299","Springer","Economics","Economics and Finance","Hybrid","CC BY","https://link.springer.com/journal/41885","https://link.springer.com/journal/"]
[null,10101,"Economics of Governance","1435-8131","Springer","Economics","Economics and Finance","Hybrid","CC BY","https://link.springer.com/journal/10101","https://link.springer.com/journal/"]
[null,10021,"Ecosystems","1435-0629","Springer","Life Sciences","Biomedical and Life Sciences","Hybrid","CC BY","https://link.springer.com/journal/10021","https://link.springer.com/journal/"]
[null,10646,"Ecotoxicology","1573-3017","Springer","Environment","Earth and Environmental Science","Hybrid","CC BY","https://link.springer.com/journal/10646","https://link.springer.com/journal/"]
[null,10639,"Education and Information Technologies","1573-7608","Springer","Computer Science","Computer Science","Hybrid","CC BY","https://link.springer.com/journal/10639","https://link.springer.com/journal/"]
[null,43494,"Education and Treatment of Children","1934-8924","Springer","Psychology","Behavioral Science and Psychology","Hybrid","CC BY","https://link.springer.com/journal/43494","https://link.springer.com/journal/"]
[null,11092,"Educational Assessment, Evaluation and Accountability","1874-8600","Springer","Education","Education","Hybrid","CC BY","https://link.springer.com/journal/11092","https://link.springer.com/journal/"]
[null,10648,"Educational Psychology Review","1573-336X","Springer","Education","Education","Hybrid","CC BY","https://link.springer.com/journal/10648","https://link.springer.com/journal/"]
[null,10671,"Educational Research for Policy and Practice","1573-1723","Springer","Education","Education","Hybrid","CC BY","https://link.springer.com/journal/10671","https://link.springer.com/journal/"]
[null,10649,"Educational Studies in Mathematics","1573-0816","Springer","Education","Education","Hybrid","CC BY","https://link.springer.com/journal/10649","https://link.springer.com/journal/"]
[null,11423,"Educational technology research and development","1556-6501","Springer","Education","Education","Hybrid","CC BY","https://link.springer.com/journal/11423","https://link.springer.com/journal/"]
[null,202,"Electrical Engineering","1432-0487","Springer","Engineering","Engineering","Hybrid","CC BY","https://link.springer.com/journal/202","https://link.springer.com/journal/"]
[null,12678,"Electrocatalysis","1868-5994","Springer","Chemistry","Chemistry and Materials Science","Hybrid","CC BY","https://link.springer.com/journal/12678","https://link.springer.com/journal/"]
[null,41918,"Electrochemical Energy Reviews","2520-8136","Springer","Chemistry","Chemistry and Materials Science","Hybrid","CC BY","https://link.springer.com/journal/41918","https://link.springer.com/journal/"]
[null,10660,"Electronic Commerce Research","1572-9362","Springer","Business and Management","Business and Management","Hybrid","CC BY","https://link.springer.com/journal/10660","https://link.springer.com/journal/"]
[null,12525,"Electronic Markets","1422-8890","Springer","Business and Management","Business and Management","Hybrid","CC BY","https://link.springer.com/journal/12525","https://link.springer.com/journal/"]
[null,13391,"Electronic Materials Letters","2093-6788","The Korean Institute of Metals and Materials, co-published with Springer","Materials Science","Chemistry and Materials Science","Hybrid","CC BY","https://link.springer.com/journal/13391","https://link.springer.com/journal/"]
[null,10140,"Emergency Radiology","1438-1435","Springer","Medicine & Public Health","Medicine","Hybrid","CC BY","https://link.springer.com/journal/10140","https://link.springer.com/journal/"]
[null,42247,"Emergent Materials","2522-574X","Springer","Materials Science","Chemistry and Materials Science","Hybrid","CC BY","https://link.springer.com/journal/42247","https://link.springer.com/journal/"]
[null,10663,"Empirica","1573-6911","Springer","Economics","Economics and Finance","Hybrid","CC BY","https://link.springer.com/journal/10663","https://link.springer.com/journal/"]
[null,181,"Empirical Economics","1435-8921","Springer","Economics","Economics and Finance","Hybrid","CC BY","https://link.springer.com/journal/181","https://link.springer.com/journal/"]
[null,10664,"Empirical Software Engineering","1573-7616","Springer","Computer Science","Computer Science","Hybrid","CC BY","https://link.springer.com/journal/10664","https://link.springer.com/journal/"]
[null,10672,"Employee Responsibilities and Rights Journal","1573-3378","Springer","Social Sciences","Social Sciences","Hybrid","CC BY","https://link.springer.com/journal/10672","https://link.springer.com/journal/"]
[null,12020,"Endocrine","1559-0100","Springer","Medicine & Public Health","Medicine","Hybrid","CC BY","https://link.springer.com/journal/12020","https://link.springer.com/journal/"]
[null,40974,"Energy, Ecology and Environment","2363-8338","Joint Center on Global Change and Earth System Science of the University of Maryland and Beijing Normal University, co-published with Springer","Environment","Earth and Environmental Science","Hybrid","CC BY","https://link.springer.com/journal/40974","https://link.springer.com/journal/"]
[null,12053,"Energy Efficiency","1570-6478","Springer","Energy","Energy","Hybrid","CC BY","https://link.springer.com/journal/12053","https://link.springer.com/journal/"]
[null,12667,"Energy Systems","1868-3975","Springer","Energy","Energy","Hybrid","CC BY","https://link.springer.com/journal/12667","https://link.springer.com/journal/"]
[null,366,"Engineering with Computers","1435-5663","Springer","Computer Science","Computer Science","Hybrid","CC BY","https://link.springer.com/journal/366","https://link.springer.com/journal/"]
[null,42321,"English Teaching & Learning","2522-8560","Springer","Education","Education","Hybrid","CC BY","https://link.springer.com/journal/42321","https://link.springer.com/journal/"]
[null,41959,"Entrepreneurship Education","2520-8152","Springer","Education","Education","Hybrid","CC BY","https://link.springer.com/journal/41959","https://link.springer.com/journal/"]
[null,10668,"Environment, Development and Sustainability","1573-2975","Springer","Environment","Earth and Environmental Science","Hybrid","CC BY","https://link.springer.com/journal/10668","https://link.springer.com/journal/"]
[null,10669,"Environment Systems and Decisions","2194-5411","Springer","Environment","Earth and Environmental Science","Hybrid","CC BY","https://link.springer.com/journal/10669","https://link.springer.com/journal/"]
[null,10641,"Environmental Biology of Fishes","1573-5133","Springer","Life Sciences","Biomedical and Life Sciences","Hybrid","CC BY","https://link.springer.com/journal/10641","https://link.springer.com/journal/"]
[null,10311,"Environmental Chemistry Letters","1610-3661","Springer","Environment","Earth and Environmental Science","Hybrid","CC BY","https://link.springer.com/journal/10311","https://link.springer.com/journal/"]
[null,12665,"Environmental Earth Sciences","1866-6299","Springer","Earth Sciences","Earth and Environmental Science","Fully Open Access","CC BY","https://link.springer.com/journal/12665","https://link.springer.com/journal/"]
[null,10651,"Environmental and Ecological Statistics","1573-3009","Springer","Life Sciences","Biomedical and Life Sciences","Hybrid","CC BY","https://link.springer.com/journal/10651","https://link.springer.com/journal/"]
[null,10018,"Environmental Economics and Policy Studies","1867-383X","Springer","Economics","Economics and Finance","Hybrid","CC BY","https://link.springer.com/journal/10018","https://link.springer.com/journal/"]
[null,10652,"Environmental Fluid Mechanics","1573-1510","Springer","Earth Sciences","Earth and Environmental Science","Hybrid","CC BY","https://link.springer.com/journal/10652","https://link.springer.com/journal/"]
[null,10653,"Environmental Geochemistry and Health","1573-2983","Springer","Environment","Earth and Environmental Science","Hybrid","CC BY","https://link.springer.com/journal/10653","https://link.springer.com/journal/"]
[null,267,"Environmental Management","1432-1009","Springer","Environment","Earth and Environmental Science","Hybrid","CC BY","https://link.springer.com/journal/267","https://link.springer.com/journal/"]
[null,10666,"Environmental Modeling & Assessment","1573-2967","Springer","Environment","Earth and Environmental Science","Hybrid","CC BY",{"$f":"K937&B937","v":"https://link.springer.com/journal/10666"},"https://link.springer.com/journal/"]
[null,10661,"Environmental Monitoring and Assessment","1573-2959","Springer","Environment","Earth and Environmental Science","Hybrid","CC BY","https://link.springer.com/journal/10661","https://link.springer.com/journal/"]
[null,40710,"Environmental Processes","2198-7505","Springer","Earth Sciences","Earth and Environmental Science","Hybrid","CC BY","https://link.springer.com/journal/40710","https://link.springer.com/journal/"]
[null,11483,"Food Biophysics","1557-1866","Springer","Chemistry","Chemistry and Materials Science","Hybrid","CC BY","https://link.springer.com/journal/11483","https://link.springer.com/journal/"]
[null,11947,"Food and Bioprocess Technology","1935-5149","Springer","Chemistry","Chemistry and Materials Science","Hybrid","CC BY","https://link.springer.com/journal/11947","https://link.springer.com/journal/"]
[null,12393,"Food Engineering Reviews","1866-7929","Springer","Chemistry","Chemistry and Materials Science","Hybrid","CC BY","https://link.springer.com/journal/12393","https://link.springer.com/journal/"]
[null,12560,"Food and Environmental Virology","1867-0342","Springer","Biomedicine","Biomedical and Life Sciences","Hybrid","CC BY","https://link.springer.com/journal/12560","https://link.springer.com/journal/"]
[null,41055,"Food Ethics","2364-6861","Springer","Philosophy","Education","Hybrid","CC BY","https://link.springer.com/journal/41055","https://link.springer.com/journal/"]
[null,10068,"Food Science and Biotechnology","2092-6456","The Korean Society of Food Science and Technology, co-published with Springer","Chemistry","Chemistry and Materials Science","Hybrid","CC BY","https://link.springer.com/journal/10068","https://link.springer.com/journal/"]
[null,12571,"Food Security","1876-4525","Springer","Life Sciences","Biomedical and Life Sciences","Hybrid","CC BY","https://link.springer.com/journal/12571","https://link.springer.com/journal/"]
[null,12024,"Forensic Science, Medicine and Pathology","1556-2891","Springer","Medicine & Public Health","Medicine","Hybrid","CC BY","https://link.springer.com/journal/12024","https://link.springer.com/journal/"]
[null,11419,"Forensic Toxicology","1860-8973","Springer","Medicine & Public Health","Medicine","Hybrid","CC BY","https://link.springer.com/journal/11419","https://link.springer.com/journal/"]
[null,11757,"Forensische Psychiatrie, Psychologie, Kriminologie","1862-7080","Springer","Medicine & Public Health","Medicine","Hybrid","CC BY","https://link.springer.com/journal/11757","https://link.springer.com/journal/"]
[null,10703,"Formal Methods in System Design","1572-8102","Springer","Engineering","Engineering","Hybrid","CC BY","https://link.springer.com/journal/10703","https://link.springer.com/journal/"]
[null,10698,"Foundations of Chemistry","1572-8463","Springer","Philosophy","Education","Hybrid","CC BY","https://link.springer.com/journal/10698","https://link.springer.com/journal/"]
[null,10208,"Foundations of Computational Mathematics","1615-3383","Springer","Mathematics","Mathematics and Statistics","Hybrid","CC BY","https://link.springer.com/journal/10208","https://link.springer.com/journal/"]
[null,10701,"Foundations of Physics","1572-9516","Springer","Physics","Physics and Astronomy","Hybrid","CC BY","https://link.springer.com/journal/10701","https://link.springer.com/journal/"]
[null,10699,"Foundations of Science","1572-8471","Springer","Philosophy","Education","Hybrid","CC BY","https://link.springer.com/journal/10699","https://link.springer.com/journal/"]
[null,13540,"Fractional Calculus and Applied Analysis","1314-2224","Springer","Mathematics","Mathematics and Statistics","Hybrid","CC BY","https://link.springer.com/journal/13540","https://link.springer.com/journal/"]
[null,11704,"Frontiers of Computer Science","2095-2236","Higher Education Press, co-published with Springer","Computer Science","Computer Science","Hybrid","CC BY","https://link.springer.com/journal/11704","https://link.springer.com/journal/"]
[null,11707,"Frontiers of Earth Science","2095-0209","Higher Education Press, co-published with Springer","Earth Sciences","Earth and Environmental Science","Hybrid","CC BY","https://link.springer.com/journal/11707","https://link.springer.com/journal/"]
[null,11706,"Frontiers of Materials Science","2095-0268","Higher Education Press, co-published with Springer","Materials Science","Chemistry and Materials Science","Hybrid","CC BY","https://link.springer.com/journal/11706","https://link.springer.com/journal/"]
[null,40647,"Fudan Journal of the Humanities and Social Sciences","2198-2600","Springer","Social Sciences","Social Sciences","Hybrid","CC BY","https://link.springer.com/journal/40647","https://link.springer.com/journal/"]
[null,10142,"Functional & Integrative Genomics","1438-7948","Springer","Life Sciences","Biomedical and Life Sciences","Hybrid","CC BY","https://link.springer.com/journal/10142","https://link.springer.com/journal/"]
[null,10700,"Fuzzy Optimization and Decision Making","1573-2908","Springer","Mathematics","Mathematics and Statistics","Hybrid","CC BY","https://link.springer.com/journal/10700","https://link.springer.com/journal/"]
[null,13137,"GEM - International Journal on Geomathematics","1869-2680","Springer","Mathematics","Mathematics and Statistics","Hybrid","CC BY","https://link.springer.com/journal/13137","https://link.springer.com/journal/"]
[null,10291,"GPS Solutions","1521-1886","Springer","Earth Sciences","Earth and Environmental Science","Hybrid","CC BY","https://link.springer.com/journal/10291","https://link.springer.com/journal/"]
[null,10120,"Gastric Cancer","1436-3305","Springer","Medicine & Public Health","Medicine","Hybrid","CC BY","https://link.springer.com/journal/10120","https://link.springer.com/journal/"]
[null,12147,"Gender Issues","1936-4717","Springer","Social Sciences","Social Sciences","Hybrid","CC BY","https://link.springer.com/journal/12147","https://link.springer.com/journal/"]
[null,10714,"General Relativity and Gravitation","1572-9532","Springer","Physics","Physics and Astronomy","Hybrid","CC BY","https://link.springer.com/journal/10714","https://link.springer.com/journal/"]
[null,10640,"Environmental and Resource Economics","1573-1502","Springer","Economics","Economics and Finance","Hybrid","CC BY","https://link.springer.com/journal/10640","https://link.springer.com/journal/"]
[null,11356,"Environmental Science and Pollution Research","1614-7499","Springer","Environment","Earth and Environmental Science","Hybrid","CC BY","https://link.springer.com/journal/11356","https://link.springer.com/journal/"]
[null,42398,"Environmental Sustainability","2523-8922","Springer","Environment","Earth and Environmental Science","Hybrid","CC BY","https://link.springer.com/journal/42398","https://link.springer.com/journal/"]
[null,10670,"Erkenntnis","1572-8420","Springer","Philosophy","Education","Hybrid","CC BY","https://link.springer.com/journal/10670","https://link.springer.com/journal/"]
[null,10388,"Esophagus","1612-9067","Springer","Medicine & Public Health","Medicine","Hybrid","CC BY","https://link.springer.com/journal/10388","https://link.springer.com/journal/"]
[null,12237,"Estuaries and Coasts","1559-2731","Springer","Environment","Earth and Environmental Science","Hybrid","CC BY","https://link.springer.com/journal/12237","https://link.springer.com/journal/"]
[null,10677,"Ethical Theory and Moral Practice","1572-8447","Springer","Philosophy","Education","Hybrid","CC BY","https://link.springer.com/journal/10677","https://link.springer.com/journal/"]
[null,10676,"Ethics and Information Technology","1572-8439","Springer","Computer Science","Computer Science","Hybrid","CC BY","https://link.springer.com/journal/10676","https://link.springer.com/journal/"]
[null,481,"Ethik in der Medizin","1437-1618","Springer","Medicine & Public Health","Medicine","Hybrid","CC BY","https://link.springer.com/journal/481","https://link.springer.com/journal/"]
[null,10681,"Euphytica","1573-5060","Springer","Life Sciences","Biomedical and Life Sciences","Hybrid","CC BY","https://link.springer.com/journal/10681","https://link.springer.com/journal/"]
[null,40821,"Eurasian Business Review","2147-4281","Springer","Business and Management","Business and Management","Hybrid","CC BY","https://link.springer.com/journal/40821","https://link.springer.com/journal/"]
[null,40822,"Eurasian Economic Review","2147-429X","Springer","Economics","Economics and Finance","Hybrid","CC BY","https://link.springer.com/journal/40822","https://link.springer.com/journal/"]
[null,41207,"Euro-Mediterranean Journal for Environmental Integration","2365-7448","Springer","Earth Sciences","Earth and Environmental Science","Hybrid","CC BY","https://link.springer.com/journal/41207","https://link.springer.com/journal/"]
[null,13385,"European Actuarial Journal","2190-9741","Springer","Mathematics","Mathematics and Statistics","Hybrid","CC BY","https://link.springer.com/journal/13385","https://link.springer.com/journal/"]
[null,405,"European Archives of Oto-Rhino-Laryngology","1434-4726","Springer","Medicine & Public Health","Medicine","Hybrid","CC BY","https://link.springer.com/journal/405","https://link.springer.com/journal/"]
[null,40368,"European Archives of Paediatric Dentistry","1996-9805","Springer","Dentistry","Medicine","Hybrid","CC BY","https://link.springer.com/journal/40368","https://link.springer.com/journal/"]
[null,406,"European Archives of Psychiatry and Clinical Neuroscience","1433-8491","Springer","Medicine & Public Health","Medicine","Hybrid","CC BY","https://link.springer.com/journal/406","https://link.springer.com/journal/"]
[null,249,"European Biophysics Journal","1432-1017","Springer","Life Sciences","Biomedical and Life Sciences","Hybrid","CC BY","https://link.springer.com/journal/249","https://link.springer.com/journal/"]
[null,40804,"European Business Organization Law Review","1741-6205","Springer","Law","Law and Criminology","Hybrid","CC BY","https://link.springer.com/journal/40804","https://link.springer.com/journal/"]
[null,787,"European Child & Adolescent Psychiatry","1435-165X","Springer","Medicine & Public Health","Medicine","Hybrid","CC BY","https://link.springer.com/journal/787","https://link.springer.com/journal/"]
[null,217,"European Food Research and Technology","1438-2385","Springer","Chemistry","Chemistry and Materials Science","Hybrid","CC BY","https://link.springer.com/journal/217","https://link.springer.com/journal/"]
[null,41999,"European Geriatric Medicine","1878-7657","Springer","Medicine & Public Health","Medicine","Hybrid","CC BY","https://link.springer.com/journal/41999","https://link.springer.com/journal/"]
[null,421,"European Journal of Applied Physiology","1439-6327","Springer","Biomedicine","Biomedical and Life Sciences","Hybrid","CC BY","https://link.springer.com/journal/421","https://link.springer.com/journal/"]
[null,10096,"European Journal of Clinical Microbiology & Infectious Diseases","1435-4373","Springer","Biomedicine","Biomedical and Life Sciences","Hybrid","CC BY","https://link.springer.com/journal/10096","https://link.springer.com/journal/"]
[null,228,"European Journal of Clinical Pharmacology","1432-1041","Springer","Biomedicine","Biomedical and Life Sciences","Hybrid","CC BY","https://link.springer.com/journal/228","https://link.springer.com/journal/"]
[null,10610,"European Journal on Criminal Policy and Research","1572-9869","Springer","Criminology and Criminal Justice","Law and Criminology","Hybrid","CC BY","https://link.springer.com/journal/10610","https://link.springer.com/journal/"]
[null,10654,"European Journal of Epidemiology","1573-7284","Springer","Medicine & Public Health","Medicine","Hybrid","CC BY","https://link.springer.com/journal/10654","https://link.springer.com/journal/"]
[null,10342,"European Journal of Forest Research","1612-4677","Springer","Life Sciences","Biomedical and Life Sciences","Hybrid","CC BY","https://link.springer.com/journal/10342","https://link.springer.com/journal/"]
[null,10198,"The European Journal of Health Economics","1618-7601","Springer","Medicine & Public Health","Medicine","Hybrid","CC BY","https://link.springer.com/journal/10198","https://link.springer.com/journal/"]
[null,10657,"European Journal of Law and Economics","1572-9990","Springer","Economics","Economics and Finance","Hybrid","CC BY","https://link.springer.com/journal/10657","https://link.springer.com/journal/"]
[null,40879,"European Journal of Mathematics","2199-6768","Springer","Mathematics","Mathematics and Statistics","Hybrid","CC BY","https://link.springer.com/journal/40879","https://link.springer.com/journal/"]
[null,259,"European Journal of Nuclear Medicine and Molecular Imaging","1619-7089","Springer","Medicine & Public Health","Medicine","Hybrid","CC BY","https://link.springer.com/journal/259","https://link.springer.com/journal/"]
[null,394,"European Journal of Nutrition","1436-6215","Springer","Chemistry","Chemistry and Materials Science","Hybrid","CC BY","https://link.springer.com/journal/394","https://link.springer.com/journal/"]
[null,590,"European Journal of Orthopaedic Surgery & Traumatology","1432-1068","Springer","Medicine & Public Health","Medicine","Hybrid","CC BY","https://link.springer.com/journal/590","https://link.springer.com/journal/"]
[null,431,"European Journal of Pediatrics","1432-1076","Springer","Medicine & Public Health","Medicine","Hybrid","CC BY",{"$f":"K1001&B1001","v":"https://link.springer.com/journal/431"},"https://link.springer.com/journal/"]
[null,13194,"European Journal for Philosophy of Science","1879-4920","Springer","Philosophy","Education","Hybrid","CC BY","https://link.springer.com/journal/13194","https://link.springer.com/journal/"]
[null,10658,"European Journal of Plant Pathology","1573-8469","Springer","Life Sciences","Biomedical and Life Sciences","Hybrid","CC BY","https://link.springer.com/journal/10658","https://link.springer.com/journal/"]
[null,238,"European Journal of Plastic Surgery","1435-0130","Springer","Medicine & Public Health","Medicine","Hybrid","CC BY","https://link.springer.com/journal/238","https://link.springer.com/journal/"]
[null,10212,"European Journal of Psychology of Education","1878-5174","Springer","Education","Education","Hybrid","CC BY","https://link.springer.com/journal/10212","https://link.springer.com/journal/"]
[null,41125,"European Journal for Security Research","2365-1695","Springer","Law","Law and Criminology","Hybrid","CC BY","https://link.springer.com/journal/41125","https://link.springer.com/journal/"]
[null,10344,"European Journal of Wildlife Research","1439-0574","Springer","Life Sciences","Biomedical and Life Sciences","Hybrid","CC BY","https://link.springer.com/journal/10344","https://link.springer.com/journal/"]
[null,107,"European Journal of Wood and Wood Products","1436-736X","Springer","Life Sciences","Biomedical and Life Sciences","Hybrid","CC BY","https://link.springer.com/journal/107","https://link.springer.com/journal/"]
[null,10050,"The European Physical Journal A","1434-601X","Springer","Physics","Physics and Astronomy","Hybrid","CC BY","https://link.springer.com/journal/10050","https://link.springer.com/journal/"]
[null,10051,"The European Physical Journal B","1434-6036","Springer","Physics","Physics and Astronomy","Hybrid","CC BY","https://link.springer.com/journal/10051","https://link.springer.com/journal/"]
[null,10053,"The European Physical Journal D","1434-6079","Springer","Physics","Physics and Astronomy","Hybrid","CC BY","https://link.springer.com/journal/10053","https://link.springer.com/journal/"]
[null,10189,"The European Physical Journal E","1292-895X","Springer","Physics","Physics and Astronomy","Hybrid","CC BY","https://link.springer.com/journal/10189","https://link.springer.com/journal/"]
[null,13129,"The European Physical Journal H","2102-6467","Springer","Physics","Physics and Astronomy","Hybrid","CC BY","https://link.springer.com/journal/13129","https://link.springer.com/journal/"]
[null,13360,"The European Physical Journal Plus","2190-5444","Springer","Physics","Physics and Astronomy","Hybrid","CC BY","https://link.springer.com/journal/13360","https://link.springer.com/journal/"]
[null,11734,"The European Physical Journal Special Topics","1951-6401","Springer","Physics","Physics and Astronomy","Hybrid","CC BY","https://link.springer.com/journal/11734","https://link.springer.com/journal/"]
[null,330,"European Radiology","1432-1084","Springer","Medicine & Public Health","Medicine","Hybrid","CC BY","https://link.springer.com/journal/330","https://link.springer.com/journal/"]
[null,586,"European Spine Journal","1432-0932","Springer","Medicine & Public Health","Medicine","Hybrid","CC BY","https://link.springer.com/journal/586","https://link.springer.com/journal/"]
[null,11692,"Evolutionary Biology","1934-2845","Springer","Life Sciences","Biomedical and Life Sciences","Hybrid","CC BY","https://link.springer.com/journal/11692","https://link.springer.com/journal/"]
[null,10682,"Evolutionary Ecology","1573-8477","Springer","Life Sciences","Biomedical and Life Sciences","Hybrid","CC BY","https://link.springer.com/journal/10682","https://link.springer.com/journal/"]
[null,40844,"Evolutionary and Institutional Economics Review","2188-2096","Springer","Economics","Economics and Finance","Hybrid","CC BY","https://link.springer.com/journal/40844","https://link.springer.com/journal/"]
[null,12065,"Evolutionary Intelligence","1864-5917","Springer","Engineering","Engineering","Hybrid","CC BY","https://link.springer.com/journal/12065","https://link.springer.com/journal/"]
[null,40806,"Evolutionary Psychological Science","2198-9885","Springer","Psychology","Behavioral Science and Psychology","Hybrid","CC BY","https://link.springer.com/journal/40806","https://link.springer.com/journal/"]
[null,12530,"Evolving Systems","1868-6486","Springer","Engineering","Engineering","Hybrid","CC BY","https://link.springer.com/journal/12530","https://link.springer.com/journal/"]
[null,10493,"Experimental and Applied Acarology","1572-9702","Springer","Life Sciences","Biomedical and Life Sciences","Hybrid","CC BY","https://link.springer.com/journal/10493","https://link.springer.com/journal/"]
[null,10686,"Experimental Astronomy","1572-9508","Springer","Physics","Physics and Astronomy","Hybrid","CC BY","https://link.springer.com/journal/10686","https://link.springer.com/journal/"]
[null,221,"Experimental Brain Research","1432-1106","Springer","Biomedicine","Biomedical and Life Sciences","Hybrid","CC BY","https://link.springer.com/journal/221","https://link.springer.com/journal/"]
[null,42757,"Experimental and Computational Multiphase Flow","2661-8877","Tsinghua University Press, co-published with Springer","Engineering","Engineering","Hybrid","CC BY","https://link.springer.com/journal/42757","https://link.springer.com/journal/"]
[null,11340,"Experimental Mechanics","1741-2765","Springer","Engineering","Engineering","Hybrid","CC BY","https://link.springer.com/journal/11340","https://link.springer.com/journal/"]
[null,40799,"Experimental Techniques","1747-1567","Springer","Materials Science","Chemistry and Materials Science","Hybrid","CC BY","https://link.springer.com/journal/40799","https://link.springer.com/journal/"]
[null,348,"Experiments in Fluids","1432-1114","Springer","Engineering","Engineering","Hybrid","CC BY","https://link.springer.com/journal/348","https://link.springer.com/journal/"]
[null,12403,"Exposure and Health","2451-9685","Springer","Environment","Earth and Environmental Science","Hybrid","CC BY","https://link.springer.com/journal/12403","https://link.springer.com/journal/"]
[null,10687,"Extremes","1572-915X","Springer","Statistics","Mathematics and Statistics","Hybrid","CC BY","https://link.springer.com/journal/10687","https://link.springer.com/journal/"]
[null,792,"Extremophiles","1433-4909","Springer","Life Sciences","Biomedical and Life Sciences","Hybrid","CC BY","https://link.springer.com/journal/792","https://link.springer.com/journal/"]
[null,10347,"Facies","1612-4820","Springer","Earth Sciences","Earth and Environmental Science","Hybrid","CC BY","https://link.springer.com/journal/10347","https://link.springer.com/journal/"]
[null,10691,"Feminist Legal Studies","1572-8455","Springer","Law","Law and Criminology","Hybrid","CC BY","https://link.springer.com/journal/10691","https://link.springer.com/journal/"]
[null,601,"Few-Body Systems","1432-5411","Springer","Physics","Physics and Astronomy","Hybrid","CC BY","https://link.springer.com/journal/601","https://link.springer.com/journal/"]
[null,12221,"Fibers and Polymers","1875-0052","The Korean Fiber Society, co-published with Springer","Chemistry","Chemistry and Materials Science","Hybrid","CC BY","https://link.springer.com/journal/12221","https://link.springer.com/journal/"]
[null,780,"Finance and Stochastics","1432-1122","Springer","Mathematics","Mathematics and Statistics","Hybrid","CC BY","https://link.springer.com/journal/780","https://link.springer.com/journal/"]
[null,11408,"Financial Markets and Portfolio Management","2373-8529","Springer","Business and Management","Business and Management","Hybrid","CC BY","https://link.springer.com/journal/11408","https://link.springer.com/journal/"]
[null,10694,"Fire Technology","1572-8099","Springer","Engineering","Engineering","Hybrid","CC BY","https://link.springer.com/journal/10694","https://link.springer.com/journal/"]
[null,10695,"Fish Physiology and Biochemistry","1573-5168","Springer","Life Sciences","Biomedical and Life Sciences","Hybrid","CC BY","https://link.springer.com/journal/10695","https://link.springer.com/journal/"]
[null,12562,"Fisheries Science","1444-2906","Springer","Life Sciences","Biomedical and Life Sciences","Hybrid","CC BY","https://link.springer.com/journal/12562","https://link.springer.com/journal/"]
[null,10696,"Flexible Services and Manufacturing Journal","1936-6590","Springer","Engineering","Engineering","Hybrid","CC BY","https://link.springer.com/journal/10696","https://link.springer.com/journal/"]
[null,10494,"Flow, Turbulence and Combustion","1573-1987","Springer","Engineering","Engineering","Hybrid","CC BY","https://link.springer.com/journal/10494","https://link.springer.com/journal/"]
[null,12224,"Folia Geobotanica","1874-9348","Springer","Life Sciences","Biomedical and Life Sciences","Hybrid","CC BY","https://link.springer.com/journal/12224","https://link.springer.com/journal/"]
[null,12223,"Folia Microbiologica","1874-9356","Springer","Life Sciences","Biomedical and Life Sciences","Hybrid","CC BY","https://link.springer.com/journal/12223","https://link.springer.com/journal/"]
[null,12161,"Food Analytical Methods","1936-976X","Springer","Chemistry","Chemistry and Materials Science","Hybrid","CC BY","https://link.springer.com/journal/12161","https://link.springer.com/journal/"]
[null,11748,"General Thoracic and Cardiovascular Surgery","1863-6713","Springer","Medicine & Public Health","Medicine","Hybrid","CC BY","https://link.springer.com/journal/11748","https://link.springer.com/journal/"]
[null,13258,"Genes & Genomics","2092-9293","The Genetics Society of Korea, co-published with Springer","Life Sciences","Biomedical and Life Sciences","Hybrid","CC BY","https://link.springer.com/journal/13258","https://link.springer.com/journal/"]
[null,10710,"Genetic Programming and Evolvable Machines","1573-7632","Springer","Computer Science","Computer Science","Hybrid","CC BY","https://link.springer.com/journal/10710","https://link.springer.com/journal/"]
[null,10722,"Genetic Resources and Crop Evolution","1573-5109","Springer","Life Sciences","Biomedical and Life Sciences","Hybrid","CC BY","https://link.springer.com/journal/10722","https://link.springer.com/journal/"]
[null,42764,"Genome Instability & Disease","2524-7662","Springer","Biomedicine","Biomedical and Life Sciences","Hybrid","CC BY","https://link.springer.com/journal/42764","https://link.springer.com/journal/"]
[null,367,"Geo-Marine Letters","1432-1157","Springer","Earth Sciences","Earth and Environmental Science","Hybrid","CC BY","https://link.springer.com/journal/367","https://link.springer.com/journal/"]
[null,10707,"GeoInformatica","1573-7624","Springer","Computer Science","Computer Science","Hybrid","CC BY","https://link.springer.com/journal/10707","https://link.springer.com/journal/"]
[null,10708,"GeoJournal","1572-9893","Springer","Social Sciences","Social Sciences","Hybrid","CC BY","https://link.springer.com/journal/10708","https://link.springer.com/journal/"]
[null,12371,"Geoheritage","1867-2485","Springer","Earth Sciences","Earth and Environmental Science","Hybrid","CC BY","https://link.springer.com/journal/12371","https://link.springer.com/journal/"]
[null,10711,"Geometriae Dedicata","1572-9168","Springer","Mathematics","Mathematics and Statistics","Hybrid","CC BY","https://link.springer.com/journal/10711","https://link.springer.com/journal/"]
[null,39,"Geometric and Functional Analysis","1420-8970","Springer","Mathematics","Mathematics and Statistics","Hybrid","CC BY","https://link.springer.com/journal/39","https://link.springer.com/journal/"]
[null,10706,"Geotechnical and Geological Engineering","1573-1529","Springer","Earth Sciences","Earth and Environmental Science","Hybrid","CC BY","https://link.springer.com/journal/10706","https://link.springer.com/journal/"]
[null,12662,"German Journal of Exercise and Sport Research","2509-3150","Springer","Life Sciences","Biomedical and Life Sciences","Hybrid","CC BY","https://link.springer.com/journal/12662","https://link.springer.com/journal/"]
[null,11357,"GeroScience","2509-2723","Springer","Life Sciences","Biomedical and Life Sciences","Hybrid","CC BY","https://link.springer.com/journal/11357","https://link.springer.com/journal/"]
[null,40940,"Glass Structures & Engineering","2363-5150","Springer","Engineering","Engineering","Hybrid","CC BY","https://link.springer.com/journal/40940","https://link.springer.com/journal/"]
[null,43477,"Global Implementation Research and Applications","2662-9275","Springer","Psychology","Behavioral Science and Psychology","Hybrid","CC BY","https://link.springer.com/journal/43477","https://link.springer.com/journal/"]
[null,40171,"Global Journal of Flexible Systems Management","0974-0198","Springer","Business and Management","Business and Management","Hybrid","CC BY","https://link.springer.com/journal/40171","https://link.springer.com/journal/"]
[null,10516,"Global Philosophy","2948-1538","Springer","Philosophy","Education","Hybrid","CC BY",{"$f":"K1065&B1065","v":"https://link.springer.com/journal/10516"},"https://link.springer.com/journal/"]
[null,43508,"Global Public Policy and Governance","2730-6305","Springer","Political Science and International Relations","Political Science and International Studies","Hybrid","CC BY","https://link.springer.com/journal/43508","https://link.springer.com/journal/"]
[null,40609,"Global Social Welfare","2196-8799","Springer","Social Sciences","Social Sciences","Hybrid","CC BY","https://link.springer.com/journal/40609","https://link.springer.com/journal/"]
[null,44186,"Global Surgical Education - Journal of the Association for Surgical Education","2731-4588","Springer","Medicine & Public Health","Medicine","Hybrid","CC BY","https://link.springer.com/journal/44186","https://link.springer.com/journal/"]
[null,10719,"Glycoconjugate Journal","1573-4986","Springer","Life Sciences","Biomedical and Life Sciences","Hybrid","CC BY","https://link.springer.com/journal/10719","https://link.springer.com/journal/"]
[null,417,"Graefe's Archive for Clinical and Experimental Ophthalmology","1435-702X","Springer","Medicine & Public Health","Medicine","Hybrid","CC BY","https://link.springer.com/journal/417","https://link.springer.com/journal/"]
[null,10035,"Granular Matter","1434-7636","Springer","Physics","Physics and Astronomy","Hybrid","CC BY","https://link.springer.com/journal/10035","https://link.springer.com/journal/"]
[null,41127,"Graphene and 2D Materials","2731-6513","Springer","Materials Science","Chemistry and Materials Science","Hybrid","CC BY","https://link.springer.com/journal/41127","https://link.springer.com/journal/"]
[null,373,"Graphs and Combinatorics","1435-5914","Springer","Mathematics","Mathematics and Statistics","Hybrid","CC BY","https://link.springer.com/journal/373","https://link.springer.com/journal/"]
[null,10726,"Group Decision and Negotiation","1572-9907","Springer","Business and Management","Business and Management","Hybrid","CC BY","https://link.springer.com/journal/10726","https://link.springer.com/journal/"]
[null,767,"Grundwasser","1432-1165","Springer","Earth Sciences","Earth and Environmental Science","Hybrid","CC BY","https://link.springer.com/journal/767","https://link.springer.com/journal/"]
[null,11612,"Gruppe. Interaktion. Organisation. Zeitschrift für Angewandte Organisationspsychologie (GIO)","2366-6218","Springer","Psychology","Behavioral Science and Psychology","Hybrid","CC BY","https://link.springer.com/journal/11612","https://link.springer.com/journal/"]
[null,10730,"HEC Forum","1572-8498","Springer","Philosophy","Education","Hybrid","CC BY","https://link.springer.com/journal/10730","https://link.springer.com/journal/"]
[null,40702,"HMD Praxis der Wirtschaftsinformatik","2198-2775","Springer","Computer Science","Computer Science","Hybrid","CC BY","https://link.springer.com/journal/40702","https://link.springer.com/journal/"]
[null,40558,"Information Technology & Tourism","1943-4294","Springer","Business and Management","Business and Management","Hybrid","CC BY","https://link.springer.com/journal/40558","https://link.springer.com/journal/"]
[null,10816,"Journal of Archaeological Method and Theory","1573-7764","Springer","Social Sciences","Social Sciences","Hybrid","CC BY","https://link.springer.com/journal/10816","https://link.springer.com/journal/"]
[null,10814,"Journal of Archaeological Research","1573-7756","Springer","Social Sciences","Social Sciences","Hybrid","CC BY","https://link.springer.com/journal/10814","https://link.springer.com/journal/"]
[null,10047,"Journal of Artificial Organs","1619-0904","Springer","Medicine & Public Health","Medicine","Hybrid","CC BY","https://link.springer.com/journal/10047","https://link.springer.com/journal/"]
[null,10815,"Journal of Assisted Reproduction and Genetics","1573-7330","Springer","Medicine & Public Health","Medicine","Hybrid","CC BY","https://link.springer.com/journal/10815","https://link.springer.com/journal/"]
[null,10162,"Journal of the Association for Research in Otolaryngology","1438-7573","Springer","Medicine & Public Health","Medicine","Hybrid","CC BY","https://link.springer.com/journal/10162","https://link.springer.com/journal/"]
[null,10874,"Journal of Atmospheric Chemistry","1573-0662","Springer","Earth Sciences","Earth and Environmental Science","Hybrid","CC BY","https://link.springer.com/journal/10874","https://link.springer.com/journal/"]
[null,41779,"Journal of the Australian Ceramic Society","2510-1579","Springer","Materials Science","Chemistry and Materials Science","Hybrid","CC BY","https://link.springer.com/journal/41779","https://link.springer.com/journal/"]
[null,10803,"Journal of Autism and Developmental Disorders","1573-3432","Springer","Psychology","Behavioral Science and Psychology","Hybrid","CC BY","https://link.springer.com/journal/10803","https://link.springer.com/journal/"]
[null,10817,"Journal of Automated Reasoning","1573-0670","Springer","Computer Science","Computer Science","Hybrid","CC BY","https://link.springer.com/journal/10817","https://link.springer.com/journal/"]
[null,42786,"Journal of Banking and Financial Technology","2524-7964","Springer","Computer Science","Computer Science","Hybrid","CC BY","https://link.springer.com/journal/42786","https://link.springer.com/journal/"]
[null,10864,"Journal of Behavioral Education","1573-3513","Springer","Psychology","Behavioral Science and Psychology","Hybrid","CC BY","https://link.springer.com/journal/10864","https://link.springer.com/journal/"]
[null,10865,"Journal of Behavioral Medicine","1573-3521","Springer","Medicine & Public Health","Medicine","Hybrid","CC BY","https://link.springer.com/journal/10865","https://link.springer.com/journal/"]
[null,40735,"Journal of Bio- and Tribo-Corrosion","2198-4239","Springer","Materials Science","Chemistry and Materials Science","Hybrid","CC BY","https://link.springer.com/journal/40735","https://link.springer.com/journal/"]
[null,10863,"Journal of Bioenergetics and Biomembranes","1573-6881","Springer","Chemistry","Chemistry and Materials Science","Hybrid","CC BY","https://link.springer.com/journal/10863","https://link.springer.com/journal/"]
[null,11673,"Journal of Bioethical Inquiry","1872-4353","Springer","Medicine & Public Health","Medicine","Hybrid","CC BY","https://link.springer.com/journal/11673","https://link.springer.com/journal/"]
[null,10867,"Journal of Biological Physics","1573-0689","Springer","Physics","Physics and Astronomy","Hybrid","CC BY","https://link.springer.com/journal/10867","https://link.springer.com/journal/"]
[null,10858,"Journal of Biomolecular NMR","1573-5001","Springer","Physics","Physics and Astronomy","Hybrid","CC BY","https://link.springer.com/journal/10858","https://link.springer.com/journal/"]
[null,42235,"Journal of Bionic Engineering","2543-2141","Springer","Engineering","Engineering","Hybrid","CC BY","https://link.springer.com/journal/42235","https://link.springer.com/journal/"]
[null,42853,"Journal of Biosystems Engineering","2234-1862","Springer","Engineering","Engineering","Hybrid","CC BY","https://link.springer.com/journal/42853","https://link.springer.com/journal/"]
[null,774,"Journal of Bone and Mineral Metabolism","1435-5604","Springer","Medicine & Public Health","Medicine","Hybrid","CC BY","https://link.springer.com/journal/774","https://link.springer.com/journal/"]
[null,40430,"Journal of the Brazilian Society of Mechanical Sciences and Engineering","1806-3691","Springer","Engineering","Engineering","Hybrid","CC BY","https://link.springer.com/journal/40430","https://link.springer.com/journal/"]
[null,41024,"Journal of Building Pathology and Rehabilitation","2365-3167","Springer","Engineering","Engineering","Hybrid","CC BY","https://link.springer.com/journal/41024","https://link.springer.com/journal/"]
[null,10869,"Journal of Business and Psychology","1573-353X","Springer","Psychology","Behavioral Science and Psychology","Hybrid","CC BY","https://link.springer.com/journal/10869","https://link.springer.com/journal/"]
[null,41549,"Journal of Business Cycle Research","2509-7970","Springer","Economics","Economics and Finance","Hybrid","CC BY","https://link.springer.com/journal/41549","https://link.springer.com/journal/"]
[null,11573,"Journal of Business Economics","1861-8928","Springer","Business and Management","Business and Management","Hybrid","CC BY","https://link.springer.com/journal/11573","https://link.springer.com/journal/"]
[null,10551,"Journal of Business Ethics","1573-0697","Springer","Philosophy","Education","Hybrid","CC BY","https://link.springer.com/journal/10551","https://link.springer.com/journal/"]
[null,13187,"Journal of Cancer Education","1543-0154","Springer","Biomedicine","Biomedical and Life Sciences","Hybrid","CC BY","https://link.springer.com/journal/13187","https://link.springer.com/journal/"]
[null,11764,"Journal of Cancer Survivorship","1932-2267","Springer","Medicine & Public Health","Medicine","Hybrid","CC BY","https://link.springer.com/journal/11764","https://link.springer.com/journal/"]
[null,12265,"Journal of Cardiovascular Translational Research","1937-5395","Springer","Medicine & Public Health","Medicine","Hybrid","CC BY","https://link.springer.com/journal/12265","https://link.springer.com/journal/"]
[null,11771,"Journal of Central South University","2227-5223","Central South University, co-published with Springer","Engineering","Engineering","Hybrid","CC BY","https://link.springer.com/journal/11771","https://link.springer.com/journal/"]
[null,10870,"Journal of Chemical Crystallography","1572-8854","Springer","Chemistry","Chemistry and Materials Science","Hybrid","CC BY","https://link.springer.com/journal/10870","https://link.springer.com/journal/"]
[null,10886,"Journal of Chemical Ecology","1573-1561","Springer","Life Sciences","Biomedical and Life Sciences","Hybrid","CC BY","https://link.springer.com/journal/10886","https://link.springer.com/journal/"]
[null,40653,"Journal of Child & Adolescent Trauma","1936-153X","Springer","Psychology","Behavioral Science and Psychology","Hybrid","CC BY","https://link.springer.com/journal/40653","https://link.springer.com/journal/"]
[null,10826,"Journal of Child and Family Studies","1573-2843","Springer","Psychology","Behavioral Science and Psychology","Hybrid","CC BY","https://link.springer.com/journal/10826","https://link.springer.com/journal/"]
[null,11366,"Journal of Chinese Political Science","1874-6357","Springer","Political Science and International Relations","Political Science and International Studies","Hybrid","CC BY","https://link.springer.com/journal/11366","https://link.springer.com/journal/"]
[null,13349,"Journal of Civil Structural Health Monitoring","2190-5479","Springer","Engineering","Engineering","Hybrid","CC BY","https://link.springer.com/journal/13349","https://link.springer.com/journal/"]
[null,357,"Journal of Classification","1432-1343","Springer","Statistics","Mathematics and Statistics","Hybrid","CC BY","https://link.springer.com/journal/357","https://link.springer.com/journal/"]
[null,10880,"Journal of Clinical Psychology in Medical Settings","1573-3572","Springer","Medicine & Public Health","Medicine","Hybrid","CC BY","https://link.springer.com/journal/10880","https://link.springer.com/journal/"]
[null,10876,"Journal of Cluster Science","1572-8862","Springer","Chemistry","Chemistry and Materials Science","Hybrid","CC BY","https://link.springer.com/journal/10876","https://link.springer.com/journal/"]
[null,11852,"Journal of Coastal Conservation","1874-7841","Springer","Geography","Earth and Environmental Science","Hybrid","CC BY","https://link.springer.com/journal/11852","https://link.springer.com/journal/"]
[null,11998,"Journal of Coatings Technology and Research","1935-3804","Springer","Materials Science","Chemistry and Materials Science","Hybrid","CC BY","https://link.springer.com/journal/11998","https://link.springer.com/journal/"]
[null,41465,"Journal of Cognitive Enhancement","2509-3304","Springer","Psychology","Behavioral Science and Psychology","Hybrid","CC BY","https://link.springer.com/journal/41465","https://link.springer.com/journal/"]
[null,10878,"Journal of Combinatorial Optimization","1573-2886","Springer","Mathematics","Mathematics and Statistics","Hybrid","CC BY","https://link.springer.com/journal/10878","https://link.springer.com/journal/"]
[null,12687,"Journal of Community Genetics","1868-6001","Springer","Biomedicine","Biomedical and Life Sciences","Hybrid","CC BY","https://link.springer.com/journal/12687","https://link.springer.com/journal/"]
[null,10900,"Journal of Community Health","1573-3610","Springer","Medicine & Public Health","Medicine","Hybrid","CC BY","https://link.springer.com/journal/10900","https://link.springer.com/journal/"]
[null,10825,"Journal of Computational Electronics","1572-8137","Springer","Engineering","Engineering","Hybrid","CC BY","https://link.springer.com/journal/10825","https://link.springer.com/journal/"]
[null,10827,"Journal of Computational Neuroscience","1573-6873","Springer","Biomedicine","Biomedical and Life Sciences","Hybrid","CC BY","https://link.springer.com/journal/10827","https://link.springer.com/journal/"]
[null,42001,"Journal of Computational Social Science","2432-2725","Springer","Social Sciences","Social Sciences","Hybrid","CC BY","https://link.springer.com/journal/42001","https://link.springer.com/journal/"]
[null,11390,"Journal of Computer Science and Technology","1860-4749","Springer","Computer Science","Computer Science","Hybrid","CC BY","https://link.springer.com/journal/11390","https://link.springer.com/journal/"]
[null,11416,"Journal of Computer Virology and Hacking Techniques","2263-8733","Springer","Computer Science","Computer Science","Hybrid","CC BY",{"$f":"K1129&B1129","v":"https://link.springer.com/journal/11416"},"https://link.springer.com/journal/"]
[null,10822,"Journal of Computer-Aided Molecular Design","1573-4951","Springer","Chemistry","Chemistry and Materials Science","Hybrid","CC BY","https://link.springer.com/journal/10822","https://link.springer.com/journal/"]
[null,40692,"Journal of Computers in Education","2197-9995","Springer","Education","Education","Hybrid","CC BY","https://link.springer.com/journal/40692","https://link.springer.com/journal/"]
[null,12528,"Journal of Computing in Higher Education","1867-1233","Springer","Education","Education","Hybrid","CC BY","https://link.springer.com/journal/12528","https://link.springer.com/journal/"]
[null,10603,"Journal of Consumer Policy","1573-0700","Springer","Social Sciences","Social Sciences","Hybrid","CC BY","https://link.springer.com/journal/10603","https://link.springer.com/journal/"]
[null,3,"Journal of Consumer Protection and Food Safety","1661-5867","Springer","Life Sciences","Biomedical and Life Sciences","Hybrid","CC BY","https://link.springer.com/journal/3","https://link.springer.com/journal/"]
[null,10879,"Journal of Contemporary Psychotherapy","1573-3564","Springer","Medicine & Public Health","Medicine","Hybrid","CC BY","https://link.springer.com/journal/10879","https://link.springer.com/journal/"]
[null,40313,"Journal of Control, Automation and Electrical Systems","2195-3899","Springer","Engineering","Engineering","Hybrid","CC BY","https://link.springer.com/journal/40313","https://link.springer.com/journal/"]
[null,10343,"Journal of Crop Health","2948-2658","Springer","Life Sciences","Biomedical and Life Sciences","Hybrid","CC BY","https://link.springer.com/journal/10343","https://link.springer.com/journal/"]
[null,12892,"Journal of Crop Science and Biotechnology","2005-8276","Springer","Life Sciences","Biomedical and Life Sciences","Hybrid","CC BY","https://link.springer.com/journal/12892","https://link.springer.com/journal/"]
[null,10823,"Journal of Cross-Cultural Gerontology","1573-0719","Springer","Social Sciences","Social Sciences","Hybrid","CC BY","https://link.springer.com/journal/10823","https://link.springer.com/journal/"]
[null,13389,"Journal of Cryptographic Engineering","2190-8516","Springer","Computer Science","Computer Science","Hybrid","CC BY","https://link.springer.com/journal/13389","https://link.springer.com/journal/"]
[null,145,"Journal of Cryptology","1432-1378","Springer","Computer Science","Computer Science","Hybrid","CC BY","https://link.springer.com/journal/145","https://link.springer.com/journal/"]
[null,41809,"Journal of Cultural Cognitive Science","2520-1018","Springer","Psychology","Behavioral Science and Psychology","Hybrid","CC BY","https://link.springer.com/journal/41809","https://link.springer.com/journal/"]
[null,10824,"Journal of Cultural Economics","1573-6997","Springer","Economics","Economics and Finance","Hybrid","CC BY","https://link.springer.com/journal/10824","https://link.springer.com/journal/"]
[null,42488,"Journal of Data, Information and Management","2524-6364","Springer","Engineering","Engineering","Hybrid","CC BY","https://link.springer.com/journal/42488","https://link.springer.com/journal/"]
[null,40865,"Journal of Developmental and Life-Course Criminology","2199-465X","Springer","Criminology and Criminal Justice","Law and Criminology","Hybrid","CC BY","https://link.springer.com/journal/40865","https://link.springer.com/journal/"]
[null,10882,"Journal of Developmental and Physical Disabilities","1573-3580","Springer","Psychology","Behavioral Science and Psychology","Hybrid","CC BY","https://link.springer.com/journal/10882","https://link.springer.com/journal/"]
[null,42240,"Journal of Dharma Studies","2522-0934","Springer","Religious Studies","Religion and Philosophy","Hybrid","CC BY","https://link.springer.com/journal/42240","https://link.springer.com/journal/"]
[null,40200,"Journal of Diabetes & Metabolic Disorders","2251-6581","Springer","Medicine & Public Health","Medicine","Hybrid","CC BY","https://link.springer.com/journal/40200","https://link.springer.com/journal/"]
[null,40870,"Journal of Dynamic Behavior of Materials","2199-7454","Springer","Materials Science","Chemistry and Materials Science","Hybrid","CC BY","https://link.springer.com/journal/40870","https://link.springer.com/journal/"]
[null,10883,"Journal of Dynamical and Control Systems","1573-8698","Springer","Mathematics","Mathematics and Statistics","Hybrid","CC BY","https://link.springer.com/journal/10883","https://link.springer.com/journal/"]
[null,10884,"Journal of Dynamics and Differential Equations","1572-9222","Springer","Mathematics","Mathematics and Statistics","Hybrid","CC BY","https://link.springer.com/journal/10884","https://link.springer.com/journal/"]
[null,12583,"Journal of Earth Science","1867-111X","China University of Geosciences, co-published with Springer","Earth Sciences","Earth and Environmental Science","Hybrid","CC BY","https://link.springer.com/journal/12583","https://link.springer.com/journal/"]
[null,10831,"Journal of East Asian Linguistics","1572-8560","Springer","Linguistics","Social Sciences","Hybrid","CC BY","https://link.springer.com/journal/10831","https://link.springer.com/journal/"]
[null,12574,"Journal of Echocardiography","1880-344X","Springer","Medicine & Public Health","Medicine","Hybrid","CC BY","https://link.springer.com/journal/12574","https://link.springer.com/journal/"]
[null,10887,"Journal of Economic Growth","1573-7020","Springer","Economics","Economics and Finance","Hybrid","CC BY","https://link.springer.com/journal/10887","https://link.springer.com/journal/"]
[null,11403,"Journal of Economic Interaction and Coordination","1860-7128","Springer","Economics","Economics and Finance","Hybrid","CC BY","https://link.springer.com/journal/11403","https://link.springer.com/journal/"]
[null,712,"Journal of Economics","1617-7134","Springer","Economics","Economics and Finance","Hybrid","CC BY","https://link.springer.com/journal/712","https://link.springer.com/journal/"]
[null,12197,"Journal of Economics and Finance","1938-9744","Springer","Economics","Economics and Finance","Hybrid","CC BY","https://link.springer.com/journal/12197","https://link.springer.com/journal/"]
[null,41996,"Journal of Economics, Race, and Policy","2520-842X","Springer","Economics","Economics and Finance","Hybrid","CC BY","https://link.springer.com/journal/41996","https://link.springer.com/journal/"]
[null,10833,"Journal of Educational Change","1573-1812","Springer","Education","Education","Hybrid","CC BY","https://link.springer.com/journal/10833","https://link.springer.com/journal/"]
[null,10659,"Journal of Elasticity","1573-2681","Springer","Engineering","Engineering","Hybrid","CC BY","https://link.springer.com/journal/10659","https://link.springer.com/journal/"]
[null,42835,"Journal of Electrical Engineering & Technology","2093-7423","Springer","Engineering","Engineering","Hybrid","CC BY","https://link.springer.com/journal/42835","https://link.springer.com/journal/"]
[null,10832,"Journal of Electroceramics","1573-8663","Springer","Materials Science","Chemistry and Materials Science","Hybrid","CC BY","https://link.springer.com/journal/10832","https://link.springer.com/journal/"]
[null,11664,"Journal of Electronic Materials","1543-186X","Springer","Materials Science","Chemistry and Materials Science","Hybrid","CC BY","https://link.springer.com/journal/11664","https://link.springer.com/journal/"]
[null,10836,"Journal of Electronic Testing","1573-0727","Springer","Engineering","Engineering","Hybrid","CC BY","https://link.springer.com/journal/10836","https://link.springer.com/journal/"]
[null,41808,"Journal of Elliptic and Parabolic Equations","2296-9039","Springer","Mathematics","Mathematics and Statistics","Hybrid","CC BY","https://link.springer.com/journal/41808","https://link.springer.com/journal/"]
[null,40618,"Journal of Endocrinological Investigation","1720-8386","Springer","Medicine & Public Health","Medicine","Hybrid","CC BY","https://link.springer.com/journal/40618","https://link.springer.com/journal/"]
[null,10665,"Journal of Engineering Mathematics","1573-2703","Springer","Mathematics","Mathematics and Statistics","Hybrid","CC BY","https://link.springer.com/journal/10665","https://link.springer.com/journal/"]
[null,40201,"Journal of Environmental Health Science and Engineering","2052-336X","Springer","Environment","Earth and Environmental Science","Hybrid","CC BY","https://link.springer.com/journal/40201","https://link.springer.com/journal/"]
[null,13412,"Journal of Environmental Studies and Sciences","2190-6491","Springer","Environment","Earth and Environmental Science","Hybrid","CC BY","https://link.springer.com/journal/13412","https://link.springer.com/journal/"]
[null,10164,"Journal of Ethology","1439-5444","Springer","Life Sciences","Biomedical and Life Sciences","Hybrid","CC BY","https://link.springer.com/journal/10164","https://link.springer.com/journal/"]
[null,28,"Journal of Evolution Equations","1424-3202","Springer","Mathematics","Mathematics and Statistics","Hybrid","CC BY","https://link.springer.com/journal/28","https://link.springer.com/journal/"]
[null,13296,"International Journal of Steel Structures","2093-6311","Korean Society of Steel Construction, co-published with Springer","Engineering","Engineering","Hybrid","CC BY","https://link.springer.com/journal/13296","https://link.springer.com/journal/"]
[null,13198,"International Journal of System Assurance Engineering and Management","0976-4348","Springer","Engineering","Engineering","Hybrid","CC BY","https://link.springer.com/journal/13198","https://link.springer.com/journal/"]
[null,10798,"International Journal of Technology and Design Education","1573-1804","Springer","Education","Education","Hybrid","CC BY","https://link.springer.com/journal/10798","https://link.springer.com/journal/"]
[null,10773,"International Journal of Theoretical Physics","1572-9575","Springer","Physics","Physics and Astronomy","Hybrid","CC BY","https://link.springer.com/journal/10773","https://link.springer.com/journal/"]
[null,10765,"International Journal of Thermophysics","1572-9567","Springer","Physics","Physics and Astronomy","Hybrid","CC BY","https://link.springer.com/journal/10765","https://link.springer.com/journal/"]
[null,42690,"International Journal of Tropical Insect Science","1742-7592","Springer","Life Sciences","Biomedical and Life Sciences","Hybrid","CC BY","https://link.springer.com/journal/42690","https://link.springer.com/journal/"]
[null,10776,"International Journal of Wireless Information Networks","1572-8129","Springer","Engineering","Engineering","Hybrid","CC BY","https://link.springer.com/journal/10776","https://link.springer.com/journal/"]
[null,10792,"International Ophthalmology","1573-2630","Springer","Medicine & Public Health","Medicine","Hybrid","CC BY","https://link.springer.com/journal/10792","https://link.springer.com/journal/"]
[null,264,"International Orthopaedics","1432-5195","Springer","Medicine & Public Health","Medicine","Hybrid","CC BY","https://link.springer.com/journal/264","https://link.springer.com/journal/"]
[null,12232,"International Review of Economics","1863-4613","Springer","Economics","Economics and Finance","Hybrid","CC BY","https://link.springer.com/journal/12232","https://link.springer.com/journal/"]
[null,11159,"International Review of Education","1573-0638","Springer","Education","Education","Hybrid","CC BY","https://link.springer.com/journal/11159","https://link.springer.com/journal/"]
[null,12208,"International Review on Public and Nonprofit Marketing","1865-1992","Springer","Business and Management","Business and Management","Hybrid","CC BY","https://link.springer.com/journal/12208","https://link.springer.com/journal/"]
[null,40318,"The International Sports Law Journal","2213-5154","Springer","Law","Law and Criminology","Hybrid","CC BY","https://link.springer.com/journal/40318","https://link.springer.com/journal/"]
[null,10797,"International Tax and Public Finance","1573-6970","Springer","Economics","Economics and Finance","Hybrid","CC BY","https://link.springer.com/journal/10797","https://link.springer.com/journal/"]
[null,192,"International Urogynecology Journal","1433-3023","Springer","Medicine & Public Health","Medicine","Hybrid","CC BY","https://link.springer.com/journal/192","https://link.springer.com/journal/"]
[null,11255,"International Urology and Nephrology","1573-2584","Springer","Medicine & Public Health","Medicine","Hybrid","CC BY","https://link.springer.com/journal/11255","https://link.springer.com/journal/"]
[null,222,"Inventiones mathematicae","1432-1297","Springer","Mathematics","Mathematics and Statistics","Hybrid","CC BY","https://link.springer.com/journal/222","https://link.springer.com/journal/"]
[null,10637,"Investigational New Drugs","1573-0646","Springer","Medicine & Public Health","Medicine","Hybrid","CC BY","https://link.springer.com/journal/10637","https://link.springer.com/journal/"]
[null,11581,"Ionics","1862-0760","Springer","Chemistry","Chemistry and Materials Science","Hybrid","CC BY","https://link.springer.com/journal/11581","https://link.springer.com/journal/"]
[null,42044,"Iran Journal of Computer Science","2520-8446","Springer","Computer Science","Computer Science","Hybrid","CC BY","https://link.springer.com/journal/42044","https://link.springer.com/journal/"]
[null,40995,"Iranian Journal of Science","2731-8109","Springer","Engineering","Engineering","Hybrid","CC BY",{"$f":"K1193&B1193","v":"https://link.springer.com/journal/40995"},"https://link.springer.com/journal/"]
[null,40996,"Iranian Journal of Science and Technology, Transactions of Civil Engineering","2364-1843","Springer","Engineering","Engineering","Hybrid","CC BY","https://link.springer.com/journal/40996","https://link.springer.com/journal/"]
[null,40998,"Iranian Journal of Science and Technology, Transactions of Electrical Engineering","2364-1827","Springer","Engineering","Engineering","Hybrid","CC BY","https://link.springer.com/journal/40998","https://link.springer.com/journal/"]
[null,40997,"Iranian Journal of Science and Technology, Transactions of Mechanical Engineering","2364-1835","Springer","Engineering","Engineering","Hybrid","CC BY","https://link.springer.com/journal/40997","https://link.springer.com/journal/"]
[null,13726,"Iranian Polymer Journal","1735-5265","Springer","Chemistry","Chemistry and Materials Science","Hybrid","CC BY","https://link.springer.com/journal/13726","https://link.springer.com/journal/"]
[null,11845,"Irish Journal of Medical Science (1971 -)","1863-4362","Springer","Medicine & Public Health","Medicine","Hybrid","CC BY","https://link.springer.com/journal/11845","https://link.springer.com/journal/"]
[null,271,"Irrigation Science","1432-1319","Springer","Life Sciences","Biomedical and Life Sciences","Hybrid","CC BY","https://link.springer.com/journal/271","https://link.springer.com/journal/"]
[null,11856,"Israel Journal of Mathematics","1565-8511","Hebrew University Magnes Press","Mathematics","Mathematics and Statistics","Hybrid","CC BY","https://link.springer.com/journal/11856","https://link.springer.com/journal/"]
[null,40797,"Italian Economic Journal","2199-3238","Springer","Economics","Economics and Finance","Hybrid","CC BY","https://link.springer.com/journal/40797","https://link.springer.com/journal/"]
[null,775,"JBIC Journal of Biological Inorganic Chemistry","1432-1327","Springer","Life Sciences","Biomedical and Life Sciences","Hybrid","CC BY","https://link.springer.com/journal/775","https://link.springer.com/journal/"]
[null,42791,"JMST Advances","2524-7913","Korean Society of Mechanical Engineers, co-published with Springer","Engineering","Engineering","Hybrid","CC BY","https://link.springer.com/journal/42791","https://link.springer.com/journal/"]
[null,11837,"JOM","1543-1851","Springer","Materials Science","Chemistry and Materials Science","Hybrid","CC BY","https://link.springer.com/journal/11837","https://link.springer.com/journal/"]
[null,764,"JPC ? Journal of Planar Chromatography ? Modern TLC","1789-0993","Akadémiai Kiadó, co-published with Springer","Chemistry","Chemistry and Materials Science","Hybrid","CC BY","https://link.springer.com/journal/764","https://link.springer.com/journal/"]
[null,13291,"Jahresbericht der Deutschen Mathematiker-Vereinigung","1869-7135","Springer","Mathematics","Mathematics and Statistics","Hybrid","CC BY","https://link.springer.com/journal/13291","https://link.springer.com/journal/"]
[null,13160,"Japan Journal of Industrial and Applied Mathematics","1868-937X","Springer","Mathematics","Mathematics and Statistics","Hybrid","CC BY","https://link.springer.com/journal/13160","https://link.springer.com/journal/"]
[null,42973,"The Japanese Economic Review","1468-5876","Springer","Economics","Economics and Finance","Hybrid","CC BY","https://link.springer.com/journal/42973","https://link.springer.com/journal/"]
[null,10384,"Japanese Journal of Ophthalmology","1613-2246","Springer","Medicine & Public Health","Medicine","Hybrid","CC BY","https://link.springer.com/journal/10384","https://link.springer.com/journal/"]
[null,11604,"Japanese Journal of Radiology","1867-108X","Springer","Medicine & Public Health","Medicine","Hybrid","CC BY","https://link.springer.com/journal/11604","https://link.springer.com/journal/"]
[null,42081,"Japanese Journal of Statistics and Data Science","2520-8764","Springer","Statistics","Mathematics and Statistics","Hybrid","CC BY","https://link.springer.com/journal/42081","https://link.springer.com/journal/"]
[null,10835,"Jewish History","1572-8579","Springer","History","History","Hybrid","CC BY","https://link.springer.com/journal/10835","https://link.springer.com/journal/"]
[null,41020,"Jindal Global Law Review","2364-4869","Springer","Law","Law and Criminology","Hybrid","CC BY","https://link.springer.com/journal/41020","https://link.springer.com/journal/"]
[null,40295,"The Journal of the Astronautical Sciences","2195-0571","Springer","Engineering","Engineering","Hybrid","CC BY","https://link.springer.com/journal/40295","https://link.springer.com/journal/"]
[null,41478,"The Journal of Analysis","2367-2501","Springer","Mathematics","Mathematics and Statistics","Hybrid","CC BY","https://link.springer.com/journal/41478","https://link.springer.com/journal/"]
[null,11414,"The Journal of Behavioral Health Services & Research","1556-3308","Springer","Medicine & Public Health","Medicine","Hybrid","CC BY","https://link.springer.com/journal/11414","https://link.springer.com/journal/"]
[null,40808,"Modeling Earth Systems and Environment","2363-6211","Springer","Earth Sciences","Earth and Environmental Science","Hybrid","CC BY","https://link.springer.com/journal/40808","https://link.springer.com/journal/"]
[null,11033,"Molecular Biology Reports","1573-4978","Springer Nature","Life Sciences","Biomedical and Life Sciences","Hybrid","CC BY","https://link.springer.com/journal/11033","https://link.springer.com/journal/"]
[null,12033,"Molecular Biotechnology","1559-0305","Springer","Chemistry","Chemistry and Materials Science","Hybrid","CC BY","https://link.springer.com/journal/12033","https://link.springer.com/journal/"]
[null,11032,"Molecular Breeding","1572-9788","Springer","Life Sciences","Biomedical and Life Sciences","Hybrid","CC BY","https://link.springer.com/journal/11032","https://link.springer.com/journal/"]
[null,11010,"Molecular and Cellular Biochemistry","1573-4919","Springer","Life Sciences","Biomedical and Life Sciences","Hybrid","CC BY","https://link.springer.com/journal/11010","https://link.springer.com/journal/"]
[null,13273,"Molecular & Cellular Toxicology","2092-8467","The Korean Society of Toxicogenomics and Toxicoproteomics, co-published with Springer","Life Sciences","Biomedical and Life Sciences","Hybrid","CC BY","https://link.springer.com/journal/13273","https://link.springer.com/journal/"]
[null,11030,"Molecular Diversity","1573-501X","Springer","Life Sciences","Biomedical and Life Sciences","Hybrid","CC BY","https://link.springer.com/journal/11030","https://link.springer.com/journal/"]
[null,438,"Molecular Genetics and Genomics","1617-4623","Springer","Life Sciences","Biomedical and Life Sciences","Hybrid","CC BY","https://link.springer.com/journal/438","https://link.springer.com/journal/"]
[null,11307,"Molecular Imaging and Biology","1860-2002","Springer","Medicine & Public Health","Medicine","Hybrid","CC BY","https://link.springer.com/journal/11307","https://link.springer.com/journal/"]
[null,12035,"Molecular Neurobiology","1559-1182","Springer","Biomedicine","Biomedical and Life Sciences","Hybrid","CC BY","https://link.springer.com/journal/12035","https://link.springer.com/journal/"]
[null,40592,"Monash Bioethics Review","1836-6716","Springer","Philosophy","Education","Hybrid","CC BY","https://link.springer.com/journal/40592","https://link.springer.com/journal/"]
[null,706,"Monatshefte für Chemie - Chemical Monthly","1434-4475","Springer","Chemistry","Chemistry and Materials Science","Hybrid","CC BY","https://link.springer.com/journal/706","https://link.springer.com/journal/"]
[null,605,"Monatshefte für Mathematik","1436-5081","Springer","Mathematics","Mathematics and Statistics","Hybrid","CC BY","https://link.springer.com/journal/605","https://link.springer.com/journal/"]
[null,11525,"Morphology","1871-5656","Springer","Linguistics","Social Sciences","Hybrid","CC BY","https://link.springer.com/journal/11525","https://link.springer.com/journal/"]
[null,11031,"Motivation and Emotion","1573-6644","Springer","Psychology","Behavioral Science and Psychology","Hybrid","CC BY","https://link.springer.com/journal/11031","https://link.springer.com/journal/"]
[null,11044,"Multibody System Dynamics","1573-272X","Springer","Engineering","Engineering","Hybrid","CC BY","https://link.springer.com/journal/11044","https://link.springer.com/journal/"]
[null,11045,"Multidimensional Systems and Signal Processing","1573-0824","Springer","Engineering","Engineering","Hybrid","CC BY","https://link.springer.com/journal/11045","https://link.springer.com/journal/"]
[null,530,"Multimedia Systems","1432-1882","Springer","Computer Science","Computer Science","Hybrid","CC BY","https://link.springer.com/journal/530","https://link.springer.com/journal/"]
[null,11042,"Multimedia Tools and Applications","1573-7721","Springer","Computer Science","Computer Science","Hybrid","CC BY","https://link.springer.com/journal/11042","https://link.springer.com/journal/"]
[null,42493,"Multiscale Science and Engineering","2524-4523","Springer","Engineering","Engineering","Hybrid","CC BY","https://link.springer.com/journal/42493","https://link.springer.com/journal/"]
[null,11557,"Mycological Progress","1861-8952","Springer","Life Sciences","Biomedical and Life Sciences","Hybrid","CC BY","https://link.springer.com/journal/11557","https://link.springer.com/journal/"]
[null,11046,"Mycopathologia","1573-0832","Springer","Life Sciences","Biomedical and Life Sciences","Hybrid","CC BY","https://link.springer.com/journal/11046","https://link.springer.com/journal/"]
[null,572,"Mycorrhiza","1432-1890","Springer","Life Sciences","Biomedical and Life Sciences","Hybrid","CC BY","https://link.springer.com/journal/572","https://link.springer.com/journal/"]
[null,11582,"Journal of Zhejiang University-SCIENCE A","1862-1775","Zhejiang University Press, co-published with Springer","Engineering","Engineering","Hybrid","CC BY","https://link.springer.com/journal/11582","https://link.springer.com/journal/"]
[null,11585,"Journal of Zhejiang University-SCIENCE B","1862-1783","Zhejiang University Press, co-published with Springer","Biomedicine","Biomedical and Life Sciences","Hybrid","CC BY","https://link.springer.com/journal/11585","https://link.springer.com/journal/"]
[null,42439,"Jus Cogens","2524-3985","Springer","Law","Law and Criminology","Hybrid","CC BY","https://link.springer.com/journal/42439","https://link.springer.com/journal/"]
[null,13218,"KI - Künstliche Intelligenz","1610-1987","Springer","Computer Science","Computer Science","Hybrid","CC BY","https://link.springer.com/journal/13218","https://link.springer.com/journal/"]
[null,42489,"KN - Journal of Cartography and Geographic Information","2524-4965","Springer","Geography","Earth and Environmental Science","Hybrid","CC BY","https://link.springer.com/journal/42489","https://link.springer.com/journal/"]
[null,11577,"KZfSS Kölner Zeitschrift für Soziologie und Sozialpsychologie","1861-891X","Springer","Social Sciences","Social Sciences","Hybrid","CC BY","https://link.springer.com/journal/11577","https://link.springer.com/journal/"]
[null,12225,"Kew Bulletin","1874-933X","Springer","Life Sciences","Biomedical and Life Sciences","Hybrid","CC BY","https://link.springer.com/journal/12225","https://link.springer.com/journal/"]
[null,10115,"Knowledge and Information Systems","0219-3116","Springer","Computer Science","Computer Science","Hybrid","CC BY","https://link.springer.com/journal/10115","https://link.springer.com/journal/"]
[null,13367,"Korea-Australia Rheology Journal","2093-7660","Springer","Materials Science","Chemistry and Materials Science","Hybrid","CC BY","https://link.springer.com/journal/13367","https://link.springer.com/journal/"]
[null,11814,"Korean Journal of Chemical Engineering","1975-7220","Springer","Chemistry","Chemistry and Materials Science","Hybrid","CC BY","https://link.springer.com/journal/11814","https://link.springer.com/journal/"]
[null,40619,"L'Endocrinologo","1720-8351","Springer","Medicine & Public Health","Medicine","Hybrid","CC BY","https://link.springer.com/journal/40619","https://link.springer.com/journal/"]
[null,11355,"Landscape and Ecological Engineering","1860-188X","Springer","Life Sciences","Biomedical and Life Sciences","Hybrid","CC BY","https://link.springer.com/journal/11355","https://link.springer.com/journal/"]
[null,10346,"Landslides","1612-5118","Springer","Earth Sciences","Earth and Environmental Science","Hybrid","CC BY","https://link.springer.com/journal/10346","https://link.springer.com/journal/"]
[null,10993,"Language Policy","1573-1863","Springer","Linguistics","Social Sciences","Hybrid","CC BY","https://link.springer.com/journal/10993","https://link.springer.com/journal/"]
[null,10579,"Language Resources and Evaluation","1574-0218","Springer","Linguistics","Social Sciences","Hybrid","CC BY","https://link.springer.com/journal/10579","https://link.springer.com/journal/"]
[null,41547,"Lasers in Dental Science","2367-2587","Springer","Dentistry","Medicine","Hybrid","CC BY","https://link.springer.com/journal/41547","https://link.springer.com/journal/"]
[null,40516,"Lasers in Manufacturing and Materials Processing","2196-7237","Springer","Engineering","Engineering","Hybrid","CC BY","https://link.springer.com/journal/40516","https://link.springer.com/journal/"]
[null,10978,"Law and Critique","1572-8617","Springer","Philosophy","Education","Hybrid","CC BY",{"$f":"K1257&B1257","v":"https://link.springer.com/journal/10978"},"https://link.springer.com/journal/"]
[null,10982,"Law and Philosophy","1573-0522","Springer","Law","Law and Criminology","Hybrid","CC BY","https://link.springer.com/journal/10982","https://link.springer.com/journal/"]
[null,13420,"Learning & Behavior","1543-4508","Springer","Psychology","Behavioral Science and Psychology","Hybrid","CC BY","https://link.springer.com/journal/13420","https://link.springer.com/journal/"]
[null,10984,"Learning Environments Research","1573-1855","Springer","Education","Education","Hybrid","CC BY","https://link.springer.com/journal/10984","https://link.springer.com/journal/"]
[null,11005,"Letters in Mathematical Physics","1573-0530","Springer","Physics","Physics and Astronomy","Hybrid","CC BY","https://link.springer.com/journal/11005","https://link.springer.com/journal/"]
[null,12076,"Letters in Spatial and Resource Sciences","1864-404X","Springer","Economics","Economics and Finance","Hybrid","CC BY","https://link.springer.com/journal/12076","https://link.springer.com/journal/"]
[null,41872,"Life Cycle Reliability and Safety Engineering","2520-1360","Springer","Engineering","Engineering","Hybrid","CC BY","https://link.springer.com/journal/41872","https://link.springer.com/journal/"]
[null,10985,"Lifetime Data Analysis","1572-9249","Springer","Statistics","Mathematics and Statistics","Hybrid","CC BY","https://link.springer.com/journal/10985","https://link.springer.com/journal/"]
[null,10201,"Limnology","1439-863X","Springer","Life Sciences","Biomedical and Life Sciences","Hybrid","CC BY","https://link.springer.com/journal/10201","https://link.springer.com/journal/"]
[null,10988,"Linguistics and Philosophy","1573-0549","Springer","Linguistics","Social Sciences","Hybrid","CC BY","https://link.springer.com/journal/10988","https://link.springer.com/journal/"]
[null,10986,"Lithuanian Mathematical Journal","1573-8825","Springer","Mathematics","Mathematics and Statistics","Hybrid","CC BY","https://link.springer.com/journal/10986","https://link.springer.com/journal/"]
[null,10991,"Liverpool Law Review","1572-8625","Springer","Law","Law and Criminology","Hybrid","CC BY","https://link.springer.com/journal/10991","https://link.springer.com/journal/"]
[null,11787,"Logica Universalis","1661-8300","Springer","Mathematics","Mathematics and Statistics","Hybrid","CC BY","https://link.springer.com/journal/11787","https://link.springer.com/journal/"]
[null,408,"Lung","1432-1750","Springer","Medicine & Public Health","Medicine","Hybrid","CC BY","https://link.springer.com/journal/408","https://link.springer.com/journal/"]
[null,12647,"MAPAN","0974-9853","Springer","Physics","Physics and Astronomy","Hybrid","CC BY","https://link.springer.com/journal/12647","https://link.springer.com/journal/"]
[null,40300,"METRON","2281-695X","Springer","Statistics","Mathematics and Statistics","Hybrid","CC BY","https://link.springer.com/journal/40300","https://link.springer.com/journal/"]
[null,43580,"MRS Advances","2059-8521","Springer","Materials Science","Chemistry and Materials Science","Hybrid","CC BY","https://link.springer.com/journal/43580","https://link.springer.com/journal/"]
[null,43577,"MRS Bulletin","1938-1425","Springer","Materials Science","Chemistry and Materials Science","Hybrid","CC BY","https://link.springer.com/journal/43577","https://link.springer.com/journal/"]
[null,43579,"MRS Communications","2159-6867","Springer","Materials Science","Chemistry and Materials Science","Hybrid","CC BY","https://link.springer.com/journal/43579","https://link.springer.com/journal/"]
[null,43581,"MRS Energy & Sustainability","2329-2237","Springer","Materials Science","Chemistry and Materials Science","Hybrid","CC BY","https://link.springer.com/journal/43581","https://link.springer.com/journal/"]
[null,12306,"MUSCULOSKELETAL SURGERY","2035-5114","Springer","Medicine & Public Health","Medicine","Hybrid","CC BY","https://link.springer.com/journal/12306","https://link.springer.com/journal/"]
[null,11633,"Machine Intelligence Research","2731-5398","Springer","Computer Science","Computer Science","Hybrid","CC BY","https://link.springer.com/journal/11633","https://link.springer.com/journal/"]
[null,10994,"Machine Learning","1573-0565","Springer","Computer Science","Computer Science","Hybrid","CC BY","https://link.springer.com/journal/10994","https://link.springer.com/journal/"]
[null,138,"Machine Vision and Applications","1432-1769","Springer","Computer Science","Computer Science","Hybrid","CC BY","https://link.springer.com/journal/138","https://link.springer.com/journal/"]
[null,13233,"Macromolecular Research","2092-7673","The Polymer Society of Korea, co-published with Springer","Chemistry","Chemistry and Materials Science","Hybrid","CC BY","https://link.springer.com/journal/13233","https://link.springer.com/journal/"]
[null,10334,"Magnetic Resonance Materials in Physics, Biology and Medicine","1352-8661","Springer","Medicine & Public Health","Medicine","Hybrid","CC BY","https://link.springer.com/journal/10334","https://link.springer.com/journal/"]
[null,13364,"Mammal Research","2199-241X","Springer","Life Sciences","Biomedical and Life Sciences","Hybrid","CC BY","https://link.springer.com/journal/13364","https://link.springer.com/journal/"]
[null,42991,"Mammalian Biology","1618-1476","Springer","Life Sciences","Biomedical and Life Sciences","Hybrid","CC BY","https://link.springer.com/journal/42991","https://link.springer.com/journal/"]
[null,335,"Mammalian Genome","1432-1777","Springer","Life Sciences","Biomedical and Life Sciences","Hybrid","CC BY","https://link.springer.com/journal/335","https://link.springer.com/journal/"]
[null,11575,"Management International Review","1861-8901","Springer","Business and Management","Business and Management","Hybrid","CC BY","https://link.springer.com/journal/11575","https://link.springer.com/journal/"]
[null,11301,"Management Review Quarterly","2198-1639","Springer","Business and Management","Business and Management","Hybrid","CC BY","https://link.springer.com/journal/11301","https://link.springer.com/journal/"]
[null,12526,"Marine Biodiversity","1867-1624","Springer","Life Sciences","Biomedical and Life Sciences","Hybrid","CC BY","https://link.springer.com/journal/12526","https://link.springer.com/journal/"]
[null,227,"Marine Biology","1432-1793","Springer","Life Sciences","Biomedical and Life Sciences","Hybrid","CC BY","https://link.springer.com/journal/227","https://link.springer.com/journal/"]
[null,10126,"Marine Biotechnology","1436-2236","Springer","Life Sciences","Biomedical and Life Sciences","Hybrid","CC BY","https://link.springer.com/journal/10126","https://link.springer.com/journal/"]
[null,11001,"Marine Geophysical Research","1573-0581","Springer","Earth Sciences","Earth and Environmental Science","Hybrid","CC BY","https://link.springer.com/journal/11001","https://link.springer.com/journal/"]
[null,42995,"Marine Life Science & Technology","2662-1746","Springer","Life Sciences","Biomedical and Life Sciences","Hybrid","CC BY","https://link.springer.com/journal/42995","https://link.springer.com/journal/"]
[null,40868,"Marine Systems & Ocean Technology","2199-4749","Springer","Engineering","Engineering","Hybrid","CC BY","https://link.springer.com/journal/40868","https://link.springer.com/journal/"]
[null,40152,"Maritime Studies","2212-9790","Springer","Social Sciences","Social Sciences","Hybrid","CC BY","https://link.springer.com/journal/40152","https://link.springer.com/journal/"]
[null,11002,"Marketing Letters","1573-059X","Springer","Business and Management","Business and Management","Hybrid","CC BY","https://link.springer.com/journal/11002","https://link.springer.com/journal/"]
[null,44007,"La Matematica","2730-9657","Springer","Mathematics","Mathematics and Statistics","Hybrid","CC BY","https://link.springer.com/journal/44007","https://link.springer.com/journal/"]
[null,42824,"Materials Circular Economy","2524-8154","Springer","Materials Science","Chemistry and Materials Science","Hybrid","CC BY","https://link.springer.com/journal/42824","https://link.springer.com/journal/"]
[null,11527,"Materials and Structures","1871-6873","Springer","Engineering","Engineering","Hybrid","CC BY","https://link.springer.com/journal/11527","https://link.springer.com/journal/"]
[null,10995,"Maternal and Child Health Journal","1573-6628","Springer","Medicine & Public Health","Medicine","Hybrid","CC BY","https://link.springer.com/journal/10995","https://link.springer.com/journal/"]
[null,11004,"Mathematical Geosciences","1874-8953","Springer","Earth Sciences","Earth and Environmental Science","Hybrid","CC BY","https://link.springer.com/journal/11004","https://link.springer.com/journal/"]
[null,283,"The Mathematical Intelligencer","1866-7414","Springer","Mathematics","Mathematics and Statistics","Hybrid","CC BY","https://link.springer.com/journal/283","https://link.springer.com/journal/"]
[null,186,"Mathematical Methods of Operations Research","1432-5217","Springer","Mathematics","Mathematics and Statistics","Hybrid","CC BY","https://link.springer.com/journal/186","https://link.springer.com/journal/"]
[null,11040,"Mathematical Physics, Analysis and Geometry","1572-9656","Springer","Physics","Physics and Astronomy","Hybrid","CC BY","https://link.springer.com/journal/11040","https://link.springer.com/journal/"]
[null,10107,"Mathematical Programming","1436-4646","Springer","Mathematics","Mathematics and Statistics","Hybrid","CC BY","https://link.springer.com/journal/10107","https://link.springer.com/journal/"]
[null,12532,"Mathematical Programming Computation","1867-2957","Springer","Mathematics","Mathematics and Statistics","Hybrid","CC BY","https://link.springer.com/journal/12532","https://link.springer.com/journal/"]
[null,11786,"Mathematics in Computer Science","1661-8289","Springer","Mathematics","Mathematics and Statistics","Hybrid","CC BY","https://link.springer.com/journal/11786","https://link.springer.com/journal/"]
[null,498,"Mathematics of Control, Signals, and Systems","1435-568X","Springer","Mathematics","Mathematics and Statistics","Hybrid","CC BY","https://link.springer.com/journal/498","https://link.springer.com/journal/"]
[null,13394,"Mathematics Education Research Journal","2211-050X","Springer","Education","Education","Hybrid","CC BY","https://link.springer.com/journal/13394","https://link.springer.com/journal/"]
[null,11579,"Mathematics and Financial Economics","1862-9660","Springer","Mathematics","Mathematics and Statistics","Hybrid","CC BY","https://link.springer.com/journal/11579","https://link.springer.com/journal/"]
[null,208,"Mathematische Annalen","1432-1807","Springer","Mathematics","Mathematics and Statistics","Hybrid","CC BY","https://link.springer.com/journal/208","https://link.springer.com/journal/"]
[null,591,"Mathematische Semesterberichte","1432-1815","Springer","Mathematics","Mathematics and Statistics","Hybrid","CC BY","https://link.springer.com/journal/591","https://link.springer.com/journal/"]
[null,209,"Mathematische Zeitschrift","1432-1823","Springer","Mathematics","Mathematics and Statistics","Hybrid","CC BY","https://link.springer.com/journal/209","https://link.springer.com/journal/"]
[null,11012,"Meccanica","1572-9648","Springer","Engineering","Engineering","Hybrid","CC BY","https://link.springer.com/journal/11012","https://link.springer.com/journal/"]
[null,42558,"Mechanics of Soft Materials","2524-5619","Springer","Engineering","Engineering","Hybrid","CC BY","https://link.springer.com/journal/42558","https://link.springer.com/journal/"]
[null,11043,"Mechanics of Time-Dependent Materials","1573-2738","Springer","Engineering","Engineering","Hybrid","CC BY","https://link.springer.com/journal/11043","https://link.springer.com/journal/"]
[null,11517,"Medical & Biological Engineering & Computing","1741-0444","Springer","Biomedicine","Biomedical and Life Sciences","Hybrid","CC BY","https://link.springer.com/journal/11517","https://link.springer.com/journal/"]
[null,430,"Medical Microbiology and Immunology","1432-1831","Springer","Biomedicine","Biomedical and Life Sciences","Hybrid","CC BY","https://link.springer.com/journal/430","https://link.springer.com/journal/"]
[null,795,"Medical Molecular Morphology","1860-1499","Springer","Medicine & Public Health","Medicine","Hybrid","CC BY","https://link.springer.com/journal/795","https://link.springer.com/journal/"]
[null,12032,"Medical Oncology","1559-131X","Springer","Medicine & Public Health","Medicine","Hybrid","CC BY","https://link.springer.com/journal/12032","https://link.springer.com/journal/"]
[null,40670,"Medical Science Educator","2156-8650","Springer","Education","Education","Hybrid","CC BY","https://link.springer.com/journal/40670","https://link.springer.com/journal/"]
[null,44,"Medicinal Chemistry Research","1554-8120","Springer","Biomedicine","Biomedical and Life Sciences","Hybrid","CC BY",{"$f":"K1321&B1321","v":"https://link.springer.com/journal/44"},"https://link.springer.com/journal/"]
[null,11019,"Medicine, Health Care and Philosophy","1572-8633","Springer","Philosophy","Education","Hybrid","CC BY","https://link.springer.com/journal/11019","https://link.springer.com/journal/"]
[null,42990,"Mediterranean Geoscience Reviews","2661-8648","Springer","Earth Sciences","Earth and Environmental Science","Hybrid","CC BY","https://link.springer.com/journal/42990","https://link.springer.com/journal/"]
[null,9,"Mediterranean Journal of Mathematics","1660-5454","Springer","Mathematics","Mathematics and Statistics","Hybrid","CC BY","https://link.springer.com/journal/9","https://link.springer.com/journal/"]
[null,350,"Medizinrecht","1433-8629","Springer","Law","Law and Criminology","Hybrid","CC BY","https://link.springer.com/journal/350","https://link.springer.com/journal/"]
[null,12293,"Memetic Computing","1865-9292","Springer","Engineering","Engineering","Hybrid","CC BY","https://link.springer.com/journal/12293","https://link.springer.com/journal/"]
[null,13421,"Memory & Cognition","1532-5946","Springer","Psychology","Behavioral Science and Psychology","Hybrid","CC BY","https://link.springer.com/journal/13421","https://link.springer.com/journal/"]
[null,11011,"Metabolic Brain Disease","1573-7365","Springer","Biomedicine","Biomedical and Life Sciences","Hybrid","CC BY","https://link.springer.com/journal/11011","https://link.springer.com/journal/"]
[null,13632,"Metallography, Microstructure, and Analysis","2192-9270","Springer","Materials Science","Chemistry and Materials Science","Hybrid","CC BY","https://link.springer.com/journal/13632","https://link.springer.com/journal/"]
[null,12540,"Metals and Materials International","2005-4149","The Korean Institute of Metals and Materials, co-published with Springer","Materials Science","Chemistry and Materials Science","Hybrid","CC BY","https://link.springer.com/journal/12540","https://link.springer.com/journal/"]
[null,11016,"Metascience","1467-9981","Springer","Philosophy","Education","Hybrid","CC BY","https://link.springer.com/journal/11016","https://link.springer.com/journal/"]
[null,703,"Meteorology and Atmospheric Physics","1436-5065","Springer","Earth Sciences","Earth and Environmental Science","Hybrid","CC BY","https://link.springer.com/journal/703","https://link.springer.com/journal/"]
[null,11009,"Methodology and Computing in Applied Probability","1573-7713","Springer","Statistics","Mathematics and Statistics","Hybrid","CC BY","https://link.springer.com/journal/11009","https://link.springer.com/journal/"]
[null,184,"Metrika","1435-926X","Springer","Statistics","Mathematics and Statistics","Hybrid","CC BY","https://link.springer.com/journal/184","https://link.springer.com/journal/"]
[null,604,"Microchimica Acta","1436-5073","Springer","Chemistry","Chemistry and Materials Science","Hybrid","CC BY","https://link.springer.com/journal/604","https://link.springer.com/journal/"]
[null,10404,"Microfluidics and Nanofluidics","1613-4990","Springer","Engineering","Engineering","Hybrid","CC BY","https://link.springer.com/journal/10404","https://link.springer.com/journal/"]
[null,12217,"Microgravity Science and Technology","1875-0494","Springer","Engineering","Engineering","Hybrid","CC BY","https://link.springer.com/journal/12217","https://link.springer.com/journal/"]
[null,542,"Microsystem Technologies","1432-1858","Springer","Engineering","Engineering","Hybrid","CC BY","https://link.springer.com/journal/542","https://link.springer.com/journal/"]
[null,32,"Milan Journal of Mathematics","1424-9294","Springer","Mathematics","Mathematics and Statistics","Hybrid","CC BY","https://link.springer.com/journal/32","https://link.springer.com/journal/"]
[null,12671,"Mindfulness","1868-8535","Springer","Psychology","Behavioral Science and Psychology","Hybrid","CC BY","https://link.springer.com/journal/12671","https://link.springer.com/journal/"]
[null,11023,"Minds and Machines","1572-8641","Springer","Computer Science","Computer Science","Hybrid","CC BY","https://link.springer.com/journal/11023","https://link.springer.com/journal/"]
[null,10230,"Mine Water and the Environment","1616-1068","Springer","Earth Sciences","Earth and Environmental Science","Hybrid","CC BY","https://link.springer.com/journal/10230","https://link.springer.com/journal/"]
[null,13563,"Mineral Economics","2191-2211","Springer","Economics","Economics and Finance","Hybrid","CC BY","https://link.springer.com/journal/13563","https://link.springer.com/journal/"]
[null,126,"Mineralium Deposita","1432-1866","Springer","Earth Sciences","Earth and Environmental Science","Hybrid","CC BY","https://link.springer.com/journal/126","https://link.springer.com/journal/"]
[null,710,"Mineralogy and Petrology","1438-1168","Springer","Earth Sciences","Earth and Environmental Science","Hybrid","CC BY","https://link.springer.com/journal/710","https://link.springer.com/journal/"]
[null,11024,"Minerva","1573-1871","Springer","Social Sciences","Social Sciences","Hybrid","CC BY","https://link.springer.com/journal/11024","https://link.springer.com/journal/"]
[null,10396,"Journal of Medical Ultrasonics","1613-2254","Springer","Medicine & Public Health","Medicine","Hybrid","CC BY","https://link.springer.com/journal/10396","https://link.springer.com/journal/"]
[null,41965,"Journal of Membrane Computing","2523-8914","Springer","Computer Science","Computer Science","Hybrid","CC BY","https://link.springer.com/journal/41965","https://link.springer.com/journal/"]
[null,13351,"Journal of Meteorological Research","2198-0934","The Chinese Meteorological Society, co-published with Springer","Earth Sciences","Earth and Environmental Science","Hybrid","CC BY","https://link.springer.com/journal/13351","https://link.springer.com/journal/"]
[null,12213,"Journal of Micro and Bio Robotics","2194-6426","Springer","Engineering","Engineering","Hybrid","CC BY","https://link.springer.com/journal/12213","https://link.springer.com/journal/"]
[null,239,"Journal of Molecular Evolution","1432-1432","Springer","Life Sciences","Biomedical and Life Sciences","Hybrid","CC BY","https://link.springer.com/journal/239","https://link.springer.com/journal/"]
[null,10735,"Journal of Molecular Histology","1567-2387","Springer","Life Sciences","Biomedical and Life Sciences","Hybrid","CC BY","https://link.springer.com/journal/10735","https://link.springer.com/journal/"]
[null,109,"Journal of Molecular Medicine","1432-1440","Springer","Biomedicine","Biomedical and Life Sciences","Hybrid","CC BY","https://link.springer.com/journal/109","https://link.springer.com/journal/"]
[null,894,"Journal of Molecular Modeling","0948-5023","Springer","Chemistry","Chemistry and Materials Science","Hybrid","CC BY","https://link.springer.com/journal/894","https://link.springer.com/journal/"]
[null,12031,"Journal of Molecular Neuroscience","1559-1166","Springer","Biomedicine","Biomedical and Life Sciences","Hybrid","CC BY","https://link.springer.com/journal/12031","https://link.springer.com/journal/"]
[null,11629,"Journal of Mountain Science","1993-0321","Science Press, co-published with Springer","Earth Sciences","Earth and Environmental Science","Hybrid","CC BY","https://link.springer.com/journal/11629","https://link.springer.com/journal/"]
[null,12193,"Journal on Multimodal User Interfaces","1783-8738","Springer","Computer Science","Computer Science","Hybrid","CC BY","https://link.springer.com/journal/12193","https://link.springer.com/journal/"]
[null,10974,"Journal of Muscle Research and Cell Motility","1573-2657","Springer","Life Sciences","Biomedical and Life Sciences","Hybrid","CC BY","https://link.springer.com/journal/10974","https://link.springer.com/journal/"]
[null,11051,"Journal of Nanoparticle Research","1572-896X","Springer","Materials Science","Chemistry and Materials Science","Hybrid","CC BY","https://link.springer.com/journal/11051","https://link.springer.com/journal/"]
[null,11418,"Journal of Natural Medicines","1861-0293","Springer","Biomedicine","Biomedical and Life Sciences","Hybrid","CC BY","https://link.springer.com/journal/11418","https://link.springer.com/journal/"]
[null,10922,"Journal of Network and Systems Management","1573-7705","Springer","Computer Science","Computer Science","Hybrid","CC BY","https://link.springer.com/journal/10922","https://link.springer.com/journal/"]
[null,702,"Journal of Neural Transmission","1435-1463","Springer","Medicine & Public Health","Medicine","Hybrid","CC BY","https://link.springer.com/journal/702","https://link.springer.com/journal/"]
[null,11060,"Journal of Neuro-Oncology","1573-7373","Springer","Medicine & Public Health","Medicine","Hybrid","CC BY","https://link.springer.com/journal/11060","https://link.springer.com/journal/"]
[null,13365,"Journal of NeuroVirology","1538-2443","Springer","Biomedicine","Biomedical and Life Sciences","Hybrid","CC BY","https://link.springer.com/journal/13365","https://link.springer.com/journal/"]
[null,11481,"Journal of Neuroimmune Pharmacology","1557-1904","Springer","Biomedicine","Biomedical and Life Sciences","Hybrid","CC BY","https://link.springer.com/journal/11481","https://link.springer.com/journal/"]
[null,415,"Journal of Neurology","1432-1459","Springer","Medicine & Public Health","Medicine","Hybrid","CC BY","https://link.springer.com/journal/415","https://link.springer.com/journal/"]
[null,10921,"Journal of Nondestructive Evaluation","1573-4862","Springer","Engineering","Engineering","Hybrid","CC BY","https://link.springer.com/journal/10921","https://link.springer.com/journal/"]
[null,332,"Journal of Nonlinear Science","1432-1467","Springer","Mathematics","Mathematics and Statistics","Hybrid","CC BY","https://link.springer.com/journal/332","https://link.springer.com/journal/"]
[null,10919,"Journal of Nonverbal Behavior","1573-3653","Springer","Psychology","Behavioral Science and Psychology","Hybrid","CC BY","https://link.springer.com/journal/10919","https://link.springer.com/journal/"]
[null,10926,"Journal of Occupational Rehabilitation","1573-3688","Springer","Medicine & Public Health","Medicine","Hybrid","CC BY","https://link.springer.com/journal/10926","https://link.springer.com/journal/"]
[null,40722,"Journal of Ocean Engineering and Marine Energy","2198-6452","Springer","Engineering","Engineering","Hybrid","CC BY","https://link.springer.com/journal/40722","https://link.springer.com/journal/"]
[null,11802,"Journal of Ocean University of China","1993-5021","Science Press, co-published with Springer","Earth Sciences","Earth and Environmental Science","Hybrid","CC BY","https://link.springer.com/journal/11802","https://link.springer.com/journal/"]
[null,10872,"Journal of Oceanography","1573-868X","Springer","Earth Sciences","Earth and Environmental Science","Hybrid","CC BY","https://link.springer.com/journal/10872","https://link.springer.com/journal/"]
[null,343,"Journal of Oceanology and Limnology","2523-3521","Science Press, co-published with Springer","Earth Sciences","Earth and Environmental Science","Hybrid","CC BY","https://link.springer.com/journal/343","https://link.springer.com/journal/"]
[null,40305,"Journal of the Operations Research Society of China","2194-6698","Springer","Mathematics","Mathematics and Statistics","Hybrid","CC BY","https://link.springer.com/journal/40305","https://link.springer.com/journal/"]
[null,12596,"Journal of Optics","0974-6900","Springer","Physics","Physics and Astronomy","Hybrid","CC BY","https://link.springer.com/journal/12596","https://link.springer.com/journal/"]
[null,10957,"Journal of Optimization Theory and Applications","1573-2878","Springer","Mathematics","Mathematics and Statistics","Hybrid","CC BY","https://link.springer.com/journal/10957","https://link.springer.com/journal/"]
[null,41469,"Journal of Organization Design","2245-408X","Springer","Business and Management","Business and Management","Hybrid","CC BY","https://link.springer.com/journal/41469","https://link.springer.com/journal/"]
[null,10336,"Journal of Ornithology","2193-7206","Springer","Life Sciences","Biomedical and Life Sciences","Hybrid","CC BY","https://link.springer.com/journal/10336","https://link.springer.com/journal/"]
[null,42322,"Journal of Outdoor and Environmental Education","2522-879X","Springer","Education","Education","Hybrid","CC BY","https://link.springer.com/journal/42322","https://link.springer.com/journal/"]
[null,41783,"Journal of Packaging Technology and Research","2520-1042","Springer","Engineering","Engineering","Hybrid","CC BY","https://link.springer.com/journal/41783","https://link.springer.com/journal/"]
[null,10933,"Journal of Paleolimnology","1573-0417","Springer","Earth Sciences","Earth and Environmental Science","Hybrid","CC BY","https://link.springer.com/journal/10933","https://link.springer.com/journal/"]
[null,41982,"Journal of Paleolithic Archaeology","2520-8217","Springer","Social Sciences","Social Sciences","Hybrid","CC BY","https://link.springer.com/journal/41982","https://link.springer.com/journal/"]
[null,12639,"Journal of Parasitic Diseases","0975-0703","Springer","Medicine & Public Health","Medicine","Hybrid","CC BY","https://link.springer.com/journal/12639","https://link.springer.com/journal/"]
[null,42804,"Journal of Pediatric Endoscopic Surgery","2524-7883","Springer","Medicine & Public Health","Medicine","Hybrid","CC BY",{"$f":"K1385&B1385","v":"https://link.springer.com/journal/42804"},"https://link.springer.com/journal/"]
[null,42102,"Journal of Peridynamics and Nonlocal Modeling","2522-8978","Springer","Engineering","Engineering","Hybrid","CC BY","https://link.springer.com/journal/42102","https://link.springer.com/journal/"]
[null,10340,"Journal of Pest Science","1612-4766","Springer","Life Sciences","Biomedical and Life Sciences","Hybrid","CC BY","https://link.springer.com/journal/10340","https://link.springer.com/journal/"]
[null,12247,"Journal of Pharmaceutical Innovation","1939-8042","Springer","Biomedicine","Biomedical and Life Sciences","Hybrid","CC BY","https://link.springer.com/journal/12247","https://link.springer.com/journal/"]
[null,40005,"Journal of Pharmaceutical Investigation","2093-6214","Springer","Biomedicine","Biomedical and Life Sciences","Hybrid","CC BY","https://link.springer.com/journal/40005","https://link.springer.com/journal/"]
[null,10928,"Journal of Pharmacokinetics and Pharmacodynamics","1573-8744","Springer","Biomedicine","Biomedical and Life Sciences","Hybrid","CC BY","https://link.springer.com/journal/10928","https://link.springer.com/journal/"]
[null,11669,"Journal of Phase Equilibria and Diffusion","1863-7345","Springer","Physics","Physics and Astronomy","Hybrid","CC BY","https://link.springer.com/journal/11669","https://link.springer.com/journal/"]
[null,10992,"Journal of Philosophical Logic","1573-0433","Springer","Philosophy","Education","Hybrid","CC BY","https://link.springer.com/journal/10992","https://link.springer.com/journal/"]
[null,13105,"Journal of Physiology and Biochemistry","1877-8755","Springer","Biomedicine","Biomedical and Life Sciences","Hybrid","CC BY","https://link.springer.com/journal/13105","https://link.springer.com/journal/"]
[null,13562,"Journal of Plant Biochemistry and Biotechnology","0974-1275","Springer","Life Sciences","Biomedical and Life Sciences","Hybrid","CC BY","https://link.springer.com/journal/13562","https://link.springer.com/journal/"]
[null,12374,"Journal of Plant Biology","1867-0725","Springer","Life Sciences","Biomedical and Life Sciences","Hybrid","CC BY","https://link.springer.com/journal/12374","https://link.springer.com/journal/"]
[null,41348,"Journal of Plant Diseases and Protection","1861-3837","Springer","Life Sciences","Biomedical and Life Sciences","Hybrid","CC BY","https://link.springer.com/journal/41348","https://link.springer.com/journal/"]
[null,344,"Journal of Plant Growth Regulation","1435-8107","Springer","Life Sciences","Biomedical and Life Sciences","Hybrid","CC BY","https://link.springer.com/journal/344","https://link.springer.com/journal/"]
[null,42161,"Journal of Plant Pathology","2239-7264","Springer","Life Sciences","Biomedical and Life Sciences","Hybrid","CC BY","https://link.springer.com/journal/42161","https://link.springer.com/journal/"]
[null,10265,"Journal of Plant Research","1618-0860","Springer","Life Sciences","Biomedical and Life Sciences","Hybrid","CC BY","https://link.springer.com/journal/10265","https://link.springer.com/journal/"]
[null,11896,"Journal of Police and Criminal Psychology","1936-6469","Springer","Psychology","Behavioral Science and Psychology","Hybrid","CC BY","https://link.springer.com/journal/11896","https://link.springer.com/journal/"]
[null,42972,"Journal of Policy Practice and Research","2662-1517","Springer","Social Sciences","Social Sciences","Hybrid","CC BY","https://link.springer.com/journal/42972","https://link.springer.com/journal/"]
[null,10965,"Journal of Polymer Research","1572-8935","Springer","Chemistry","Chemistry and Materials Science","Hybrid","CC BY","https://link.springer.com/journal/10965","https://link.springer.com/journal/"]
[null,10924,"Journal of Polymers and the Environment","1572-8919","Springer","Chemistry","Chemistry and Materials Science","Hybrid","CC BY","https://link.springer.com/journal/10924","https://link.springer.com/journal/"]
[null,12062,"Journal of Population Ageing","1874-7876","Springer","Social Sciences","Social Sciences","Hybrid","CC BY","https://link.springer.com/journal/12062","https://link.springer.com/journal/"]
[null,148,"Journal of Population Economics","1432-1475","Springer","Economics","Economics and Finance","Hybrid","CC BY","https://link.springer.com/journal/148","https://link.springer.com/journal/"]
[null,12546,"Journal of Population Research","1835-9469","Springer","Social Sciences","Social Sciences","Hybrid","CC BY","https://link.springer.com/journal/12546","https://link.springer.com/journal/"]
[null,10934,"Journal of Porous Materials","1573-4854","Springer","Chemistry","Chemistry and Materials Science","Hybrid","CC BY","https://link.springer.com/journal/10934","https://link.springer.com/journal/"]
[null,43236,"Journal of Power Electronics","2093-4718","Springer","Engineering","Engineering","Hybrid","CC BY","https://link.springer.com/journal/43236","https://link.springer.com/journal/"]
[null,10935,"Journal of Prevention","2731-5541","Springer","Medicine & Public Health","Medicine","Hybrid","CC BY","https://link.springer.com/journal/10935","https://link.springer.com/journal/"]
[null,11123,"Journal of Productivity Analysis","1573-0441","Springer","Economics","Economics and Finance","Hybrid","CC BY","https://link.springer.com/journal/11123","https://link.springer.com/journal/"]
[null,42485,"Journal of Proteins and Proteomics","2524-4663","Springer","Biomedicine","Biomedical and Life Sciences","Hybrid","CC BY","https://link.springer.com/journal/42485","https://link.springer.com/journal/"]
[null,11868,"Journal of Pseudo-Differential Operators and Applications","1662-999X","Springer","Mathematics","Mathematics and Statistics","Hybrid","CC BY","https://link.springer.com/journal/11868","https://link.springer.com/journal/"]
[null,10936,"Journal of Psycholinguistic Research","1573-6555","Springer","Psychology","Behavioral Science and Psychology","Hybrid","CC BY","https://link.springer.com/journal/10936","https://link.springer.com/journal/"]
[null,10862,"Journal of Psychopathology and Behavioral Assessment","1573-3505","Springer","Psychology","Behavioral Science and Psychology","Hybrid","CC BY","https://link.springer.com/journal/10862","https://link.springer.com/journal/"]
[null,40737,"Journal of Psychosocial Rehabilitation and Mental Health","2198-963X","Springer","Psychology","Behavioral Science and Psychology","Hybrid","CC BY","https://link.springer.com/journal/40737","https://link.springer.com/journal/"]
[null,10389,"Journal of Public Health","1613-2238","Springer","Medicine & Public Health","Medicine","Hybrid","CC BY","https://link.springer.com/journal/10389","https://link.springer.com/journal/"]
[null,10940,"Journal of Quantitative Criminology","1573-7799","Springer","Criminology and Criminal Justice","Law and Criminology","Hybrid","CC BY","https://link.springer.com/journal/10940","https://link.springer.com/journal/"]
[null,40953,"Journal of Quantitative Economics","2364-1045","Springer","Economics","Economics and Finance","Hybrid","CC BY","https://link.springer.com/journal/40953","https://link.springer.com/journal/"]
[null,40615,"Journal of Racial and Ethnic Health Disparities","2196-8837","Springer","Medicine & Public Health","Medicine","Hybrid","CC BY","https://link.springer.com/journal/40615","https://link.springer.com/journal/"]
[null,10967,"Journal of Radioanalytical and Nuclear Chemistry","1588-2780","Akadémiai Kiadó, co-published with Springer","Chemistry","Chemistry and Materials Science","Hybrid","CC BY","https://link.springer.com/journal/10967","https://link.springer.com/journal/"]
[null,10942,"Journal of Rational-Emotive & Cognitive-Behavior Therapy","1573-6563","Springer","Psychology","Behavioral Science and Psychology","Hybrid","CC BY","https://link.springer.com/journal/10942","https://link.springer.com/journal/"]
[null,11554,"Journal of Real-Time Image Processing","1861-8219","Springer","Computer Science","Computer Science","Hybrid","CC BY","https://link.springer.com/journal/11554","https://link.springer.com/journal/"]
[null,11149,"Journal of Regulatory Economics","1573-0468","Springer","Economics","Economics and Finance","Hybrid","CC BY","https://link.springer.com/journal/11149","https://link.springer.com/journal/"]
[null,40860,"Journal of Reliable Intelligent Environments","2199-4676","Springer","Computer Science","Computer Science","Hybrid","CC BY","https://link.springer.com/journal/40860","https://link.springer.com/journal/"]
[null,10943,"Journal of Religion and Health","1573-6571","Springer","Medicine & Public Health","Medicine","Hybrid","CC BY","https://link.springer.com/journal/10943","https://link.springer.com/journal/"]
[null,40839,"Journal of Religious Education","2199-4625","Springer","Education","Education","Hybrid","CC BY","https://link.springer.com/journal/40839","https://link.springer.com/journal/"]
[null,13243,"Journal of Remanufacturing","2210-4690","Springer","Engineering","Engineering","Hybrid","CC BY","https://link.springer.com/journal/13243","https://link.springer.com/journal/"]
[null,11166,"Journal of Risk and Uncertainty","1573-0476","Springer","Economics","Economics and Finance","Hybrid","CC BY","https://link.springer.com/journal/11166","https://link.springer.com/journal/"]
[null,11701,"Journal of Robotic Surgery","1863-2491","Springer","Medicine & Public Health","Medicine","Hybrid","CC BY","https://link.springer.com/journal/11701","https://link.springer.com/journal/"]
[null,42464,"Journal of Rubber Research","2524-3993","Springer","Materials Science","Chemistry and Materials Science","Hybrid","CC BY","https://link.springer.com/journal/42464","https://link.springer.com/journal/"]
[null,41979,"Journal for STEM Education Research","2520-8713","Springer","Education","Education","Hybrid","CC BY","https://link.springer.com/journal/41979","https://link.springer.com/journal/"]
[null,10951,"Journal of Scheduling","1099-1425","Springer","Business and Management","Business and Management","Hybrid","CC BY","https://link.springer.com/journal/10951","https://link.springer.com/journal/"]
[null,42978,"Journal of Science in Sport and Exercise","2662-1371","Springer","Biomedicine","Biomedical and Life Sciences","Hybrid","CC BY","https://link.springer.com/journal/42978","https://link.springer.com/journal/"]
[null,10956,"Journal of Science Education and Technology","1573-1839","Springer","Education","Education","Hybrid","CC BY","https://link.springer.com/journal/10956","https://link.springer.com/journal/"]
[null,10915,"Journal of Scientific Computing","1573-7691","Springer","Mathematics","Mathematics and Statistics","Hybrid","CC BY","https://link.springer.com/journal/10915","https://link.springer.com/journal/"]
[null,43217,"Journal of Sedimentary Environments","2447-9462","Springer","Earth Sciences","Earth and Environmental Science","Hybrid","CC BY","https://link.springer.com/journal/43217","https://link.springer.com/journal/"]
[null,10950,"Journal of Seismology","1573-157X","Springer","Earth Sciences","Earth and Environmental Science","Hybrid","CC BY","https://link.springer.com/journal/10950","https://link.springer.com/journal/"]
[null,12204,"Journal of Shanghai Jiaotong University (Science)","1995-8188","Shanghai Jiaotong University Press, co-published with Springer","Engineering","Engineering","Hybrid","CC BY","https://link.springer.com/journal/12204","https://link.springer.com/journal/"]
[null,12298,"Physiology and Molecular Biology of Plants","0974-0430","Springer","Life Sciences","Biomedical and Life Sciences","Hybrid","CC BY","https://link.springer.com/journal/12298","https://link.springer.com/journal/"]
[null,11101,"Phytochemistry Reviews","1572-980X","Springer","Life Sciences","Biomedical and Life Sciences","Hybrid","CC BY","https://link.springer.com/journal/11101","https://link.springer.com/journal/"]
[null,12600,"Phytoparasitica","1876-7184","Springer","Life Sciences","Biomedical and Life Sciences","Hybrid","CC BY","https://link.springer.com/journal/12600","https://link.springer.com/journal/"]
[null,11102,"Pituitary","1573-7403","Springer","Medicine & Public Health","Medicine","Hybrid","CC BY","https://link.springer.com/journal/11102","https://link.springer.com/journal/"]
[null,11816,"Plant Biotechnology Reports","1863-5474","Springer","Life Sciences","Biomedical and Life Sciences","Hybrid","CC BY","https://link.springer.com/journal/11816","https://link.springer.com/journal/"]
[null,11240,"Plant Cell, Tissue and Organ Culture (PCTOC)","1573-5044","Springer","Life Sciences","Biomedical and Life Sciences","Hybrid","CC BY","https://link.springer.com/journal/11240","https://link.springer.com/journal/"]
[null,299,"Plant Cell Reports","1432-203X","Springer","Life Sciences","Biomedical and Life Sciences","Hybrid","CC BY","https://link.springer.com/journal/299","https://link.springer.com/journal/"]
[null,11258,"Plant Ecology","1573-5052","Springer","Life Sciences","Biomedical and Life Sciences","Hybrid","CC BY","https://link.springer.com/journal/11258","https://link.springer.com/journal/"]
[null,11130,"Plant Foods for Human Nutrition","1573-9104","Springer","Chemistry","Chemistry and Materials Science","Hybrid","CC BY","https://link.springer.com/journal/11130","https://link.springer.com/journal/"]
[null,11103,"Plant Molecular Biology","1573-5028","Springer","Life Sciences","Biomedical and Life Sciences","Hybrid","CC BY","https://link.springer.com/journal/11103","https://link.springer.com/journal/"]
[null,11105,"Plant Molecular Biology Reporter","1572-9818","Springer","Life Sciences","Biomedical and Life Sciences","Hybrid","CC BY",{"$f":"K1449&B1449","v":"https://link.springer.com/journal/11105"},"https://link.springer.com/journal/"]
[null,40502,"Plant Physiology Reports","2662-2548","Springer","Life Sciences","Biomedical and Life Sciences","Hybrid","CC BY","https://link.springer.com/journal/40502","https://link.springer.com/journal/"]
[null,497,"Plant Reproduction","2194-7961","Springer","Life Sciences","Biomedical and Life Sciences","Hybrid","CC BY","https://link.springer.com/journal/497","https://link.springer.com/journal/"]
[null,11104,"Plant and Soil","1573-5036","Springer","Life Sciences","Biomedical and Life Sciences","Hybrid","CC BY","https://link.springer.com/journal/11104","https://link.springer.com/journal/"]
[null,606,"Plant Systematics and Evolution","1615-6110","Springer","Life Sciences","Biomedical and Life Sciences","Hybrid","CC BY","https://link.springer.com/journal/606","https://link.springer.com/journal/"]
[null,425,"Planta","1432-2048","Springer","Life Sciences","Biomedical and Life Sciences","Hybrid","CC BY","https://link.springer.com/journal/425","https://link.springer.com/journal/"]
[null,11090,"Plasma Chemistry and Plasma Processing","1572-8986","Springer","Chemistry","Chemistry and Materials Science","Hybrid","CC BY","https://link.springer.com/journal/11090","https://link.springer.com/journal/"]
[null,11468,"Plasmonics","1557-1963","Springer","Chemistry","Chemistry and Materials Science","Hybrid","CC BY","https://link.springer.com/journal/11468","https://link.springer.com/journal/"]
[null,300,"Polar Biology","1432-2056","Springer","Life Sciences","Biomedical and Life Sciences","Hybrid","CC BY","https://link.springer.com/journal/300","https://link.springer.com/journal/"]
[null,11077,"Policy Sciences","1573-0891","Springer","Political Science and International Relations","Political Science and International Studies","Hybrid","CC BY","https://link.springer.com/journal/11077","https://link.springer.com/journal/"]
[null,11109,"Political Behavior","1573-6687","Springer","Political Science and International Relations","Political Science and International Studies","Hybrid","CC BY","https://link.springer.com/journal/11109","https://link.springer.com/journal/"]
[null,11615,"Politische Vierteljahresschrift","1862-2860","Springer","Political Science and International Relations","Political Science and International Studies","Hybrid","CC BY","https://link.springer.com/journal/11615","https://link.springer.com/journal/"]
[null,289,"Polymer Bulletin","1436-2449","Springer","Chemistry","Chemistry and Materials Science","Hybrid","CC BY","https://link.springer.com/journal/289","https://link.springer.com/journal/"]
[null,43546,"SN Business & Economics","2662-9399","Springer Nature","Business and Management","Business and Management","Hybrid","CC BY","https://link.springer.com/journal/43546","https://link.springer.com/journal/"]
[null,42399,"SN Comprehensive Clinical Medicine","2523-8973","Springer Nature","Medicine & Public Health","Medicine","Hybrid","CC BY","https://link.springer.com/journal/42399","https://link.springer.com/journal/"]
[null,42979,"SN Computer Science","2661-8907","Springer Nature","Computer Science","Computer Science","Hybrid","CC BY","https://link.springer.com/journal/42979","https://link.springer.com/journal/"]
[null,43545,"SN Social Sciences","2662-9283","Springer Nature","Social Sciences","Social Sciences","Hybrid","CC BY","https://link.springer.com/journal/43545","https://link.springer.com/journal/"]
[null,42797,"Safety in Extreme Environments","2524-8189","Springer","Earth Sciences","Earth and Environmental Science","Hybrid","CC BY","https://link.springer.com/journal/42797","https://link.springer.com/journal/"]
[null,43670,"Sampling Theory, Signal Processing, and Data Analysis","2730-5724","Springer","Mathematics","Mathematics and Statistics","Hybrid","CC BY","https://link.springer.com/journal/43670","https://link.springer.com/journal/"]
[null,12310,"School Mental Health","1866-2633","Springer","Psychology","Behavioral Science and Psychology","Hybrid","CC BY","https://link.springer.com/journal/12310","https://link.springer.com/journal/"]
[null,114,"The Science of Nature","1432-1904","Springer","Life Sciences","Biomedical and Life Sciences","Hybrid","CC BY","https://link.springer.com/journal/114","https://link.springer.com/journal/"]
[null,11426,"Science China Chemistry","1869-1870","Science China Press, co-published with Springer","Chemistry","Chemistry and Materials Science","Hybrid","CC BY","https://link.springer.com/journal/11426","https://link.springer.com/journal/"]
[null,11430,"Science China Earth Sciences","1869-1897","Science China Press, co-published with Springer","Earth Sciences","Earth and Environmental Science","Hybrid","CC BY","https://link.springer.com/journal/11430","https://link.springer.com/journal/"]
[null,11432,"Science China Information Sciences","1869-1919","Science China Press, co-published with Springer","Computer Science","Computer Science","Hybrid","CC BY","https://link.springer.com/journal/11432","https://link.springer.com/journal/"]
[null,11427,"Science China Life Sciences","1869-1889","Science China Press, co-published with Springer","Life Sciences","Biomedical and Life Sciences","Hybrid","CC BY","https://link.springer.com/journal/11427","https://link.springer.com/journal/"]
[null,40843,"Science China Materials","2199-4501","Science China Press, co-published with Springer","Materials Science","Chemistry and Materials Science","Hybrid","CC BY","https://link.springer.com/journal/40843","https://link.springer.com/journal/"]
[null,11425,"Science China Mathematics","1869-1862","Science China Press, co-published with Springer","Mathematics","Mathematics and Statistics","Hybrid","CC BY","https://link.springer.com/journal/11425","https://link.springer.com/journal/"]
[null,11433,"Science China Physics, Mechanics & Astronomy","1869-1927","Science China Press, co-published with Springer","Physics","Physics and Astronomy","Hybrid","CC BY","https://link.springer.com/journal/11433","https://link.springer.com/journal/"]
[null,11431,"Science China Technological Sciences","1869-1900","Science China Press, co-published with Springer","Engineering","Engineering","Hybrid","CC BY","https://link.springer.com/journal/11431","https://link.springer.com/journal/"]
[null,11191,"Science & Education","1573-1901","Springer","Education","Education","Hybrid","CC BY","https://link.springer.com/journal/11191","https://link.springer.com/journal/"]
[null,11192,"Scientometrics","1588-2861","Akadémiai Kiadó, co-published with Springer","Computer Science","Computer Science","Hybrid","CC BY","https://link.springer.com/journal/11192","https://link.springer.com/journal/"]
[null,40324,"SeMA Journal","2281-7875","Springer","Mathematics","Mathematics and Statistics","Hybrid","CC BY","https://link.springer.com/journal/40324","https://link.springer.com/journal/"]
[null,29,"Selecta Mathematica","1420-9020","Springer","Mathematics","Mathematics and Statistics","Hybrid","CC BY","https://link.springer.com/journal/29","https://link.springer.com/journal/"]
[null,12550,"Mycotoxin Research","1867-1632","Springer","Life Sciences","Biomedical and Life Sciences","Hybrid","CC BY","https://link.springer.com/journal/12550","https://link.springer.com/journal/"]
[null,48,"NTM Zeitschrift für Geschichte der Wissenschaften, Technik und Medizin","1420-9144","Springer","History","History","Hybrid","CC BY","https://link.springer.com/journal/48","https://link.springer.com/journal/"]
[null,41204,"Nanotechnology for Environmental Engineering","2365-6387","Springer","Earth Sciences","Earth and Environmental Science","Hybrid","CC BY","https://link.springer.com/journal/41204","https://link.springer.com/journal/"]
[null,40009,"National Academy Science Letters","2250-1754","Springer","Science, Humanities and Social Sciences, multidisciplinary","Science (multidisciplinary)","Hybrid","CC BY","https://link.springer.com/journal/40009","https://link.springer.com/journal/"]
[null,10357,"Natur und Recht","1439-0515","Springer","Law","Law and Criminology","Hybrid","CC BY","https://link.springer.com/journal/10357","https://link.springer.com/journal/"]
[null,11047,"Natural Computing","1572-9796","Springer","Computer Science","Computer Science","Hybrid","CC BY","https://link.springer.com/journal/11047","https://link.springer.com/journal/"]
[null,11069,"Natural Hazards","1573-0840","Springer","Earth Sciences","Earth and Environmental Science","Hybrid","CC BY","https://link.springer.com/journal/11069","https://link.springer.com/journal/"]
[null,11049,"Natural Language & Linguistic Theory","1573-0859","Springer","Linguistics","Social Sciences","Hybrid","CC BY","https://link.springer.com/journal/11049","https://link.springer.com/journal/"]
[null,11050,"Natural Language Semantics","1572-865X","Springer","Linguistics","Social Sciences","Hybrid","CC BY","https://link.springer.com/journal/11050","https://link.springer.com/journal/"]
[null,11053,"Natural Resources Research","1573-8981","Springer","Earth Sciences","Earth and Environmental Science","Hybrid","CC BY","https://link.springer.com/journal/11053","https://link.springer.com/journal/"]
[null,210,"Naunyn-Schmiedeberg's Archives of Pharmacology","1432-1912","Springer","Biomedicine","Biomedical and Life Sciences","Hybrid","CC BY","https://link.springer.com/journal/210","https://link.springer.com/journal/"]
[null,11059,"Neohelicon","1588-2810","Akadémiai Kiadó, co-published with Springer","Literature","Literature, Cultural and Media Studies","Hybrid","CC BY","https://link.springer.com/journal/11059","https://link.springer.com/journal/"]
[null,11061,"Neophilologus","1572-8668","Springer","Linguistics","Social Sciences","Hybrid","CC BY","https://link.springer.com/journal/11061","https://link.springer.com/journal/"]
[null,13744,"Neotropical Entomology","1678-8052","Springer","Life Sciences","Biomedical and Life Sciences","Hybrid","CC BY","https://link.springer.com/journal/13744","https://link.springer.com/journal/"]
[null,13721,"Network Modeling Analysis in Health Informatics and Bioinformatics","2192-6670","Springer","Computer Science","Computer Science","Hybrid","CC BY","https://link.springer.com/journal/13721","https://link.springer.com/journal/"]
[null,11067,"Networks and Spatial Economics","1572-9427","Springer","Economics","Economics and Finance","Hybrid","CC BY","https://link.springer.com/journal/11067","https://link.springer.com/journal/"]
[null,521,"Neural Computing and Applications","1433-3058","Springer","Computer Science","Computer Science","Hybrid","CC BY","https://link.springer.com/journal/521","https://link.springer.com/journal/"]
[null,12017,"NeuroMolecular Medicine","1559-1174","Springer","Biomedicine","Biomedical and Life Sciences","Hybrid","CC BY","https://link.springer.com/journal/12017","https://link.springer.com/journal/"]
[null,11064,"Neurochemical Research","1573-6903","Springer","Biomedicine","Biomedical and Life Sciences","Hybrid","CC BY","https://link.springer.com/journal/11064","https://link.springer.com/journal/"]
[null,12028,"Neurocritical Care","1556-0961","Springer","Medicine & Public Health","Medicine","Hybrid","CC BY","https://link.springer.com/journal/12028","https://link.springer.com/journal/"]
[null,12152,"Neuroethics","1874-5504","Springer","Philosophy","Education","Hybrid","CC BY","https://link.springer.com/journal/12152","https://link.springer.com/journal/"]
[null,10048,"neurogenetics","1364-6753","Springer","Medicine & Public Health","Medicine","Hybrid","CC BY","https://link.springer.com/journal/10048","https://link.springer.com/journal/"]
[null,12021,"Neuroinformatics","1559-0089","Springer","Biomedicine","Biomedical and Life Sciences","Hybrid","CC BY","https://link.springer.com/journal/12021","https://link.springer.com/journal/"]
[null,10072,"Neurological Sciences","1590-3478","Springer","Medicine & Public Health","Medicine","Hybrid","CC BY","https://link.springer.com/journal/10072","https://link.springer.com/journal/"]
[null,11062,"Neurophysiology","1573-9007","Springer","Biomedicine","Biomedical and Life Sciences","Hybrid","CC BY","https://link.springer.com/journal/11062","https://link.springer.com/journal/"]
[null,11065,"Neuropsychology Review","1573-6660","Springer","Biomedicine","Biomedical and Life Sciences","Hybrid","CC BY","https://link.springer.com/journal/11065","https://link.springer.com/journal/"]
[null,234,"Neuroradiology","1432-1920","Springer","Medicine & Public Health","Medicine","Hybrid","CC BY","https://link.springer.com/journal/234","https://link.springer.com/journal/"]
[null,11055,"Neuroscience and Behavioral Physiology","1573-899X","Springer","Biomedicine","Biomedical and Life Sciences","Hybrid","CC BY","https://link.springer.com/journal/11055","https://link.springer.com/journal/"]
[null,12264,"Neuroscience Bulletin","1995-8218","Springer","Biomedicine","Biomedical and Life Sciences","Hybrid","CC BY","https://link.springer.com/journal/12264","https://link.springer.com/journal/"]
[null,10143,"Neurosurgical Review","1437-2320","Springer","Medicine & Public Health","Medicine","Hybrid","CC BY","https://link.springer.com/journal/10143","https://link.springer.com/journal/"]
[null,12640,"Neurotoxicity Research","1476-3524","Springer","Biomedicine","Biomedical and Life Sciences","Hybrid","CC BY","https://link.springer.com/journal/12640","https://link.springer.com/journal/"]
[null,11056,"New Forests","1573-5095","Springer","Life Sciences","Biomedical and Life Sciences","Hybrid","CC BY",{"$f":"K1513&B1513","v":"https://link.springer.com/journal/11056"},"https://link.springer.com/journal/"]
[null,354,"New Generation Computing","1882-7055","Springer","Computer Science","Computer Science","Hybrid","CC BY","https://link.springer.com/journal/354","https://link.springer.com/journal/"]
[null,40841,"New Zealand Journal of Educational Studies","2199-4714","Springer","Education","Education","Hybrid","CC BY","https://link.springer.com/journal/40841","https://link.springer.com/journal/"]
[null,4,"Nexus Network Journal","1522-4600","Springer","Mathematics","Mathematics and Statistics","Hybrid","CC BY","https://link.springer.com/journal/4","https://link.springer.com/journal/"]
[null,30,"Nonlinear Differential Equations and Applications NoDEA","1420-9004","Springer","Mathematics","Mathematics and Statistics","Hybrid","CC BY","https://link.springer.com/journal/30","https://link.springer.com/journal/"]
[null,11071,"Nonlinear Dynamics","1573-269X","Springer","Physics","Physics and Astronomy","Hybrid","CC BY","https://link.springer.com/journal/11071","https://link.springer.com/journal/"]
[null,13139,"Nuclear Medicine and Molecular Imaging","1869-3482","Springer","Medicine & Public Health","Medicine","Hybrid","CC BY","https://link.springer.com/journal/13139","https://link.springer.com/journal/"]
[null,41365,"Nuclear Science and Techniques","2210-3147","Springer","Physics","Physics and Astronomy","Hybrid","CC BY","https://link.springer.com/journal/41365","https://link.springer.com/journal/"]
[null,13237,"The Nucleus","0976-7975","Springer","Life Sciences","Biomedical and Life Sciences","Hybrid","CC BY","https://link.springer.com/journal/13237","https://link.springer.com/journal/"]
[null,11075,"Numerical Algorithms","1572-9265","Springer","Computer Science","Computer Science","Hybrid","CC BY","https://link.springer.com/journal/11075","https://link.springer.com/journal/"]
[null,211,"Numerische Mathematik","0945-3245","Springer","Mathematics","Mathematics and Statistics","Hybrid","CC BY","https://link.springer.com/journal/211","https://link.springer.com/journal/"]
[null,10705,"Nutrient Cycling in Agroecosystems","1573-0867","Springer","Life Sciences","Biomedical and Life Sciences","Hybrid","CC BY","https://link.springer.com/journal/10705","https://link.springer.com/journal/"]
[null,41110,"Nutrire","2316-7874","Springer","Medicine & Public Health","Medicine","Hybrid","CC BY","https://link.springer.com/journal/41110","https://link.springer.com/journal/"]
[null,12597,"OPSEARCH","0975-0320","Springer","Business and Management","Business and Management","Hybrid","CC BY","https://link.springer.com/journal/12597","https://link.springer.com/journal/"]
[null,291,"OR Spectrum","1436-6304","Springer","Business and Management","Business and Management","Hybrid","CC BY","https://link.springer.com/journal/291","https://link.springer.com/journal/"]
[null,11695,"Obesity Surgery","1708-0428","Springer","Medicine & Public Health","Medicine","Hybrid","CC BY","https://link.springer.com/journal/11695","https://link.springer.com/journal/"]
[null,41542,"Occupational Health Science","2367-0142","Springer","Psychology","Behavioral Science and Psychology","Hybrid","CC BY","https://link.springer.com/journal/41542","https://link.springer.com/journal/"]
[null,10236,"Ocean Dynamics","1616-7228","Springer","Earth Sciences","Earth and Environmental Science","Hybrid","CC BY","https://link.springer.com/journal/10236","https://link.springer.com/journal/"]
[null,12601,"Ocean Science Journal","2005-7172","Korea Institute of Ocean Science & Technology and The Korean Society of Oceanography, co-published with Springer","Earth Sciences","Earth and Environmental Science","Hybrid","CC BY","https://link.springer.com/journal/12601","https://link.springer.com/journal/"]
[null,10266,"Odontology","1618-1255","Springer","Dentistry","Medicine","Hybrid","CC BY","https://link.springer.com/journal/10266","https://link.springer.com/journal/"]
[null,442,"Oecologia","1432-1939","Springer","Life Sciences","Biomedical and Life Sciences","Hybrid","CC BY","https://link.springer.com/journal/442","https://link.springer.com/journal/"]
[null,11079,"Open Economies Review","1573-708X","Springer","Economics","Economics and Finance","Hybrid","CC BY","https://link.springer.com/journal/11079","https://link.springer.com/journal/"]
[null,12351,"Operational Research","1866-1505","Springer","Business and Management","Business and Management","Hybrid","CC BY","https://link.springer.com/journal/12351","https://link.springer.com/journal/"]
[null,12063,"Operations Management Research","1936-9743","Springer","Business and Management","Business and Management","Hybrid","CC BY","https://link.springer.com/journal/12063","https://link.springer.com/journal/"]
[null,43069,"Operations Research Forum","2662-2556","Springer","Business and Management","Business and Management","Hybrid","CC BY","https://link.springer.com/journal/43069","https://link.springer.com/journal/"]
[null,11082,"Optical and Quantum Electronics","1572-817X","Springer","Physics","Physics and Astronomy","Hybrid","CC BY","https://link.springer.com/journal/11082","https://link.springer.com/journal/"]
[null,10043,"Optical Review","1349-9432","Springer","Physics","Physics and Astronomy","Hybrid","CC BY","https://link.springer.com/journal/10043","https://link.springer.com/journal/"]
[null,11081,"Optimization and Engineering","1573-2924","Springer","Mathematics","Mathematics and Statistics","Hybrid","CC BY","https://link.springer.com/journal/11081","https://link.springer.com/journal/"]
[null,11590,"Optimization Letters","1862-4480","Springer","Mathematics","Mathematics and Statistics","Hybrid","CC BY","https://link.springer.com/journal/11590","https://link.springer.com/journal/"]
[null,11801,"Optoelectronics Letters","1993-5013","Springer","Physics","Physics and Astronomy","Hybrid","CC BY","https://link.springer.com/journal/11801","https://link.springer.com/journal/"]
[null,10006,"Oral and Maxillofacial Surgery","1865-1569","Springer","Medicine & Public Health","Medicine","Hybrid","CC BY","https://link.springer.com/journal/10006","https://link.springer.com/journal/"]
[null,11282,"Oral Radiology","1613-9674","Springer","Dentistry","Medicine","Hybrid","CC BY","https://link.springer.com/journal/11282","https://link.springer.com/journal/"]
[null,11083,"Order","1572-9273","Springer","Mathematics","Mathematics and Statistics","Hybrid","CC BY","https://link.springer.com/journal/11083","https://link.springer.com/journal/"]
[null,13165,"Organic Agriculture","1879-4246","Springer","Life Sciences","Biomedical and Life Sciences","Hybrid","CC BY","https://link.springer.com/journal/13165","https://link.springer.com/journal/"]
[null,11613,"Organisationsberatung, Supervision, Coaching","1862-2577","Springer","Psychology","Behavioral Science and Psychology","Hybrid","CC BY","https://link.springer.com/journal/11613","https://link.springer.com/journal/"]
[null,13127,"Organisms Diversity & Evolution","1618-1077","Springer","Life Sciences","Biomedical and Life Sciences","Hybrid","CC BY","https://link.springer.com/journal/13127","https://link.springer.com/journal/"]
[null,43388,"Ornithology Research","2662-673X","Springer","Life Sciences","Biomedical and Life Sciences","Hybrid","CC BY","https://link.springer.com/journal/43388","https://link.springer.com/journal/"]
[null,198,"Osteoporosis International","1433-2965","Springer","Medicine & Public Health","Medicine","Hybrid","CC BY-NC","https://link.springer.com/journal/198","https://link.springer.com/journal/"]
[null,41064,"PFG ? Journal of Photogrammetry, Remote Sensing and Geoinformation Science","2512-2819","Springer","Geography","Earth and Environmental Science","Hybrid","CC BY","https://link.springer.com/journal/41064","https://link.springer.com/journal/"]
[null,11125,"PROSPECTS","1573-9090","Springer","Education","Education","Hybrid","CC BY","https://link.springer.com/journal/11125","https://link.springer.com/journal/"]
[null,10333,"Paddy and Water Environment","1611-2504","Springer","Life Sciences","Biomedical and Life Sciences","Hybrid","CC BY","https://link.springer.com/journal/10333","https://link.springer.com/journal/"]
[null,12542,"PalZ","1867-6812","Springer","Earth Sciences","Earth and Environmental Science","Hybrid","CC BY","https://link.springer.com/journal/12542","https://link.springer.com/journal/"]
[null,12549,"Palaeobiodiversity and Palaeoenvironments","1867-1608","Springer","Earth Sciences","Earth and Environmental Science","Hybrid","CC BY","https://link.springer.com/journal/12549","https://link.springer.com/journal/"]
[null,42985,"Partial Differential Equations and Applications","2662-2971","Springer","Mathematics","Mathematics and Statistics","Hybrid","CC BY","https://link.springer.com/journal/42985","https://link.springer.com/journal/"]
[null,11089,"Pastoral Psychology","1573-6679","Springer","Psychology","Behavioral Science and Psychology","Hybrid","CC BY","https://link.springer.com/journal/11089","https://link.springer.com/journal/"]
[null,10044,"Pattern Analysis and Applications","1433-755X","Springer","Computer Science","Computer Science","Hybrid","CC BY","https://link.springer.com/journal/10044","https://link.springer.com/journal/"]
[null,246,"Pediatric Cardiology","1432-1971","Springer","Medicine & Public Health","Medicine","Hybrid","CC BY","https://link.springer.com/journal/246","https://link.springer.com/journal/"]
[null,467,"Pediatric Nephrology","1432-198X","Springer","Medicine & Public Health","Medicine","Hybrid","CC BY","https://link.springer.com/journal/467","https://link.springer.com/journal/"]
[null,247,"Pediatric Radiology","1432-1998","Springer","Medicine & Public Health","Medicine","Hybrid","CC BY","https://link.springer.com/journal/247","https://link.springer.com/journal/"]
[null,383,"Pediatric Surgery International","1437-9813","Springer","Medicine & Public Health","Medicine","Hybrid","CC BY","https://link.springer.com/journal/383","https://link.springer.com/journal/"]
[null,42543,"Peking Mathematical Journal","2524-7182","Springer","Mathematics","Mathematics and Statistics","Hybrid","CC BY","https://link.springer.com/journal/42543","https://link.springer.com/journal/"]
[null,10998,"Periodica Mathematica Hungarica","1588-2829","Akadémiai Kiadó, co-published with Springer","Mathematics","Mathematics and Statistics","Hybrid","CC BY","https://link.springer.com/journal/10998","https://link.springer.com/journal/"]
[null,41894,"Periodontal and Implant Research","2948-2453","Springer","Dentistry","Medicine","Hybrid","CC BY","https://link.springer.com/journal/41894","https://link.springer.com/journal/"]
[null,779,"Personal and Ubiquitous Computing","1617-4917","Springer","Computer Science","Computer Science","Hybrid","CC BY","https://link.springer.com/journal/779","https://link.springer.com/journal/"]
[null,40614,"Perspectives on Behavior Science","2520-8977","Springer","Psychology","Behavioral Science and Psychology","Hybrid","CC BY","https://link.springer.com/journal/40614","https://link.springer.com/journal/"]
[null,424,"Pflügers Archiv - European Journal of Physiology","1432-2013","Springer","Biomedicine","Biomedical and Life Sciences","Hybrid","CC BY","https://link.springer.com/journal/424","https://link.springer.com/journal/"]
[null,11095,"Pharmaceutical Research","1573-904X","Springer","Biomedicine","Biomedical and Life Sciences","Hybrid","CC BY","https://link.springer.com/journal/11095","https://link.springer.com/journal/"]
[null,43440,"Pharmacological Reports","2299-5684","Springer","Pharmacy","Medicine","Hybrid","CC BY","https://link.springer.com/journal/43440","https://link.springer.com/journal/"]
[null,11097,"Phenomenology and the Cognitive Sciences","1572-8676","Springer","Philosophy","Education","Hybrid","CC BY","https://link.springer.com/journal/11097","https://link.springer.com/journal/"]
[null,43657,"Phenomics","2730-5848","Springer","Biomedicine","Biomedical and Life Sciences","Hybrid","CC BY","https://link.springer.com/journal/43657","https://link.springer.com/journal/"]
[null,11406,"Philosophia","1574-9274","Springer","Philosophy","Education","Hybrid","CC BY","https://link.springer.com/journal/11406","https://link.springer.com/journal/"]
[null,11098,"Philosophical Studies","1573-0883","Springer","Philosophy","Education","Hybrid","CC BY","https://link.springer.com/journal/11098","https://link.springer.com/journal/"]
[null,40926,"Philosophy of Management","2052-9597","Springer","Philosophy","Education","Hybrid","CC BY","https://link.springer.com/journal/40926","https://link.springer.com/journal/"]
[null,13347,"Philosophy & Technology","2210-5441","Springer","Philosophy","Education","Hybrid","CC BY","https://link.springer.com/journal/13347","https://link.springer.com/journal/"]
[null,43630,"Photochemical & Photobiological Sciences","1474-9092","Springer","Chemistry","Chemistry and Materials Science","Hybrid","CC BY",{"$f":"K1577&B1577","v":"https://link.springer.com/journal/43630"},"https://link.springer.com/journal/"]
[null,11107,"Photonic Network Communications","1572-8188","Springer","Computer Science","Computer Science","Hybrid","CC BY","https://link.springer.com/journal/11107","https://link.springer.com/journal/"]
[null,11120,"Photosynthesis Research","1573-5079","Springer","Life Sciences","Biomedical and Life Sciences","Hybrid","CC BY","https://link.springer.com/journal/11120","https://link.springer.com/journal/"]
[null,13246,"Physical and Engineering Sciences in Medicine","2662-4737","Springer","Biomedicine","Biomedical and Life Sciences","Hybrid","CC BY","https://link.springer.com/journal/13246","https://link.springer.com/journal/"]
[null,269,"Physics and Chemistry of Minerals","1432-2021","Springer","Earth Sciences","Earth and Environmental Science","Hybrid","CC BY","https://link.springer.com/journal/269","https://link.springer.com/journal/"]
[null,16,"Physics in Perspective","1422-6960","Springer","Physics","Physics and Astronomy","Hybrid","CC BY","https://link.springer.com/journal/16","https://link.springer.com/journal/"]
[null,10209,"Universal Access in the Information Society","1615-5297","Springer","Computer Science","Computer Science","Hybrid","CC BY","https://link.springer.com/journal/10209","https://link.springer.com/journal/"]
[null,42010,"Unterrichtswissenschaft","2520-873X","Springer","Education","Education","Hybrid","CC BY","https://link.springer.com/journal/42010","https://link.springer.com/journal/"]
[null,13304,"Updates in Surgery","2038-3312","Springer","Medicine & Public Health","Medicine","Hybrid","CC BY","https://link.springer.com/journal/13304","https://link.springer.com/journal/"]
[null,11252,"Urban Ecosystems","1573-1642","Springer","Life Sciences","Biomedical and Life Sciences","Hybrid","CC BY","https://link.springer.com/journal/11252","https://link.springer.com/journal/"]
[null,12132,"Urban Forum","1874-6330","Springer","Social Sciences","Social Sciences","Hybrid","CC BY","https://link.springer.com/journal/12132","https://link.springer.com/journal/"]
[null,11256,"The Urban Review","1573-1960","Springer","Education","Education","Hybrid","CC BY","https://link.springer.com/journal/11256","https://link.springer.com/journal/"]
[null,240,"Urolithiasis","2194-7236","Springer","Medicine & Public Health","Medicine","Hybrid","CC BY","https://link.springer.com/journal/240","https://link.springer.com/journal/"]
[null,11257,"User Modeling and User-Adapted Interaction","1573-1391","Springer","Computer Science","Computer Science","Hybrid","CC BY","https://link.springer.com/journal/11257","https://link.springer.com/journal/"]
[null,778,"The VLDB Journal","0949-877X","Springer","Computer Science","Computer Science","Hybrid","CC BY","https://link.springer.com/journal/778","https://link.springer.com/journal/"]
[null,334,"Vegetation History and Archaeobotany","1617-6278","Springer","Earth Sciences","Earth and Environmental Science","Hybrid","CC BY","https://link.springer.com/journal/334","https://link.springer.com/journal/"]
[null,42535,"Vegetos","2229-4473","Springer","Life Sciences","Biomedical and Life Sciences","Hybrid","CC BY","https://link.springer.com/journal/42535","https://link.springer.com/journal/"]
[null,11259,"Veterinary Research Communications","1573-7446","Springer","Life Sciences","Biomedical and Life Sciences","Hybrid","CC BY","https://link.springer.com/journal/11259","https://link.springer.com/journal/"]
[null,10013,"Vietnam Journal of Mathematics","2305-2228","Springer","Mathematics","Mathematics and Statistics","Hybrid","CC BY","https://link.springer.com/journal/10013","https://link.springer.com/journal/"]
[null,428,"Virchows Archiv","1432-2307","Springer","Medicine & Public Health","Medicine","Hybrid","CC BY","https://link.springer.com/journal/428","https://link.springer.com/journal/"]
[null,11262,"Virus Genes","1572-994X","Springer","Biomedicine","Biomedical and Life Sciences","Hybrid","CC BY","https://link.springer.com/journal/11262","https://link.springer.com/journal/"]
[null,13337,"VirusDisease","2347-3517","Springer","Life Sciences","Biomedical and Life Sciences","Hybrid","CC BY","https://link.springer.com/journal/13337","https://link.springer.com/journal/"]
[null,371,"The Visual Computer","1432-2315","Springer","Computer Science","Computer Science","Hybrid","CC BY","https://link.springer.com/journal/371","https://link.springer.com/journal/"]
[null,10946,"Journal of Russian Laser Research","1573-8760","Springer","Physics","Physics and Astronomy","Hybrid","CC BY","https://link.springer.com/journal/10946","https://link.springer.com/journal/"]
[null,11182,"Russian Physics Journal","1573-9228","Springer","Physics","Physics and Astronomy","Hybrid","CC BY","https://link.springer.com/journal/11182","https://link.springer.com/journal/"]
[null,10593,"Chemistry of Heterocyclic Compounds","1573-8353","Springer","Chemistry","Chemistry and Materials Science","Hybrid","CC BY","https://link.springer.com/journal/10593","https://link.springer.com/journal/"]
[null,13340,"Diabetology International","2190-1686","Springer","Medicine & Public Health","Medicine","Hybrid","CC BY","https://link.springer.com/journal/13340","https://link.springer.com/journal/"]
[null,12303,"Geosciences Journal","1598-7477","Springer","Earth Sciences","Earth and Environmental Science","Hybrid","CC BY","https://link.springer.com/journal/12303","https://link.springer.com/journal/"]
[null,502,"e+i Elektrotechnik und Informationstechnik","1613-7620","Springer","Engineering","Engineering","Hybrid","CC BY","https://link.springer.com/journal/502","https://link.springer.com/journal/"]
[null,40802,"Netherlands International Law Review","1741-6191","Springer","Law","Law and Criminology","Hybrid","CC BY","https://link.springer.com/journal/40802","https://link.springer.com/journal/"]
[null,41811,"International Journal of Cognitive Behavioral Therapy","3059-3042","Springer","Psychology","Behavioral Science and Psychology","Hybrid","CC BY","https://link.springer.com/journal/41811","https://link.springer.com/journal/"]
[null,43039,"Italian Journal of Marketing","2662-3331","Springer","Business and Management","Business and Management","Hybrid","CC BY","https://link.springer.com/journal/43039","https://link.springer.com/journal/"]
[null,12022,"Endocrine Pathology","1559-0097","Springer","Medicine & Public Health","Medicine","Hybrid","CC BY","https://link.springer.com/journal/12022","https://link.springer.com/journal/"]
[null,40819,"International Journal of Applied and Computational Mathematics","2199-5796","Springer","Mathematics","Mathematics and Statistics","Hybrid","CC BY","https://link.springer.com/journal/40819","https://link.springer.com/journal/"]
[null,11111,"Population and Environment","1573-7810","Springer","Social Sciences","Social Sciences","Hybrid","CC BY","https://link.springer.com/journal/11111","https://link.springer.com/journal/"]
[null,11113,"Population Research and Policy Review","1573-7829","Springer","Social Sciences","Social Sciences","Hybrid","CC BY","https://link.springer.com/journal/11113","https://link.springer.com/journal/"]
[null,10258,"Portuguese Economic Journal","1617-9838","Springer","Economics","Economics and Finance","Hybrid","CC BY","https://link.springer.com/journal/10258","https://link.springer.com/journal/"]
[null,11117,"Positivity","1572-9281","Springer","Mathematics","Mathematics and Statistics","Hybrid","CC BY","https://link.springer.com/journal/11117","https://link.springer.com/journal/"]
[null,42438,"Postdigital Science and Education","2524-4868","Springer","Education","Education","Hybrid","CC BY","https://link.springer.com/journal/42438","https://link.springer.com/journal/"]
[null,11540,"Potato Research","1871-4528","Springer","Life Sciences","Biomedical and Life Sciences","Hybrid","CC BY","https://link.springer.com/journal/11540","https://link.springer.com/journal/"]
[null,11118,"Potential Analysis","1572-929X","Springer","Mathematics","Mathematics and Statistics","Hybrid","CC BY","https://link.springer.com/journal/11118","https://link.springer.com/journal/"]
[null,11106,"Powder Metallurgy and Metal Ceramics","1573-9066","Springer","Materials Science","Chemistry and Materials Science","Hybrid","CC BY","https://link.springer.com/journal/11106","https://link.springer.com/journal/"]
[null,11119,"Precision Agriculture","1573-1618","Springer","Life Sciences","Biomedical and Life Sciences","Hybrid","CC BY","https://link.springer.com/journal/11119","https://link.springer.com/journal/"]
[null,11121,"Prevention Science","1573-6695","Springer","Medicine & Public Health","Medicine","Hybrid","CC BY","https://link.springer.com/journal/11121","https://link.springer.com/journal/"]
[null,10329,"Primates","1610-7365","Springer","Life Sciences","Biomedical and Life Sciences","Hybrid","CC BY","https://link.springer.com/journal/10329","https://link.springer.com/journal/"]
[null,440,"Probability Theory and Related Fields","1432-2064","Springer","Mathematics","Mathematics and Statistics","Hybrid","CC BY","https://link.springer.com/journal/440","https://link.springer.com/journal/"]
[null,12602,"Probiotics and Antimicrobial Proteins","1867-1314","Springer","Life Sciences","Biomedical and Life Sciences","Hybrid","CC BY","https://link.springer.com/journal/12602","https://link.springer.com/journal/"]
[null,40010,"Proceedings of the National Academy of Sciences, India Section A: Physical Sciences","2250-1762","Springer","Physics","Physics and Astronomy","Hybrid","CC BY","https://link.springer.com/journal/40010","https://link.springer.com/journal/"]
[null,40011,"Proceedings of the National Academy of Sciences, India Section B: Biological Sciences","2250-1746","Springer","Life Sciences","Biomedical and Life Sciences","Hybrid","CC BY","https://link.springer.com/journal/40011","https://link.springer.com/journal/"]
[null,12595,"Proceedings of the Zoological Society","0974-6919","Springer","Life Sciences","Biomedical and Life Sciences","Hybrid","CC BY","https://link.springer.com/journal/12595","https://link.springer.com/journal/"]
[null,41660,"Process Integration and Optimization for Sustainability","2509-4246","Springer","Engineering","Engineering","Hybrid","CC BY","https://link.springer.com/journal/41660","https://link.springer.com/journal/"]
[null,11740,"Production Engineering","1863-7353","Springer","Engineering","Engineering","Hybrid","CC BY","https://link.springer.com/journal/11740","https://link.springer.com/journal/"]
[null,40964,"Progress in Additive Manufacturing","2363-9520","Springer","Engineering","Engineering","Hybrid","CC BY","https://link.springer.com/journal/40964","https://link.springer.com/journal/"]
[null,13748,"Progress in Artificial Intelligence","2192-6360","Springer","Computer Science","Computer Science","Hybrid","CC BY","https://link.springer.com/journal/13748","https://link.springer.com/journal/"]
[null,10930,"The Protein Journal","1875-8355","Springer","Chemistry","Chemistry and Materials Science","Hybrid","CC BY","https://link.springer.com/journal/10930","https://link.springer.com/journal/"]
[null,709,"Protoplasma","1615-6102","Springer","Life Sciences","Biomedical and Life Sciences","Hybrid","CC BY","https://link.springer.com/journal/709","https://link.springer.com/journal/"]
[null,11553,"Prävention und Gesundheitsförderung","1861-6763","Springer","Medicine & Public Health","Medicine","Hybrid","CC BY","https://link.springer.com/journal/11553","https://link.springer.com/journal/"]
[null,11126,"Psychiatric Quarterly","1573-6709","Springer","Medicine & Public Health","Medicine","Hybrid","CC BY","https://link.springer.com/journal/11126","https://link.springer.com/journal/"]
[null,12207,"Psychological Injury and Law","1938-9728","Springer","Psychology","Behavioral Science and Psychology","Hybrid","CC BY","https://link.springer.com/journal/12207","https://link.springer.com/journal/"]
[null,40732,"The Psychological Record","2163-3452","Springer","Psychology","Behavioral Science and Psychology","Hybrid","CC BY","https://link.springer.com/journal/40732","https://link.springer.com/journal/"]
[null,426,"Psychological Research","1430-2772","Springer","Psychology","Behavioral Science and Psychology","Hybrid","CC BY","https://link.springer.com/journal/426","https://link.springer.com/journal/"]
[null,12646,"Psychological Studies","0974-9861","Springer","Psychology","Behavioral Science and Psychology","Hybrid","CC BY","https://link.springer.com/journal/12646","https://link.springer.com/journal/"]
[null,13423,"Psychonomic Bulletin & Review","1531-5320","Springer","Psychology","Behavioral Science and Psychology","Hybrid","CC BY","https://link.springer.com/journal/13423","https://link.springer.com/journal/"]
[null,213,"Psychopharmacology","1432-2072","Springer","Biomedicine","Biomedical and Life Sciences","Hybrid","CC BY","https://link.springer.com/journal/213","https://link.springer.com/journal/"]
[null,11127,"Public Choice","1573-7101","Springer","Economics","Economics and Finance","Hybrid","CC BY",{"$f":"K1641&B1641","v":"https://link.springer.com/journal/11127"},"https://link.springer.com/journal/"]
[null,11115,"Public Organization Review","1573-7098","Springer","Political Science and International Relations","Political Science and International Studies","Hybrid","CC BY","https://link.springer.com/journal/11115","https://link.springer.com/journal/"]
[null,12469,"Public Transport","1613-7159","Springer","Business and Management","Business and Management","Hybrid","CC BY","https://link.springer.com/journal/12469","https://link.springer.com/journal/"]
[null,12109,"Publishing Research Quarterly","1936-4792","Springer","Social Sciences","Social Sciences","Hybrid","CC BY","https://link.springer.com/journal/12109","https://link.springer.com/journal/"]
[null,11616,"Publizistik","1862-2569","Springer","Social Sciences","Social Sciences","Hybrid","CC BY","https://link.springer.com/journal/11616","https://link.springer.com/journal/"]
[null,24,"Pure and Applied Geophysics","1420-9136","Springer","Earth Sciences","Earth and Environmental Science","Hybrid","CC BY","https://link.springer.com/journal/24","https://link.springer.com/journal/"]
[null,11302,"Purinergic Signalling","1573-9546","Springer","Biomedicine","Biomedical and Life Sciences","Hybrid","CC BY","https://link.springer.com/journal/11302","https://link.springer.com/journal/"]
[null,11133,"Qualitative Sociology","1573-7837","Springer","Social Sciences","Social Sciences","Hybrid","CC BY","https://link.springer.com/journal/11133","https://link.springer.com/journal/"]
[null,12346,"Qualitative Theory of Dynamical Systems","1662-3592","Springer","Mathematics","Mathematics and Statistics","Hybrid","CC BY","https://link.springer.com/journal/12346","https://link.springer.com/journal/"]
[null,11136,"Quality of Life Research","1573-2649","Springer","Medicine & Public Health","Medicine","Hybrid","CC BY","https://link.springer.com/journal/11136","https://link.springer.com/journal/"]
[null,11135,"Quality & Quantity","1573-7845","Springer","Social Sciences","Social Sciences","Hybrid","CC BY","https://link.springer.com/journal/11135","https://link.springer.com/journal/"]
[null,41233,"Quality and User Experience","2366-0147","Springer","Engineering","Engineering","Hybrid","CC BY","https://link.springer.com/journal/41233","https://link.springer.com/journal/"]
[null,11129,"Quantitative Marketing and Economics","1573-711X","Springer","Business and Management","Business and Management","Hybrid","CC BY","https://link.springer.com/journal/11129","https://link.springer.com/journal/"]
[null,11128,"Quantum Information Processing","1573-1332","Springer","Physics","Physics and Astronomy","Hybrid","CC BY","https://link.springer.com/journal/11128","https://link.springer.com/journal/"]
[null,42484,"Quantum Machine Intelligence","2524-4914","Springer","Engineering","Engineering","Hybrid","CC BY","https://link.springer.com/journal/42484","https://link.springer.com/journal/"]
[null,40509,"Quantum Studies: Mathematics and Foundations","2196-5617","Springer","Mathematics","Mathematics and Statistics","Hybrid","CC BY","https://link.springer.com/journal/40509","https://link.springer.com/journal/"]
[null,11134,"Queueing Systems","1572-9443","Springer","Business and Management","Business and Management","Hybrid","CC BY","https://link.springer.com/journal/11134","https://link.springer.com/journal/"]
[null,12552,"Race and Social Problems","1867-1756","Springer","Social Sciences","Social Sciences","Hybrid","CC BY","https://link.springer.com/journal/12552","https://link.springer.com/journal/"]
[null,41605,"Radiation Detection Technology and Methods","2509-9949","Springer","Physics","Physics and Astronomy","Hybrid","CC BY","https://link.springer.com/journal/41605","https://link.springer.com/journal/"]
[null,411,"Radiation and Environmental Biophysics","1432-2099","Springer","Physics","Physics and Astronomy","Hybrid","CC BY","https://link.springer.com/journal/411","https://link.springer.com/journal/"]
[null,12194,"Radiological Physics and Technology","1865-0341","Springer","Medicine & Public Health","Medicine","Hybrid","CC BY","https://link.springer.com/journal/12194","https://link.springer.com/journal/"]
[null,11139,"The Ramanujan Journal","1572-9303","Springer","Mathematics","Mathematics and Statistics","Hybrid","CC BY","https://link.springer.com/journal/11139","https://link.springer.com/journal/"]
[null,11144,"Reaction Kinetics, Mechanisms and Catalysis","1878-5204","Akadémiai Kiadó, co-published with Springer","Chemistry","Chemistry and Materials Science","Hybrid","CC BY","https://link.springer.com/journal/11144","https://link.springer.com/journal/"]
[null,11145,"Reading and Writing","1573-0905","Springer","Linguistics","Social Sciences","Hybrid","CC BY","https://link.springer.com/journal/11145","https://link.springer.com/journal/"]
[null,11241,"Real-Time Systems","1573-1383","Springer","Computer Science","Computer Science","Hybrid","CC BY","https://link.springer.com/journal/11241","https://link.springer.com/journal/"]
[null,40883,"Regenerative Engineering and Translational Medicine","2364-4141","Springer","Materials Science","Chemistry and Materials Science","Hybrid","CC BY","https://link.springer.com/journal/40883","https://link.springer.com/journal/"]
[null,10113,"Regional Environmental Change","1436-378X","Springer","Environment","Earth and Environmental Science","Hybrid","CC BY","https://link.springer.com/journal/10113","https://link.springer.com/journal/"]
[null,41976,"Remote Sensing in Earth Systems Sciences","2520-8209","Springer","Geography","Earth and Environmental Science","Hybrid","CC BY","https://link.springer.com/journal/41976","https://link.springer.com/journal/"]
[null,12210,"Rendiconti Lincei. Scienze Fisiche e Naturali","1720-0776","Springer","Environment","Earth and Environmental Science","Hybrid","CC BY","https://link.springer.com/journal/12210","https://link.springer.com/journal/"]
[null,12215,"Rendiconti del Circolo Matematico di Palermo Series 2","1973-4409","Springer","Mathematics","Mathematics and Statistics","Hybrid","CC BY","https://link.springer.com/journal/12215","https://link.springer.com/journal/"]
[null,43032,"Reproductive Sciences","1933-7205","Springer","Medicine & Public Health","Medicine","Hybrid","CC BY","https://link.springer.com/journal/43032","https://link.springer.com/journal/"]
[null,766,"Requirements Engineering","1432-010X","Springer","Computer Science","Computer Science","Hybrid","CC BY","https://link.springer.com/journal/766","https://link.springer.com/journal/"]
[null,11158,"Res Publica","1572-8692","Springer","Philosophy","Education","Hybrid","CC BY","https://link.springer.com/journal/11158","https://link.springer.com/journal/"]
[null,11164,"Research on Chemical Intermediates","1568-5675","Springer","Chemistry","Chemistry and Materials Science","Hybrid","CC BY","https://link.springer.com/journal/11164","https://link.springer.com/journal/"]
[null,10802,"Research on Child and Adolescent Psychopathology","2730-7174","Springer","Psychology","Behavioral Science and Psychology","Hybrid","CC BY","https://link.springer.com/journal/10802","https://link.springer.com/journal/"]
[null,163,"Research in Engineering Design","1435-6066","Springer","Engineering","Engineering","Hybrid","CC BY","https://link.springer.com/journal/163","https://link.springer.com/journal/"]
[null,11162,"Research in Higher Education","1573-188X","Springer","Education","Education","Hybrid","CC BY","https://link.springer.com/journal/11162","https://link.springer.com/journal/"]
[null,40687,"Research in the Mathematical Sciences","2197-9847","Springer","Mathematics","Mathematics and Statistics","Hybrid","CC BY","https://link.springer.com/journal/40687","https://link.springer.com/journal/"]
[null,40993,"Research in Number Theory","2363-9555","Springer","Mathematics","Mathematics and Statistics","Hybrid","CC BY","https://link.springer.com/journal/40993","https://link.springer.com/journal/"]
[null,11165,"Research in Science Education","1573-1898","Springer","Education","Education","Hybrid","CC BY","https://link.springer.com/journal/11165","https://link.springer.com/journal/"]
[null,25,"Results in Mathematics","1420-9012","Springer","Mathematics","Mathematics and Statistics","Hybrid","CC BY","https://link.springer.com/journal/25","https://link.springer.com/journal/"]
[null,11138,"The Review of Austrian Economics","1573-7128","Springer","Economics","Economics and Finance","Hybrid","CC BY","https://link.springer.com/journal/11138","https://link.springer.com/journal/"]
[null,11558,"The Review of International Organizations","1559-744X","Springer","Social Sciences","Social Sciences","Hybrid","CC BY","https://link.springer.com/journal/11558","https://link.springer.com/journal/"]
[null,12626,"The Review of Socionetwork Strategies","1867-3236","Springer","Business and Management","Business and Management","Hybrid","CC BY","https://link.springer.com/journal/12626","https://link.springer.com/journal/"]
[null,11142,"Review of Accounting Studies","1573-7136","Springer","Business and Management","Business and Management","Hybrid","CC BY","https://link.springer.com/journal/11142","https://link.springer.com/journal/"]
[null,41130,"Review of Agricultural, Food and Environmental Studies","2425-6897","Springer","Economics","Economics and Finance","Hybrid","CC BY","https://link.springer.com/journal/41130","https://link.springer.com/journal/"]
[null,11147,"Review of Derivatives Research","1573-7144","Springer","Finance","Economics and Finance","Hybrid","CC BY","https://link.springer.com/journal/11147","https://link.springer.com/journal/"]
[null,10058,"Review of Economic Design","1434-4750","Springer","Economics","Economics and Finance","Hybrid","CC BY","https://link.springer.com/journal/10058","https://link.springer.com/journal/"]
[null,11150,"Review of Economics of the Household","1573-7152","Springer","Economics","Economics and Finance","Hybrid","CC BY","https://link.springer.com/journal/11150","https://link.springer.com/journal/"]
[null,43253,"Review of Evolutionary Political Economy","2662-6144","Springer","Economics","Economics and Finance","Hybrid","CC BY","https://link.springer.com/journal/43253","https://link.springer.com/journal/"]
[null,11151,"Review of Industrial Organization","1573-7160","Springer","Economics","Economics and Finance","Hybrid","CC BY","https://link.springer.com/journal/11151","https://link.springer.com/journal/"]
[null,40489,"Review Journal of Autism and Developmental Disorders","2195-7185","Springer","Psychology","Behavioral Science and Psychology","Hybrid","CC BY","https://link.springer.com/journal/40489","https://link.springer.com/journal/"]
[null,11846,"Review of Managerial Science","1863-6691","Springer","Business and Management","Business and Management","Hybrid","CC BY","https://link.springer.com/journal/11846","https://link.springer.com/journal/"]
[null,13164,"Review of Philosophy and Psychology","1878-5166","Springer","Philosophy","Education","Hybrid","CC BY","https://link.springer.com/journal/13164","https://link.springer.com/journal/"]
[null,11156,"Review of Quantitative Finance and Accounting","1573-7179","Springer","Finance","Economics and Finance","Hybrid","CC BY","https://link.springer.com/journal/11156","https://link.springer.com/journal/"]
[null,10037,"Review of Regional Research","1613-9836","Springer","Economics","Economics and Finance","Hybrid","CC BY","https://link.springer.com/journal/10037","https://link.springer.com/journal/"]
[null,10290,"Review of World Economics","1610-2886","Springer","Economics","Economics and Finance","Hybrid","CC BY","https://link.springer.com/journal/10290","https://link.springer.com/journal/"]
[null,11154,"Reviews in Endocrine and Metabolic Disorders","1573-2606","Springer","Medicine & Public Health","Medicine","Hybrid","CC BY","https://link.springer.com/journal/11154","https://link.springer.com/journal/"]
[null,44169,"Reviews of Environmental Contamination and Toxicology","2197-6554","Springer","Environment","Earth and Environmental Science","Hybrid","CC BY","https://link.springer.com/journal/44169","https://link.springer.com/journal/"]
[null,11157,"Reviews in Environmental Science and Bio/Technology","1572-9826","Springer","Environment","Earth and Environmental Science","Hybrid","CC BY","https://link.springer.com/journal/11157","https://link.springer.com/journal/"]
[null,11160,"Reviews in Fish Biology and Fisheries","1573-5184","Springer","Life Sciences","Biomedical and Life Sciences","Hybrid","CC BY","https://link.springer.com/journal/11160","https://link.springer.com/journal/"]
[null,41614,"Reviews of Modern Plasma Physics","2367-3192","Springer","Physics","Physics and Astronomy","Hybrid","CC BY","https://link.springer.com/journal/41614","https://link.springer.com/journal/"]
[null,43450,"Revista Brasileira de Farmacognosia","1981-528X","Springer","Pharmacy","Medicine","Hybrid","CC BY","https://link.springer.com/journal/43450","https://link.springer.com/journal/"]
[null,13163,"Revista Matemática Complutense","1988-2807","Springer","Mathematics","Mathematics and Statistics","Hybrid","CC BY","https://link.springer.com/journal/13163","https://link.springer.com/journal/"]
[null,13398,"Revista de la Real Academia de Ciencias Exactas, Físicas y Naturales. Serie A. Matemáticas","1579-1505","Springer","Mathematics","Mathematics and Statistics","Hybrid","CC BY",{"$f":"K1705&B1705","v":"https://link.springer.com/journal/13398"},"https://link.springer.com/journal/"]
[null,397,"Rheologica Acta","1435-1528","Springer","Materials Science","Chemistry and Materials Science","Hybrid","CC BY","https://link.springer.com/journal/397","https://link.springer.com/journal/"]
[null,296,"Rheumatology International","1437-160X","Springer","Medicine & Public Health","Medicine","Hybrid","CC BY","https://link.springer.com/journal/296","https://link.springer.com/journal/"]
[null,11587,"Ricerche di Matematica","1827-3491","Springer","Mathematics","Mathematics and Statistics","Hybrid","CC BY","https://link.springer.com/journal/11587","https://link.springer.com/journal/"]
[null,40766,"La Rivista del Nuovo Cimento","1826-9850","Springer","Physics","Physics and Astronomy","Hybrid","CC BY","https://link.springer.com/journal/40766","https://link.springer.com/journal/"]
[null,603,"Rock Mechanics and Rock Engineering","1434-453X","Springer","Earth Sciences","Earth and Environmental Science","Hybrid","CC BY","https://link.springer.com/journal/603","https://link.springer.com/journal/"]
[null,11185,"Russian Linguistics","1572-8714","Springer","Linguistics","Social Sciences","Hybrid","CC BY","https://link.springer.com/journal/11185","https://link.springer.com/journal/"]
[null,233,"Semigroup Forum","1432-2137","Springer","Mathematics","Mathematics and Statistics","Hybrid","CC BY","https://link.springer.com/journal/233","https://link.springer.com/journal/"]
[null,11220,"Sensing and Imaging","1557-2072","Springer","Engineering","Engineering","Hybrid","CC BY","https://link.springer.com/journal/11220","https://link.springer.com/journal/"]
[null,11628,"Service Business","1862-8508","Springer","Business and Management","Business and Management","Hybrid","CC BY","https://link.springer.com/journal/11628","https://link.springer.com/journal/"]
[null,11761,"Service Oriented Computing and Applications","1863-2394","Springer","Computer Science","Computer Science","Hybrid","CC BY","https://link.springer.com/journal/11761","https://link.springer.com/journal/"]
[null,11228,"Set-Valued and Variational Analysis","1877-0541","Springer","Mathematics","Mathematics and Statistics","Hybrid","CC BY","https://link.springer.com/journal/11228","https://link.springer.com/journal/"]
[null,11199,"Sex Roles","1573-2762","Springer","Psychology","Behavioral Science and Psychology","Hybrid","CC BY","https://link.springer.com/journal/11199","https://link.springer.com/journal/"]
[null,12119,"Sexuality & Culture","1936-4822","Springer","Social Sciences","Social Sciences","Hybrid","CC BY","https://link.springer.com/journal/12119","https://link.springer.com/journal/"]
[null,11195,"Sexuality and Disability","1573-6717","Springer","Psychology","Behavioral Science and Psychology","Hybrid","CC BY","https://link.springer.com/journal/11195","https://link.springer.com/journal/"]
[null,13178,"Sexuality Research and Social Policy","1553-6610","Springer","Psychology","Behavioral Science and Psychology","Hybrid","CC BY","https://link.springer.com/journal/13178","https://link.springer.com/journal/"]
[null,40830,"Shape Memory and Superelasticity","2199-3858","Springer","Materials Science","Chemistry and Materials Science","Hybrid","CC BY","https://link.springer.com/journal/40830","https://link.springer.com/journal/"]
[null,193,"Shock Waves","1432-2153","Springer","Engineering","Engineering","Hybrid","CC BY","https://link.springer.com/journal/193","https://link.springer.com/journal/"]
[null,11760,"Signal, Image and Video Processing","1863-1711","Springer","Computer Science","Computer Science","Hybrid","CC BY","https://link.springer.com/journal/11760","https://link.springer.com/journal/"]
[null,12633,"Silicon","1876-9918","Springer","Chemistry","Chemistry and Materials Science","Hybrid","CC BY","https://link.springer.com/journal/12633","https://link.springer.com/journal/"]
[null,256,"Skeletal Radiology","1432-2161","Springer","Medicine & Public Health","Medicine","Hybrid","CC BY","https://link.springer.com/journal/256","https://link.springer.com/journal/"]
[null,41105,"Sleep and Biological Rhythms","1479-8425","Springer","Biomedicine","Biomedical and Life Sciences","Hybrid","CC BY","https://link.springer.com/journal/41105","https://link.springer.com/journal/"]
[null,11325,"Sleep and Breathing","1522-1709","Springer","Medicine & Public Health","Medicine","Hybrid","CC BY","https://link.springer.com/journal/11325","https://link.springer.com/journal/"]
[null,41782,"Sleep and Vigilance","2510-2265","Springer","Biomedicine","Biomedical and Life Sciences","Hybrid","CC BY","https://link.springer.com/journal/41782","https://link.springer.com/journal/"]
[null,11187,"Small Business Economics","1573-0913","Springer","Business and Management","Business and Management","Hybrid","CC BY","https://link.springer.com/journal/11187","https://link.springer.com/journal/"]
[null,11842,"Small-scale Forestry","1873-7854","Springer","Life Sciences","Biomedical and Life Sciences","Hybrid","CC BY","https://link.springer.com/journal/11842","https://link.springer.com/journal/"]
[null,40866,"Smart Grids and Sustainable Energy","2731-8087","Springer","Energy","Energy","Hybrid","CC BY","https://link.springer.com/journal/40866","https://link.springer.com/journal/"]
[null,355,"Social Choice and Welfare","1432-217X","Springer","Economics","Economics and Finance","Hybrid","CC BY","https://link.springer.com/journal/355","https://link.springer.com/journal/"]
[null,11205,"Social Indicators Research","1573-0921","Springer","Social Sciences","Social Sciences","Hybrid","CC BY","https://link.springer.com/journal/11205","https://link.springer.com/journal/"]
[null,11211,"Social Justice Research","1573-6725","Springer","Psychology","Behavioral Science and Psychology","Hybrid","CC BY","https://link.springer.com/journal/11211","https://link.springer.com/journal/"]
[null,127,"Social Psychiatry and Psychiatric Epidemiology","1433-9285","Springer","Medicine & Public Health","Medicine","Hybrid","CC BY","https://link.springer.com/journal/127","https://link.springer.com/journal/"]
[null,12115,"Society","1936-4725","Springer","Social Sciences","Social Sciences","Hybrid","CC BY","https://link.springer.com/journal/12115","https://link.springer.com/journal/"]
[null,42532,"Socio-Ecological Practice Research","2524-5287","Springer","Geography","Earth and Environmental Science","Hybrid","CC BY","https://link.springer.com/journal/42532","https://link.springer.com/journal/"]
[null,500,"Soft Computing","1433-7479","Springer","Engineering","Engineering","Hybrid","CC BY","https://link.springer.com/journal/500","https://link.springer.com/journal/"]
[null,11219,"Software Quality Journal","1573-1367","Springer","Computer Science","Computer Science","Hybrid","CC BY","https://link.springer.com/journal/11219","https://link.springer.com/journal/"]
[null,10270,"Software and Systems Modeling","1619-1374","Springer","Computer Science","Computer Science","Hybrid","CC BY","https://link.springer.com/journal/10270","https://link.springer.com/journal/"]
[null,42832,"Soil Ecology Letters","2662-2297","Higher Education Press, co-published with Springer","Environment","Earth and Environmental Science","Hybrid","CC BY","https://link.springer.com/journal/42832","https://link.springer.com/journal/"]
[null,11207,"Solar Physics","1573-093X","Springer","Physics","Physics and Astronomy","Hybrid","CC BY","https://link.springer.com/journal/11207","https://link.springer.com/journal/"]
[null,11841,"Sophia","1873-930X","Springer","Philosophy","Education","Hybrid","CC BY","https://link.springer.com/journal/11841","https://link.springer.com/journal/"]
[null,12054,"Sozial Extra","1863-8953","Springer","Social Sciences","Social Sciences","Hybrid","CC BY","https://link.springer.com/journal/12054","https://link.springer.com/journal/"]
[null,12592,"Soziale Passagen","1867-0199","Springer","Social Sciences","Social Sciences","Hybrid","CC BY","https://link.springer.com/journal/12592","https://link.springer.com/journal/"]
[null,11214,"Space Science Reviews","1572-9672","Springer","Physics","Physics and Astronomy","Hybrid","CC BY","https://link.springer.com/journal/11214","https://link.springer.com/journal/"]
[null,40980,"Spatial Demography","2164-7070","Springer","Social Sciences","Social Sciences","Hybrid","CC BY","https://link.springer.com/journal/40980","https://link.springer.com/journal/"]
[null,41324,"Spatial Information Research","2366-3294","Korea Spatial Information Society, co-published with Springer","Geography","Earth and Environmental Science","Hybrid","CC BY","https://link.springer.com/journal/41324","https://link.springer.com/journal/"]
[null,43390,"Spine Deformity","2212-1358","Springer","Medicine & Public Health","Medicine","Hybrid","CC BY","https://link.springer.com/journal/43390","https://link.springer.com/journal/"]
[null,11332,"Sport Sciences for Health","1825-1234","Springer","Medicine & Public Health","Medicine","Hybrid","CC BY","https://link.springer.com/journal/11332","https://link.springer.com/journal/"]
[null,12283,"Sports Engineering","1460-2687","Springer","Engineering","Engineering","Hybrid","CC BY","https://link.springer.com/journal/12283","https://link.springer.com/journal/"]
[null,40279,"Sports Medicine","1179-2035","Springer","Medicine & Public Health","Medicine","Hybrid","CC BY","https://link.springer.com/journal/40279","https://link.springer.com/journal/"]
[null,548,"Standort","1432-220X","Springer","Geography","Earth and Environmental Science","Hybrid","CC BY","https://link.springer.com/journal/548","https://link.springer.com/journal/"]
[null,10260,"Statistical Methods & Applications","1613-981X","Springer","Statistics","Mathematics and Statistics","Hybrid","CC BY","https://link.springer.com/journal/10260","https://link.springer.com/journal/"]
[null,12561,"Statistics in Biosciences","1867-1772","Springer","Statistics","Mathematics and Statistics","Hybrid","CC BY","https://link.springer.com/journal/12561","https://link.springer.com/journal/"]
[null,11222,"Statistics and Computing","1573-1375","Springer","Computer Science","Computer Science","Hybrid","CC BY","https://link.springer.com/journal/11222","https://link.springer.com/journal/"]
[null,12015,"Stem Cell Reviews and Reports","2629-3277","Springer","Life Sciences","Biomedical and Life Sciences","Hybrid","CC BY","https://link.springer.com/journal/12015","https://link.springer.com/journal/"]
[null,477,"Stochastic Environmental Research and Risk Assessment","1436-3259","Springer","Environment","Earth and Environmental Science","Hybrid","CC BY","https://link.springer.com/journal/477","https://link.springer.com/journal/"]
[null,40072,"Stochastics and Partial Differential Equations: Analysis and Computations","2194-041X","Springer","Mathematics","Mathematics and Statistics","Hybrid","CC BY","https://link.springer.com/journal/40072","https://link.springer.com/journal/"]
[null,66,"Strahlentherapie und Onkologie","1439-099X","Springer","Medicine & Public Health","Medicine","Hybrid","CC BY","https://link.springer.com/journal/66","https://link.springer.com/journal/"]
[null,11223,"Strength of Materials","1573-9325","Springer","Materials Science","Chemistry and Materials Science","Hybrid","CC BY","https://link.springer.com/journal/11223","https://link.springer.com/journal/"]
[null,11224,"Structural Chemistry","1572-9001","Springer","Chemistry","Chemistry and Materials Science","Hybrid","CC BY","https://link.springer.com/journal/11224","https://link.springer.com/journal/"]
[null,158,"Structural and Multidisciplinary Optimization","1615-1488","Springer","Engineering","Engineering","Hybrid","CC BY","https://link.springer.com/journal/158","https://link.springer.com/journal/"]
[null,11200,"Studia Geophysica et Geodaetica","1573-1626","Springer","Earth Sciences","Earth and Environmental Science","Hybrid","CC BY","https://link.springer.com/journal/11200","https://link.springer.com/journal/"]
[null,11225,"Studia Logica","1572-8730","Springer","Philosophy","Education","Hybrid","CC BY","https://link.springer.com/journal/11225","https://link.springer.com/journal/"]
[null,12116,"Studies in Comparative International Development","1936-6167","Springer","Social Sciences","Social Sciences","Hybrid","CC BY","https://link.springer.com/journal/12116","https://link.springer.com/journal/"]
[null,11212,"Studies in East European Thought","1573-0948","Springer","Philosophy","Education","Hybrid","CC BY","https://link.springer.com/journal/11212","https://link.springer.com/journal/"]
[null,11217,"Studies in Philosophy and Education","1573-191X","Springer","Education","Education","Hybrid","CC BY","https://link.springer.com/journal/11217","https://link.springer.com/journal/"]
[null,12355,"Sugar Tech","0974-0740","Springer","Life Sciences","Biomedical and Life Sciences","Hybrid","CC BY",{"$f":"K1769&B1769","v":"https://link.springer.com/journal/12355"},"https://link.springer.com/journal/"]
[null,520,"Supportive Care in Cancer","1433-7339","Springer","Medicine & Public Health","Medicine","Hybrid","CC BY","https://link.springer.com/journal/520","https://link.springer.com/journal/"]
[null,595,"Surgery Today","1436-2813","Springer","Medicine & Public Health","Medicine","Hybrid","CC BY","https://link.springer.com/journal/595","https://link.springer.com/journal/"]
[null,464,"Surgical Endoscopy","1432-2218","Springer","Medicine & Public Health","Medicine","Hybrid","CC BY","https://link.springer.com/journal/464","https://link.springer.com/journal/"]
[null,276,"Surgical and Radiologic Anatomy","1279-8517","Springer","Medicine & Public Health","Medicine","Hybrid","CC BY","https://link.springer.com/journal/276","https://link.springer.com/journal/"]
[null,10712,"Surveys in Geophysics","1573-0956","Springer","Earth Sciences","Earth and Environmental Science","Hybrid","CC BY","https://link.springer.com/journal/10712","https://link.springer.com/journal/"]
[null,550,"Sustainability Nexus Forum","2948-1627","Springer","Economics","Economics and Finance","Hybrid","CC BY","https://link.springer.com/journal/550","https://link.springer.com/journal/"]
[null,11625,"Sustainability Science","1862-4057","Springer","Environment","Earth and Environmental Science","Hybrid","CC BY","https://link.springer.com/journal/11625","https://link.springer.com/journal/"]
[null,40899,"Sustainable Water Resources Management","2363-5045","Springer","Earth Sciences","Earth and Environmental Science","Hybrid","CC BY","https://link.springer.com/journal/40899","https://link.springer.com/journal/"]
[null,11721,"Swarm Intelligence","1935-3820","Springer","Computer Science","Computer Science","Hybrid","CC BY","https://link.springer.com/journal/11721","https://link.springer.com/journal/"]
[null,13199,"Symbiosis","1878-7665","Springer","Life Sciences","Biomedical and Life Sciences","Hybrid","CC BY","https://link.springer.com/journal/13199","https://link.springer.com/journal/"]
[null,11229,"Synthese","1573-0964","Springer","Philosophy","Education","Hybrid","CC BY","https://link.springer.com/journal/11229","https://link.springer.com/journal/"]
[null,11230,"Systematic Parasitology","1573-5192","Springer","Life Sciences","Biomedical and Life Sciences","Hybrid","CC BY","https://link.springer.com/journal/11230","https://link.springer.com/journal/"]
[null,11213,"Systemic Practice and Action Research","1573-9295","Springer","Business and Management","Business and Management","Hybrid","CC BY","https://link.springer.com/journal/11213","https://link.springer.com/journal/"]
[null,43393,"Systems Microbiology and Biomanufacturing","2662-7663","Springer","Life Sciences","Biomedical and Life Sciences","Hybrid","CC BY","https://link.springer.com/journal/43393","https://link.springer.com/journal/"]
[null,40863,"São Paulo Journal of Mathematical Sciences","2316-9028","Springer","Mathematics","Mathematics and Statistics","Hybrid","CC BY","https://link.springer.com/journal/40863","https://link.springer.com/journal/"]
[null,11528,"TechTrends","1559-7075","Springer","Education","Education","Hybrid","CC BY","https://link.springer.com/journal/11528","https://link.springer.com/journal/"]
[null,10758,"Technology, Knowledge and Learning","2211-1670","Springer","Education","Education","Hybrid","CC BY","https://link.springer.com/journal/10758","https://link.springer.com/journal/"]
[null,11235,"Telecommunication Systems","1572-9451","Springer","Business and Management","Business and Management","Hybrid","CC BY","https://link.springer.com/journal/11235","https://link.springer.com/journal/"]
[null,11233,"Tertiary Education and Management","1573-1936","Springer","Education","Education","Hybrid","CC BY","https://link.springer.com/journal/11233","https://link.springer.com/journal/"]
[null,41208,"Thalassas: An International Journal of Marine Sciences","2366-1674","Springer","Earth Sciences","Earth and Environmental Science","Hybrid","CC BY","https://link.springer.com/journal/41208","https://link.springer.com/journal/"]
[null,704,"Theoretical and Applied Climatology","1434-4483","Springer","Earth Sciences","Earth and Environmental Science","Hybrid","CC BY","https://link.springer.com/journal/704","https://link.springer.com/journal/"]
[null,122,"Theoretical and Applied Genetics","1432-2242","Springer","Life Sciences","Biomedical and Life Sciences","Hybrid","CC BY","https://link.springer.com/journal/122","https://link.springer.com/journal/"]
[null,214,"Theoretical Chemistry Accounts","1432-2234","Springer","Chemistry","Chemistry and Materials Science","Hybrid","CC BY","https://link.springer.com/journal/214","https://link.springer.com/journal/"]
[null,162,"Theoretical and Computational Fluid Dynamics","1432-2250","Springer","Engineering","Engineering","Hybrid","CC BY","https://link.springer.com/journal/162","https://link.springer.com/journal/"]
[null,12080,"Theoretical Ecology","1874-1746","Springer","Life Sciences","Biomedical and Life Sciences","Hybrid","CC BY","https://link.springer.com/journal/12080","https://link.springer.com/journal/"]
[null,40626,"Theoretical and Experimental Plant Physiology","2197-0025","Springer","Life Sciences","Biomedical and Life Sciences","Hybrid","CC BY","https://link.springer.com/journal/40626","https://link.springer.com/journal/"]
[null,11017,"Theoretical Medicine and Bioethics","1573-1200","Springer","Philosophy","Education","Hybrid","CC BY","https://link.springer.com/journal/11017","https://link.springer.com/journal/"]
[null,12064,"Theory in Biosciences","1611-7530","Springer","Life Sciences","Biomedical and Life Sciences","Hybrid","CC BY","https://link.springer.com/journal/12064","https://link.springer.com/journal/"]
[null,224,"Theory of Computing Systems","1433-0490","Springer","Computer Science","Computer Science","Hybrid","CC BY","https://link.springer.com/journal/224","https://link.springer.com/journal/"]
[null,11238,"Theory and Decision","1573-7187","Springer","Economics","Economics and Finance","Hybrid","CC BY","https://link.springer.com/journal/11238","https://link.springer.com/journal/"]
[null,11186,"Theory and Society","1573-7853","Springer","Social Sciences","Social Sciences","Hybrid","CC BY","https://link.springer.com/journal/11186","https://link.springer.com/journal/"]
[null,43441,"Therapeutic Innovation & Regulatory Science","2168-4804","Springer","Pharmacy","Medicine","Hybrid","CC BY","https://link.springer.com/journal/43441","https://link.springer.com/journal/"]
[null,13770,"Tissue Engineering and Regenerative Medicine","2212-5469","Korean Tissue Engineering and Regenerative Medicine Society, co-published with Springer","Life Sciences","Biomedical and Life Sciences","Hybrid","CC BY","https://link.springer.com/journal/13770","https://link.springer.com/journal/"]
[null,11244,"Topics in Catalysis","1572-9028","Springer","Chemistry","Chemistry and Materials Science","Hybrid","CC BY","https://link.springer.com/journal/11244","https://link.springer.com/journal/"]
[null,41061,"Topics in Current Chemistry","2364-8961","Springer","Chemistry","Chemistry and Materials Science","Hybrid","CC BY","https://link.springer.com/journal/41061","https://link.springer.com/journal/"]
[null,11245,"Topoi","1572-8749","Springer","Philosophy","Education","Hybrid","CC BY","https://link.springer.com/journal/11245","https://link.springer.com/journal/"]
[null,43188,"Toxicological Research","2234-2753","Springer","Biomedicine","Biomedical and Life Sciences","Hybrid","CC BY","https://link.springer.com/journal/43188","https://link.springer.com/journal/"]
[null,13530,"Toxicology and Environmental Health Sciences","2233-7784","Korean Society of Environmental Risk Assessment and Health Science, co-published with Springer","Biomedicine","Biomedical and Life Sciences","Hybrid","CC BY","https://link.springer.com/journal/13530","https://link.springer.com/journal/"]
[null,42341,"Transactions on Electrical and Electronic Materials","2092-7592","Korean Institute of Electrical and Electronic Material Engineers, co-published with Springer","Materials Science","Chemistry and Materials Science","Hybrid","CC BY","https://link.springer.com/journal/42341","https://link.springer.com/journal/"]
[null,12666,"Transactions of the Indian Institute of Metals","0975-1645","Springer","Materials Science","Chemistry and Materials Science","Hybrid","CC BY","https://link.springer.com/journal/12666","https://link.springer.com/journal/"]
[null,41403,"Transactions of the Indian National Academy of Engineering","2662-5423","Springer","Engineering","Engineering","Hybrid","CC BY","https://link.springer.com/journal/41403","https://link.springer.com/journal/"]
[null,12209,"Transactions of Tianjin University","1995-8196","Springer","Engineering","Engineering","Hybrid","CC BY","https://link.springer.com/journal/12209","https://link.springer.com/journal/"]
[null,31,"Transformation Groups","1531-586X","Springer","Mathematics","Mathematics and Statistics","Hybrid","CC BY","https://link.springer.com/journal/31","https://link.springer.com/journal/"]
[null,11243,"Transition Metal Chemistry","1572-901X","Springer","Chemistry","Chemistry and Materials Science","Hybrid","CC BY","https://link.springer.com/journal/11243","https://link.springer.com/journal/"]
[null,12975,"Translational Stroke Research","1868-601X","Springer","Biomedicine","Biomedical and Life Sciences","Hybrid","CC BY","https://link.springer.com/journal/12975","https://link.springer.com/journal/"]
[null,11242,"Transport in Porous Media","1573-1634","Springer","Earth Sciences","Earth and Environmental Science","Hybrid","CC BY","https://link.springer.com/journal/11242","https://link.springer.com/journal/"]
[null,11116,"Transportation","1572-9435","Springer","Economics","Economics and Finance","Hybrid","CC BY","https://link.springer.com/journal/11116","https://link.springer.com/journal/"]
[null,40890,"Transportation in Developing Economies","2199-9295","Springer","Engineering","Engineering","Hybrid","CC BY","https://link.springer.com/journal/40890","https://link.springer.com/journal/"]
[null,40515,"Transportation Infrastructure Geotechnology","2196-7210","Springer","Engineering","Engineering","Hybrid","CC BY","https://link.springer.com/journal/40515","https://link.springer.com/journal/"]
[null,11295,"Tree Genetics & Genomes","1614-2950","Springer","Life Sciences","Biomedical and Life Sciences","Hybrid","CC BY","https://link.springer.com/journal/11295","https://link.springer.com/journal/"]
[null,468,"Trees","1432-2285","Springer","Life Sciences","Biomedical and Life Sciences","Hybrid","CC BY","https://link.springer.com/journal/468","https://link.springer.com/journal/"]
[null,12117,"Trends in Organized Crime","1936-4830","Springer","Criminology and Criminal Justice","Law and Criminology","Hybrid","CC BY","https://link.springer.com/journal/12117","https://link.springer.com/journal/"]
[null,43076,"Trends in Psychology","2358-1883","Springer","Psychology","Behavioral Science and Psychology","Hybrid","CC BY","https://link.springer.com/journal/43076","https://link.springer.com/journal/"]
[null,11249,"Tribology Letters","1573-2711","Springer","Materials Science","Chemistry and Materials Science","Hybrid","CC BY","https://link.springer.com/journal/11249","https://link.springer.com/journal/"]
[null,11250,"Tropical Animal Health and Production","1573-7438","Springer","Life Sciences","Biomedical and Life Sciences","Hybrid","CC BY","https://link.springer.com/journal/11250","https://link.springer.com/journal/"]
[null,42965,"Tropical Ecology","2661-8982","Springer","Life Sciences","Biomedical and Life Sciences","Hybrid","CC BY","https://link.springer.com/journal/42965","https://link.springer.com/journal/"]
[null,12042,"Tropical Plant Biology","1935-9764","Springer","Life Sciences","Biomedical and Life Sciences","Hybrid","CC BY","https://link.springer.com/journal/12042","https://link.springer.com/journal/"]
[null,40858,"Tropical Plant Pathology","1983-2052","Springer","Life Sciences","Biomedical and Life Sciences","Hybrid","CC BY","https://link.springer.com/journal/40858","https://link.springer.com/journal/"]
[null,42864,"Tungsten","2661-8036","Springer","Materials Science","Chemistry and Materials Science","Hybrid","CC BY","https://link.springer.com/journal/42864","https://link.springer.com/journal/"]
[null,11253,"Ukrainian Mathematical Journal","1573-9376","Springer","Mathematics","Mathematics and Statistics","Hybrid","CC BY","https://link.springer.com/journal/11253","https://link.springer.com/journal/"]
[null,13437,"WMU Journal of Maritime Affairs","1654-1642","Springer","Law","Law and Criminology","Hybrid","CC BY","https://link.springer.com/journal/13437","https://link.springer.com/journal/"]
[null,12649,"Waste and Biomass Valorization","1877-265X","Springer","Engineering","Engineering","Hybrid","CC BY","https://link.springer.com/journal/12649","https://link.springer.com/journal/"]
[null,42768,"Waste Disposal & Sustainable Energy","2524-7891","Springer","Environment","Earth and Environmental Science","Hybrid","CC BY","https://link.springer.com/journal/42768","https://link.springer.com/journal/"]
[null,11270,"Water, Air, & Soil Pollution","1573-2932","Springer","Environment","Earth and Environmental Science","Hybrid","CC BY",{"$f":"K1833&B1833","v":"https://link.springer.com/journal/11270"},"https://link.springer.com/journal/"]
[null,41101,"Water Conservation Science and Engineering","2364-5687","Springer","Environment","Earth and Environmental Science","Hybrid","CC BY","https://link.springer.com/journal/41101","https://link.springer.com/journal/"]
[null,12685,"Water History","1877-7244","Springer","Environment","Earth and Environmental Science","Hybrid","CC BY","https://link.springer.com/journal/12685","https://link.springer.com/journal/"]
[null,11269,"Water Resources Management","1573-1650","Springer","Earth Sciences","Earth and Environmental Science","Hybrid","CC BY","https://link.springer.com/journal/11269","https://link.springer.com/journal/"]
[null,42286,"Water Waves","2523-3688","Springer","Mathematics","Mathematics and Statistics","Hybrid","CC BY","https://link.springer.com/journal/42286","https://link.springer.com/journal/"]
[null,40194,"Welding in the World","1878-6669","Springer","Materials Science","Chemistry and Materials Science","Hybrid","CC BY","https://link.springer.com/journal/40194","https://link.springer.com/journal/"]
[null,13157,"Wetlands","1943-6246","Springer","Life Sciences","Biomedical and Life Sciences","Hybrid","CC BY","https://link.springer.com/journal/13157","https://link.springer.com/journal/"]
[null,11273,"Wetlands Ecology and Management","1572-9834","Springer","Life Sciences","Biomedical and Life Sciences","Hybrid","CC BY","https://link.springer.com/journal/11273","https://link.springer.com/journal/"]
[null,11276,"Wireless Networks","1572-8196","Springer","Engineering","Engineering","Hybrid","CC BY","https://link.springer.com/journal/11276","https://link.springer.com/journal/"]
[null,11277,"Wireless Personal Communications","1572-834X","Springer","Engineering","Engineering","Hybrid","CC BY","https://link.springer.com/journal/11277","https://link.springer.com/journal/"]
[null,226,"Wood Science and Technology","1432-5225","Springer","Life Sciences","Biomedical and Life Sciences","Hybrid","CC BY","https://link.springer.com/journal/226","https://link.springer.com/journal/"]
[null,11274,"World Journal of Microbiology and Biotechnology","1573-0972","Springer","Life Sciences","Biomedical and Life Sciences","Hybrid","CC BY","https://link.springer.com/journal/11274","https://link.springer.com/journal/"]
[null,12519,"World Journal of Pediatrics","1867-0687","Childrens Hospital, Zhejiang University School of Medicine, co-published with Springer","Medicine & Public Health","Medicine","Hybrid","CC BY","https://link.springer.com/journal/12519","https://link.springer.com/journal/"]
[null,345,"World Journal of Urology","1433-8726","Springer","Medicine & Public Health","Medicine","Hybrid","CC BY","https://link.springer.com/journal/345","https://link.springer.com/journal/"]
[null,11280,"World Wide Web","1573-1413","Springer","Computer Science","Computer Science","Hybrid","CC BY","https://link.springer.com/journal/11280","https://link.springer.com/journal/"]
[null,11858,"ZDM ? Mathematics Education","1863-9704","Springer","Education","Education","Hybrid","CC BY","https://link.springer.com/journal/11858","https://link.springer.com/journal/"]
[null,41449,"Zeitschrift für Arbeitswissenschaft","2366-4681","Springer","Engineering","Engineering","Hybrid","CC BY","https://link.springer.com/journal/41449","https://link.springer.com/journal/"]
[null,12399,"Zeitschrift für Außen- und Sicherheitspolitik","1866-2196","Springer","Political Science and International Relations","Political Science and International Studies","Hybrid","CC BY","https://link.springer.com/journal/12399","https://link.springer.com/journal/"]
[null,35834,"Zeitschrift für Bildungsforschung","2190-6904","Springer","Education","Education","Hybrid","CC BY","https://link.springer.com/journal/35834","https://link.springer.com/journal/"]
[null,40573,"Zeitschrift für Didaktik der Naturwissenschaften","2197-988X","Springer","Education","Education","Hybrid","CC BY","https://link.springer.com/journal/40573","https://link.springer.com/journal/"]
[null,11618,"Zeitschrift für Erziehungswissenschaft","1862-5215","Springer","Education","Education","Hybrid","CC BY","https://link.springer.com/journal/11618","https://link.springer.com/journal/"]
[null,42048,"Zeitschrift für Ethik und Moralphilosophie","2522-0071","Springer","Philosophy","Education","Hybrid","CC BY","https://link.springer.com/journal/42048","https://link.springer.com/journal/"]
[null,42597,"Zeitschrift für Friedens- und Konfliktforschung","2524-6976","Springer","Political Science and International Relations","Political Science and International Studies","Hybrid","CC BY","https://link.springer.com/journal/42597","https://link.springer.com/journal/"]
[null,42278,"Zeitschrift für Grundschulforschung","2523-3181","Springer","Education","Education","Hybrid","CC BY","https://link.springer.com/journal/42278","https://link.springer.com/journal/"]
[null,41244,"Zeitschrift für Literaturwissenschaft und Linguistik","2365-953X","Springer","Literature","Literature, Cultural and Media Studies","Hybrid","CC BY","https://link.springer.com/journal/41244","https://link.springer.com/journal/"]
[null,41358,"Zeitschrift für Politikwissenschaft","2366-2638","Springer","Political Science and International Relations","Political Science and International Studies","Hybrid","CC BY","https://link.springer.com/journal/41358","https://link.springer.com/journal/"]
[null,11620,"Zeitschrift für Psychodrama und Soziometrie","1862-2526","Springer","Psychology","Behavioral Science and Psychology","Hybrid","CC BY","https://link.springer.com/journal/11620","https://link.springer.com/journal/"]
[null,41682,"Zeitschrift für Religion, Gesellschaft und Politik","2510-1226","Springer","Social Sciences","Social Sciences","Hybrid","CC BY","https://link.springer.com/journal/41682","https://link.springer.com/journal/"]
[null,12286,"Zeitschrift für Vergleichende Politikwissenschaft","1865-2654","Springer","Political Science and International Relations","Political Science and International Studies","Hybrid","CC BY","https://link.springer.com/journal/12286","https://link.springer.com/journal/"]
[null,33,"Zeitschrift für angewandte Mathematik und Physik","1420-9039","Springer","Engineering","Engineering","Hybrid","CC BY","https://link.springer.com/journal/33","https://link.springer.com/journal/"]
[null,40664,"Zentralblatt für Arbeitsmedizin, Arbeitsschutz und Ergonomie","2198-0713","Springer","Medicine & Public Health","Medicine","Hybrid","CC BY","https://link.springer.com/journal/40664","https://link.springer.com/journal/"]
[null,435,"Zoomorphology","1432-234X","Springer","Life Sciences","Biomedical and Life Sciences","Hybrid","CC BY","https://link.springer.com/journal/435","https://link.springer.com/journal/"]
[null,10211,"acta ethologica","1437-9546","Springer","Life Sciences","Biomedical and Life Sciences","Hybrid","CC BY","https://link.springer.com/journal/10211","https://link.springer.com/journal/"]
[null,37,"computational complexity","1420-8954","Springer","Computer Science","Computer Science","Hybrid","CC BY","https://link.springer.com/journal/37","https://link.springer.com/journal/"]
[null,43638,"cultura & psyché","2730-5732","Springer","Social Sciences","Social Sciences","Hybrid","CC BY","https://link.springer.com/journal/43638","https://link.springer.com/journal/"]
[null,229,"manuscripta mathematica","1432-1785","Springer","Mathematics","Mathematics and Statistics","Hybrid","CC BY","https://link.springer.com/journal/229","https://link.springer.com/journal/"]
[null,11547,"La radiologia medica","1826-6983","Springer","Medicine & Public Health","Medicine","Hybrid","CC BY","https://link.springer.com/journal/11547","https://link.springer.com/journal/"]
[null,506,"Österreichische Wasser- und Abfallwirtschaft","1613-7566","Springer","Engineering","Engineering","Hybrid","CC BY","https://link.springer.com/journal/506","https://link.springer.com/journal/"]
[null,11614,"Österreichische Zeitschrift für Soziologie","1862-2585","Springer","Social Sciences","Social Sciences","Hybrid","CC BY","https://link.springer.com/journal/11614","https://link.springer.com/journal/"]
[null,339,"Applied Physics A","1432-0630","Springer","Physics","Physics and Astronomy","Hybrid","CC BY","https://link.springer.com/journal/339","https://link.springer.com/journal/"]
[null,11627,"In Vitro Cellular & Developmental Biology - Plant","1475-2689","Springer","Life Sciences","Biomedical and Life Sciences","Hybrid","CC BY","https://link.springer.com/journal/11627","https://link.springer.com/journal/"]
[null,11626,"In Vitro Cellular & Developmental Biology - Animal","1543-706X","Springer","Life Sciences","Biomedical and Life Sciences","Hybrid","CC BY","https://link.springer.com/journal/11626","https://link.springer.com/journal/"]
[null,360,"Journal of Comparative Physiology B","1432-136X","Springer","Life Sciences","Biomedical and Life Sciences","Hybrid","CC BY","https://link.springer.com/journal/360","https://link.springer.com/journal/"]
[null,359,"Journal of Comparative Physiology A","1432-1351","Springer","Life Sciences","Biomedical and Life Sciences","Hybrid","CC BY","https://link.springer.com/journal/359","https://link.springer.com/journal/"]
[null,10853,"Journal of Materials Science","1573-4803","Springer","Materials Science","Chemistry and Materials Science","Hybrid","CC BY","https://link.springer.com/journal/10853","https://link.springer.com/journal/"]
[null,10854,"Journal of Materials Science: Materials in Electronics","1573-482X","Springer","Materials Science","Chemistry and Materials Science","Hybrid","CC BY","https://link.springer.com/journal/10854","https://link.springer.com/journal/"]
[null,11663,"Metallurgical and Materials Transactions B","1543-1916","Springer","Materials Science","Chemistry and Materials Science","Hybrid","CC BY","https://link.springer.com/journal/11663","https://link.springer.com/journal/"]
[null,11661,"Metallurgical and Materials Transactions A","1543-1940","Springer","Materials Science","Chemistry and Materials Science","Hybrid","CC BY","https://link.springer.com/journal/11661","https://link.springer.com/journal/"]
[null,414,"International Journal of Legal Medicine","1437-1596","Springer","Medicine & Public Health","Medicine","Hybrid","CC BY","https://link.springer.com/journal/414","https://link.springer.com/journal/"]
[null,11750,"TOP","1863-8279","Springer","Business and Management","Business and Management","Hybrid","CC BY","https://link.springer.com/journal/11750","https://link.springer.com/journal/"]
[null,11749,"TEST","1863-8260","Springer","Statistics","Mathematics and Statistics","Hybrid","CC BY","https://link.springer.com/journal/11749","https://link.springer.com/journal/"]
[null,11623,"Datenschutz und Datensicherheit - DuD","1862-2607","Springer","Computer Science","Computer Science","Hybrid","CC BY","https://link.springer.com/journal/11623","https://link.springer.com/journal/"]
[null,35764,"Wirtschaftsinformatik & Management","1867-5913","Springer","Business and Management","Business and Management","Hybrid","CC BY","https://link.springer.com/journal/35764","https://link.springer.com/journal/"]
[null,392,"Clinical Research in Cardiology","1861-0692","Springer","Medicine & Public Health","Medicine","Hybrid","CC BY","https://link.springer.com/journal/392","https://link.springer.com/journal/"]
[null,13313,"Australasian Plant Pathology","1448-6032","Springer","Life Sciences","Biomedical and Life Sciences","Hybrid","CC BY","https://link.springer.com/journal/13313","https://link.springer.com/journal/"]
[null,10456,"Angiogenesis","1573-7209","Springer","Biomedicine","Biomedical and Life Sciences","Hybrid","CC BY","https://link.springer.com/journal/10456","https://link.springer.com/journal/"]
[null,43153,"Brazilian Journal of Chemical Engineering","1678-4383","Springer","Chemistry","Chemistry and Materials Science","Hybrid","CC BY","https://link.springer.com/journal/43153","https://link.springer.com/journal/"]
[null,10555,"Cancer and Metastasis Reviews","1573-7233","Springer","Biomedicine","Biomedical and Life Sciences","Hybrid","CC BY","https://link.springer.com/journal/10555","https://link.springer.com/journal/"]
[null,270,"CardioVascular and Interventional Radiology","1432-086X","Springer","Medicine & Public Health","Medicine","Hybrid","CC BY","https://link.springer.com/journal/270","https://link.springer.com/journal/"]
[null,10561,"Cell and Tissue Banking","1573-6814","Springer","Life Sciences","Biomedical and Life Sciences","Hybrid","CC BY","https://link.springer.com/journal/10561","https://link.springer.com/journal/"]
[null,381,"Child's Nervous System","1433-0350","Springer","Medicine & Public Health","Medicine","Hybrid","CC BY","https://link.springer.com/journal/381","https://link.springer.com/journal/"]
[null,10585,"Clinical & Experimental Metastasis","1573-7276","Springer","Biomedicine","Biomedical and Life Sciences","Hybrid","CC BY","https://link.springer.com/journal/10585","https://link.springer.com/journal/"]
[null,40825,"Emission Control Science and Technology","2199-3637","Springer","Earth Sciences","Earth and Environmental Science","Hybrid","CC BY","https://link.springer.com/journal/40825","https://link.springer.com/journal/"]
[null,68,"European Journal of Trauma and Emergency Surgery","1863-9941","Springer","Medicine & Public Health","Medicine","Hybrid","CC BY","https://link.springer.com/journal/68","https://link.springer.com/journal/"]
[null,10689,"Familial Cancer","1573-7292","Springer","Biomedicine","Biomedical and Life Sciences","Hybrid","CC BY",{"$f":"K1897&B1897","v":"https://link.springer.com/journal/10689"},"https://link.springer.com/journal/"]
[null,10709,"Genetica","1573-6857","Springer","Life Sciences","Biomedical and Life Sciences","Hybrid","CC BY","https://link.springer.com/journal/10709","https://link.springer.com/journal/"]
[null,418,"Histochemistry and Cell Biology","1432-119X","Springer","Biomedicine","Biomedical and Life Sciences","Hybrid","CC BY","https://link.springer.com/journal/418","https://link.springer.com/journal/"]
[null,251,"Immunogenetics","1432-1211","Springer","Biomedicine","Biomedical and Life Sciences","Hybrid","CC BY","https://link.springer.com/journal/251","https://link.springer.com/journal/"]
[null,12026,"Immunologic Research","1559-0755","Springer","Biomedicine","Biomedical and Life Sciences","Hybrid","CC BY","https://link.springer.com/journal/12026","https://link.springer.com/journal/"]
[null,11,"Inflammation Research","1420-908X","Springer","Biomedicine","Biomedical and Life Sciences","Hybrid","CC BY","https://link.springer.com/journal/11","https://link.springer.com/journal/"]
[null,41042,"International Journal of Applied Positive Psychology","2364-5059","Springer","Psychology","Behavioral Science and Psychology","Hybrid","CC BY","https://link.springer.com/journal/41042","https://link.springer.com/journal/"]
[null,12555,"International Journal of Control, Automation and Systems","2005-4092","Institute of Control, Robotics and Systems and The Korean Institute of Electrical Engineers, co-published with Springer","Engineering","Engineering","Hybrid","CC BY","https://link.springer.com/journal/12555","https://link.springer.com/journal/"]
[null,10895,"Journal of Fluorescence","1573-4994","Springer","Biomedicine","Biomedical and Life Sciences","Hybrid","CC BY","https://link.springer.com/journal/10895","https://link.springer.com/journal/"]
[null,11409,"Metacognition and Learning","1556-1631","Springer","Education","Education","Hybrid","CC BY","https://link.springer.com/journal/11409","https://link.springer.com/journal/"]
[null,281,"Seminars in Immunopathology","1863-2300","Springer","Biomedicine","Biomedical and Life Sciences","Hybrid","CC BY","https://link.springer.com/journal/281","https://link.springer.com/journal/"]
[null,11218,"Social Psychology of Education","1573-1928","Springer","Education","Education","Hybrid","CC BY","https://link.springer.com/journal/11218","https://link.springer.com/journal/"]
[null,11248,"Transgenic Research","1573-9368","Springer","Life Sciences","Biomedical and Life Sciences","Hybrid","CC BY","https://link.springer.com/journal/11248","https://link.springer.com/journal/"]
[null,41297,"Curriculum Perspectives","2367-1793","Springer","Education","Education","Hybrid","CC BY","https://link.springer.com/journal/41297","https://link.springer.com/journal/"]
[null,180,"Computational Statistics","1613-9658","Springer","Statistics","Mathematics and Statistics","Hybrid","CC BY","https://link.springer.com/journal/180","https://link.springer.com/journal/"]
[null,362,"Statistical Papers","1613-9798","Springer","Statistics","Mathematics and Statistics","Hybrid","CC BY","https://link.springer.com/journal/362","https://link.springer.com/journal/"]
[null,44366,"Frontiers of Digital Education","2097-3926","Springer","Education","Education","Hybrid","CC BY","https://link.springer.com/journal/44366","https://link.springer.com/journal/"]
[null,44379,"Machine Learning for Computational Science and Engineering","3005-1436","Springer","Engineering","Engineering","Hybrid","CC BY","https://link.springer.com/journal/44379","https://link.springer.com/journal/"]
[null,44411,"Bratislava Medical Journal","1336-0345","Springer","Medicine & Public Health","Medicine","Hybrid","CC BY","https://link.springer.com/journal/44411","https://link.springer.com/journal/"]
[null,44391,"Forest Science","1938-3738","Springer","Life Sciences","Biomedical and Life Sciences","Hybrid","CC BY","https://link.springer.com/journal/44391","https://link.springer.com/journal/"]
[null,44392,"Journal of Forestry","1938-3746","Springer","Life Sciences","Biomedical and Life Sciences","Hybrid","CC BY","https://link.springer.com/journal/44392","https://link.springer.com/journal/"]
[null,42600,"Research on Biomedical Engineering","2446-4740","Springer","Engineering","Engineering","Hybrid","CC BY","https://link.springer.com/journal/42600","https://link.springer.com/journal/"]
[null,44428,"Acta Universitatis Sapientiae, Film and Media Studies","2066-7779","Springer","Cultural and Media Studies","Literature, Cultural and Media Studies","Hybrid","CC BY","https://link.springer.com/journal/44428","https://link.springer.com/journal/"]
[null,44427,"Acta Universitatis Sapientiae, Informatica","2066-7760","Springer","Computer Science","Computer Science","Hybrid","CC BY","https://link.springer.com/journal/44427","https://link.springer.com/journal/"]
[null,44426,"Acta Universitatis Sapientiae, Mathematica","2066-7752","Springer","Mathematics","Mathematics and Statistics","Hybrid","CC BY","https://link.springer.com/journal/44426","https://link.springer.com/journal/"]
[null,44439,"Mathematical Foundations of Machine Learning","3059-3492","Springer","Mathematics","Mathematics and Statistics","Hybrid","CC BY","https://link.springer.com/journal/44439","https://link.springer.com/journal/"]
[null,44425,"Matemática Contemporânea","2317-6636","Springer","Mathematics","Mathematics and Statistics","Hybrid","CC BY","https://link.springer.com/journal/44425","https://link.springer.com/journal/"]
[null,10511,"Astrophysics","1573-8191","Springer","Physics","Physics and Astronomy","Hybrid","CC BY","https://link.springer.com/journal/10511","https://link.springer.com/journal/"]
[null,10812,"Journal of Applied Spectroscopy","1573-8647","Springer","Physics","Physics and Astronomy","Hybrid","CC BY","https://link.springer.com/journal/10812","https://link.springer.com/journal/"]
[null,10533,"Biogeochemistry","1573-515X","Springer","Earth Sciences","Earth and Environmental Science","Fully Open Access","CC BY","https://link.springer.com/journal/10533","https://link.springer.com/journal/"]
[null,10565,"Cell Biology and Toxicology","1573-6822","Springer","Life Sciences","Biomedical and Life Sciences","Fully Open Access","CC BY","https://link.springer.com/journal/10565","https://link.springer.com/journal/"]
[null,10911,"Journal of Mammary Gland Biology and Neoplasia","1573-7039","Springer","Medicine & Public Health","Medicine","Fully Open Access","CC BY","https://link.springer.com/journal/10911","https://link.springer.com/journal/"]
[null,10571,"Cellular and Molecular Neurobiology","1573-6830","Springer","Biomedicine","Biomedical and Life Sciences","Fully Open Access","CC BY","https://link.springer.com/journal/10571","https://link.springer.com/journal/"]
[null,41104,"Automotive and Engine Technology","2365-5135","Springer","Engineering","Engineering","Fully Open Access","CC BY","https://link.springer.com/journal/41104","https://link.springer.com/journal/"]
[null,40519,"Eating and Weight Disorders - Studies on Anorexia, Bulimia and Obesity","1590-1262","Springer","Medicine & Public Health","Medicine","Fully Open Access","CC BY","https://link.springer.com/journal/40519","https://link.springer.com/journal/"]
[null,10238,"Clinical and Experimental Medicine","1591-9528","Springer","Medicine & Public Health","Medicine","Fully Open Access","CC BY","https://link.springer.com/journal/10238","https://link.springer.com/journal/"]
[null,10433,"European Journal of Ageing","1613-9380","Springer","Social Sciences","Social Sciences","Fully Open Access","CC BY","https://link.springer.com/journal/10433","https://link.springer.com/journal/"]
[null,262,"Cancer Immunology, Immunotherapy","1432-0851","Springer","Medicine & Public Health","Medicine","Fully Open Access","CC BY","https://link.springer.com/journal/262","https://link.springer.com/journal/"]
[null,11084,"Discover Life","2948-2976","Discover","Life Sciences","Biomedical and Life Sciences","Fully Open Access","CC BY","https://link.springer.com/journal/11084","https://link.springer.com/journal/"]
[null,384,"International Journal of Colorectal Disease","1432-1262","Springer","Medicine & Public Health","Medicine","Fully Open Access","CC BY","https://link.springer.com/journal/384","https://link.springer.com/journal/"]
[null,11948,"Science and Engineering Ethics","1471-5546","Springer","Philosophy","Education","Fully Open Access","CC BY","https://link.springer.com/journal/11948","https://link.springer.com/journal/"]
[null,18,"Cellular and Molecular Life Sciences","1420-9071","Springer","Life Sciences","Biomedical and Life Sciences","Fully Open Access","CC BY","https://link.springer.com/journal/18","https://link.springer.com/journal/"]
[null,10680,"European Journal of Population","1572-9885","Springer","Social Sciences","Social Sciences","Fully Open Access","CC BY","https://link.springer.com/journal/10680","https://link.springer.com/journal/"]
[null,40948,"Geomechanics and Geophysics for Geo-Energy and Geo-Resources","2363-8427","Springer","Engineering","Engineering","Fully Open Access","CC BY","https://link.springer.com/journal/40948","https://link.springer.com/journal/"]
[null,10071,"Animal Cognition","1435-9456","Springer","Life Sciences","Biomedical and Life Sciences","Fully Open Access","CC BY","https://link.springer.com/journal/10071","https://link.springer.com/journal/"]
[null,253,"Applied Microbiology and Biotechnology","1432-0614","Springer","Life Sciences","Biomedical and Life Sciences","Fully Open Access","CC BY","https://link.springer.com/journal/253","https://link.springer.com/journal/"]
[null,432,"Journal of Cancer Research and Clinical Oncology","1432-1335","Springer","Medicine & Public Health","Medicine","Fully Open Access","CC BY","https://link.springer.com/journal/432","https://link.springer.com/journal/"]
[null,248,"Microbial Ecology","1432-184X","Springer","Life Sciences","Biomedical and Life Sciences","Fully Open Access","CC BY","https://link.springer.com/journal/248","https://link.springer.com/journal/"]
[null,10791,"Discover Computing","2948-2992","Discover","Computer Science","Computer Science","Fully Open Access","CC BY","https://link.springer.com/journal/10791","https://link.springer.com/journal/"]
[null,10980,"Landscape Ecology","1572-9761","Springer","Life Sciences","Biomedical and Life Sciences","Fully Open Access","CC BY","https://link.springer.com/journal/10980","https://link.springer.com/journal/"]
[null,12186,"Vocations and Learning","1874-7868","Springer","Education","Education","Fully Open Access","CC BY","https://link.springer.com/journal/12186","https://link.springer.com/journal/"]
[null,10462,"Artificial Intelligence Review","1573-7462","Springer","Computer Science","Computer Science","Fully Open Access","CC BY","https://link.springer.com/journal/10462","https://link.springer.com/journal/"]
[null,11063,"Neural Processing Letters","1573-773X","Springer","Computer Science","Computer Science","Fully Open Access","CC BY","https://link.springer.com/journal/11063","https://link.springer.com/journal/"]
[null,726,"Amino Acids","1438-2199","Springer","Life Sciences","Biomedical and Life Sciences","Fully Open Access","CC BY","https://link.springer.com/journal/726","https://link.springer.com/journal/"]
[null,10828,"The Journal of Comparative Germanic Linguistics","1572-8552","Springer","Linguistics","Social Sciences","Fully Open Access","CC BY","https://link.springer.com/journal/10828","https://link.springer.com/journal/"]
[null,10055,"Virtual Reality","1434-9957","Springer","Computer Science","Computer Science","Fully Open Access","CC BY","https://link.springer.com/journal/10055","https://link.springer.com/journal/"]
[null,10846,"Journal of Intelligent & Robotic Systems","1573-0409","Springer","Engineering","Engineering","Fully Open Access","CC BY","https://link.springer.com/journal/10846","https://link.springer.com/journal/"]
[null,11038,"Discover Space","2948-295X","Discover","Physics","Physics and Astronomy","Fully Open Access","CC BY","https://link.springer.com/journal/11038","https://link.springer.com/journal/"]
[null,40520,"Aging Clinical and Experimental Research","1720-8319","Springer","Medicine & Public Health","Medicine","Fully Open Access","CC BY","https://link.springer.com/journal/40520","https://link.springer.com/journal/"]
[null,402,"Archives of Orthopaedic and Trauma Surgery","1434-3916","Springer","Medicine & Public Health","Medicine","Fully Open Access","CC BY","https://link.springer.com/journal/402","https://link.springer.com/journal/"]
[null,12559,"Cognitive Computation","1866-9964","Springer","Computer Science","Computer Science","Fully Open Access","CC BY","https://link.springer.com/journal/12559","https://link.springer.com/journal/"]
[null,41314,"Journal of Transformative Technologies and Sustainable Development","3059-3336","Springer","Engineering","Engineering","Fully Open Access","CC BY","https://link.springer.com/journal/41314","https://link.springer.com/journal/"]
[null,10971,"Journal of Sol-Gel Science and Technology","1573-4846","Springer","Materials Science","Chemistry and Materials Science","Fully Open Access","CC BY","https://link.springer.com/journal/10971","https://link.springer.com/journal/"]
[null,11096,"International Journal of Clinical Pharmacy","2210-7711","Springer","Medicine & Public Health","Medicine","Fully Open Access","CC BY","https://link.springer.com/journal/11096","https://link.springer.com/journal/"]
[null,10207,"International Journal of Information Security","1615-5270","Springer","Computer Science","Computer Science","Fully Open Access","CC BY",{"$f":"K1961&B1961","v":"https://link.springer.com/journal/10207"},"https://link.springer.com/journal/"]
[null,10123,"International Microbiology","1618-1905","Springer","Life Sciences","Biomedical and Life Sciences","Fully Open Access","CC BY","https://link.springer.com/journal/10123","https://link.springer.com/journal/"]
[null,41939,"Multiscale and Multidisciplinary Modeling, Experiments and Design","2520-8179","Springer","Engineering","Engineering","Fully Open Access","CC BY","https://link.springer.com/journal/41939","https://link.springer.com/journal/"]
[null,10103,"Lasers in Medical Science","1435-604X","Springer","Medicine & Public Health","Medicine","Fully Open Access","CC BY","https://link.springer.com/journal/10103","https://link.springer.com/journal/"]
[null,11306,"Metabolomics","1573-3890","Springer","Life Sciences","Biomedical and Life Sciences","Fully Open Access","CC BY","https://link.springer.com/journal/11306","https://link.springer.com/journal/"]
[null,12083,"Peer-to-Peer Networking and Applications","1936-6450","Springer","Engineering","Engineering","Fully Open Access","CC BY","https://link.springer.com/journal/12083","https://link.springer.com/journal/"]
[null,10725,"Plant Growth Regulation","1573-5087","Springer","Life Sciences","Biomedical and Life Sciences","Fully Open Access","CC BY","https://link.springer.com/journal/10725","https://link.springer.com/journal/"]
[null,13278,"Social Network Analysis and Mining","1869-5469","Springer","Computer Science","Computer Science","Fully Open Access","CC BY","https://link.springer.com/journal/13278","https://link.springer.com/journal/"]
[null,10151,"Techniques in Coloproctology","1128-045X","Springer","Medicine & Public Health","Medicine","Fully Open Access","CC BY","https://link.springer.com/journal/10151","https://link.springer.com/journal/"]
[null,427,"Discover Developmental Biology","3059-3247","Discover","Life Sciences","Biomedical and Life Sciences","Fully Open Access","CC BY","https://link.springer.com/journal/427","https://link.springer.com/journal/"]
[null,340,"Applied Physics B","1432-0649","Springer","Physics","Physics and Astronomy","Fully Open Access","CC BY","https://link.springer.com/journal/340","https://link.springer.com/journal/"]
[null,10877,"Journal of Clinical Monitoring and Computing","1573-2614","Springer","Medicine & Public Health","Medicine","Fully Open Access","CC BY","https://link.springer.com/journal/10877","https://link.springer.com/journal/"]
[null,701,"Acta Neurochirurgica","0942-0940","Springer","Medicine & Public Health","Medicine","Fully Open Access","CC BY","https://link.springer.com/journal/701","https://link.springer.com/journal/"]
[null,42114,"Advanced Composites and Hybrid Materials","2522-0136","Springer","Materials Science","Chemistry and Materials Science","Fully Open Access","CC BY","https://link.springer.com/journal/42114","https://link.springer.com/journal/"]
[null,277,"Annals of Hematology","1432-0584","Springer","Medicine & Public Health","Medicine","Fully Open Access","CC BY","https://link.springer.com/journal/277","https://link.springer.com/journal/"]
[null,404,"Archives of Gynecology and Obstetrics","1432-0711","Springer","Medicine & Public Health","Medicine","Fully Open Access","CC BY","https://link.springer.com/journal/404","https://link.springer.com/journal/"]
[null,13402,"Cellular Oncology","2211-3436","Springer","Biomedicine","Biomedical and Life Sciences","Fully Open Access","CC BY","https://link.springer.com/journal/13402","https://link.springer.com/journal/"]
[null,10753,"Inflammation","1573-2576","Springer","Biomedicine","Biomedical and Life Sciences","Fully Open Access","CC BY","https://link.springer.com/journal/10753","https://link.springer.com/journal/"]
[null,10875,"Journal of Clinical Immunology","1573-2592","Springer","Biomedicine","Biomedical and Life Sciences","Fully Open Access","CC BY","https://link.springer.com/journal/10875","https://link.springer.com/journal/"]
[null,423,"Langenbeck's Archives of Surgery","1435-2451","Springer","Medicine & Public Health","Medicine","Fully Open Access","CC BY","https://link.springer.com/journal/423","https://link.springer.com/journal/"]
[null,436,"Parasitology Research","1432-1955","Springer","Biomedicine","Biomedical and Life Sciences","Fully Open Access","CC BY","https://link.springer.com/journal/436","https://link.springer.com/journal/"]
[null,13171,"Sankhya A","0976-8378","Springer","Statistics","Mathematics and Statistics","Hybrid","CC BY","https://link.springer.com/journal/13171","https://link.springer.com/journal/"]
[null,13571,"Sankhya B","0976-8394","Springer","Statistics","Mathematics and Statistics","Hybrid","CC BY","https://link.springer.com/journal/13571","https://link.springer.com/journal/"]
[null,44481,"Current Water Management Reports","3091-308X","Springer","Earth Sciences","Earth and Environmental Science","Hybrid","CC BY","https://link.springer.com/journal/44481","https://link.springer.com/journal/"]
[null,44489,"Indian Journal of Genetics and Plant Breeding","0975-6906","Springer","Life Sciences","Biomedical and Life Sciences","Hybrid","CC BY","https://link.springer.com/journal/44489","https://link.springer.com/journal/"]
[null,44470,"Journal of Clinical Sleep Medicine","1550-9397","Springer","Medicine & Public Health","Medicine","Hybrid","CC BY","https://link.springer.com/journal/44470","https://link.springer.com/journal/"]
[null,44402,"Ophthalmic and Physiological Optics","1475-1313","Springer","Medicine & Public Health","Medicine","Hybrid","CC BY","https://link.springer.com/journal/44402","https://link.springer.com/journal/"]
[null,44473,"Plant Biosystems","1724-5575","Springer","Life Sciences","Biomedical and Life Sciences","Hybrid","CC BY","https://link.springer.com/journal/44473","https://link.springer.com/journal/"]
[null,294,"Discover Genetics and Evolution","3091-3217","Discover","Life Sciences","Biomedical and Life Sciences","Fully Open Access","CC BY","https://link.springer.com/journal/294","https://link.springer.com/journal/"]
[null,12231,"Ethnobotany and Economic Botany","3091-2911","Springer","Life Sciences","Biomedical and Life Sciences","Hybrid","CC BY","https://link.springer.com/journal/12231","https://link.springer.com/journal/"]
[null,10010,"Engineering Research","3091-3306","Springer","Engineering","Engineering","Hybrid","CC BY","https://link.springer.com/journal/10010","https://link.springer.com/journal/"]
[null,13404,"Discover Metals","3091-3462","Discover","Materials Science","Chemistry and Materials Science","Fully Open Access","CC BY","https://link.springer.com/journal/13404","https://link.springer.com/journal/"]
[null,11569,"Global Ethics","3091-3322","Springer","Philosophy","Education","Fully Open Access","CC BY","https://link.springer.com/journal/11569","https://link.springer.com/journal/"]
[null,11294,"International Advances in Economic Research","1573-966X","Springer","Economics","Economics and Finance","Hybrid","CC BY","https://link.springer.com/journal/11294","https://link.springer.com/journal/"]
[null,44498,"Journal of Industrial Ecology","1530-9290","Springer","Environment","Earth and Environmental Science","Hybrid","CC BY","https://link.springer.com/journal/44498","https://link.springer.com/journal/"]
[null,41781,"EPJ Research Infrastructures","3091-4566","Springer","Physics","Physics and Astronomy","Fully Open Access","CC BY","https://link.springer.com/journal/41781","https://link.springer.com/journal/"]
[null,11705,"ENGINEERING Chemical Engineering","3091-5007","Higher Education Press, co-published with Springer","Chemistry","Chemistry and Materials Science","Hybrid","CC BY","https://link.springer.com/journal/11705","https://link.springer.com/journal/"]
[null,11708,"ENGINEERING Energy","3091-5023","Higher Education Press, co-published with Springer","Energy","Energy","Hybrid","CC BY","https://link.springer.com/journal/11708","https://link.springer.com/journal/"]
[null,42524,"ENGINEERING Management","3091-5082","Higher Education Press, co-published with Springer","Engineering","Engineering","Hybrid","CC BY","https://link.springer.com/journal/42524","https://link.springer.com/journal/"]
[null,11783,"ENGINEERING Environment","3091-5066","Higher Education Press, co-published with Springer","Environment","Earth and Environmental Science","Hybrid","CC BY","https://link.springer.com/journal/11783","https://link.springer.com/journal/"]
[null,11465,"ENGINEERING Mechanical Engineering","3091-4965","Higher Education Press, co-published with Springer","Engineering","Engineering","Hybrid","CC BY","https://link.springer.com/journal/11465","https://link.springer.com/journal/"]
[null,11684,"MedScience","3091-4981","Higher Education Press, co-published with Springer","Medicine & Public Health","Medicine","Hybrid","CC BY","https://link.springer.com/journal/11684","https://link.springer.com/journal/"]
[null,11709,"ENGINEERING Structure and Civil Engineering","3091-504X","Higher Education Press, co-published with Springer","Engineering","Engineering","Hybrid","CC BY","https://link.springer.com/journal/11709","https://link.springer.com/journal/"]
[null,106,"HNO","1433-0458","SpringerMedizin","Medicine & Public Health","Medicine","Hybrid","CC BY","https://link.springer.com/journal/106","https://link.springer.com/journal/"]
[null,16024,"HeilberufeScience","2190-2100","SpringerMedizin","Medicine & Public Health","Medicine","Hybrid","CC BY","https://link.springer.com/journal/16024","https://link.springer.com/journal/"]
[null,59,"Herz","1615-6692","SpringerMedizin","Medicine & Public Health","Medicine","Hybrid","CC BY","https://link.springer.com/journal/59","https://link.springer.com/journal/"]
[null,399,"Herzschrittmachertherapie + Elektrophysiologie","1435-1544","SpringerMedizin","Medicine & Public Health","Medicine","Hybrid","CC BY","https://link.springer.com/journal/399","https://link.springer.com/journal/"]
[null,41971,"Journal für Gastroenterologische und Hepatologische Erkrankungen","1728-6271","SpringerMedizin","Medicine & Public Health","Medicine","Hybrid","CC BY","https://link.springer.com/journal/41971","https://link.springer.com/journal/"]
[null,41975,"Journal für Gynäkologische Endokrinologie/Schweiz","2520-8500","SpringerMedizin","Medicine & Public Health","Medicine","Hybrid","CC BY","https://link.springer.com/journal/41975","https://link.springer.com/journal/"]
[null,108,"Die Innere Medizin","2731-7099","SpringerMedizin","Medicine & Public Health","Medicine","Hybrid","CC BY","https://link.springer.com/journal/108","https://link.springer.com/journal/"]
[null,40629,"Allergo Journal International","2197-0378","SpringerMedizin","Medicine & Public Health","Medicine","Hybrid","CC BY","https://link.springer.com/journal/40629","https://link.springer.com/journal/"]
[null,101,"Die Anaesthesiologie","2731-6866","SpringerMedizin","Medicine & Public Health","Medicine","Hybrid","CC BY","https://link.springer.com/journal/101","https://link.springer.com/journal/"]
[null,44179,"Anästhesie Nachrichten","2731-3972","SpringerMedizin","Medicine & Public Health","Medicine","Hybrid","CC BY","https://link.springer.com/journal/44179","https://link.springer.com/journal/"]
[null,142,"Arthroskopie","1434-3924","SpringerMedizin","Medicine & Public Health","Medicine","Hybrid","CC BY","https://link.springer.com/journal/142","https://link.springer.com/journal/"]
[null,104,"Die Chirurgie","2731-698X","SpringerMedizin","Medicine & Public Health","Medicine","Hybrid","CC BY","https://link.springer.com/journal/104","https://link.springer.com/journal/"]
[null,10309,"Clinical Epileptology","2948-1058","SpringerMedizin","Medicine & Public Health","Medicine","Hybrid","CC BY","https://link.springer.com/journal/10309","https://link.springer.com/journal/"]
[null,105,"Die Dermatologie","2731-7013","SpringerMedizin","Medicine & Public Health","Medicine","Hybrid","CC BY","https://link.springer.com/journal/105","https://link.springer.com/journal/"]
[null,11428,"Die Diabetologie","2731-7455","SpringerMedizin","Medicine & Public Health","Medicine","Hybrid","CC BY","https://link.springer.com/journal/11428","https://link.springer.com/journal/"]
[null,11377,"Die Gastroenterologie","2731-7439","SpringerMedizin","Medicine & Public Health","Medicine","Hybrid","CC BY","https://link.springer.com/journal/11377","https://link.springer.com/journal/"]
[null,772,"Gefässchirurgie","1434-3932","SpringerMedizin","Medicine & Public Health","Medicine","Hybrid","CC BY","https://link.springer.com/journal/772","https://link.springer.com/journal/"]
[null,10353,"European Surgery","1682-4016","SpringerMedizin","Medicine & Public Health","Medicine","Hybrid","CC BY","https://link.springer.com/journal/10353","https://link.springer.com/journal/"]
[null,129,"Die Gynäkologie","2731-7110","SpringerMedizin","Medicine & Public Health","Medicine","Hybrid","CC BY","https://link.springer.com/journal/129","https://link.springer.com/journal/"]
[null,41974,"Gynäkologie in der Praxis","3005-0766","SpringerMedizin","Medicine & Public Health","Medicine","Hybrid","CC BY","https://link.springer.com/journal/41974","https://link.springer.com/journal/"]
[null,10304,"Gynäkologische Endokrinologie","1610-2908","SpringerMedizin","Medicine & Public Health","Medicine","Hybrid","CC BY","https://link.springer.com/journal/10304","https://link.springer.com/journal/"]
[null,41969,"Journal für Endokrinologie, Diabetologie und Stoffwechsel","3004-8923","SpringerMedizin","Medicine & Public Health","Medicine","Hybrid","CC BY",{"$f":"K2025&B2025","v":"https://link.springer.com/journal/41969"},"https://link.springer.com/journal/"]
[null,112,"Monatsschrift Kinderheilkunde","1433-0474","SpringerMedizin","Medicine & Public Health","Medicine","Hybrid","CC BY","https://link.springer.com/journal/112","https://link.springer.com/journal/"]
[null,12181,"Die Kardiologie","2731-7137","SpringerMedizin","Medicine & Public Health","Medicine","Hybrid","CC BY","https://link.springer.com/journal/12181","https://link.springer.com/journal/"]
[null,43205,"Knie Journal","2662-4036","SpringerMedizin","Medicine & Public Health","Medicine","Hybrid","CC BY","https://link.springer.com/journal/43205","https://link.springer.com/journal/"]
[null,12285,"Die MKG-Chirurgie","2731-7498","SpringerMedizin","Medicine & Public Health","Medicine","Hybrid","CC BY","https://link.springer.com/journal/12285","https://link.springer.com/journal/"]
[null,337,"Manuelle Medizin","1433-0466","SpringerMedizin","Medicine & Public Health","Medicine","Hybrid","CC BY","https://link.springer.com/journal/337","https://link.springer.com/journal/"]
[null,63,"Medizinische Klinik - Intensivmedizin und Notfallmedizin","2193-6226","SpringerMedizin","Medicine & Public Health","Medicine","Hybrid","CC BY","https://link.springer.com/journal/63","https://link.springer.com/journal/"]
[null,56,"Journal of Orofacial Orthopedics / Fortschritte der Kieferorthopädie","1615-6714","SpringerMedizin","Dentistry","Medicine","Hybrid","CC BY","https://link.springer.com/journal/56","https://link.springer.com/journal/"]
[null,482,"Der Schmerz","1432-2129","SpringerMedizin","Medicine & Public Health","Medicine","Hybrid","CC BY","https://link.springer.com/journal/482","https://link.springer.com/journal/"]
[null,44180,"Schmerz Nachrichten","2731-3999","SpringerMedizin","Medicine & Public Health","Medicine","Hybrid","CC BY","https://link.springer.com/journal/44180","https://link.springer.com/journal/"]
[null,43472,"Schweizer Gastroenterologie","2662-7159","SpringerMedizin","Medicine & Public Health","Medicine","Hybrid","CC BY","https://link.springer.com/journal/43472","https://link.springer.com/journal/"]
[null,11560,"Die Nephrologie","2731-7471","SpringerMedizin","Medicine & Public Health","Medicine","Hybrid","CC BY","https://link.springer.com/journal/11560","https://link.springer.com/journal/"]
[null,115,"Der Nervenarzt","1433-0407","SpringerMedizin","Medicine & Public Health","Medicine","Hybrid","CC BY","https://link.springer.com/journal/115","https://link.springer.com/journal/"]
[null,10049,"Notfall + Rettungsmedizin","1436-0578","SpringerMedizin","Medicine & Public Health","Medicine","Hybrid","CC BY","https://link.springer.com/journal/10049","https://link.springer.com/journal/"]
[null,11678,"Obere Extremität","1862-6602","SpringerMedizin","Medicine & Public Health","Medicine","Hybrid","CC BY","https://link.springer.com/journal/11678","https://link.springer.com/journal/"]
[null,761,"Die Onkologie","2731-7234","SpringerMedizin","Medicine & Public Health","Medicine","Hybrid","CC BY","https://link.springer.com/journal/761","https://link.springer.com/journal/"]
[null,64,"Operative Orthopädie und Traumatologie","1439-0981","SpringerMedizin","Medicine & Public Health","Medicine","Hybrid","CC BY","https://link.springer.com/journal/64","https://link.springer.com/journal/"]
[null,347,"Die Ophthalmologie","2731-7218","SpringerMedizin","Medicine & Public Health","Medicine","Hybrid","CC BY","https://link.springer.com/journal/347","https://link.springer.com/journal/"]
[null,44190,"Oralprophylaxe & Kinderzahnmedizin","3005-0790","SpringerMedizin","Dentistry","Medicine","Hybrid","CC BY","https://link.springer.com/journal/44190","https://link.springer.com/journal/"]
[null,292,"Die Pathologie","2731-7196","SpringerMedizin","Medicine & Public Health","Medicine","Hybrid","CC BY","https://link.springer.com/journal/292","https://link.springer.com/journal/"]
[null,120,"Die Urologie","2731-7072","SpringerMedizin","Medicine & Public Health","Medicine","Hybrid","CC BY","https://link.springer.com/journal/120","https://link.springer.com/journal/"]
[null,41973,"Urologie in der Praxis","2661-8745","SpringerMedizin","Medicine & Public Health","Medicine","Hybrid","CC BY","https://link.springer.com/journal/41973","https://link.springer.com/journal/"]
[null,10354,"Wiener Medizinische Wochenschrift","1563-258X","SpringerMedizin","Medicine & Public Health","Medicine","Hybrid","CC BY","https://link.springer.com/journal/10354","https://link.springer.com/journal/"]
[null,735,"PRO CARE","1613-7574","SpringerMedizin","Medicine & Public Health","Medicine","Hybrid","CC BY","https://link.springer.com/journal/735","https://link.springer.com/journal/"]
[null,729,"Psychotherapie Forum","1613-7604","SpringerMedizin","Medicine & Public Health","Medicine","Hybrid","CC BY","https://link.springer.com/journal/729","https://link.springer.com/journal/"]
[null,608,"Pädiatrie & Pädologie","1613-7558","SpringerMedizin","Medicine & Public Health","Medicine","Hybrid","CC BY","https://link.springer.com/journal/608","https://link.springer.com/journal/"]
[null,117,"Die Radiologie","2731-7056","SpringerMedizin","Medicine & Public Health","Medicine","Hybrid","CC BY","https://link.springer.com/journal/117","https://link.springer.com/journal/"]
[null,44332,"Rheuma Plus / Schweiz","3004-8931","SpringerMedizin","Medicine & Public Health","Medicine","Hybrid","CC BY","https://link.springer.com/journal/44332","https://link.springer.com/journal/"]
[null,11818,"Somnologie","1439-054X","SpringerMedizin","Medicine & Public Health","Medicine","Hybrid","CC BY","https://link.springer.com/journal/11818","https://link.springer.com/journal/"]
[null,717,"Spektrum der Augenheilkunde","1613-7523","SpringerMedizin","Medicine & Public Health","Medicine","Hybrid","CC BY","https://link.springer.com/journal/717","https://link.springer.com/journal/"]
[null,740,"Wiener klinisches Magazin","1613-7817","SpringerMedizin","Medicine & Public Health","Medicine","Hybrid","CC BY","https://link.springer.com/journal/740","https://link.springer.com/journal/"]
[null,44293,"ZI Zahnärztliche Implantologie","3004-8702","SpringerMedizin","Dentistry","Medicine","Hybrid","CC BY","https://link.springer.com/journal/44293","https://link.springer.com/journal/"]
[null,44266,"Zeitschrift für Allgemeinmedizin","1439-9229","SpringerMedizin","Medicine & Public Health","Medicine","Hybrid","CC BY","https://link.springer.com/journal/44266","https://link.springer.com/journal/"]
[null,391,"Zeitschrift für Gerontologie und Geriatrie","1435-1269","SpringerMedizin","Medicine & Public Health","Medicine","Hybrid","CC BY","https://link.springer.com/journal/391","https://link.springer.com/journal/"]
[null,398,"Zeitschrift für Herz-,Thorax- und Gefäßchirurgie","1435-1277","SpringerMedizin","Medicine & Public Health","Medicine","Hybrid","CC BY","https://link.springer.com/journal/398","https://link.springer.com/journal/"]
[null,10405,"Zeitschrift für Pneumologie","2731-7412","SpringerMedizin","Medicine & Public Health","Medicine","Hybrid","CC BY","https://link.springer.com/journal/10405","https://link.springer.com/journal/"]
[null,393,"Zeitschrift für Rheumatologie","1435-1250","SpringerMedizin","Medicine & Public Health","Medicine","Hybrid","CC BY","https://link.springer.com/journal/393","https://link.springer.com/journal/"]
[null,53,"coloproctology","1615-6730","SpringerMedizin","Medicine & Public Health","Medicine","Hybrid","CC BY","https://link.springer.com/journal/53","https://link.springer.com/journal/"]
[null,12326,"hautnah","2192-6484","SpringerMedizin","Medicine & Public Health","Medicine","Hybrid","CC BY","https://link.springer.com/journal/12326","https://link.springer.com/journal/"]
[null,12254,"memo - Magazine of European Medical Oncology","1865-5076","SpringerMedizin","Medicine & Public Health","Medicine","Hybrid","CC BY","https://link.springer.com/journal/12254","https://link.springer.com/journal/"]
[null,40211,"neuropsychiatrie","2194-1327","SpringerMedizin","Medicine & Public Health","Medicine","Hybrid","CC BY","https://link.springer.com/journal/40211","https://link.springer.com/journal/"]
[null,739,"psychopraxis. neuropraxis","2197-9715","SpringerMedizin","Medicine & Public Health","Medicine","Hybrid","CC BY","https://link.springer.com/journal/739","https://link.springer.com/journal/"]
[null,12688,"rheuma plus","2191-2610","SpringerMedizin","Medicine & Public Health","Medicine","Hybrid","CC BY","https://link.springer.com/journal/12688","https://link.springer.com/journal/"]
[null,113,"Die Unfallchirurgie","2731-703X","SpringerMedizin","Medicine & Public Health","Medicine","Hybrid","CC BY","https://link.springer.com/journal/113","https://link.springer.com/journal/"]
[null,451,"Forum der Psychoanalyse","1437-0751","SpringerMedizin","Medicine & Public Health","Medicine","Hybrid","CC BY","https://link.springer.com/journal/451","https://link.springer.com/journal/"]
[null,132,"Die Orthopädie","2731-7153","SpringerMedizin","Medicine & Public Health","Medicine","Hybrid","CC BY","https://link.springer.com/journal/132","https://link.springer.com/journal/"]
[null,278,"Die Psychotherapie","2731-717X","SpringerMedizin","Medicine & Public Health","Medicine","Hybrid","CC BY","https://link.springer.com/journal/278","https://link.springer.com/journal/"]
[null,194,"Rechtsmedizin","1434-5196","SpringerMedizin","Medicine & Public Health","Medicine","Hybrid","CC BY","https://link.springer.com/journal/194","https://link.springer.com/journal/"]
[null,42212,"Deutsche Zeitschrift für Akupunktur","1439-4359","SpringerMedizin","Medicine & Public Health","Medicine","Hybrid","CC BY","https://link.springer.com/journal/42212","https://link.springer.com/journal/"]
[null,508,"Wiener klinische Wochenschrift","1613-7671","SpringerMedizin","Medicine & Public Health","Medicine","Hybrid","CC BY","https://link.springer.com/journal/508","https://link.springer.com/journal/"]
[null,43830,"Das Magazin für Health Professionals ? ÖKZ","3059-4790","SpringerMedizin","Medicine & Public Health","Medicine","Hybrid","CC BY","https://link.springer.com/journal/43830","https://link.springer.com/journal/"]
[null,42451,"DGNeurologie","2524-3454","SpringerMedizin","Medicine & Public Health","Medicine","Hybrid","CC BY","https://link.springer.com/journal/42451","https://link.springer.com/journal/"]
[null,44476,"Zeitschrift für Hebammenwissenschaft","2366-3766","SpringerMedizin","Medicine & Public Health","Medicine","Hybrid","CC BY","https://link.springer.com/journal/44476","https://link.springer.com/journal/"]